Workbook

Sheet Filtro
A1: Mes | B1: (Todas)
A2: Comuna/Hospital | B2: (Todas)
A4: Etiquetas de fila | B4: Suma de Col01 | C4: Suma de Col02 | D4: Suma de Col03 | E4: Suma de Col04 | F4: Suma de Col05 | G4: Suma de Col06 | H4: Suma de Col07 | I4: Suma de Col08 | J4: Suma de Col09 | K4: Suma de Col10 | L4: Suma de Col11 | M4: Suma de Col12 | N4: Suma de Col13 | O4: Suma de Col14 | P4: Suma de Col15 | Q4: Suma de Col16 | R4: Suma de Col17 | S4: Suma de Col18 | T4: Suma de Col19 | U4: Suma de Col20 | V4: Suma de Col21 | W4: Suma de Col22 | X4: Suma de Col23 | Y4: Suma de Col24 | Z4: Suma de Col25 | AA4: Suma de Col26 | AB4: Suma de Col27 | AC4: Suma de Col28 | AD4: Suma de Col29 | AE4: Suma de Col30 | AF4: Suma de Col31 | AG4: Suma de Col32 | AH4: Suma de Col33 | AI4: Suma de Col34 | AJ4: Suma de Col35 | AK4: Suma de Col36 | AL4: Suma de Col37 | AM4: Suma de Col38 | AN4: Suma de Col39 | AO4: Suma de Col40 | AP4: Suma de Col41 | AQ4: Suma de col42 | AR4: Suma de col43 | AS4: Suma de col44 | AT4: Suma de col45 | AU4: Suma de col46 | AV4: Cuenta de col47 | AW4: Cuenta de col48 | AX4: Cuenta de col49 | AY4: Cuenta de col50
A5: P1010100 | B5: 24839 | C5: 4 | D5: 271 | E5: 1831 | F5: 4546 | G5: 4860 | H5: 4233 | I5: 3838 | J5: 3088 | K5: 2168 | M5: 239 | N5: 250 | O5: 11
A6: P1010201 | B6: 37138 | C6: 619 | D6: 6740 | E6: 6842 | F6: 6749 | G6: 5836 | H6: 4538 | I6: 3456 | J6: 1897 | K6: 461 | M6: 354 | N6: 562 | O6: 10
A7: P1010202 | B7: 9585 | C7: 25 | D7: 364 | E7: 920 | F7: 1343 | G7: 1313 | H7: 1129 | I7: 1546 | J7: 1977 | K7: 968 | M7: 82 | N7: 164 | O7: 0
A8: P1010203 | B8: 18492 | C8: 199 | D8: 3546 | E8: 4542 | F8: 3883 | G8: 2825 | H8: 1774 | I8: 1198 | J8: 457 | K8: 68 | M8: 176 | N8: 394 | O8: 9
A9: P1010301 | B9: 3989 | C9: 64 | D9: 602 | E9: 496 | F9: 584 | G9: 576 | H9: 472 | I9: 457 | J9: 385 | K9: 301 | L9: 52 | M9: 20 | N9: 125 | O9: 6
A10: P1010302 | B10: 1211 | C10: 59 | D10: 605 | E10: 149 | F10: 91 | G10: 91 | H10: 58 | I10: 49 | J10: 53 | K10: 39 | L10: 17 | M10: 0 | N10: 48 | O10: 17
A11: P1020100 | B11: 20 | C11: 19 | D11: 0 | E11: 14 | F11: 2
A12: P1020200 | B12: 775 | C12: 395 | D12: 25 | E12: 192 | F12: 58
A13: P1030101 | B13: 2514 | C13: 2 | D13: 127 | E13: 523 | F13: 751 | G13: 656 | H13: 351 | I13: 96 | J13: 8 | K13: 0
A14: P1030102 | B14: 2605 | C14: 5 | D14: 228 | E14: 602 | F14: 781 | G14: 569 | H14: 315 | I14: 101 | J14: 4 | K14: 0
A15: P1030103 | B15: 2457 | C15: 8 | D15: 340 | E15: 703 | F15: 714 | G15: 432 | H15: 208 | I15: 51 | J15: 1 | K15: 0
A16: P1030104 | B16: 307 | C16: 5 | D16: 80 | E16: 107 | F16: 65 | G16: 38 | H16: 7 | I16: 5 | J16: 0 | K16: 0
A17: P1030201 | B17: 567 | C17: 0 | D17: 37 | E17: 119 | F17: 175 | G17: 144 | H17: 72 | I17: 18 | J17: 2 | K17: 0
A18: P1030202 | B18: 772 | C18: 2 | D18: 55 | E18: 163 | F18: 227 | G18: 185 | H18: 97 | I18: 41 | J18: 2 | K18: 0
A19: P1030203 | B19: 646 | C19: 3 | D19: 88 | E19: 179 | F19: 186 | G19: 98 | H19: 71 | I19: 19 | J19: 2 | K19: 0
A20: P1030204 | B20: 71 | C20: 0 | D20: 16 | E20: 26 | F20: 16 | G20: 7 | H20: 6 | I20: 0 | J20: 0 | K20: 0
A21: P1030301 | B21: 5742
A22: P1030303 | B22: 21
A23: P1030304 | B23: 207
A24: P1030401 | B24: 96
A25: P1030403 | B25: 833
A26: P1030404 | B26: 1887
A27: P1040500 | B27: 22825 | C27: 285 | D27: 4739 | E27: 6120 | F27: 5344 | G27: 3238 | H27: 1921 | I27: 896 | J27: 258 | K27: 24 | M27: 293 | N27: 671 | O27: 11
A28: P1040501 | B28: 1937 | C28: 542 | D28: 40 | E28: 445 | F28: 189
A29: P1040502 | B29: 1139 | C29: 1139
A30: P1040503 | B30: 378 | C30: 756
A31: P1040504 | B31: 175 | C31: 525
A32: P1040505 | B32: 146 | C32: 549
A33: P1040506 | B33: 29
A34: P1040507 | B34: 17
A35: P1040508 | B35: 20139 | C35: 151 | D35: 2319 | E35: 4163 | F35: 4375 | G35: 3460 | H35: 2288 | I35: 1642 | J35: 1328 | K35: 413 | M35: 167 | N35: 982 | O35: 7
A36: P1050100 | B36: 183
A37: P1050101 | B37: 1426
A38: P1050102 | B38: 1409
A39: P1050103 | B39: 271
A40: P1050104 | B40: 601
A41: P1060010 | B41: 5798 | C41: 2 | D41: 61 | E41: 146 | F41: 360 | G41: 588 | H41: 815 | I41: 1247 | J41: 1460 | K41: 996 | L41: 123 | M41: 35 | N41: 37 | O41: 0
A42: P1060020 | B42: 440 | C42: 1 | D42: 88 | E42: 111 | F42: 113 | G42: 63 | H42: 34 | I42: 20 | J42: 9 | K42: 1 | L42: 0 | M42: 3 | N42: 4 | O42: 0
A43: P1060040 | B43: 3806
A44: P1060050 | B44: 613
A45: P1060060 | B45: 299
A46: P1060070 | B46: 159
A47: P1060080 | B47: 84
A48: P1060090 | B48: 9276 | C48: 258 | D48: 3128 | E48: 2061 | F48: 1480 | G48: 979 | H48: 599 | I48: 441 | J48: 262 | K48: 67 | L48: 1 | M48: 15 | N48: 80 | O48: 6
A49: P1060100 | B49: 2309 | C49: 456 | D49: 35 | E49: 655 | F49: 249
A50: P1060101 | B50: 1697 | C50: 340 | D50: 28 | E50: 537 | F50: 186
A51: P1060102 | B51: 881 | C51: 193 | D51: 19 | E51: 349 | F51: 79
A52: P1060103 | B52: 253 | C52: 73 | D52: 3 | E52: 161 | F52: 21
A53: P1060104 | B53: 13 | C53: 4 | D53: 0 | E53: 4 | F53: 0
A54: P1060106 | B54: 7 | C54: 9 | D54: 6 | E54: 5
A55: P1060107 | B55: 495 | C55: 302 | D55: 117 | E55: 156
A56: P1060108 | B56: 1230 | C56: 798 | D56: 294 | E56: 507
A57: P1060109 | B57: 1575 | C57: 930 | D57: 325 | E57: 694
A58: P1060110 | B58: 1143 | C58: 648 | D58: 265 | E58: 508
A59: P1060111 | B59: 603 | C59: 377 | D59: 151 | E59: 251
A60: P1060112 | B60: 164 | C60: 112 | D60: 52 | E60: 66
A61: P1060113 | B61: 9 | C61: 4 | D61: 1 | E61: 3
A62: P1060115 | B62: 108
A63: P1060116 | B63: 386
A64: P1060117 | B64: 67
A65: P1060118 | B65: 29
A66: P1060119 | B66: 62
A67: P1060120 | B67: 21
A68: P1060121 | B68: 13
A69: P1060122 | B69: 39
A70: P1060123 | B70: 70
A71: P1060124 | B71: 216 | C71: 0 | D71: 13 | E71: 42 | F71: 57 | G71: 55 | H71: 34 | I71: 11 | J71: 2 | K71: 2 | M71: 7 | N71: 6 | O71: 0
A72: P11000140 | B72: 377 | C72: 2 | D72: 375 | E72: 0 | F72: 2 | G72: 0 | H72: 41 | I72: 0 | J72: 76 | K72: 0 | L72: 101 | M72: 0 | N72: 53 | O72: 0 | P72: 61 | Q72: 0 | R72: 24 | S72: 0 | T72: 8 | U72: 0 | V72: 9 | W72: 2 | X72: 0 | Y72: 0 | Z72: 0 | AA72: 0 | AB72: 0 | AC72: 0 | AD72: 0 | AE72: 0 | AF72: 0 | AG72: 3 | AH72: 0 | AI72: 29 | AJ72: 278
A73: P11000150 | B73: 3 | D73: 3 | T73: 1 | V73: 1 | X73: 1 | AQ73: 0 | AR73: 0 | AS73: 0 | AT73: 1 | AU73: 0
A74: P11000160 | B74: 3 | D74: 3 | P74: 1 | T74: 1 | V74: 1 | AQ74: 0 | AR74: 0 | AS74: 0 | AT74: 0 | AU74: 0
A75: P11000170 | B75: 3149 | C75: 2487 | D75: 662 | E75: 0 | F75: 0 | G75: 1 | H75: 1 | I75: 1 | J75: 0 | K75: 3 | L75: 2 | M75: 1 | N75: 6 | O75: 25 | P75: 13 | Q75: 175 | R75: 16 | S75: 414 | T75: 76 | U75: 416 | V75: 89 | W75: 368 | X75: 98 | Y75: 277 | Z75: 85 | AA75: 254 | AB75: 53 | AC75: 222 | AD75: 90 | AE75: 153 | AF75: 70 | AG75: 75 | AH75: 37 | AI75: 56 | AJ75: 19 | AK75: 24 | AL75: 2 | AM75: 20 | AN75: 3 | AO75: 2 | AP75: 2 | AQ75: 10 | AR75: 13 | AS75: 3 | AT75: 59 | AU75: 76
A76: P11000180 | B76: 167 | C76: 136 | D76: 31 | E76: 1 | F76: 0 | G76: 0 | H76: 0 | I76: 0 | J76: 0 | K76: 0 | L76: 2 | M76: 0 | N76: 2 | O76: 2 | P76: 2 | Q76: 26 | R76: 2 | S76: 32 | T76: 1 | U76: 35 | V76: 6 | W76: 21 | X76: 3 | Y76: 7 | Z76: 4 | AA76: 9 | AB76: 5 | AC76: 1 | AD76: 4 | AE76: 0 | AF76: 0 | AG76: 0 | AH76: 0 | AI76: 0 | AJ76: 0 | AK76: 1 | AL76: 0 | AM76: 0 | AN76: 0 | AO76: 1 | AP76: 0 | AQ76: 0 | AR76: 1 | AS76: 0 | AT76: 1 | AU76: 5
A77: P1200100 | B77: 0 | C77: 0 | D77: 52 | E77: 42
A78: P1200110 | B78: 2 | C78: 1 | D78: 589 | E78: 464
A79: P1200120 | B79: 12 | C79: 5 | D79: 1327 | E79: 1002
A80: P1200130 | B80: 9 | C80: 3 | D80: 1501 | E80: 1127
A81: P1200140 | B81: 6 | C81: 3 | D81: 1093 | E81: 797
A82: P1200150 | B82: 3 | C82: 1 | D82: 548 | E82: 422
A83: P1200160 | B83: 2 | C83: 2 | D83: 151 | E83: 112
A84: P1200170 | B84: 0 | C84: 0 | D84: 9 | E84: 6
A85: P1200190 | B85: 828 | C85: 27 | D85: 238 | E85: 207 | F85: 168 | G85: 112 | H85: 55 | I85: 21 | J85: 0 | K85: 0 | M85: 8 | N85: 36 | O85: 1
A86: P1200200 | B86: 1989 | C86: 54 | D86: 571 | E86: 410 | F86: 294 | G86: 197 | H86: 165 | I86: 103 | J86: 86 | K86: 69 | L86: 40 | M86: 12 | N86: 127 | O86: 9
A87: P1200210 | B87: 410 | C87: 7 | D87: 88 | E87: 99 | F87: 71 | G87: 34 | H87: 29 | I87: 19 | J87: 25 | K87: 10 | L87: 28 | M87: 1 | N87: 25 | O87: 10
A88: P1200220 | B88: 1410 | C88: 1 | D88: 29 | E88: 57 | F88: 71 | G88: 90 | H88: 84 | I88: 140 | J88: 279 | K88: 341 | L88: 318 | M88: 14 | N88: 17 | O88: 1
A89: P1200230 | B89: 149 | C89: 0 | D89: 0 | E89: 3 | F89: 6 | G89: 6 | H89: 2 | I89: 28 | J89: 55 | K89: 37 | L89: 12 | M89: 0 | N89: 2 | O89: 2
A90: P1200240 | B90: 5712 | C90: 0 | D90: 17 | E90: 35 | F90: 227 | G90: 644 | H90: 1120 | I90: 1115 | J90: 1095 | K90: 1459 | M90: 95 | N90: 71 | O90: 5
A91: P1200250 | B91: 17 | C91: 0 | D91: 0 | E91: 0 | F91: 0 | G91: 1 | H91: 6 | I91: 8 | J91: 1 | K91: 1 | M91: 0 | N91: 0 | O91: 0
A92: P1200260 | B92: 6 | C92: 0 | D92: 1 | E92: 0 | F92: 4 | G92: 1 | H92: 0 | I92: 0 | J92: 0 | K92: 0 | M92: 0 | N92: 0 | O92: 0
A93: P1200270 | B93: 914 | C93: 4 | D93: 92 | E93: 244 | F93: 269 | G93: 161 | H93: 103 | I93: 35 | J93: 2 | K93: 4 | L93: 0 | M93: 7 | N93: 41 | O93: 3
A94: P1200280 | B94: 50 | C94: 5 | D94: 11 | E94: 26 | F94: 7 | G94: 1 | H94: 2 | I94: 0
A95: P1200290 | B95: 101 | C95: 0 | D95: 32 | E95: 52 | F95: 17 | G95: 0 | H95: 1 | I95: 4
A96: P1200300 | B96: 34 | C96: 1 | D96: 10 | E96: 19 | F96: 4 | G96: 0 | H96: 0 | I96: 0
A97: P1200310 | B97: 11 | C97: 1 | D97: 0 | E97: 5 | F97: 5 | G97: 0 | H97: 0 | I97: 0
A98: P1200320 | B98: 4 | D98: 1 | E98: 2 | F98: 1 | H98: 0 | I98: 0
A99: P1200330 | B99: 213 | C99: 2 | D99: 58 | E99: 92 | F99: 54 | G99: 7 | H99: 1 | I99: 1
A100: P1200340 | B100: 66
A101: P1200350 | B101: 8 | E101: 1 | F101: 1 | G101: 3 | H101: 1 | I101: 2 | N101: 3
A102: P1206010 | B102: 29075
A103: P1206020 | B103: 26085
A104: P1206030 | B104: 23837
A105: P1206040 | B105: 23478
A106: P1206050 | B106: 23229
A107: P1206060 | B107: 23787
A108: P1206070 | B108: 19666
A109: P1206080 | B109: 14967
A110: P1207010 | B110: 5592 | C110: 4993 | D110: 371 | E110: 131 | F110: 14 | G110: 30 | H110: 26 | I110: 27 | J110: 0 | K110: 0
A111: P1207020 | B111: 5210 | C111: 4677 | D111: 330 | E111: 126 | F111: 13 | G111: 18 | H111: 12 | I111: 27 | J111: 6 | K111: 1
A112: P1207030 | B112: 12704
A113: P1207040 | B113: 8682
A114: P1207050 | B114: 4011
A115: P1207060 | B115: 1663
A116: P1207070 | B116: 566
A117: P1207080 | B117: 198
A118: P1207090 | B118: 16374
A119: P1207100 | B119: 13266
A120: P1207110 | B120: 5119
A121: P1207120 | B121: 1656
A122: P1207130 | B122: 745
A123: P1207140 | B123: 178
A124: P1207150 | B124: 24240
A125: P1207160 | B125: 5062
A126: P1207170 | B126: 4679 | C126: 4170 | D126: 304 | E126: 144 | F126: 34 | G126: 17 | H126: 4 | I126: 6 | J126: 0 | K126: 0
A127: P1207180 | B127: 54271
A128: P1207190 | B128: 1640
A129: P1208020 | B129: 4775 | C129: 4309 | D129: 284 | E129: 114 | F129: 10 | G129: 16 | H129: 16 | I129: 24 | J129: 2 | K129: 0
A130: P1208030 | B130: 4564 | C130: 4131 | D130: 276 | E130: 97 | F130: 13 | G130: 12 | H130: 7 | I130: 23 | J130: 4 | K130: 1
A131: P1208040 | B131: 4409 | C131: 4043 | D131: 237 | E131: 85 | F131: 9 | G131: 9 | H131: 8 | I131: 15 | J131: 1 | K131: 2
A132: P1208050 | B132: 4293 | C132: 3944 | D132: 221 | E132: 93 | F132: 9 | G132: 6 | H132: 1 | I132: 9 | J132: 6 | K132: 4
A133: P1208060 | B133: 3758 | C133: 3410 | D133: 234 | E133: 93 | F133: 0 | G133: 8 | H133: 2 | I133: 9 | J133: 2 | K133: 0
A134: P1208070 | B134: 2745 | C134: 2456 | D134: 192 | E134: 76 | F134: 4 | G134: 2 | H134: 2 | I134: 10 | J134: 2 | K134: 1
A135: P1208080 | B135: 975 | C135: 854 | D135: 87 | E135: 24 | F135: 3 | G135: 2 | H135: 1 | I135: 3 | J135: 1 | K135: 0
A136: P1208090 | B136: 305 | C136: 268 | D136: 28 | E136: 8 | F136: 0 | G136: 0 | H136: 0 | I136: 1 | J136: 0 | K136: 0
A137: P1208100 | B137: 107 | C137: 90 | D137: 12 | E137: 4 | F137: 0 | G137: 0 | H137: 0 | I137: 0 | J137: 1 | K137: 0
A138: P1220020 | B138: 20138
A139: P1220030 | B139: 15806
A140: P1220070 | B140: 53735
A141: P1220090 | B141: 19769
A142: P1220091 | B142: 2 | C142: 2
A143: P1220092 | B143: 3 | C143: 3
A144: P1220093 | B144: 4 | C144: 4
A145: P1220094 | B145: 4 | C145: 4
A146: P1220095 | B146: 3 | C146: 3
A147: P1220096 | B147: 1 | C147: 1
A148: P1220097 | B148: 1 | C148: 1
A149: P1220098 | B149: 1 | C149: 1
A150: P1220099 | B150: 1 | C150: 1
A151: P1230001 | B151: 1593
A152: P1230002 | B152: 564
A153: P1230003 | B153: 178
A154: P1230004 | B154: 288 | C154: 269 | D154: 16 | E154: 3 | F154: 0 | G154: 0 | H154: 0 | I154: 0 | J154: 0 | K154: 0
A155: P1310010 | B155: 10200 | C155: 5245 | D155: 4955 | E155: 4739 | F155: 4782 | G155: 432 | H155: 163 | I155: 74 | J155: 10 | K155: 38
A156: P1310020 | B156: 4133 | C156: 1973 | D156: 2160 | E156: 340 | F156: 299 | G156: 626 | H156: 615 | I156: 639 | J156: 678 | K156: 366 | L156: 564 | M156: 2 | N156: 3 | O156: 0 | P156: 1 | Q156: 33
A157: P1310030 | B157: 350 | C157: 228 | D157: 122 | E157: 46 | F157: 19 | G157: 58 | H157: 31 | I157: 45 | J157: 39 | K157: 72 | L157: 30 | M157: 7 | N157: 3 | O157: 0 | P157: 0 | Q157: 9
A158: P1310040 | B158: 69 | C158: 65 | D158: 4 | K158: 49 | L158: 3 | M158: 15 | N158: 1 | O158: 1 | Q158: 0
A159: P1310050 | B159: 540 | C159: 34 | D159: 506 | I159: 6 | J159: 119 | K159: 28 | L159: 382 | M159: 0 | N159: 5 | O159: 0 | P159: 0 | Q159: 3
A160: P1310060 | B160: 16 | C160: 0 | D160: 16 | I160: 0 | J160: 5 | K160: 0 | L160: 10 | M160: 0 | N160: 1 | O160: 0 | P160: 0 | Q160: 0
A161: P1310070 | B161: 1387 | C161: 730 | D161: 657 | E161: 341 | F161: 279 | G161: 389 | H161: 378 | Q161: 7
A162: P1310080 | B162: 810 | C162: 351 | D162: 459 | I162: 203 | J162: 277 | K162: 147 | L162: 181 | M162: 1 | N162: 1 | O162: 0 | P162: 0 | Q162: 5
A163: P1310090 | B163: 1610 | C163: 837 | D163: 773 | E163: 18 | F163: 29 | G163: 230 | H163: 182 | I163: 334 | J163: 330 | K163: 239 | L163: 230 | M163: 15 | N163: 1 | O163: 1 | P163: 1 | Q163: 2
A164: P1320010 | B164: 507 | C164: 240 | D164: 267 | E164: 47 | F164: 43 | G164: 88 | H164: 89 | I164: 67 | J164: 69 | K164: 38 | L164: 64 | M164: 0 | N164: 2 | O164: 0 | P164: 0 | Q164: 8
A165: P1320020 | B165: 780 | C165: 394 | D165: 386 | E165: 356 | F165: 369 | G165: 38 | H165: 17 | I165: 0 | J165: 0 | K165: 18
A166: P1320030 | B166: 361 | C166: 197 | D166: 164 | E166: 33 | F166: 16 | G166: 57 | H166: 56 | I166: 66 | J166: 50 | K166: 41 | L166: 42 | M166: 0 | N166: 0 | O166: 0 | P166: 0 | Q166: 17
A167: P1320040 | B167: 21 | C167: 16 | D167: 5 | E167: 0 | F167: 0 | G167: 1 | H167: 1 | I167: 8 | J167: 2 | K167: 7 | L167: 2 | M167: 0 | N167: 0 | O167: 0 | P167: 0 | Q167: 1
A168: P1320060 | B168: 37 | C168: 1 | D168: 36 | I168: 0 | J168: 3 | K168: 1 | L168: 33 | M168: 0 | N168: 0 | O168: 0 | P168: 0 | Q168: 0
A169: P1320070 | B169: 1 | C169: 0 | D169: 1 | I169: 0 | J169: 1 | K169: 0 | L169: 0 | M169: 0 | N169: 0 | O169: 0 | P169: 0 | Q169: 0
A170: P1320080 | B170: 71 | C170: 40 | D170: 31 | E170: 19 | F170: 14 | G170: 21 | H170: 17 | Q170: 0
A171: P1320090 | B171: 39 | C171: 18 | D171: 21 | I171: 9 | J171: 13 | K171: 9 | L171: 8 | M171: 0 | N171: 0 | O171: 0 | P171: 0 | Q171: 1
A172: P1320100 | B172: 40 | C172: 22 | D172: 18 | E172: 0 | F172: 3 | G172: 8 | H172: 6 | I172: 7 | J172: 5 | K172: 7 | L172: 4 | M172: 0 | N172: 0 | O172: 0 | P172: 0 | Q172: 0
A173: P1320110 | B173: 31 | C173: 18 | D173: 13 | E173: 4 | F173: 3 | G173: 11 | H173: 8 | I173: 2 | J173: 1 | K173: 1 | L173: 1 | M173: 0 | N173: 0 | O173: 0 | P173: 0 | Q173: 0
A174: P2060000 | B174: 72938 | C174: 37369 | D174: 35569 | E174: 347 | F174: 320 | G174: 510 | H174: 517 | I174: 662 | J174: 598 | K174: 601 | L174: 552 | M174: 657 | N174: 662 | O174: 622 | P174: 605 | Q174: 867 | R174: 854 | S174: 2925 | T174: 2767 | U174: 3718 | V174: 3604 | W174: 3592 | X174: 3496 | Y174: 7240 | Z174: 7018 | AA174: 4491 | AB174: 4164 | AC174: 3389 | AD174: 3264 | AE174: 7748 | AF174: 7148 | AG174: 221 | AH174: 195 | AI174: 400 | AJ174: 396
A175: P2070101 | B175: 3734 | C175: 2012 | D175: 1722 | G175: 31 | H175: 29 | I175: 41 | J175: 51 | K175: 41 | L175: 35 | M175: 40 | N175: 49 | O175: 32 | P175: 37 | Q175: 54 | R175: 38 | S175: 164 | T175: 113 | U175: 197 | V175: 151 | W175: 178 | X175: 170 | Y175: 422 | Z175: 313 | AA175: 242 | AB175: 180 | AC175: 175 | AD175: 170 | AE175: 395 | AF175: 386 | AG175: 22 | AH175: 21 | AI175: 27 | AJ175: 21
A176: P2070102 | B176: 457 | C176: 257 | D176: 200 | G176: 4 | H176: 6 | I176: 5 | J176: 3 | K176: 8 | L176: 3 | M176: 8 | N176: 3 | O176: 2 | P176: 2 | Q176: 6 | R176: 5 | S176: 19 | T176: 13 | U176: 36 | V176: 24 | W176: 28 | X176: 18 | Y176: 55 | Z176: 39 | AA176: 27 | AB176: 22 | AC176: 18 | AD176: 24 | AE176: 41 | AF176: 38 | AG176: 7 | AH176: 6 | AI176: 6 | AJ176: 6
A177: P2070201 | B177: 8021 | C177: 4176 | D177: 3845 | G177: 12 | H177: 12 | I177: 47 | J177: 32 | K177: 48 | L177: 39 | M177: 65 | N177: 47 | O177: 71 | P177: 55 | Q177: 102 | R177: 77 | S177: 339 | T177: 296 | U177: 416 | V177: 393 | W177: 388 | X177: 351 | Y177: 650 | Z177: 620 | AA177: 534 | AB177: 457 | AC177: 454 | AD177: 391 | AE177: 1050 | AF177: 1075 | AG177: 37 | AH177: 30 | AI177: 18 | AJ177: 15
A178: P2070202 | B178: 16875 | C178: 8543 | D178: 8332 | G178: 57 | H178: 51 | I178: 141 | J178: 128 | K178: 108 | L178: 111 | M178: 149 | N178: 136 | O178: 137 | P178: 131 | Q178: 195 | R178: 216 | S178: 723 | T178: 745 | U178: 996 | V178: 938 | W178: 938 | X178: 866 | Y178: 1586 | Z178: 1561 | AA178: 977 | AB178: 950 | AC178: 778 | AD178: 779 | AE178: 1758 | AF178: 1720 | AG178: 71 | AH178: 59 | AI178: 78 | AJ178: 59
A179: P2070301 | B179: 1827 | C179: 1038 | D179: 789 | G179: 30 | H179: 16 | I179: 20 | J179: 19 | K179: 25 | L179: 16 | M179: 17 | N179: 23 | O179: 21 | P179: 19 | Q179: 33 | R179: 22 | S179: 97 | T179: 73 | U179: 104 | V179: 82 | W179: 75 | X179: 76 | Y179: 198 | Z179: 145 | AA179: 133 | AB179: 90 | AC179: 88 | AD179: 61 | AE179: 197 | AF179: 147 | AG179: 8 | AH179: 5 | AI179: 9 | AJ179: 6
A180: P2070302 | B180: 219 | C180: 127 | D180: 92 | G180: 4 | H180: 4 | I180: 2 | J180: 1 | K180: 8 | L180: 5 | M180: 1 | N180: 0 | O180: 1 | P180: 5 | Q180: 6 | R180: 3 | S180: 16 | T180: 10 | U180: 13 | V180: 8 | W180: 10 | X180: 6 | Y180: 27 | Z180: 24 | AA180: 10 | AB180: 3 | AC180: 5 | AD180: 5 | AE180: 24 | AF180: 18 | AG180: 6 | AH180: 5 | AI180: 2 | AJ180: 5
A181: P2070401 | B181: 9527 | C181: 4961 | D181: 4566 | G181: 45 | H181: 53 | I181: 85 | J181: 89 | K181: 66 | L181: 73 | M181: 89 | N181: 79 | O181: 79 | P181: 66 | Q181: 120 | R181: 95 | S181: 462 | T181: 370 | U181: 613 | V181: 513 | W181: 572 | X181: 540 | Y181: 1010 | Z181: 814 | AA181: 552 | AB181: 503 | AC181: 391 | AD181: 469 | AE181: 877 | AF181: 902 | AG181: 27 | AH181: 23 | AI181: 47 | AJ181: 38
A182: P2070402 | B182: 1554 | C182: 813 | D182: 741 | G182: 8 | H182: 10 | I182: 16 | J182: 19 | K182: 18 | L182: 14 | M182: 17 | N182: 18 | O182: 12 | P182: 5 | Q182: 22 | R182: 14 | S182: 74 | T182: 50 | U182: 126 | V182: 107 | W182: 105 | X182: 77 | Y182: 179 | Z182: 158 | AA182: 85 | AB182: 70 | AC182: 49 | AD182: 55 | AE182: 102 | AF182: 144 | AG182: 10 | AH182: 9 | AI182: 9 | AJ182: 7
A183: P2070501 | B183: 1765 | C183: 1015 | D183: 750 | G183: 21 | H183: 21 | I183: 24 | J183: 37 | K183: 33 | L183: 21 | M183: 27 | N183: 26 | O183: 25 | P183: 20 | Q183: 40 | R183: 25 | S183: 132 | T183: 80 | U183: 101 | V183: 79 | W183: 70 | X183: 65 | Y183: 178 | Z183: 123 | AA183: 119 | AB183: 79 | AC183: 81 | AD183: 53 | AE183: 164 | AF183: 121 | AG183: 10 | AH183: 7 | AI183: 9 | AJ183: 10
A184: P2070502 | B184: 165 | C184: 93 | D184: 72 | G184: 4 | H184: 1 | I184: 1 | J184: 1 | K184: 4 | L184: 4 | M184: 3 | N184: 5 | O184: 0 | P184: 2 | Q184: 2 | R184: 5 | S184: 12 | T184: 7 | U184: 10 | V184: 8 | W184: 4 | X184: 5 | Y184: 17 | Z184: 17 | AA184: 8 | AB184: 2 | AC184: 4 | AD184: 3 | AE184: 24 | AF184: 12 | AG184: 0 | AH184: 1 | AI184: 4 | AJ184: 5
A185: P2070503 | B185: 17008 | C185: 8636 | D185: 8372 | G185: 58 | H185: 51 | I185: 147 | J185: 129 | K185: 105 | L185: 109 | M185: 158 | N185: 140 | O185: 141 | P185: 138 | Q185: 207 | R185: 216 | S185: 739 | T185: 757 | U185: 1005 | V185: 942 | W185: 948 | X185: 874 | Y185: 1600 | Z185: 1567 | AA185: 982 | AB185: 948 | AC185: 790 | AD185: 779 | AE185: 1756 | AF185: 1722 | AG185: 64 | AH185: 53 | AI185: 74 | AJ185: 48
A186: P2070504 | B186: 7881 | C186: 4156 | D186: 3725 | G186: 12 | H186: 10 | I186: 43 | J186: 29 | K186: 47 | L186: 38 | M186: 64 | N186: 43 | O186: 71 | P186: 53 | Q186: 102 | R186: 80 | S186: 338 | T186: 287 | U186: 419 | V186: 393 | W186: 380 | X186: 352 | Y186: 646 | Z186: 612 | AA186: 540 | AB186: 454 | AC186: 450 | AD186: 398 | AE186: 1044 | AF186: 976 | AG186: 43 | AH186: 34 | AI186: 18 | AJ186: 15
A187: P2070505 | B187: 45381 | C187: 23070 | D187: 22311 | G187: 415 | H187: 433 | I187: 446 | J187: 402 | K187: 409 | L187: 382 | M187: 403 | N187: 448 | O187: 385 | P187: 390 | Q187: 513 | R187: 529 | S187: 1698 | T187: 1631 | U187: 2179 | V187: 2178 | W187: 2183 | X187: 2199 | Y187: 4790 | Z187: 4695 | AA187: 2835 | AB187: 2679 | AC187: 2064 | AD187: 2029 | AE187: 4750 | AF187: 4316 | AG187: 103 | AH187: 100 | AI187: 295 | AJ187: 317
A188: P2070506 | B188: 69 | C188: 45 | D188: 24 | G188: 0 | H188: 1 | I188: 1 | J188: 0 | K188: 1 | L188: 0 | M188: 1 | N188: 0 | O188: 0 | P188: 2 | Q188: 1 | R188: 0 | S188: 6 | T188: 5 | U188: 5 | V188: 3 | W188: 7 | X188: 1 | Y188: 11 | Z188: 2 | AA188: 5 | AB188: 4 | AC188: 1 | AD188: 1 | AE188: 6 | AF188: 5 | AG188: 0 | AH188: 0 | AI188: 0 | AJ188: 1
A189: P2090300 | B189: 9724 | C189: 1036 | D189: 1381 | E189: 1483 | F189: 1229 | G189: 1486 | H189: 1256 | I189: 1853
A190: P2090400 | B190: 1471 | C190: 70 | D190: 164 | E190: 215 | F190: 236 | G190: 259 | H190: 202 | I190: 325 | J190: 381
A191: P2100100 | B191: 630 | C191: 18 | D191: 67 | E191: 104 | F191: 102 | G191: 107 | H191: 84 | I191: 148 | J191: 253
A192: P2100200 | B192: 122 | C192: 62 | D192: 60
A193: P2100400 | B193: 317 | C193: 223 | D193: 94
A194: P2100500 | B194: 7 | C194: 6 | D194: 1
A195: P2100600 | B195: 8 | C195: 1 | D195: 7
A196: P2200700 | B196: 5694
A197: P2200800 | B197: 4425
A198: P2200900 | B198: 108 | C198: 81 | D198: 27
A199: P2300000 | B199: 4 | C199: 2 | D199: 2
A200: P2300100 | B200: 29 | C200: 17 | D200: 12
A201: P2300200 | B201: 379 | C201: 230 | D201: 149
... 331 more rows

Sheet P1
D6: REM-P1. POBLACIÓN EN CONTROL PROGRAMA DE SALUD DE LA MUJER
B7: ATENCIÓN PRIMARIA DE SALUD
B8: SECCION A: POBLACIÓN EN CONTROL SEGÚN MÉTODO DE REGULACIÓN DE FERTILIDAD Y SALUD SEXUAL
B9: MÉTODOS | D9: TOTAL | E9: GRUPO DE EDAD (en años) | O9: Pueblos Originarios | P9: Población Migrantes | Q9: PV-VIH (personas viviendo con VIH)
E10: Menor de 15 años | F10: 15 a 19 años | G10: 20 a 24 años | H10: 25 a 29 años | I10: 30 a 34 años | J10: 35 a 39 años | K10: 40 a 44 años | L10: 45 a 49 años | M10: 50 a 54 años | N10: 55 y más años
A11: P1010100 | B11: D . I . U T con Cobre | D11: =IFERROR(VLOOKUP($A11,Filtro!$A$4:$AY$532,2,FALSE),0) -> 24839 | E11: =IFERROR(VLOOKUP($A11,Filtro!$A$4:$AY$532,3,FALSE),0) -> 4 | F11: =IFERROR(VLOOKUP($A11,Filtro!$A$4:$AY$532,4,FALSE),0) -> 271 | G11: =IFERROR(VLOOKUP($A11,Filtro!$A$4:$AY$532,5,FALSE),0) -> 1831 | H11: =IFERROR(VLOOKUP($A11,Filtro!$A$4:$AY$532,6,FALSE),0) -> 4546 | I11: =IFERROR(VLOOKUP($A11,Filtro!$A$4:$AY$532,7,FALSE),0) -> 4860 | J11: =IFERROR(VLOOKUP($A11,Filtro!$A$4:$AY$532,8,FALSE),0) -> 4233 | K11: =IFERROR(VLOOKUP($A11,Filtro!$A$4:$AY$532,9,FALSE),0) -> 3838 | L11: =IFERROR(VLOOKUP($A11,Filtro!$A$4:$AY$532,10,FALSE),0) -> 3088 | M11: =IFERROR(VLOOKUP($A11,Filtro!$A$4:$AY$532,11,FALSE),0) -> 2168 | N11: =IFERROR(VLOOKUP($A11,Filtro!$A$4:$AY$532,12,FALSE),0) -> 0 | O11: =IFERROR(VLOOKUP($A11,Filtro!$A$4:$AY$532,13,FALSE),0) -> 239 | P11: =IFERROR(VLOOKUP($A11,Filtro!$A$4:$AY$532,14,FALSE),0) -> 250 | Q11: =IFERROR(VLOOKUP($A11,Filtro!$A$4:$AY$532,15,FALSE),0) -> 11 | R11: =($CA11&$CB11&$CC11&$CD11&$CE11&$CF11&$CG11&$CH11&$CI11&$CJ11&$CL11&$CM11&$CN11&$CO11&$CP11&$CQ11&$CR11&$CS11&$CT11&$CU11&$CV11&$CW11&$CX11&$CY11&$CZ11) ->  | CA11: =IF(DA11=1,"* La celda 'Pueblos Originarios' debe ser menor o igual al Total en control. ","") ->  | CB11: =IF(DB11=1,"* La celda 'Población Migrantes' debe ser menor o igual al Total en control. ","") ->  | CC11: =IF(DC11=1,"* No olvide escribir en la celda de 'Pueblos Originarios' (Digite CERO si no tiene). ","") ->  | CD11: =IF(DD11=1,"* No olvide escribir en la celda de 'Población Migrantes' (Digite CERO si no tiene). ","") ->  | DA11: =IF($O11>$D11,1,0) -> 0 | DB11: =IF($P11>$D11,1,0) -> 0 | DC11: =IF(AND(D11<>0,O11=""),1,0) -> 0 | DD11: =IF(AND(D11<>0,P11=""),1,0) -> 0
A12: P1060124 | B12: D . I . U con Levonorgestrel | D12: =IFERROR(VLOOKUP($A12,Filtro!$A$4:$AY$532,2,FALSE),0) -> 216 | E12: =IFERROR(VLOOKUP($A12,Filtro!$A$4:$AY$532,3,FALSE),0) -> 0 | F12: =IFERROR(VLOOKUP($A12,Filtro!$A$4:$AY$532,4,FALSE),0) -> 13 | G12: =IFERROR(VLOOKUP($A12,Filtro!$A$4:$AY$532,5,FALSE),0) -> 42 | H12: =IFERROR(VLOOKUP($A12,Filtro!$A$4:$AY$532,6,FALSE),0) -> 57 | I12: =IFERROR(VLOOKUP($A12,Filtro!$A$4:$AY$532,7,FALSE),0) -> 55 | J12: =IFERROR(VLOOKUP($A12,Filtro!$A$4:$AY$532,8,FALSE),0) -> 34 | K12: =IFERROR(VLOOKUP($A12,Filtro!$A$4:$AY$532,9,FALSE),0) -> 11 | L12: =IFERROR(VLOOKUP($A12,Filtro!$A$4:$AY$532,10,FALSE),0) -> 2 | M12: =IFERROR(VLOOKUP($A12,Filtro!$A$4:$AY$532,11,FALSE),0) -> 2 | N12: =IFERROR(VLOOKUP($A12,Filtro!$A$4:$AY$532,12,FALSE),0) -> 0 | O12: =IFERROR(VLOOKUP($A12,Filtro!$A$4:$AY$532,13,FALSE),0) -> 7 | P12: =IFERROR(VLOOKUP($A12,Filtro!$A$4:$AY$532,14,FALSE),0) -> 6 | Q12: =IFERROR(VLOOKUP($A12,Filtro!$A$4:$AY$532,15,FALSE),0) -> 0 | CA12: =IF(DA12=1,"* La celda 'Pueblos Originarios' debe ser menor o igual al Total en control. ","") ->  | CB12: =IF(DB12=1,"* La celda 'Población Migrantes' debe ser menor o igual al Total en control. ","") ->  | CC12: =IF(DC12=1,"* No olvide escribir en la celda de 'Pueblos Originarios' (Digite CERO si no tiene). ","") ->  | CD12: =IF(DD12=1,"* No olvide escribir en la celda de 'Población Migrantes' (Digite CERO si no tiene). ","") ->  | DA12: =IF($O12>$D12,1,0) -> 0 | DB12: =IF($P12>$D12,1,0) -> 0 | DC12: 0 | DD12: 0
A13: P1010201 | B13: HORMONAL | C13: Oral Combinado | D13: =IFERROR(VLOOKUP($A13,Filtro!$A$4:$AY$532,2,FALSE),0) -> 37138 | E13: =IFERROR(VLOOKUP($A13,Filtro!$A$4:$AY$532,3,FALSE),0) -> 619 | F13: =IFERROR(VLOOKUP($A13,Filtro!$A$4:$AY$532,4,FALSE),0) -> 6740 | G13: =IFERROR(VLOOKUP($A13,Filtro!$A$4:$AY$532,5,FALSE),0) -> 6842 | H13: =IFERROR(VLOOKUP($A13,Filtro!$A$4:$AY$532,6,FALSE),0) -> 6749 | I13: =IFERROR(VLOOKUP($A13,Filtro!$A$4:$AY$532,7,FALSE),0) -> 5836 | J13: =IFERROR(VLOOKUP($A13,Filtro!$A$4:$AY$532,8,FALSE),0) -> 4538 | K13: =IFERROR(VLOOKUP($A13,Filtro!$A$4:$AY$532,9,FALSE),0) -> 3456 | L13: =IFERROR(VLOOKUP($A13,Filtro!$A$4:$AY$532,10,FALSE),0) -> 1897 | M13: =IFERROR(VLOOKUP($A13,Filtro!$A$4:$AY$532,11,FALSE),0) -> 461 | N13: =IFERROR(VLOOKUP($A13,Filtro!$A$4:$AY$532,12,FALSE),0) -> 0 | O13: =IFERROR(VLOOKUP($A13,Filtro!$A$4:$AY$532,13,FALSE),0) -> 354 | P13: =IFERROR(VLOOKUP($A13,Filtro!$A$4:$AY$532,14,FALSE),0) -> 562 | Q13: =IFERROR(VLOOKUP($A13,Filtro!$A$4:$AY$532,15,FALSE),0) -> 10 | DA13: 0 | DB13: 0 | DC13: 0 | DD13: 0
A14: P1010202 | C14: Oral Progestágeno | D14: =IFERROR(VLOOKUP($A14,Filtro!$A$4:$AY$532,2,FALSE),0) -> 9585 | E14: =IFERROR(VLOOKUP($A14,Filtro!$A$4:$AY$532,3,FALSE),0) -> 25 | F14: =IFERROR(VLOOKUP($A14,Filtro!$A$4:$AY$532,4,FALSE),0) -> 364 | G14: =IFERROR(VLOOKUP($A14,Filtro!$A$4:$AY$532,5,FALSE),0) -> 920 | H14: =IFERROR(VLOOKUP($A14,Filtro!$A$4:$AY$532,6,FALSE),0) -> 1343 | I14: =IFERROR(VLOOKUP($A14,Filtro!$A$4:$AY$532,7,FALSE),0) -> 1313 | J14: =IFERROR(VLOOKUP($A14,Filtro!$A$4:$AY$532,8,FALSE),0) -> 1129 | K14: =IFERROR(VLOOKUP($A14,Filtro!$A$4:$AY$532,9,FALSE),0) -> 1546 | L14: =IFERROR(VLOOKUP($A14,Filtro!$A$4:$AY$532,10,FALSE),0) -> 1977 | M14: =IFERROR(VLOOKUP($A14,Filtro!$A$4:$AY$532,11,FALSE),0) -> 968 | N14: =IFERROR(VLOOKUP($A14,Filtro!$A$4:$AY$532,12,FALSE),0) -> 0 | O14: =IFERROR(VLOOKUP($A14,Filtro!$A$4:$AY$532,13,FALSE),0) -> 82 | P14: =IFERROR(VLOOKUP($A14,Filtro!$A$4:$AY$532,14,FALSE),0) -> 164 | Q14: =IFERROR(VLOOKUP($A14,Filtro!$A$4:$AY$532,15,FALSE),0) -> 0 | DA14: 0 | DB14: 0 | DC14: 0 | DD14: 0
A15: P1010203 | C15: Inyectable Combinado | D15: =IFERROR(VLOOKUP($A15,Filtro!$A$4:$AY$532,2,FALSE),0) -> 18492 | E15: =IFERROR(VLOOKUP($A15,Filtro!$A$4:$AY$532,3,FALSE),0) -> 199 | F15: =IFERROR(VLOOKUP($A15,Filtro!$A$4:$AY$532,4,FALSE),0) -> 3546 | G15: =IFERROR(VLOOKUP($A15,Filtro!$A$4:$AY$532,5,FALSE),0) -> 4542 | H15: =IFERROR(VLOOKUP($A15,Filtro!$A$4:$AY$532,6,FALSE),0) -> 3883 | I15: =IFERROR(VLOOKUP($A15,Filtro!$A$4:$AY$532,7,FALSE),0) -> 2825 | J15: =IFERROR(VLOOKUP($A15,Filtro!$A$4:$AY$532,8,FALSE),0) -> 1774 | K15: =IFERROR(VLOOKUP($A15,Filtro!$A$4:$AY$532,9,FALSE),0) -> 1198 | L15: =IFERROR(VLOOKUP($A15,Filtro!$A$4:$AY$532,10,FALSE),0) -> 457 | M15: =IFERROR(VLOOKUP($A15,Filtro!$A$4:$AY$532,11,FALSE),0) -> 68 | N15: =IFERROR(VLOOKUP($A15,Filtro!$A$4:$AY$532,12,FALSE),0) -> 0 | O15: =IFERROR(VLOOKUP($A15,Filtro!$A$4:$AY$532,13,FALSE),0) -> 176 | P15: =IFERROR(VLOOKUP($A15,Filtro!$A$4:$AY$532,14,FALSE),0) -> 394 | Q15: =IFERROR(VLOOKUP($A15,Filtro!$A$4:$AY$532,15,FALSE),0) -> 9 | DA15: 0 | DB15: 0 | DC15: 0 | DD15: 0
A16: P1040508 | C16: Inyectable Progestágeno | D16: =IFERROR(VLOOKUP($A16,Filtro!$A$4:$AY$532,2,FALSE),0) -> 20139 | E16: =IFERROR(VLOOKUP($A16,Filtro!$A$4:$AY$532,3,FALSE),0) -> 151 | F16: =IFERROR(VLOOKUP($A16,Filtro!$A$4:$AY$532,4,FALSE),0) -> 2319 | G16: =IFERROR(VLOOKUP($A16,Filtro!$A$4:$AY$532,5,FALSE),0) -> 4163 | H16: =IFERROR(VLOOKUP($A16,Filtro!$A$4:$AY$532,6,FALSE),0) -> 4375 | I16: =IFERROR(VLOOKUP($A16,Filtro!$A$4:$AY$532,7,FALSE),0) -> 3460 | J16: =IFERROR(VLOOKUP($A16,Filtro!$A$4:$AY$532,8,FALSE),0) -> 2288 | K16: =IFERROR(VLOOKUP($A16,Filtro!$A$4:$AY$532,9,FALSE),0) -> 1642 | L16: =IFERROR(VLOOKUP($A16,Filtro!$A$4:$AY$532,10,FALSE),0) -> 1328 | M16: =IFERROR(VLOOKUP($A16,Filtro!$A$4:$AY$532,11,FALSE),0) -> 413 | N16: =IFERROR(VLOOKUP($A16,Filtro!$A$4:$AY$532,12,FALSE),0) -> 0 | O16: =IFERROR(VLOOKUP($A16,Filtro!$A$4:$AY$532,13,FALSE),0) -> 167 | P16: =IFERROR(VLOOKUP($A16,Filtro!$A$4:$AY$532,14,FALSE),0) -> 982 | Q16: =IFERROR(VLOOKUP($A16,Filtro!$A$4:$AY$532,15,FALSE),0) -> 7 | DA16: 0 | DB16: 0 | DC16: 0 | DD16: 0
A17: P1040500 | C17: Implante Etonogestrel (3 años) | D17: =IFERROR(VLOOKUP($A17,Filtro!$A$4:$AY$532,2,FALSE),0) -> 22825 | E17: =IFERROR(VLOOKUP($A17,Filtro!$A$4:$AY$532,3,FALSE),0) -> 285 | F17: =IFERROR(VLOOKUP($A17,Filtro!$A$4:$AY$532,4,FALSE),0) -> 4739 | G17: =IFERROR(VLOOKUP($A17,Filtro!$A$4:$AY$532,5,FALSE),0) -> 6120 | H17: =IFERROR(VLOOKUP($A17,Filtro!$A$4:$AY$532,6,FALSE),0) -> 5344 | I17: =IFERROR(VLOOKUP($A17,Filtro!$A$4:$AY$532,7,FALSE),0) -> 3238 | J17: =IFERROR(VLOOKUP($A17,Filtro!$A$4:$AY$532,8,FALSE),0) -> 1921 | K17: =IFERROR(VLOOKUP($A17,Filtro!$A$4:$AY$532,9,FALSE),0) -> 896 | L17: =IFERROR(VLOOKUP($A17,Filtro!$A$4:$AY$532,10,FALSE),0) -> 258 | M17: =IFERROR(VLOOKUP($A17,Filtro!$A$4:$AY$532,11,FALSE),0) -> 24 | N17: =IFERROR(VLOOKUP($A17,Filtro!$A$4:$AY$532,12,FALSE),0) -> 0 | O17: =IFERROR(VLOOKUP($A17,Filtro!$A$4:$AY$532,13,FALSE),0) -> 293 | P17: =IFERROR(VLOOKUP($A17,Filtro!$A$4:$AY$532,14,FALSE),0) -> 671 | Q17: =IFERROR(VLOOKUP($A17,Filtro!$A$4:$AY$532,15,FALSE),0) -> 11 | CA17: =IF(DA17=1,"* La celda 'Pueblos Originarios' debe ser menor o igual al Total en control. ","") ->  | CB17: =IF(DB17=1,"* La celda 'Población Migrantes' debe ser menor o igual al Total en control. ","") ->  | CC17: =IF(DC17=1,"* No olvide escribir en la celda de 'Pueblos Originarios' (Digite CERO si no tiene). ","") ->  | CD17: =IF(DD17=1,"* No olvide escribir en la celda de 'Población Migrantes' (Digite CERO si no tiene). ","") ->  | DA17: 0 | DB17: 0 | DC17: 0 | DD17: 0
A18: P1200190 | C18: Implante Levonorgestrel (5 años) | D18: =IFERROR(VLOOKUP($A18,Filtro!$A$4:$AY$532,2,FALSE),0) -> 828 | E18: =IFERROR(VLOOKUP($A18,Filtro!$A$4:$AY$532,3,FALSE),0) -> 27 | F18: =IFERROR(VLOOKUP($A18,Filtro!$A$4:$AY$532,4,FALSE),0) -> 238 | G18: =IFERROR(VLOOKUP($A18,Filtro!$A$4:$AY$532,5,FALSE),0) -> 207 | H18: =IFERROR(VLOOKUP($A18,Filtro!$A$4:$AY$532,6,FALSE),0) -> 168 | I18: =IFERROR(VLOOKUP($A18,Filtro!$A$4:$AY$532,7,FALSE),0) -> 112 | J18: =IFERROR(VLOOKUP($A18,Filtro!$A$4:$AY$532,8,FALSE),0) -> 55 | K18: =IFERROR(VLOOKUP($A18,Filtro!$A$4:$AY$532,9,FALSE),0) -> 21 | L18: =IFERROR(VLOOKUP($A18,Filtro!$A$4:$AY$532,10,FALSE),0) -> 0 | M18: =IFERROR(VLOOKUP($A18,Filtro!$A$4:$AY$532,11,FALSE),0) -> 0 | N18: =IFERROR(VLOOKUP($A18,Filtro!$A$4:$AY$532,12,FALSE),0) -> 0 | O18: =IFERROR(VLOOKUP($A18,Filtro!$A$4:$AY$532,13,FALSE),0) -> 8 | P18: =IFERROR(VLOOKUP($A18,Filtro!$A$4:$AY$532,14,FALSE),0) -> 36 | Q18: =IFERROR(VLOOKUP($A18,Filtro!$A$4:$AY$532,15,FALSE),0) -> 1 | CA18: =IF(DA18=1,"* La celda 'Pueblos Originarios' debe ser menor o igual al Total en control. ","") ->  | CB18: =IF(DB18=1,"* La celda 'Población Migrantes' debe ser menor o igual al Total en control. ","") ->  | CC18: =IF(DC18=1,"* No olvide escribir en la celda de 'Pueblos Originarios' (Digite CERO si no tiene). ","") ->  | CD18: =IF(DD18=1,"* No olvide escribir en la celda de 'Población Migrantes' (Digite CERO si no tiene). ","") ->  | DA18: 0 | DB18: 0 | DC18: 0 | DD18: 0
A19: P1010301 | B19: SÓLO PRESERVATIVO MAC | C19: Mujer | D19: =IFERROR(VLOOKUP($A19,Filtro!$A$4:$AY$532,2,FALSE),0) -> 3989 | E19: =IFERROR(VLOOKUP($A19,Filtro!$A$4:$AY$532,3,FALSE),0) -> 64 | F19: =IFERROR(VLOOKUP($A19,Filtro!$A$4:$AY$532,4,FALSE),0) -> 602 | G19: =IFERROR(VLOOKUP($A19,Filtro!$A$4:$AY$532,5,FALSE),0) -> 496 | H19: =IFERROR(VLOOKUP($A19,Filtro!$A$4:$AY$532,6,FALSE),0) -> 584 | I19: =IFERROR(VLOOKUP($A19,Filtro!$A$4:$AY$532,7,FALSE),0) -> 576 | J19: =IFERROR(VLOOKUP($A19,Filtro!$A$4:$AY$532,8,FALSE),0) -> 472 | K19: =IFERROR(VLOOKUP($A19,Filtro!$A$4:$AY$532,9,FALSE),0) -> 457 | L19: =IFERROR(VLOOKUP($A19,Filtro!$A$4:$AY$532,10,FALSE),0) -> 385 | M19: =IFERROR(VLOOKUP($A19,Filtro!$A$4:$AY$532,11,FALSE),0) -> 301 | N19: =IFERROR(VLOOKUP($A19,Filtro!$A$4:$AY$532,12,FALSE),0) -> 52 | O19: =IFERROR(VLOOKUP($A19,Filtro!$A$4:$AY$532,13,FALSE),0) -> 20 | P19: =IFERROR(VLOOKUP($A19,Filtro!$A$4:$AY$532,14,FALSE),0) -> 125 | Q19: =IFERROR(VLOOKUP($A19,Filtro!$A$4:$AY$532,15,FALSE),0) -> 6 | DA19: 0 | DB19: 0 | DC19: 0 | DD19: 0
A20: P1010302 | C20: Hombres | D20: =IFERROR(VLOOKUP($A20,Filtro!$A$4:$AY$532,2,FALSE),0) -> 1211 | E20: =IFERROR(VLOOKUP($A20,Filtro!$A$4:$AY$532,3,FALSE),0) -> 59 | F20: =IFERROR(VLOOKUP($A20,Filtro!$A$4:$AY$532,4,FALSE),0) -> 605 | G20: =IFERROR(VLOOKUP($A20,Filtro!$A$4:$AY$532,5,FALSE),0) -> 149 | H20: =IFERROR(VLOOKUP($A20,Filtro!$A$4:$AY$532,6,FALSE),0) -> 91 | I20: =IFERROR(VLOOKUP($A20,Filtro!$A$4:$AY$532,7,FALSE),0) -> 91 | J20: =IFERROR(VLOOKUP($A20,Filtro!$A$4:$AY$532,8,FALSE),0) -> 58 | K20: =IFERROR(VLOOKUP($A20,Filtro!$A$4:$AY$532,9,FALSE),0) -> 49 | L20: =IFERROR(VLOOKUP($A20,Filtro!$A$4:$AY$532,10,FALSE),0) -> 53 | M20: =IFERROR(VLOOKUP($A20,Filtro!$A$4:$AY$532,11,FALSE),0) -> 39 | N20: =IFERROR(VLOOKUP($A20,Filtro!$A$4:$AY$532,12,FALSE),0) -> 17 | O20: =IFERROR(VLOOKUP($A20,Filtro!$A$4:$AY$532,13,FALSE),0) -> 0 | P20: =IFERROR(VLOOKUP($A20,Filtro!$A$4:$AY$532,14,FALSE),0) -> 48 | Q20: =IFERROR(VLOOKUP($A20,Filtro!$A$4:$AY$532,15,FALSE),0) -> 17 | DA20: 0 | DB20: 0 | DC20: 0 | DD20: 0
A21: P1200240 | B21: ESTERILIZACIÓN QUIRURGICA | C21: Mujer | D21: =IFERROR(VLOOKUP($A21,Filtro!$A$4:$AY$532,2,FALSE),0) -> 5712 | E21: =IFERROR(VLOOKUP($A21,Filtro!$A$4:$AY$532,3,FALSE),0) -> 0 | F21: =IFERROR(VLOOKUP($A21,Filtro!$A$4:$AY$532,4,FALSE),0) -> 17 | G21: =IFERROR(VLOOKUP($A21,Filtro!$A$4:$AY$532,5,FALSE),0) -> 35 | H21: =IFERROR(VLOOKUP($A21,Filtro!$A$4:$AY$532,6,FALSE),0) -> 227 | I21: =IFERROR(VLOOKUP($A21,Filtro!$A$4:$AY$532,7,FALSE),0) -> 644 | J21: =IFERROR(VLOOKUP($A21,Filtro!$A$4:$AY$532,8,FALSE),0) -> 1120 | K21: =IFERROR(VLOOKUP($A21,Filtro!$A$4:$AY$532,9,FALSE),0) -> 1115 | L21: =IFERROR(VLOOKUP($A21,Filtro!$A$4:$AY$532,10,FALSE),0) -> 1095 | M21: =IFERROR(VLOOKUP($A21,Filtro!$A$4:$AY$532,11,FALSE),0) -> 1459 | N21: =IFERROR(VLOOKUP($A21,Filtro!$A$4:$AY$532,12,FALSE),0) -> 0 | O21: =IFERROR(VLOOKUP($A21,Filtro!$A$4:$AY$532,13,FALSE),0) -> 95 | P21: =IFERROR(VLOOKUP($A21,Filtro!$A$4:$AY$532,14,FALSE),0) -> 71 | Q21: =IFERROR(VLOOKUP($A21,Filtro!$A$4:$AY$532,15,FALSE),0) -> 5 | CA21: =IF(DA21=1,"* La celda 'Pueblos Originarios' debe ser menor o igual al Total en control. ","") ->  | CB21: =IF(DB21=1,"* La celda 'Población Migrantes' debe ser menor o igual al Total en control. ","") ->  | CC21: =IF(DC21=1,"* No olvide escribir en la celda de 'Pueblos Originarios' (Digite CERO si no tiene). ","") ->  | CD21: =IF(DD21=1,"* No olvide escribir en la celda de 'Población Migrantes' (Digite CERO si no tiene). ","") ->  | DA21: 0 | DB21: 0 | DC21: 0 | DD21: 0
A22: P1200250 | C22: Hombres | D22: =IFERROR(VLOOKUP($A22,Filtro!$A$4:$AY$532,2,FALSE),0) -> 17 | E22: =IFERROR(VLOOKUP($A22,Filtro!$A$4:$AY$532,3,FALSE),0) -> 0 | F22: =IFERROR(VLOOKUP($A22,Filtro!$A$4:$AY$532,4,FALSE),0) -> 0 | G22: =IFERROR(VLOOKUP($A22,Filtro!$A$4:$AY$532,5,FALSE),0) -> 0 | H22: =IFERROR(VLOOKUP($A22,Filtro!$A$4:$AY$532,6,FALSE),0) -> 0 | I22: =IFERROR(VLOOKUP($A22,Filtro!$A$4:$AY$532,7,FALSE),0) -> 1 | J22: =IFERROR(VLOOKUP($A22,Filtro!$A$4:$AY$532,8,FALSE),0) -> 6 | K22: =IFERROR(VLOOKUP($A22,Filtro!$A$4:$AY$532,9,FALSE),0) -> 8 | L22: =IFERROR(VLOOKUP($A22,Filtro!$A$4:$AY$532,10,FALSE),0) -> 1 | M22: =IFERROR(VLOOKUP($A22,Filtro!$A$4:$AY$532,11,FALSE),0) -> 1 | N22: =IFERROR(VLOOKUP($A22,Filtro!$A$4:$AY$532,12,FALSE),0) -> 0 | O22: =IFERROR(VLOOKUP($A22,Filtro!$A$4:$AY$532,13,FALSE),0) -> 0 | P22: =IFERROR(VLOOKUP($A22,Filtro!$A$4:$AY$532,14,FALSE),0) -> 0 | Q22: =IFERROR(VLOOKUP($A22,Filtro!$A$4:$AY$532,15,FALSE),0) -> 0 | CA22: =IF(DA22=1,"* La celda 'Pueblos Originarios' debe ser menor o igual al Total en control. ","") ->  | CB22: =IF(DB22=1,"* La celda 'Población Migrantes' debe ser menor o igual al Total en control. ","") ->  | CC22: =IF(DC22=1,"* No olvide escribir en la celda de 'Pueblos Originarios' (Digite CERO si no tiene). ","") ->  | CD22: =IF(DD22=1,"* No olvide escribir en la celda de 'Población Migrantes' (Digite CERO si no tiene). ","") ->  | DA22: 0 | DB22: 0 | DC22: 0 | DD22: 0
B23: TOTAL | D23: =SUM(E23:N23) -> 144991 | E23: =SUM(E11:E22) -> 1433 | F23: =SUM(F11:F22) -> 19454 | G23: =SUM(G11:G22) -> 25347 | H23: 27367 | I23: 23011 | J23: 17628 | K23: 14237 | L23: 10541 | M23: 5904 | N23: =SUM(N19:N20) -> 69 | O23: =SUM(O11:O22) -> 1441 | P23: =SUM(P11:P22) -> 3309 | Q23: =SUM(Q11:Q22) -> 77
A24: P1060010 | B24: Mujeres en control que padecen enfermedad cardiovascular (DM-HTA) | D24: =IFERROR(VLOOKUP($A24,Filtro!$A$4:$AY$532,2,FALSE),0) -> 5798 | E24: =IFERROR(VLOOKUP($A24,Filtro!$A$4:$AY$532,3,FALSE),0) -> 2 | F24: =IFERROR(VLOOKUP($A24,Filtro!$A$4:$AY$532,4,FALSE),0) -> 61 | G24: =IFERROR(VLOOKUP($A24,Filtro!$A$4:$AY$532,5,FALSE),0) -> 146 | H24: =IFERROR(VLOOKUP($A24,Filtro!$A$4:$AY$532,6,FALSE),0) -> 360 | I24: =IFERROR(VLOOKUP($A24,Filtro!$A$4:$AY$532,7,FALSE),0) -> 588 | J24: =IFERROR(VLOOKUP($A24,Filtro!$A$4:$AY$532,8,FALSE),0) -> 815 | K24: =IFERROR(VLOOKUP($A24,Filtro!$A$4:$AY$532,9,FALSE),0) -> 1247 | L24: =IFERROR(VLOOKUP($A24,Filtro!$A$4:$AY$532,10,FALSE),0) -> 1460 | M24: =IFERROR(VLOOKUP($A24,Filtro!$A$4:$AY$532,11,FALSE),0) -> 996 | N24: =IFERROR(VLOOKUP($A24,Filtro!$A$4:$AY$532,12,FALSE),0) -> 123 | O24: =IFERROR(VLOOKUP($A24,Filtro!$A$4:$AY$532,13,FALSE),0) -> 35 | P24: =IFERROR(VLOOKUP($A24,Filtro!$A$4:$AY$532,14,FALSE),0) -> 37 | Q24: =IFERROR(VLOOKUP($A24,Filtro!$A$4:$AY$532,15,FALSE),0) -> 0 | CA24: =IF(DA24=1,"* La celda 'Pueblos Originarios' debe ser menor o igual al Total en control. ","") ->  | CB24: =IF(DB24=1,"* La celda 'Población Migrantes' debe ser menor o igual al Total en control. ","") ->  | CC24: =IF(DC24=1,"* No olvide escribir en la celda de 'Pueblos Originarios' (Digite CERO si no tiene). ","") ->  | CD24: =IF(DD24=1,"* No olvide escribir en la celda de 'Población Migrantes' (Digite CERO si no tiene). ","") ->  | CE24: =IF(DE24=1,CONCATENATE("* ",$B24," ",E$10," no debe ser mayor que total mujeres con método reg. Fecundidad."), "") ->  | CN24: * Mujeres en control que padecen enfermedad cardiovascular (DM-HTA) 55 y más años no debe ser mayor que total mujeres con método reg. Fecundidad. | CR24: =IF(DR24=1,CONCATENATE("* ",$B24," ",#REF!," no debe ser mayor que total mujeres con método reg. Fecundidad."), "") ->  | DA24: =IF(AND(D24<>0,O24=""),1,0) -> 0 | DB24: =IF(AND(D24<>0,P24=""),1,0) -> 0 | DC24: =IF(O24>D24,1,0) -> 0 | DD24: =IF(P24>D24,1,0) -> 0 | DE24: =IF(E24>(E11+E12+E13+E14+E15+E16+E17+E18+E19+E21),1, 0) -> 0 | DF24: 0 | DG24: 0 | DH24: 0 | DI24: 0 | DJ24: 0 | DK24: 0 | DL24: 0 | DM24: 0 | DN24: 1 | DO24: 0 | DP24: 0 | DQ24: 0
A25: P1060020 | B25: Mujeres con Retiro de Implante Anticipado en el semestre (antes de los 3 años) | D25: =IFERROR(VLOOKUP($A25,Filtro!$A$4:$AY$532,2,FALSE),0) -> 440 | E25: =IFERROR(VLOOKUP($A25,Filtro!$A$4:$AY$532,3,FALSE),0) -> 1 | F25: =IFERROR(VLOOKUP($A25,Filtro!$A$4:$AY$532,4,FALSE),0) -> 88 | G25: =IFERROR(VLOOKUP($A25,Filtro!$A$4:$AY$532,5,FALSE),0) -> 111 | H25: =IFERROR(VLOOKUP($A25,Filtro!$A$4:$AY$532,6,FALSE),0) -> 113 | I25: =IFERROR(VLOOKUP($A25,Filtro!$A$4:$AY$532,7,FALSE),0) -> 63 | J25: =IFERROR(VLOOKUP($A25,Filtro!$A$4:$AY$532,8,FALSE),0) -> 34 | K25: =IFERROR(VLOOKUP($A25,Filtro!$A$4:$AY$532,9,FALSE),0) -> 20 | L25: =IFERROR(VLOOKUP($A25,Filtro!$A$4:$AY$532,10,FALSE),0) -> 9 | M25: =IFERROR(VLOOKUP($A25,Filtro!$A$4:$AY$532,11,FALSE),0) -> 1 | N25: =IFERROR(VLOOKUP($A25,Filtro!$A$4:$AY$532,12,FALSE),0) -> 0 | O25: =IFERROR(VLOOKUP($A25,Filtro!$A$4:$AY$532,13,FALSE),0) -> 3 | P25: =IFERROR(VLOOKUP($A25,Filtro!$A$4:$AY$532,14,FALSE),0) -> 4 | Q25: =IFERROR(VLOOKUP($A25,Filtro!$A$4:$AY$532,15,FALSE),0) -> 0 | CA25: =IF(DA25=1,"* La celda 'Pueblos Originarios' debe ser menor o igual al Total en control. ","") ->  | CB25: =IF(DB25=1,"* La celda 'Población Migrantes' debe ser menor o igual al Total en control. ","") ->  | CC25: =IF(DC25=1,"* No olvide escribir en la celda de 'Pueblos Originarios' (Digite CERO si no tiene). ","") ->  | CD25: =IF(DD25=1,"* No olvide escribir en la celda de 'Población Migrantes' (Digite CERO si no tiene). ","") ->  | CE25: =IF(DE25=1,CONCATENATE("* ",$B25," ",E$10," no debe ser mayor que total mujeres en Método Hormonal con Implante Etonogestrel (3 años)."), "") ->  | CR25: =IF(DR25=1,CONCATENATE("* ",$B25," ",#REF!," no debe ser mayor que total mujeres en Método Hormonal con Implante Etonogestrel (3 años)."), "") ->  | DA25: 0 | DB25: 0 | DC25: 0 | DD25: 0 | DE25: =IF(E25>(E17),1,0) -> 0 | DF25: 0 | DG25: 0 | DH25: 0 | DI25: 0 | DJ25: 0 | DK25: 0 | DL25: 0 | DM25: =IF(M25>(M17),"* Mujeres con Retiro de Implante Anticipado en el semestre (antes de los 3 años) de 50 a 54 años no debe ser mayor que total mujeres en Método Hormonal con Implante Etonogestrel (3 años). ",0) -> 0 | DO25: =IF(O25>(O17),1,0) -> 0 | DP25: 0 | DQ25: 0
A26: P1200260 | B26: Mujeres con Retiro de Implante Anticipado en el semestre (antes de los 5 años) | D26: =IFERROR(VLOOKUP($A26,Filtro!$A$4:$AY$532,2,FALSE),0) -> 6 | E26: =IFERROR(VLOOKUP($A26,Filtro!$A$4:$AY$532,3,FALSE),0) -> 0 | F26: =IFERROR(VLOOKUP($A26,Filtro!$A$4:$AY$532,4,FALSE),0) -> 1 | G26: =IFERROR(VLOOKUP($A26,Filtro!$A$4:$AY$532,5,FALSE),0) -> 0 | H26: =IFERROR(VLOOKUP($A26,Filtro!$A$4:$AY$532,6,FALSE),0) -> 4 | I26: =IFERROR(VLOOKUP($A26,Filtro!$A$4:$AY$532,7,FALSE),0) -> 1 | J26: =IFERROR(VLOOKUP($A26,Filtro!$A$4:$AY$532,8,FALSE),0) -> 0 | K26: =IFERROR(VLOOKUP($A26,Filtro!$A$4:$AY$532,9,FALSE),0) -> 0 | L26: =IFERROR(VLOOKUP($A26,Filtro!$A$4:$AY$532,10,FALSE),0) -> 0 | M26: =IFERROR(VLOOKUP($A26,Filtro!$A$4:$AY$532,11,FALSE),0) -> 0 | N26: =IFERROR(VLOOKUP($A26,Filtro!$A$4:$AY$532,12,FALSE),0) -> 0 | O26: =IFERROR(VLOOKUP($A26,Filtro!$A$4:$AY$532,13,FALSE),0) -> 0 | P26: =IFERROR(VLOOKUP($A26,Filtro!$A$4:$AY$532,14,FALSE),0) -> 0 | Q26: =IFERROR(VLOOKUP($A26,Filtro!$A$4:$AY$532,15,FALSE),0) -> 0 | CE26: =IF(DE26=1,CONCATENATE("* ",$B26," ",E$10," no debe ser mayor que total mujeres en Método Hormonal con Implante Etonogestrel (5 años)."), "") ->  | CR26: =IF(DR26=1,CONCATENATE("* ",$B26," ",#REF!," no debe ser mayor que total mujeres en Método Hormonal con Implante Etonogestrel (5 años)."), "") ->  | DA26: 0 | DB26: 0 | DC26: 0 | DD26: 0 | DE26: 0 | DF26: 0 | DG26: 0 | DH26: 0 | DI26: 0 | DJ26: 0 | DK26: 0 | DL26: 0 | DM26: =IF(M26>(M18),"* Mujeres con Retiro de Implante Anticipado en el semestre (antes de los 5 años) de 50 a 54 años no debe ser mayor que total mujeres en Método Hormonal con Implante Etonogestrel (5 años). ",0) -> 0 | DO26: 0 | DP26: 0 | DQ26: 0
A27: P1060090 | B27: Método de Regulación de Fertilidad más Preservativo | D27: =IFERROR(VLOOKUP($A27,Filtro!$A$4:$AY$532,2,FALSE),0) -> 9276 | E27: =IFERROR(VLOOKUP($A27,Filtro!$A$4:$AY$532,3,FALSE),0) -> 258 | F27: =IFERROR(VLOOKUP($A27,Filtro!$A$4:$AY$532,4,FALSE),0) -> 3128 | G27: =IFERROR(VLOOKUP($A27,Filtro!$A$4:$AY$532,5,FALSE),0) -> 2061 | H27: =IFERROR(VLOOKUP($A27,Filtro!$A$4:$AY$532,6,FALSE),0) -> 1480 | I27: =IFERROR(VLOOKUP($A27,Filtro!$A$4:$AY$532,7,FALSE),0) -> 979 | J27: =IFERROR(VLOOKUP($A27,Filtro!$A$4:$AY$532,8,FALSE),0) -> 599 | K27: =IFERROR(VLOOKUP($A27,Filtro!$A$4:$AY$532,9,FALSE),0) -> 441 | L27: =IFERROR(VLOOKUP($A27,Filtro!$A$4:$AY$532,10,FALSE),0) -> 262 | M27: =IFERROR(VLOOKUP($A27,Filtro!$A$4:$AY$532,11,FALSE),0) -> 67 | N27: =IFERROR(VLOOKUP($A27,Filtro!$A$4:$AY$532,12,FALSE),0) -> 1 | O27: =IFERROR(VLOOKUP($A27,Filtro!$A$4:$AY$532,13,FALSE),0) -> 15 | P27: =IFERROR(VLOOKUP($A27,Filtro!$A$4:$AY$532,14,FALSE),0) -> 80 | Q27: =IFERROR(VLOOKUP($A27,Filtro!$A$4:$AY$532,15,FALSE),0) -> 6 | CE27: =IF(DE27=1,CONCATENATE("* ",$B27," ",E$10," no debe ser mayor que total mujeres con Método Preservativo MAC."), "") -> * Método de Regulación de Fertilidad más Preservativo Menor de 15 años no debe ser mayor que total mujeres con Método Preservativo MAC. | CF27: * Método de Regulación de Fertilidad más Preservativo 15 a 19 años no debe ser mayor que total mujeres con Método Preservativo MAC. | CG27: * Método de Regulación de Fertilidad más Preservativo 20 a 24 años no debe ser mayor que total mujeres con Método Preservativo MAC. | CH27: * Método de Regulación de Fertilidad más Preservativo 25 a 29 años no debe ser mayor que total mujeres con Método Preservativo MAC. | CI27: * Método de Regulación de Fertilidad más Preservativo 30 a 34 años no debe ser mayor que total mujeres con Método Preservativo MAC. | CJ27: * Método de Regulación de Fertilidad más Preservativo 35 a 39 años no debe ser mayor que total mujeres con Método Preservativo MAC. | CR27: =IF(DR27=1,CONCATENATE("* ",$B27," ",#REF!," no debe ser mayor que total mujeres con Método Preservativo MAC."), "") ->  | DA27: 0 | DB27: 0 | DC27: 0 | DD27: 0 | DE27: 1 | DF27: 1 | DG27: 1 | DH27: 1 | DI27: 1 | DJ27: 1 | DK27: 0 | DL27: 0 | DM27: =IF(M27>(M19),1,0) -> 0 | DN27: =IF(N27>(N19),1,0) -> 0 | DO27: 0 | DP27: 0 | DQ27: 0
A28: P1200270 | B28: Gestantes que reciben preservativo | D28: =IFERROR(VLOOKUP($A28,Filtro!$A$4:$AY$532,2,FALSE),0) -> 914 | E28: =IFERROR(VLOOKUP($A28,Filtro!$A$4:$AY$532,3,FALSE),0) -> 4 | F28: =IFERROR(VLOOKUP($A28,Filtro!$A$4:$AY$532,4,FALSE),0) -> 92 | G28: =IFERROR(VLOOKUP($A28,Filtro!$A$4:$AY$532,5,FALSE),0) -> 244 | H28: =IFERROR(VLOOKUP($A28,Filtro!$A$4:$AY$532,6,FALSE),0) -> 269 | I28: =IFERROR(VLOOKUP($A28,Filtro!$A$4:$AY$532,7,FALSE),0) -> 161 | J28: =IFERROR(VLOOKUP($A28,Filtro!$A$4:$AY$532,8,FALSE),0) -> 103 | K28: =IFERROR(VLOOKUP($A28,Filtro!$A$4:$AY$532,9,FALSE),0) -> 35 | L28: =IFERROR(VLOOKUP($A28,Filtro!$A$4:$AY$532,10,FALSE),0) -> 2 | M28: =IFERROR(VLOOKUP($A28,Filtro!$A$4:$AY$532,11,FALSE),0) -> 4 | N28: =IFERROR(VLOOKUP($A28,Filtro!$A$4:$AY$532,12,FALSE),0) -> 0 | O28: =IFERROR(VLOOKUP($A28,Filtro!$A$4:$AY$532,13,FALSE),0) -> 7 | P28: =IFERROR(VLOOKUP($A28,Filtro!$A$4:$AY$532,14,FALSE),0) -> 41 | Q28: =IFERROR(VLOOKUP($A28,Filtro!$A$4:$AY$532,15,FALSE),0) -> 3 | R28: =($CA28&$CB28&$CC28&$CD28&$CE28&$CF28&$CG28&$CH28&$CI28&$CJ28&$CL28&$CM28&$CN28&$CO28&$CP28&$CQ28&$CR28&$CS28&$CT28&$CU28&$CV28&$CW28&$CX28&$CY28&$CZ28) ->  | DA28: 0 | DB28: 0 | DC28: 0 | DD28: 0
A29: P1200200 | B29: PRESERVATIVO/PRACTICA SEXUAL SEGURA | C29: Mujer | D29: =IFERROR(VLOOKUP($A29,Filtro!$A$4:$AY$532,2,FALSE),0) -> 1989 | E29: =IFERROR(VLOOKUP($A29,Filtro!$A$4:$AY$532,3,FALSE),0) -> 54 | F29: =IFERROR(VLOOKUP($A29,Filtro!$A$4:$AY$532,4,FALSE),0) -> 571 | G29: =IFERROR(VLOOKUP($A29,Filtro!$A$4:$AY$532,5,FALSE),0) -> 410 | H29: =IFERROR(VLOOKUP($A29,Filtro!$A$4:$AY$532,6,FALSE),0) -> 294 | I29: =IFERROR(VLOOKUP($A29,Filtro!$A$4:$AY$532,7,FALSE),0) -> 197 | J29: =IFERROR(VLOOKUP($A29,Filtro!$A$4:$AY$532,8,FALSE),0) -> 165 | K29: =IFERROR(VLOOKUP($A29,Filtro!$A$4:$AY$532,9,FALSE),0) -> 103 | L29: =IFERROR(VLOOKUP($A29,Filtro!$A$4:$AY$532,10,FALSE),0) -> 86 | M29: =IFERROR(VLOOKUP($A29,Filtro!$A$4:$AY$532,11,FALSE),0) -> 69 | N29: =IFERROR(VLOOKUP($A29,Filtro!$A$4:$AY$532,12,FALSE),0) -> 40 | O29: =IFERROR(VLOOKUP($A29,Filtro!$A$4:$AY$532,13,FALSE),0) -> 12 | P29: =IFERROR(VLOOKUP($A29,Filtro!$A$4:$AY$532,14,FALSE),0) -> 127 | Q29: =IFERROR(VLOOKUP($A29,Filtro!$A$4:$AY$532,15,FALSE),0) -> 9 | CA29: =IF(DA29=1,"* La celda 'Pueblos Originarios' debe ser menor o igual al Total en control. ","") ->  | CB29: =IF(DB29=1,"* La celda 'Población Migrantes' debe ser menor o igual al Total en control. ","") ->  | CC29: =IF(DC29=1,"* No olvide escribir en la celda de 'Pueblos Originarios' (Digite CERO si no tiene). ","") ->  | CD29: =IF(DD29=1,"* No olvide escribir en la celda de 'Población Migrantes' (Digite CERO si no tiene). ","") ->  | DA29: 0 | DB29: 0 | DC29: 0 | DD29: 0
A30: P1200210 | C30: Hombres | D30: =IFERROR(VLOOKUP($A30,Filtro!$A$4:$AY$532,2,FALSE),0) -> 410 | E30: =IFERROR(VLOOKUP($A30,Filtro!$A$4:$AY$532,3,FALSE),0) -> 7 | F30: =IFERROR(VLOOKUP($A30,Filtro!$A$4:$AY$532,4,FALSE),0) -> 88 | G30: =IFERROR(VLOOKUP($A30,Filtro!$A$4:$AY$532,5,FALSE),0) -> 99 | H30: =IFERROR(VLOOKUP($A30,Filtro!$A$4:$AY$532,6,FALSE),0) -> 71 | I30: =IFERROR(VLOOKUP($A30,Filtro!$A$4:$AY$532,7,FALSE),0) -> 34 | J30: =IFERROR(VLOOKUP($A30,Filtro!$A$4:$AY$532,8,FALSE),0) -> 29 | K30: =IFERROR(VLOOKUP($A30,Filtro!$A$4:$AY$532,9,FALSE),0) -> 19 | L30: =IFERROR(VLOOKUP($A30,Filtro!$A$4:$AY$532,10,FALSE),0) -> 25 | M30: =IFERROR(VLOOKUP($A30,Filtro!$A$4:$AY$532,11,FALSE),0) -> 10 | N30: =IFERROR(VLOOKUP($A30,Filtro!$A$4:$AY$532,12,FALSE),0) -> 28 | O30: =IFERROR(VLOOKUP($A30,Filtro!$A$4:$AY$532,13,FALSE),0) -> 1 | P30: =IFERROR(VLOOKUP($A30,Filtro!$A$4:$AY$532,14,FALSE),0) -> 25 | Q30: =IFERROR(VLOOKUP($A30,Filtro!$A$4:$AY$532,15,FALSE),0) -> 10 | CA30: =IF(DA30=1,"* La celda 'Pueblos Originarios' debe ser menor o igual al Total en control. ","") ->  | CB30: =IF(DB30=1,"* La celda 'Población Migrantes' debe ser menor o igual al Total en control. ","") ->  | CC30: =IF(DC30=1,"* No olvide escribir en la celda de 'Pueblos Originarios' (Digite CERO si no tiene). ","") ->  | CD30: =IF(DD30=1,"* No olvide escribir en la celda de 'Población Migrantes' (Digite CERO si no tiene). ","") ->  | DA30: =IF(AND(D30<>0,O30=""),1,0) -> 0 | DB30: =IF(AND(D30<>0,P30=""),1,0) -> 0 | DC30: =IF(O30>D30,1,0) -> 0 | DD30: =IF(P30>D30,1,0) -> 0
A31: P1200220 | B31: LUBRICANTES | C31: Mujer | D31: =IFERROR(VLOOKUP($A31,Filtro!$A$4:$AY$532,2,FALSE),0) -> 1410 | E31: =IFERROR(VLOOKUP($A31,Filtro!$A$4:$AY$532,3,FALSE),0) -> 1 | F31: =IFERROR(VLOOKUP($A31,Filtro!$A$4:$AY$532,4,FALSE),0) -> 29 | G31: =IFERROR(VLOOKUP($A31,Filtro!$A$4:$AY$532,5,FALSE),0) -> 57 | H31: =IFERROR(VLOOKUP($A31,Filtro!$A$4:$AY$532,6,FALSE),0) -> 71 | I31: =IFERROR(VLOOKUP($A31,Filtro!$A$4:$AY$532,7,FALSE),0) -> 90 | J31: =IFERROR(VLOOKUP($A31,Filtro!$A$4:$AY$532,8,FALSE),0) -> 84 | K31: =IFERROR(VLOOKUP($A31,Filtro!$A$4:$AY$532,9,FALSE),0) -> 140 | L31: =IFERROR(VLOOKUP($A31,Filtro!$A$4:$AY$532,10,FALSE),0) -> 279 | M31: =IFERROR(VLOOKUP($A31,Filtro!$A$4:$AY$532,11,FALSE),0) -> 341 | N31: =IFERROR(VLOOKUP($A31,Filtro!$A$4:$AY$532,12,FALSE),0) -> 318 | O31: =IFERROR(VLOOKUP($A31,Filtro!$A$4:$AY$532,13,FALSE),0) -> 14 | P31: =IFERROR(VLOOKUP($A31,Filtro!$A$4:$AY$532,14,FALSE),0) -> 17 | Q31: =IFERROR(VLOOKUP($A31,Filtro!$A$4:$AY$532,15,FALSE),0) -> 1 | DA31: =IF(AND(D31<>0,O31=""),1,0) -> 0 | DB31: =IF(AND(D31<>0,P31=""),1,0) -> 0 | DC31: =IF(O31>D31,1,0) -> 0 | DD31: =IF(P31>D31,1,0) -> 0
A32: P1200230 | C32: Hombres | D32: =IFERROR(VLOOKUP($A32,Filtro!$A$4:$AY$532,2,FALSE),0) -> 149 | E32: =IFERROR(VLOOKUP($A32,Filtro!$A$4:$AY$532,3,FALSE),0) -> 0 | F32: =IFERROR(VLOOKUP($A32,Filtro!$A$4:$AY$532,4,FALSE),0) -> 0 | G32: =IFERROR(VLOOKUP($A32,Filtro!$A$4:$AY$532,5,FALSE),0) -> 3 | H32: =IFERROR(VLOOKUP($A32,Filtro!$A$4:$AY$532,6,FALSE),0) -> 6 | I32: =IFERROR(VLOOKUP($A32,Filtro!$A$4:$AY$532,7,FALSE),0) -> 6 | J32: =IFERROR(VLOOKUP($A32,Filtro!$A$4:$AY$532,8,FALSE),0) -> 2 | K32: =IFERROR(VLOOKUP($A32,Filtro!$A$4:$AY$532,9,FALSE),0) -> 28 | L32: =IFERROR(VLOOKUP($A32,Filtro!$A$4:$AY$532,10,FALSE),0) -> 55 | M32: =IFERROR(VLOOKUP($A32,Filtro!$A$4:$AY$532,11,FALSE),0) -> 37 | N32: =IFERROR(VLOOKUP($A32,Filtro!$A$4:$AY$532,12,FALSE),0) -> 12 | O32: =IFERROR(VLOOKUP($A32,Filtro!$A$4:$AY$532,13,FALSE),0) -> 0 | P32: =IFERROR(VLOOKUP($A32,Filtro!$A$4:$AY$532,14,FALSE),0) -> 2 | Q32: =IFERROR(VLOOKUP($A32,Filtro!$A$4:$AY$532,15,FALSE),0) -> 2 | DA32: =IF(AND(D32<>0,O32=""),1,0) -> 0 | DB32: =IF(AND(D32<>0,P32=""),1,0) -> 0 | DC32: =IF(O32>D32,1,0) -> 0 | DD32: =IF(P32>D32,1,0) -> 0
A33: P1200350 | B33: CONDON FEMENINO | D33: =IFERROR(VLOOKUP($A33,Filtro!$A$4:$AY$532,2,FALSE),0) -> 8 | E33: =IFERROR(VLOOKUP($A33,Filtro!$A$4:$AY$532,3,FALSE),0) -> 0 | F33: =IFERROR(VLOOKUP($A33,Filtro!$A$4:$AY$532,4,FALSE),0) -> 0 | G33: =IFERROR(VLOOKUP($A33,Filtro!$A$4:$AY$532,5,FALSE),0) -> 1 | H33: =IFERROR(VLOOKUP($A33,Filtro!$A$4:$AY$532,6,FALSE),0) -> 1 | I33: =IFERROR(VLOOKUP($A33,Filtro!$A$4:$AY$532,7,FALSE),0) -> 3 | J33: =IFERROR(VLOOKUP($A33,Filtro!$A$4:$AY$532,8,FALSE),0) -> 1 | K33: =IFERROR(VLOOKUP($A33,Filtro!$A$4:$AY$532,9,FALSE),0) -> 2 | L33: =IFERROR(VLOOKUP($A33,Filtro!$A$4:$AY$532,10,FALSE),0) -> 0 | M33: =IFERROR(VLOOKUP($A33,Filtro!$A$4:$AY$532,11,FALSE),0) -> 0 | N33: =IFERROR(VLOOKUP($A33,Filtro!$A$4:$AY$532,12,FALSE),0) -> 0 | O33: =IFERROR(VLOOKUP($A33,Filtro!$A$4:$AY$532,13,FALSE),0) -> 0 | P33: =IFERROR(VLOOKUP($A33,Filtro!$A$4:$AY$532,14,FALSE),0) -> 3 | Q33: =IFERROR(VLOOKUP($A33,Filtro!$A$4:$AY$532,15,FALSE),0) -> 0 | DA33: =IF(AND(D33<>0,O33=""),1,0) -> 0 | DB33: =IF(AND(D33<>0,P33=""),1,0) -> 0 | DC33: =IF(O33>D33,1,0) -> 0 | DD33: =IF(P33>D33,1,0) -> 0
B34: SECCION B: GESTANTES EN CONTROL CON RIESGO PSICOSOCIAL
B35: GRUPOS DE EDAD | C35: TOTAL DE GESTANTES EN CONTROL | D35: EN RIESGO PSICO- SOCIAL | E35: QUE PRESENTAN VIOLENCIA DE GÉNERO | F35: GESTANTES QUE PRESENTAN ARO | G35: POBLACION MIGRANTES
A37: P1020100 | B37: Menos de 15 años | C37: =IFERROR(VLOOKUP($A37,Filtro!$A$4:$AY$532,2,FALSE),0) -> 20 | D37: =IFERROR(VLOOKUP($A37,Filtro!$A$4:$AY$532,3,FALSE),0) -> 19 | E37: =IFERROR(VLOOKUP($A37,Filtro!$A$4:$AY$532,4,FALSE),0) -> 0 | F37: =IFERROR(VLOOKUP($A37,Filtro!$A$4:$AY$532,5,FALSE),0) -> 14 | G37: =IFERROR(VLOOKUP($A37,Filtro!$A$4:$AY$532,6,FALSE),0) -> 2 | H37: =($CB37&$CC37&$CD37&$CE37&$CF37&$CG37&$CH37&$CI37&$CJ37&$CK37&$CM37&$CN37&$CO37&$CP37&$CQ37&$CR37&$CS37&$CT37&$CU37&$CV37&$CW37&$CX37&$CY37&$CZ37&$DA37) ->  | CB37: =IF($D37<$E37,"* Las Gestantes Menores de 15 años con violencia de género deben estar incluidas en las Gestantes con riesgo psicosocial. ","") ->  | CC37: =IF($C37<$D37,"* Las Gestantes Menores de 15 años con Riesgo Psicosocial deben estar incluidas en el Total de Gestantes en Control misma edad. ","") ->  | CD37: =IF($C37<$F37,"* Las Gestantes Menores de 15 años que presentan ARO deben estar incluidas en el Total de Gestantes en Control misma edad. ","") ->  | CE37: =IF($C37<$G37,"* Las Gestantes Menores de 15 años que pertenecen a 'Población Migrantes' deben estar incluidas en el Total de Gestantes en Control misma edad. ","") ->  | CG37: =IF(AND(C37<>0,G37=""),"* No olvide escribir en la celda de 'Población Migrantes' (Digite CERO si no tiene). ","") ->  | DB37: =IF($D37<$E37,1,0) -> 0 | DC37: =IF($C37<$D37,1,0) -> 0 | DD37: =IF($C37<$F37,1,0) -> 0 | DE37: =IF($C37<$G37,1,0) -> 0 | DG37: =IF(AND(C37<>0,G37=""),1,0) -> 0
A38: P1020200 | B38: 15 a 19 años | C38: =IFERROR(VLOOKUP($A38,Filtro!$A$4:$AY$532,2,FALSE),0) -> 775 | D38: =IFERROR(VLOOKUP($A38,Filtro!$A$4:$AY$532,3,FALSE),0) -> 395 | E38: =IFERROR(VLOOKUP($A38,Filtro!$A$4:$AY$532,4,FALSE),0) -> 25 | F38: =IFERROR(VLOOKUP($A38,Filtro!$A$4:$AY$532,5,FALSE),0) -> 192 | G38: =IFERROR(VLOOKUP($A38,Filtro!$A$4:$AY$532,6,FALSE),0) -> 58 | CB38: =IF($D38<$E38,"* Las Gestantes de 15 a 19 años con violencia de género deben estar incluidas en las Gestantes con riesgo psicosocial. ","") ->  | CC38: =IF($C38<$D38,"* Las Gestantes de 15 a 19 años con Riesgo Psicosocial deben estar incluidas en el Total de Gestantes en Control misma edad. ","") ->  | CD38: =IF($C38<$F38,"* Las Gestantes de 15 a 19 años que presentan ARO deben estar incluidas en el Total de Gestantes en Control misma edad. ","") ->  | CE38: =IF($C38<$G38,"* Las Gestantes de 15 a 19 años que pertenecen a 'Población Migrantes' deben estar incluidas en el Total de Gestantes en Control misma edad. ","") ->  | DB38: 0 | DC38: 0 | DD38: 0 | DE38: 0 | DG38: 0
A39: P1040501 | B39: 20 a 24 años | C39: =IFERROR(VLOOKUP($A39,Filtro!$A$4:$AY$532,2,FALSE),0) -> 1937 | D39: =IFERROR(VLOOKUP($A39,Filtro!$A$4:$AY$532,3,FALSE),0) -> 542 | E39: =IFERROR(VLOOKUP($A39,Filtro!$A$4:$AY$532,4,FALSE),0) -> 40 | F39: =IFERROR(VLOOKUP($A39,Filtro!$A$4:$AY$532,5,FALSE),0) -> 445 | G39: =IFERROR(VLOOKUP($A39,Filtro!$A$4:$AY$532,6,FALSE),0) -> 189 | CB39: =IF($D39<$E39,"* Las Gestantes de 20 a 24 años con violencia de género deben estar incluidas en las Gestantes con riesgo psicosocial. ","") ->  | CC39: =IF($C39<$D39,"* Las Gestantes de 20 a 24 años con Riesgo Psicosocial deben estar incluidas en el Total de Gestantes en Control misma edad. ","") ->  | CD39: =IF($C39<$F39,"* Las Gestantes de 20 a 24 años que presentan ARO deben estar incluidas en el Total de Gestantes en Control misma edad. ","") ->  | CE39: =IF($C39<$G39,"* Las Gestantes de 20 a 24 años que pertenecen a 'Población Migrantes' deben estar incluidas en el Total de Gestantes en Control misma edad. ","") ->  | DB39: 0 | DC39: 0 | DD39: 0 | DE39: 0 | DG39: 0
A40: P1060100 | B40: 25 a 29 años | C40: =IFERROR(VLOOKUP($A40,Filtro!$A$4:$AY$532,2,FALSE),0) -> 2309 | D40: =IFERROR(VLOOKUP($A40,Filtro!$A$4:$AY$532,3,FALSE),0) -> 456 | E40: =IFERROR(VLOOKUP($A40,Filtro!$A$4:$AY$532,4,FALSE),0) -> 35 | F40: =IFERROR(VLOOKUP($A40,Filtro!$A$4:$AY$532,5,FALSE),0) -> 655 | G40: =IFERROR(VLOOKUP($A40,Filtro!$A$4:$AY$532,6,FALSE),0) -> 249 | CB40: =IF($D40<$E40,"* Las Gestantes de 25 a 29 años con violencia de género deben estar incluidas en las Gestantes con riesgo psicosocial. ","") ->  | CC40: =IF($C40<$D40,"* Las Gestantes de 25 a 29 años con Riesgo Psicosocial deben estar incluidas en el Total de Gestantes en Control misma edad. ","") ->  | CD40: =IF($C40<$F40,"* Las Gestantes de 25 a 29 años que presentan ARO deben estar incluidas en el Total de Gestantes en Control misma edad. ","") ->  | CE40: =IF($C40<$G40,"* Las Gestantes de 25 a 29 años que pertenecen a 'Población Migrantes' deben estar incluidas en el Total de Gestantes en Control misma edad. ","") ->  | DB40: 0 | DC40: 0 | DD40: 0 | DE40: 0 | DG40: 0
A41: P1060101 | B41: 30 a 34 años | C41: =IFERROR(VLOOKUP($A41,Filtro!$A$4:$AY$532,2,FALSE),0) -> 1697 | D41: =IFERROR(VLOOKUP($A41,Filtro!$A$4:$AY$532,3,FALSE),0) -> 340 | E41: =IFERROR(VLOOKUP($A41,Filtro!$A$4:$AY$532,4,FALSE),0) -> 28 | F41: =IFERROR(VLOOKUP($A41,Filtro!$A$4:$AY$532,5,FALSE),0) -> 537 | G41: =IFERROR(VLOOKUP($A41,Filtro!$A$4:$AY$532,6,FALSE),0) -> 186 | CB41: =IF($D41<$E41,"* Las Gestantes de 30 a 34 años con violencia de género deben estar incluidas en las Gestantes con riesgo psicosocial. ","") ->  | CC41: =IF($C41<$D41,"* Las Gestantes de 30 a 34 años con Riesgo Psicosocial deben estar incluidas en el Total de Gestantes en Control misma edad. ","") ->  | CD41: =IF($C41<$F41,"* Las Gestantes de 30 a 34 años que presentan ARO deben estar incluidas en el Total de Gestantes en Control misma edad. ","") ->  | CE41: =IF($C41<$G41,"* Las Gestantes de 30 a 34 años que pertenecen a 'Población Migrantes' deben estar incluidas en el Total de Gestantes en Control misma edad. ","") ->  | DB41: 0 | DC41: 0 | DD41: 0 | DE41: 0 | DG41: 0
A42: P1060102 | B42: 35 a 39 años | C42: =IFERROR(VLOOKUP($A42,Filtro!$A$4:$AY$532,2,FALSE),0) -> 881 | D42: =IFERROR(VLOOKUP($A42,Filtro!$A$4:$AY$532,3,FALSE),0) -> 193 | E42: =IFERROR(VLOOKUP($A42,Filtro!$A$4:$AY$532,4,FALSE),0) -> 19 | F42: =IFERROR(VLOOKUP($A42,Filtro!$A$4:$AY$532,5,FALSE),0) -> 349 | G42: =IFERROR(VLOOKUP($A42,Filtro!$A$4:$AY$532,6,FALSE),0) -> 79 | CB42: =IF($D42<$E42,"* Las Gestantes de 35 a 39 años con violencia de género deben estar incluidas en las Gestantes con riesgo psicosocial. ","") ->  | CC42: =IF($C42<$D42,"* Las Gestantes de 35 a 39 años con Riesgo Psicosocial deben estar incluidas en el Total de Gestantes en Control misma edad. ","") ->  | CD42: =IF($C42<$F42,"* Las Gestantes de 35 a 39 años que presentan ARO deben estar incluidas en el Total de Gestantes en Control misma edad. ","") ->  | CE42: =IF($C42<$G42,"* Las Gestantes de 35 a 39 años que pertenecen a 'Población Migrantes' deben estar incluidas en el Total de Gestantes en Control misma edad. ","") ->  | DB42: 0 | DC42: 0 | DD42: 0 | DE42: 0 | DG42: 0
A43: P1060103 | B43: 40 a 44 años | C43: =IFERROR(VLOOKUP($A43,Filtro!$A$4:$AY$532,2,FALSE),0) -> 253 | D43: =IFERROR(VLOOKUP($A43,Filtro!$A$4:$AY$532,3,FALSE),0) -> 73 | E43: =IFERROR(VLOOKUP($A43,Filtro!$A$4:$AY$532,4,FALSE),0) -> 3 | F43: =IFERROR(VLOOKUP($A43,Filtro!$A$4:$AY$532,5,FALSE),0) -> 161 | G43: =IFERROR(VLOOKUP($A43,Filtro!$A$4:$AY$532,6,FALSE),0) -> 21 | CB43: =IF($D43<$E43,"* Las Gestantes de 40 a 44 años con violencia de género deben estar incluidas en las Gestantes con riesgo psicosocial. ","") ->  | CC43: =IF($C43<$D43,"* Las Gestantes de 40 a 44 años con Riesgo Psicosocial deben estar incluidas en el Total de Gestantes en Control misma edad. ","") ->  | CD43: =IF($C43<$F43,"* Las Gestantes de 40 a 44 años que presentan ARO deben estar incluidas en el Total de Gestantes en Control misma edad. ","") ->  | CE43: =IF($C43<$G43,"* Las Gestantes de 40 a 44 años que pertenecen a 'Población Migrantes' deben estar incluidas en el Total de Gestantes en Control misma edad. ","") ->  | DB43: 0 | DC43: 0 | DD43: 0 | DE43: 0 | DG43: 0
A44: P1060104 | B44: 45 a 49 años | C44: =IFERROR(VLOOKUP($A44,Filtro!$A$4:$AY$532,2,FALSE),0) -> 13 | D44: =IFERROR(VLOOKUP($A44,Filtro!$A$4:$AY$532,3,FALSE),0) -> 4 | E44: =IFERROR(VLOOKUP($A44,Filtro!$A$4:$AY$532,4,FALSE),0) -> 0 | F44: =IFERROR(VLOOKUP($A44,Filtro!$A$4:$AY$532,5,FALSE),0) -> 4 | G44: =IFERROR(VLOOKUP($A44,Filtro!$A$4:$AY$532,6,FALSE),0) -> 0 | CB44: =IF($D44<$E44,"* Las Gestantes de 45 a 49 años con violencia de género deben estar incluidas en las Gestantes con riesgo psicosocial. ","") ->  | CC44: =IF($C44<$D44,"* Las Gestantes de 45 a 49 años con Riesgo Psicosocial deben estar incluidas en el Total de Gestantes en Control misma edad. ","") ->  | CD44: =IF($C44<$F44,"* Las Gestantes de 45 a 49 años que presentan ARO deben estar incluidas en el Total de Gestantes en Control misma edad. ","") ->  | CE44: =IF($C44<$G44,"* Las Gestantes de 45 a 49 años que pertenecen a 'Población Migrantes' deben estar incluidas en el Total de Gestantes en Control misma edad. ","") ->  | DB44: 0 | DC44: 0 | DD44: 0 | DE44: 0 | DG44: 0
A45: P1060105 | B45: 50 a 54 años | C45: =IFERROR(VLOOKUP($A45,Filtro!$A$4:$AY$532,2,FALSE),0) -> 0 | D45: =IFERROR(VLOOKUP($A45,Filtro!$A$4:$AY$532,3,FALSE),0) -> 0 | E45: =IFERROR(VLOOKUP($A45,Filtro!$A$4:$AY$532,4,FALSE),0) -> 0 | F45: =IFERROR(VLOOKUP($A45,Filtro!$A$4:$AY$532,5,FALSE),0) -> 0 | G45: =IFERROR(VLOOKUP($A45,Filtro!$A$4:$AY$532,6,FALSE),0) -> 0 | CB45: =IF($D45<$E45,"* Las Gestantes de 50 a 54 años con violencia de género deben estar incluidas en las Gestantes con riesgo psicosocial. ","") ->  | CC45: =IF($C45<$D45,"* Las Gestantes de 50 a 54 años con Riesgo Psicosocial deben estar incluidas en el Total de Gestantes en Control misma edad. ","") ->  | CD45: =IF($C45<$F45,"* Las Gestantes de 50 a 54 años que presentan ARO deben estar incluidas en el Total de Gestantes en Control misma edad. ","") ->  | CE45: =IF($C45<$G45,"* Las Gestantes de 50 a 54 años que pertenecen a 'Población Migrantes' deben estar incluidas en el Total de Gestantes en Control misma edad. ","") ->  | DB45: 0 | DC45: 0 | DD45: 0 | DE45: 0 | DG45: 0
B46: TOTAL | C46: =SUM(C37:C45) -> 7885 | D46: =SUM(D37:D45) -> 2022 | E46: =SUM(E37:E45) -> 150 | F46: =SUM(F37:F45) -> 2357 | G46: =SUM(G37:G45) -> 784
B47: SECCION C: GESTANTES EN RIESGO PSICOSOCIAL CON VISITA DOMICILIARIA INTEGRAL REALIZADA EN EL SEMESTRE
B48: N° VDI | C48: N° Gestantes con VDI | D48: TOTAL de Visitas
A50: P1040502 | B50: 1 Visita | C50: =IFERROR(VLOOKUP($A50,Filtro!$A$4:$AY$532,2,FALSE),0) -> 1139 | D50: =IFERROR(VLOOKUP($A50,Filtro!$A$4:$AY$532,3,FALSE),0) -> 1139 | E50: =($CB50&$CC50&$CD50&$CE50&$CF50&$CG50&$CH50&$CI50&$CJ50&$CK50&$CM50&$CN50&$CO50&$CP50&$CQ50&$CR50&$CS50&$CT50&$CU50&$CV50&$CW50&$CX50&$CY50&$CZ50&$DA50) ->  | CB50: =IF($D$50<>$C$50*1,"* NO ALTERE LAS FÓRMULAS, el Total de Visitas equivale a 1 visita por gestante. ","") ->  | DB50: =IF($D$50<>$C$50*1,1,0) -> 0
A51: P1040503 | B51: 2 Visitas | C51: =IFERROR(VLOOKUP($A51,Filtro!$A$4:$AY$532,2,FALSE),0) -> 378 | D51: =IFERROR(VLOOKUP($A51,Filtro!$A$4:$AY$532,3,FALSE),0) -> 756 | CB51: =IF($D$51<>$C$51*2,"* NO ALTERE LAS FÓRMULAS, el Total de Visitas equivale a 2 visitas por gestante. ","") ->  | DB51: =IF($D$51<>$C$51*2,1,0) -> 0
A52: P1040504 | B52: 3 Visitas | C52: =IFERROR(VLOOKUP($A52,Filtro!$A$4:$AY$532,2,FALSE),0) -> 175 | D52: =IFERROR(VLOOKUP($A52,Filtro!$A$4:$AY$532,3,FALSE),0) -> 525 | CB52: =IF($D$52<>$C$52*3,"* NO ALTERE LAS FÓRMULAS, el Total de Visitas equivale a 3 visitas por gestante. ","") ->  | DB52: =IF($D$52<>$C$52*3,1,0) -> 0
A53: P1040505 | B53: 4 y más visitas | C53: =IFERROR(VLOOKUP($A53,Filtro!$A$4:$AY$532,2,FALSE),0) -> 146 | D53: =IFERROR(VLOOKUP($A53,Filtro!$A$4:$AY$532,3,FALSE),0) -> 549
B54: TOTAL | C54: =SUM(C50:C53) -> 1838 | D54: =SUM(D50:D53) -> 2969
B55: SECCION D: GESTANTES Y MUJERES DE 8° MES POST-PARTO EN CONTROL, SEGÚN ESTADO NUTRICIONAL
B56: POBLACION | C56: ESTADO NUTRICIONAL | D56: TOTAL | E56: GRUPOS DE EDAD (en años)
E57: Menos 15 años | F57: 15 a 19 años | G57: 20 a 24 años | H57: 25 a 29 años | I57: 30 a 34 años | J57: 35 a 39 años | K57: 40 a 44 años | L57: 45 a 49 años | M57: 50 a 54 años
A58: P1030101 | B58: GESTANTES EN CONTROL (Información a la fecha de corte) | C58: OBESA | D58: =IFERROR(VLOOKUP($A58,Filtro!$A$4:$AY$532,2,FALSE),0) -> 2514 | E58: =IFERROR(VLOOKUP($A58,Filtro!$A$4:$AY$532,3,FALSE),0) -> 2 | F58: =IFERROR(VLOOKUP($A58,Filtro!$A$4:$AY$532,4,FALSE),0) -> 127 | G58: =IFERROR(VLOOKUP($A58,Filtro!$A$4:$AY$532,5,FALSE),0) -> 523 | H58: =IFERROR(VLOOKUP($A58,Filtro!$A$4:$AY$532,6,FALSE),0) -> 751 | I58: =IFERROR(VLOOKUP($A58,Filtro!$A$4:$AY$532,7,FALSE),0) -> 656 | J58: =IFERROR(VLOOKUP($A58,Filtro!$A$4:$AY$532,8,FALSE),0) -> 351 | K58: =IFERROR(VLOOKUP($A58,Filtro!$A$4:$AY$532,9,FALSE),0) -> 96 | L58: =IFERROR(VLOOKUP($A58,Filtro!$A$4:$AY$532,10,FALSE),0) -> 8 | M58: =IFERROR(VLOOKUP($A58,Filtro!$A$4:$AY$532,11,FALSE),0) -> 0 | N58: =($CB58&$CC58&$CD58&$CE58&$CF58&$CG58&$CH58&$CI58&$CJ58&$CK58&$CM58&$CN58&$CO58&$CP58&$CQ58&$CR58&$CS58&$CT58&$CU58&$CV58&$CW58&$CX58&$CY58&$CZ58&$DA58) -> 
A59: P1030102 | C59: SOBREPESO | D59: =IFERROR(VLOOKUP($A59,Filtro!$A$4:$AY$532,2,FALSE),0) -> 2605 | E59: =IFERROR(VLOOKUP($A59,Filtro!$A$4:$AY$532,3,FALSE),0) -> 5 | F59: =IFERROR(VLOOKUP($A59,Filtro!$A$4:$AY$532,4,FALSE),0) -> 228 | G59: =IFERROR(VLOOKUP($A59,Filtro!$A$4:$AY$532,5,FALSE),0) -> 602 | H59: =IFERROR(VLOOKUP($A59,Filtro!$A$4:$AY$532,6,FALSE),0) -> 781 | I59: =IFERROR(VLOOKUP($A59,Filtro!$A$4:$AY$532,7,FALSE),0) -> 569 | J59: =IFERROR(VLOOKUP($A59,Filtro!$A$4:$AY$532,8,FALSE),0) -> 315 | K59: =IFERROR(VLOOKUP($A59,Filtro!$A$4:$AY$532,9,FALSE),0) -> 101 | L59: =IFERROR(VLOOKUP($A59,Filtro!$A$4:$AY$532,10,FALSE),0) -> 4 | M59: =IFERROR(VLOOKUP($A59,Filtro!$A$4:$AY$532,11,FALSE),0) -> 0
A60: P1030103 | C60: NORMAL | D60: =IFERROR(VLOOKUP($A60,Filtro!$A$4:$AY$532,2,FALSE),0) -> 2457 | E60: =IFERROR(VLOOKUP($A60,Filtro!$A$4:$AY$532,3,FALSE),0) -> 8 | F60: =IFERROR(VLOOKUP($A60,Filtro!$A$4:$AY$532,4,FALSE),0) -> 340 | G60: =IFERROR(VLOOKUP($A60,Filtro!$A$4:$AY$532,5,FALSE),0) -> 703 | H60: =IFERROR(VLOOKUP($A60,Filtro!$A$4:$AY$532,6,FALSE),0) -> 714 | I60: =IFERROR(VLOOKUP($A60,Filtro!$A$4:$AY$532,7,FALSE),0) -> 432 | J60: =IFERROR(VLOOKUP($A60,Filtro!$A$4:$AY$532,8,FALSE),0) -> 208 | K60: =IFERROR(VLOOKUP($A60,Filtro!$A$4:$AY$532,9,FALSE),0) -> 51 | L60: =IFERROR(VLOOKUP($A60,Filtro!$A$4:$AY$532,10,FALSE),0) -> 1 | M60: =IFERROR(VLOOKUP($A60,Filtro!$A$4:$AY$532,11,FALSE),0) -> 0
A61: P1030104 | C61: BAJO PESO | D61: =IFERROR(VLOOKUP($A61,Filtro!$A$4:$AY$532,2,FALSE),0) -> 307 | E61: =IFERROR(VLOOKUP($A61,Filtro!$A$4:$AY$532,3,FALSE),0) -> 5 | F61: =IFERROR(VLOOKUP($A61,Filtro!$A$4:$AY$532,4,FALSE),0) -> 80 | G61: =IFERROR(VLOOKUP($A61,Filtro!$A$4:$AY$532,5,FALSE),0) -> 107 | H61: =IFERROR(VLOOKUP($A61,Filtro!$A$4:$AY$532,6,FALSE),0) -> 65 | I61: =IFERROR(VLOOKUP($A61,Filtro!$A$4:$AY$532,7,FALSE),0) -> 38 | J61: =IFERROR(VLOOKUP($A61,Filtro!$A$4:$AY$532,8,FALSE),0) -> 7 | K61: =IFERROR(VLOOKUP($A61,Filtro!$A$4:$AY$532,9,FALSE),0) -> 5 | L61: =IFERROR(VLOOKUP($A61,Filtro!$A$4:$AY$532,10,FALSE),0) -> 0 | M61: =IFERROR(VLOOKUP($A61,Filtro!$A$4:$AY$532,11,FALSE),0) -> 0
C62: TOTAL | D62: =SUM(E62:M62) -> 7883 | E62: =SUM(E58:E61) -> 20 | F62: =SUM(F58:F61) -> 775 | G62: 1935 | H62: 2311 | I62: 1695 | J62: 881 | K62: 253 | L62: 13 | M62: 0 | CB62: =IF($C$37<>$E62,"* Las Gestantes Menores de 15 años, según Estado Nutricional debe ser igual al Total de gestantes en Control de esa edad en Sección B. ","") ->  | CC62: =IF($C$38<>$F62,"* Las gestantes 15-19 años, según Estado Nutricional debe ser igual al Total de gestantes en Control de esa edad en Sección B. ","") ->  | CD62: =IF($C$39<>$G62,"* Las gestantes20-24 años, según Estado Nutricional debe ser igual al Total de gestantes en Control de esa edad en Sección B. ","") -> * Las gestantes20-24 años, según Estado Nutricional debe ser igual al Total de gestantes en Control de esa edad en Sección B. | CE62: =IF($C$40<>$H62,"* Las gestantes 25-29 años, según Estado Nutricional debe ser igual al Total de gestantes en Control de esa edad en Sección B. ","") -> * Las gestantes 25-29 años, según Estado Nutricional debe ser igual al Total de gestantes en Control de esa edad en Sección B. | CF62: =IF($C$41<>$I62,"* Las gestantes30-34 años, según Estado Nutricional debe ser igual al Total de gestantes en Control de esa edad en Sección B. ","") -> * Las gestantes30-34 años, según Estado Nutricional debe ser igual al Total de gestantes en Control de esa edad en Sección B. | CG62: =IF($C$42<>$J62,"* Las gestantes 35-39 años, según Estado Nutricional debe ser igual al Total de gestantes en Control de esa edad en Sección B. ","") ->  | CH62: =IF($C$43<>$K62,"* Las gestantes 40-44 años, según Estado Nutricional debe ser igual al Total de gestantes en Control de esa edad en Sección B. ","") ->  | CI62: =IF($C$44<>$L62,"* Las gestantes 45-49 años, según Estado Nutricional debe ser igual al Total de gestantes en Control de esa edad en Sección B. ","") ->  | CJ62: =IF($C$45<>$M62,"* Las gestantes 50-54 años, según Estado Nutricional debe ser igual al Total de gestantes en Control de esa edad en Sección B. ","") ->  | DB62: =IF($C$37<>$E62,1,0) -> 0 | DC62: =IF($C$38<>$F62,1,0) -> 0 | DD62: =IF($C$39<>$G62,1,0) -> 1 | DE62: =IF($C$40<>$H62,1,0) -> 1 | DF62: =IF($C$41<>$I62,1,0) -> 1 | DG62: =IF($C$42<>$J62,1,0) -> 0 | DH62: =IF($C$43<>$K62,1,0) -> 0 | DI62: =IF($C$44<>$L62,1,0) -> 0 | DJ62: =IF($C$45<>$M62,1,0) -> 0
A63: P1030201 | B63: CONTROL AL 8º MES POST-PARTO (Información del semestre) | C63: OBESA | D63: =IFERROR(VLOOKUP($A63,Filtro!$A$4:$AY$532,2,FALSE),0) -> 567 | E63: =IFERROR(VLOOKUP($A63,Filtro!$A$4:$AY$532,3,FALSE),0) -> 0 | F63: =IFERROR(VLOOKUP($A63,Filtro!$A$4:$AY$532,4,FALSE),0) -> 37 | G63: =IFERROR(VLOOKUP($A63,Filtro!$A$4:$AY$532,5,FALSE),0) -> 119 | H63: =IFERROR(VLOOKUP($A63,Filtro!$A$4:$AY$532,6,FALSE),0) -> 175 | I63: =IFERROR(VLOOKUP($A63,Filtro!$A$4:$AY$532,7,FALSE),0) -> 144 | J63: =IFERROR(VLOOKUP($A63,Filtro!$A$4:$AY$532,8,FALSE),0) -> 72 | K63: =IFERROR(VLOOKUP($A63,Filtro!$A$4:$AY$532,9,FALSE),0) -> 18 | L63: =IFERROR(VLOOKUP($A63,Filtro!$A$4:$AY$532,10,FALSE),0) -> 2 | M63: =IFERROR(VLOOKUP($A63,Filtro!$A$4:$AY$532,11,FALSE),0) -> 0
A64: P1030202 | C64: SOBREPESO | D64: =IFERROR(VLOOKUP($A64,Filtro!$A$4:$AY$532,2,FALSE),0) -> 772 | E64: =IFERROR(VLOOKUP($A64,Filtro!$A$4:$AY$532,3,FALSE),0) -> 2 | F64: =IFERROR(VLOOKUP($A64,Filtro!$A$4:$AY$532,4,FALSE),0) -> 55 | G64: =IFERROR(VLOOKUP($A64,Filtro!$A$4:$AY$532,5,FALSE),0) -> 163 | H64: =IFERROR(VLOOKUP($A64,Filtro!$A$4:$AY$532,6,FALSE),0) -> 227 | I64: =IFERROR(VLOOKUP($A64,Filtro!$A$4:$AY$532,7,FALSE),0) -> 185 | J64: =IFERROR(VLOOKUP($A64,Filtro!$A$4:$AY$532,8,FALSE),0) -> 97 | K64: =IFERROR(VLOOKUP($A64,Filtro!$A$4:$AY$532,9,FALSE),0) -> 41 | L64: =IFERROR(VLOOKUP($A64,Filtro!$A$4:$AY$532,10,FALSE),0) -> 2 | M64: =IFERROR(VLOOKUP($A64,Filtro!$A$4:$AY$532,11,FALSE),0) -> 0
A65: P1030203 | C65: NORMAL | D65: =IFERROR(VLOOKUP($A65,Filtro!$A$4:$AY$532,2,FALSE),0) -> 646 | E65: =IFERROR(VLOOKUP($A65,Filtro!$A$4:$AY$532,3,FALSE),0) -> 3 | F65: =IFERROR(VLOOKUP($A65,Filtro!$A$4:$AY$532,4,FALSE),0) -> 88 | G65: =IFERROR(VLOOKUP($A65,Filtro!$A$4:$AY$532,5,FALSE),0) -> 179 | H65: =IFERROR(VLOOKUP($A65,Filtro!$A$4:$AY$532,6,FALSE),0) -> 186 | I65: =IFERROR(VLOOKUP($A65,Filtro!$A$4:$AY$532,7,FALSE),0) -> 98 | J65: =IFERROR(VLOOKUP($A65,Filtro!$A$4:$AY$532,8,FALSE),0) -> 71 | K65: =IFERROR(VLOOKUP($A65,Filtro!$A$4:$AY$532,9,FALSE),0) -> 19 | L65: =IFERROR(VLOOKUP($A65,Filtro!$A$4:$AY$532,10,FALSE),0) -> 2 | M65: =IFERROR(VLOOKUP($A65,Filtro!$A$4:$AY$532,11,FALSE),0) -> 0
A66: P1030204 | C66: BAJO PESO | D66: =IFERROR(VLOOKUP($A66,Filtro!$A$4:$AY$532,2,FALSE),0) -> 71 | E66: =IFERROR(VLOOKUP($A66,Filtro!$A$4:$AY$532,3,FALSE),0) -> 0 | F66: =IFERROR(VLOOKUP($A66,Filtro!$A$4:$AY$532,4,FALSE),0) -> 16 | G66: =IFERROR(VLOOKUP($A66,Filtro!$A$4:$AY$532,5,FALSE),0) -> 26 | H66: =IFERROR(VLOOKUP($A66,Filtro!$A$4:$AY$532,6,FALSE),0) -> 16 | I66: =IFERROR(VLOOKUP($A66,Filtro!$A$4:$AY$532,7,FALSE),0) -> 7 | J66: =IFERROR(VLOOKUP($A66,Filtro!$A$4:$AY$532,8,FALSE),0) -> 6 | K66: =IFERROR(VLOOKUP($A66,Filtro!$A$4:$AY$532,9,FALSE),0) -> 0 | L66: =IFERROR(VLOOKUP($A66,Filtro!$A$4:$AY$532,10,FALSE),0) -> 0 | M66: =IFERROR(VLOOKUP($A66,Filtro!$A$4:$AY$532,11,FALSE),0) -> 0
C67: TOTAL | D67: =SUM(E67:M67) -> 2056 | E67: =SUM(E63:E66) -> 5 | F67: =SUM(F63:F66) -> 196 | G67: =SUM(G63:G66) -> 487 | H67: =SUM(H63:H66) -> 604 | I67: 434 | J67: 246 | K67: =SUM(K63:K66) -> 78 | L67: 6 | M67: 0
B68: SECCION E: MUJERES Y GESTANTES EN CONTROL CON CONSULTA NUTRICIONAL
B69: MUJERES | C69: TOTAL
A70: P1050100 | B70: Gestantes con malnutrición por déficit (bajo peso) | C70: =IFERROR(VLOOKUP($A70,Filtro!$A$4:$AY$532,2,FALSE),0) -> 183 | D70: =($CB70&$CC70&$CD70&$CE70&$CF70&$CG70&$CH70&$CI70&$CJ70&$CK70&$CM70&$CN70&$CO70&$CP70&$CQ70&$CR70&$CS70&$CT70&$CU70&$CV70&$CW70&$CX70&$CY70&$CZ70&$DA70) ->  | CB70: =IF($C$70<=$D$61,"","* Gestantes malnutricion no debe ser mayor que Gestantes en Control Bajo Peso (Seccion D). ") ->  | DB70: =IF($C$70<=$D$61,0,1) -> 0
A71: P1050101 | B71: Gestantes con malnutrición por exceso - Obesa | C71: =IFERROR(VLOOKUP($A71,Filtro!$A$4:$AY$532,2,FALSE),0) -> 1426 | CB71: =IF($C$71<=$D$58,"","* Gestantes malnutricion no debe ser mayor que Gestantes en Control Obesa (Seccion D). ") ->  | DB71: =IF($C$71<=$D$58,0,1) -> 0
A72: P1050102 | B72: Gestantes con malnutrición por exceso - Sobrepeso | C72: =IFERROR(VLOOKUP($A72,Filtro!$A$4:$AY$532,2,FALSE),0) -> 1409 | CB72: =IF($C$72<=$D$59,"","* Gestantes malnutricion no debe ser mayor que Gestantes en Control Sobrepeso (Seccion D). ") ->  | DB72: =IF($C$72<=$D$59,0,1) -> 0
A73: P1050103 | B73: En 3º mes post parto | C73: =IFERROR(VLOOKUP($A73,Filtro!$A$4:$AY$532,2,FALSE),0) -> 271
A74: P1050104 | B74: En 6º mes post parto | C74: =IFERROR(VLOOKUP($A74,Filtro!$A$4:$AY$532,2,FALSE),0) -> 601
B75: SECCION F: MUJERES EN CONTROL DE CLIMATERIO
B76: Población | C76: 45 a 64 años
A77: P1030301 | B77: Población en Control | C77: =IFERROR(VLOOKUP($A77,Filtro!$A$4:$AY$532,2,FALSE),0) -> 5742 | D77: =($CB77&$CC77&$CD77&$CE77&$CF77&$CG77&$CH77&$CI77&$CJ77&$CK77&$CM77&$CN77&$CO77&$CP77&$CQ77&$CR77&$CS77&$CT77&$CU77&$CV77&$CW77&$CX77&$CY77&$CZ77&$DA77) -> 
A78: P1060040 | B78: Mujeres con pauta aplicada MRS* | C78: =IFERROR(VLOOKUP($A78,Filtro!$A$4:$AY$532,2,FALSE),0) -> 3806 | CB78: =IF($C78>$C77,"* El Nº de mujeres con pauta aplicada MRS no debe ser mayor a la población de mujeres en control por climaterio. ","") ->  | DB78: =IF($C78>$C77,1,0) -> 0
A79: P1060050 | B79: Mujeres con puntaje elevado de MRS* | C79: =IFERROR(VLOOKUP($A79,Filtro!$A$4:$AY$532,2,FALSE),0) -> 613 | CB79: =IF($C79>$C78,"* El Nº de mujeres con puntaje elevado de MRS no debe ser mayor al Nº de mujeres con pauta aplicada MRS. ","") ->  | DB79: =IF($C79>$C78,1,0) -> 0
A80: P1060060 | B80: Mujeres con aplicación de terapia hormonal de reemplazo según MRS* | C80: =IFERROR(VLOOKUP($A80,Filtro!$A$4:$AY$532,2,FALSE),0) -> 299 | CB80: =IF($C80>$C79,"* El Nº de mujeres con aplicación de terapia hormonal de reemplazo según MRS no debe ser mayor que el numero de mujeres con puntaje elevado de MRS. ","") ->  | DB80: =IF($C80>$C79,1,0) -> 0
A81: P1200340 | B81: Talleres educativos | C81: =IFERROR(VLOOKUP($A81,Filtro!$A$4:$AY$532,2,FALSE),0) -> 66
B82: * MRS: Menopause Rating Scale
B83: SECCION F.1: POBLACIÓN EN CONTROL CLIMATERIO SEGÚN TIPO TERAPIA REEMPLAZO HORMONAL
B84: MÉTODOS | D84: TOTAL | E84: GRUPO DE EDAD (en años) | J84: Pueblos Originarios | K84: Población Migrantes
E85: Menor de 45 años | F85: 45 a 49 años | G85: 50 a 54 años | H85: 55 a 60 años | I85: 60 a 64 años
A86: P1200280 | B86: Estradiol Micronizado 1mg | D86: =IFERROR(VLOOKUP($A86,Filtro!$A$4:$AY$532,2,FALSE),0) -> 50 | E86: =IFERROR(VLOOKUP($A86,Filtro!$A$4:$AY$532,3,FALSE),0) -> 5 | F86: =IFERROR(VLOOKUP($A86,Filtro!$A$4:$AY$532,4,FALSE),0) -> 11 | G86: =IFERROR(VLOOKUP($A86,Filtro!$A$4:$AY$532,5,FALSE),0) -> 26 | H86: =IFERROR(VLOOKUP($A86,Filtro!$A$4:$AY$532,6,FALSE),0) -> 7 | I86: =IFERROR(VLOOKUP($A86,Filtro!$A$4:$AY$532,7,FALSE),0) -> 1 | J86: =IFERROR(VLOOKUP($A86,Filtro!$A$4:$AY$532,8,FALSE),0) -> 2 | K86: =IFERROR(VLOOKUP($A86,Filtro!$A$4:$AY$532,9,FALSE),0) -> 0 | L86: =($CB86&$CC86&$CD86&$CE86&$CF86&$CG86&$CH86&$CI86&$CJ86&$CK86&$CM86&$CN86&$CO86&$CP86&$CQ86&$CR86&$CS86&$CT86&$CU86&$CV86&$CW86&$CX86&$CY86&$CZ86&$DA86) ->  | CB86: =IF($J86>$D86,"* La celda 'Pueblos Originarios' debe ser menor o igual al Total en control. ","") ->  | CC86: =IF($K86>$D86,"* La celda 'Población Migrantes' debe ser menor o igual al Total en control. ","") ->  | CD86: =IF(AND($D86<>0,$J86=""),"* No olvide escribir en la celda de 'Pueblos Originarios' (Digite CERO si no tiene). ","") ->  | CE86: =IF(AND($D86<>0,$K86=""),"* No olvide escribir en la celda de 'Población Migrantes' (Digite CERO si no tiene). ","") ->  | DB86: =IF($J86>$D86,1,0) -> 0 | DC86: =IF($K86>$D86,1,0) -> 0 | DD86: =IF(AND($D86<>0,$J86=""),1,0) -> 0 | DE86: =IF(AND($D86<>0,$K86=""),1,0) -> 0
A87: P1200290 | B87: Estradiol Gel | D87: =IFERROR(VLOOKUP($A87,Filtro!$A$4:$AY$532,2,FALSE),0) -> 101 | E87: =IFERROR(VLOOKUP($A87,Filtro!$A$4:$AY$532,3,FALSE),0) -> 0 | F87: =IFERROR(VLOOKUP($A87,Filtro!$A$4:$AY$532,4,FALSE),0) -> 32 | G87: =IFERROR(VLOOKUP($A87,Filtro!$A$4:$AY$532,5,FALSE),0) -> 52 | H87: =IFERROR(VLOOKUP($A87,Filtro!$A$4:$AY$532,6,FALSE),0) -> 17 | I87: =IFERROR(VLOOKUP($A87,Filtro!$A$4:$AY$532,7,FALSE),0) -> 0 | J87: =IFERROR(VLOOKUP($A87,Filtro!$A$4:$AY$532,8,FALSE),0) -> 1 | K87: =IFERROR(VLOOKUP($A87,Filtro!$A$4:$AY$532,9,FALSE),0) -> 4 | CB87: =IF($J87>$D87,"* La celda 'Pueblos Originarios' debe ser menor o igual al Total en control. ","") ->  | CC87: =IF($K87>$D87,"* La celda 'Población Migrantes' debe ser menor o igual al Total en control. ","") ->  | CD87: =IF(AND($D87<>0,$J87=""),"* No olvide escribir en la celda de 'Pueblos Originarios' (Digite CERO si no tiene). ","") ->  | CE87: =IF(AND($D87<>0,$K87=""),"* No olvide escribir en la celda de 'Población Migrantes' (Digite CERO si no tiene). ","") ->  | DB87: =IF($J87>$D87,1,0) -> 0 | DC87: =IF($K87>$D87,1,0) -> 0 | DD87: =IF(AND($D87<>0,$J87=""),1,0) -> 0 | DE87: =IF(AND($D87<>0,$K87=""),1,0) -> 0
A88: P1200300 | B88: Progesterona Micronizada 100mg | D88: =IFERROR(VLOOKUP($A88,Filtro!$A$4:$AY$532,2,FALSE),0) -> 34 | E88: =IFERROR(VLOOKUP($A88,Filtro!$A$4:$AY$532,3,FALSE),0) -> 1 | F88: =IFERROR(VLOOKUP($A88,Filtro!$A$4:$AY$532,4,FALSE),0) -> 10 | G88: =IFERROR(VLOOKUP($A88,Filtro!$A$4:$AY$532,5,FALSE),0) -> 19 | H88: =IFERROR(VLOOKUP($A88,Filtro!$A$4:$AY$532,6,FALSE),0) -> 4 | I88: =IFERROR(VLOOKUP($A88,Filtro!$A$4:$AY$532,7,FALSE),0) -> 0 | J88: =IFERROR(VLOOKUP($A88,Filtro!$A$4:$AY$532,8,FALSE),0) -> 0 | K88: =IFERROR(VLOOKUP($A88,Filtro!$A$4:$AY$532,9,FALSE),0) -> 0 | DB88: 0 | DC88: 0 | DD88: 0 | DE88: 0
A89: P1200310 | B89: Progesterona Micronizada 200mg | D89: =IFERROR(VLOOKUP($A89,Filtro!$A$4:$AY$532,2,FALSE),0) -> 11 | E89: =IFERROR(VLOOKUP($A89,Filtro!$A$4:$AY$532,3,FALSE),0) -> 1 | F89: =IFERROR(VLOOKUP($A89,Filtro!$A$4:$AY$532,4,FALSE),0) -> 0 | G89: =IFERROR(VLOOKUP($A89,Filtro!$A$4:$AY$532,5,FALSE),0) -> 5 | H89: =IFERROR(VLOOKUP($A89,Filtro!$A$4:$AY$532,6,FALSE),0) -> 5 | I89: =IFERROR(VLOOKUP($A89,Filtro!$A$4:$AY$532,7,FALSE),0) -> 0 | J89: =IFERROR(VLOOKUP($A89,Filtro!$A$4:$AY$532,8,FALSE),0) -> 0 | K89: =IFERROR(VLOOKUP($A89,Filtro!$A$4:$AY$532,9,FALSE),0) -> 0 | DB89: 0 | DC89: 0 | DD89: 0 | DE89: 0
A90: P1200320 | B90: Nomegestrol 5mg comp. | D90: =IFERROR(VLOOKUP($A90,Filtro!$A$4:$AY$532,2,FALSE),0) -> 4 | E90: =IFERROR(VLOOKUP($A90,Filtro!$A$4:$AY$532,3,FALSE),0) -> 0 | F90: =IFERROR(VLOOKUP($A90,Filtro!$A$4:$AY$532,4,FALSE),0) -> 1 | G90: =IFERROR(VLOOKUP($A90,Filtro!$A$4:$AY$532,5,FALSE),0) -> 2 | H90: =IFERROR(VLOOKUP($A90,Filtro!$A$4:$AY$532,6,FALSE),0) -> 1 | I90: =IFERROR(VLOOKUP($A90,Filtro!$A$4:$AY$532,7,FALSE),0) -> 0 | J90: =IFERROR(VLOOKUP($A90,Filtro!$A$4:$AY$532,8,FALSE),0) -> 0 | K90: =IFERROR(VLOOKUP($A90,Filtro!$A$4:$AY$532,9,FALSE),0) -> 0 | DB90: 0 | DC90: 0 | DD90: 0 | DE90: 0
A91: P1200330 | B91: Tibolona 2,5mg comp. | D91: =IFERROR(VLOOKUP($A91,Filtro!$A$4:$AY$532,2,FALSE),0) -> 213 | E91: =IFERROR(VLOOKUP($A91,Filtro!$A$4:$AY$532,3,FALSE),0) -> 2 | F91: =IFERROR(VLOOKUP($A91,Filtro!$A$4:$AY$532,4,FALSE),0) -> 58 | G91: =IFERROR(VLOOKUP($A91,Filtro!$A$4:$AY$532,5,FALSE),0) -> 92 | H91: =IFERROR(VLOOKUP($A91,Filtro!$A$4:$AY$532,6,FALSE),0) -> 54 | I91: =IFERROR(VLOOKUP($A91,Filtro!$A$4:$AY$532,7,FALSE),0) -> 7 | J91: =IFERROR(VLOOKUP($A91,Filtro!$A$4:$AY$532,8,FALSE),0) -> 1 | K91: =IFERROR(VLOOKUP($A91,Filtro!$A$4:$AY$532,9,FALSE),0) -> 1 | DB91: 0 | DC91: 0 | DD91: 0 | DE91: 0
B92: Total | D92: =SUM(E92:I92) -> 413 | E92: =SUM(E86:E91) -> 9 | F92: =SUM(F86:F91) -> 112 | G92: 196 | H92: 88 | I92: 8 | J92: 4 | K92: 5
B93: SECCION G: GESTANTES EN CONTROL CON ECOGRAFÍA POR TRIMESTRE DE GESTACION (EN EL SEMESTRE)
B94: Población | C94: Primer trimestre | D94: Segundo trimestre | E94: Tercer trimestre | F94: Total de Gestantes con Ecografías del extrasistema
A95: P1060106 | B95: Menor de 15 | C95: =IFERROR(VLOOKUP($A95,Filtro!$A$4:$AY$532,2,FALSE),0) -> 7 | D95: =IFERROR(VLOOKUP($A95,Filtro!$A$4:$AY$532,3,FALSE),0) -> 9 | E95: =IFERROR(VLOOKUP($A95,Filtro!$A$4:$AY$532,4,FALSE),0) -> 6 | F95: =IFERROR(VLOOKUP($A95,Filtro!$A$4:$AY$532,5,FALSE),0) -> 5 | G95: =($CB95&$CC95&$CD95&$CE95&$CF95&$CG95&$CH95&$CI95&$CJ95&$CK95&$CM95&$CN95&$CO95&$CP95&$CQ95&$CR95&$CS95&$CT95&$CU95&$CV95&$CW95&$CX95&$CY95&$CZ95&$DA95) ->  | CB95: =IF($F95>$C95+$D95+$E95, "* El total de ecografías realizadas en el extrasistema en menores de 15 años, no puede ser mayor al nº de ecografias realizadas en los tres trimestres. ", "") ->  | DB95: =IF($F95>$C95+$D95+$E95, 1,0) -> 0
A96: P1060107 | B96: 15 - 19 | C96: =IFERROR(VLOOKUP($A96,Filtro!$A$4:$AY$532,2,FALSE),0) -> 495 | D96: =IFERROR(VLOOKUP($A96,Filtro!$A$4:$AY$532,3,FALSE),0) -> 302 | E96: =IFERROR(VLOOKUP($A96,Filtro!$A$4:$AY$532,4,FALSE),0) -> 117 | F96: =IFERROR(VLOOKUP($A96,Filtro!$A$4:$AY$532,5,FALSE),0) -> 156 | CB96: =IF($F96>$C96+$D96+$E96, "* El total de ecografías realizadas en el extrasistema en menores de 15-19 años, no puede ser mayor al nº de ecografias realizadas en los tres trimestres. ", "") ->  | DB96: =IF($F96>$C96+$D96+$E96, 1,0) -> 0
A97: P1060108 | B97: 20 - 24 | C97: =IFERROR(VLOOKUP($A97,Filtro!$A$4:$AY$532,2,FALSE),0) -> 1230 | D97: =IFERROR(VLOOKUP($A97,Filtro!$A$4:$AY$532,3,FALSE),0) -> 798 | E97: =IFERROR(VLOOKUP($A97,Filtro!$A$4:$AY$532,4,FALSE),0) -> 294 | F97: =IFERROR(VLOOKUP($A97,Filtro!$A$4:$AY$532,5,FALSE),0) -> 507 | CB97: =IF($F97>$C97+$D97+$E97, "* El total de ecografías realizadas en el extrasistema en menores de 20-24 años, no puede ser mayor al nº de ecografias realizadas en los tres trimestres. ", "") ->  | DB97: 0
A98: P1060109 | B98: 25 - 29 | C98: =IFERROR(VLOOKUP($A98,Filtro!$A$4:$AY$532,2,FALSE),0) -> 1575 | D98: =IFERROR(VLOOKUP($A98,Filtro!$A$4:$AY$532,3,FALSE),0) -> 930 | E98: =IFERROR(VLOOKUP($A98,Filtro!$A$4:$AY$532,4,FALSE),0) -> 325 | F98: =IFERROR(VLOOKUP($A98,Filtro!$A$4:$AY$532,5,FALSE),0) -> 694 | CB98: =IF($F98>$C98+$D98+$E98, "* El total de ecografías realizadas en el extrasistema en menores de 28-29 años, no puede ser mayor al nº de ecografias realizadas en los tres trimestres. ", "") ->  | DB98: 0
A99: P1060110 | B99: 30 - 34 | C99: =IFERROR(VLOOKUP($A99,Filtro!$A$4:$AY$532,2,FALSE),0) -> 1143 | D99: =IFERROR(VLOOKUP($A99,Filtro!$A$4:$AY$532,3,FALSE),0) -> 648 | E99: =IFERROR(VLOOKUP($A99,Filtro!$A$4:$AY$532,4,FALSE),0) -> 265 | F99: =IFERROR(VLOOKUP($A99,Filtro!$A$4:$AY$532,5,FALSE),0) -> 508 | CB99: =IF($F99>$C99+$D99+$E99, "* El total de ecografías realizadas en el extrasistema en menores de 30-34 años, no puede ser mayor al nº de ecografias realizadas en los tres trimestres. ", "") ->  | DB99: 0
A100: P1060111 | B100: 35 - 39 | C100: =IFERROR(VLOOKUP($A100,Filtro!$A$4:$AY$532,2,FALSE),0) -> 603 | D100: =IFERROR(VLOOKUP($A100,Filtro!$A$4:$AY$532,3,FALSE),0) -> 377 | E100: =IFERROR(VLOOKUP($A100,Filtro!$A$4:$AY$532,4,FALSE),0) -> 151 | F100: =IFERROR(VLOOKUP($A100,Filtro!$A$4:$AY$532,5,FALSE),0) -> 251 | CB100: =IF($F100>$C100+$D100+$E100, "* El total de ecografías realizadas en el extrasistema en menores de 35-39 años, no puede ser mayor al nº de ecografias realizadas en los tres trimestres. ", "") ->  | DB100: 0
A101: P1060112 | B101: 40 - 44 | C101: =IFERROR(VLOOKUP($A101,Filtro!$A$4:$AY$532,2,FALSE),0) -> 164 | D101: =IFERROR(VLOOKUP($A101,Filtro!$A$4:$AY$532,3,FALSE),0) -> 112 | E101: =IFERROR(VLOOKUP($A101,Filtro!$A$4:$AY$532,4,FALSE),0) -> 52 | F101: =IFERROR(VLOOKUP($A101,Filtro!$A$4:$AY$532,5,FALSE),0) -> 66 | CB101: =IF($F101>$C101+$D101+$E101, "* El total de ecografías realizadas en el extrasistema en menores de 40-44 años, no puede ser mayor al nº de ecografias realizadas en los tres trimestres. ", "") ->  | DB101: 0
A102: P1060113 | B102: 45 - 49 | C102: =IFERROR(VLOOKUP($A102,Filtro!$A$4:$AY$532,2,FALSE),0) -> 9 | D102: =IFERROR(VLOOKUP($A102,Filtro!$A$4:$AY$532,3,FALSE),0) -> 4 | E102: =IFERROR(VLOOKUP($A102,Filtro!$A$4:$AY$532,4,FALSE),0) -> 1 | F102: =IFERROR(VLOOKUP($A102,Filtro!$A$4:$AY$532,5,FALSE),0) -> 3 | CB102: =IF($F102>$C102+$D102+$E102, "* El total de ecografías realizadas en el extrasistema en menores de 45-49 años, no puede ser mayor al nº de ecografias realizadas en los tres trimestres. ", "") ->  | DB102: 0
A103: P1060114 | B103: 50 - 54 | C103: =IFERROR(VLOOKUP($A103,Filtro!$A$4:$AY$532,2,FALSE),0) -> 0 | D103: =IFERROR(VLOOKUP($A103,Filtro!$A$4:$AY$532,3,FALSE),0) -> 0 | E103: =IFERROR(VLOOKUP($A103,Filtro!$A$4:$AY$532,4,FALSE),0) -> 0 | F103: =IFERROR(VLOOKUP($A103,Filtro!$A$4:$AY$532,5,FALSE),0) -> 0 | CB103: =IF($F103>$C103+$D103+$E103, "* El total de ecografías realizadas en el extrasistema en menores de 50-54 años, no puede ser mayor al nº de ecografias realizadas en los tres trimestres. ", "") ->  | DB103: 0
B104: TOTAL | C104: =SUM(C95:C103) -> 5226 | D104: =SUM(D95:D103) -> 3180 | E104: =SUM(E95:E103) -> 1211 | F104: =SUM(F95:F103) -> 2190
B105: SECCION H: GESTANTES EN CONTROL DE ENFERMEDADES TRANSMISIBLES (HEPATITIS B, CHAGAS)
C106: HEPATITIS B | E106: CHAGAS
B107: Población | C107: Solicitados | D107: Informados | E107: Solicitados | F107: Informados
A108: P1200100 | B108: Menor de 15 | C108: =IFERROR(VLOOKUP($A108,Filtro!$A$4:$AY$532,2,FALSE),0) -> 0 | D108: =IFERROR(VLOOKUP($A108,Filtro!$A$4:$AY$532,3,FALSE),0) -> 0 | E108: =IFERROR(VLOOKUP($A108,Filtro!$A$4:$AY$532,4,FALSE),0) -> 52 | F108: =IFERROR(VLOOKUP($A108,Filtro!$A$4:$AY$532,5,FALSE),0) -> 42 | G108: =($CB108&$CC108&$CD108&$CE108&$CF108&$CG108&$CH108&$CI108&$CJ108&$CK108&$CM108&$CN108&$CO108&$CP108&$CQ108&$CR108&$CS108&$CT108&$CU108&$CV108&$CW108&$CX108&$CY108&$CZ108&$DA108) -> 
A109: P1200110 | B109: 15 - 19 | C109: =IFERROR(VLOOKUP($A109,Filtro!$A$4:$AY$532,2,FALSE),0) -> 2 | D109: =IFERROR(VLOOKUP($A109,Filtro!$A$4:$AY$532,3,FALSE),0) -> 1 | E109: =IFERROR(VLOOKUP($A109,Filtro!$A$4:$AY$532,4,FALSE),0) -> 589 | F109: =IFERROR(VLOOKUP($A109,Filtro!$A$4:$AY$532,5,FALSE),0) -> 464
A110: P1200120 | B110: 20 - 24 | C110: =IFERROR(VLOOKUP($A110,Filtro!$A$4:$AY$532,2,FALSE),0) -> 12 | D110: =IFERROR(VLOOKUP($A110,Filtro!$A$4:$AY$532,3,FALSE),0) -> 5 | E110: =IFERROR(VLOOKUP($A110,Filtro!$A$4:$AY$532,4,FALSE),0) -> 1327 | F110: =IFERROR(VLOOKUP($A110,Filtro!$A$4:$AY$532,5,FALSE),0) -> 1002
A111: P1200130 | B111: 25 - 29 | C111: =IFERROR(VLOOKUP($A111,Filtro!$A$4:$AY$532,2,FALSE),0) -> 9 | D111: =IFERROR(VLOOKUP($A111,Filtro!$A$4:$AY$532,3,FALSE),0) -> 3 | E111: =IFERROR(VLOOKUP($A111,Filtro!$A$4:$AY$532,4,FALSE),0) -> 1501 | F111: =IFERROR(VLOOKUP($A111,Filtro!$A$4:$AY$532,5,FALSE),0) -> 1127
A112: P1200140 | B112: 30 - 34 | C112: =IFERROR(VLOOKUP($A112,Filtro!$A$4:$AY$532,2,FALSE),0) -> 6 | D112: =IFERROR(VLOOKUP($A112,Filtro!$A$4:$AY$532,3,FALSE),0) -> 3 | E112: =IFERROR(VLOOKUP($A112,Filtro!$A$4:$AY$532,4,FALSE),0) -> 1093 | F112: =IFERROR(VLOOKUP($A112,Filtro!$A$4:$AY$532,5,FALSE),0) -> 797
A113: P1200150 | B113: 35 - 39 | C113: =IFERROR(VLOOKUP($A113,Filtro!$A$4:$AY$532,2,FALSE),0) -> 3 | D113: =IFERROR(VLOOKUP($A113,Filtro!$A$4:$AY$532,3,FALSE),0) -> 1 | E113: =IFERROR(VLOOKUP($A113,Filtro!$A$4:$AY$532,4,FALSE),0) -> 548 | F113: =IFERROR(VLOOKUP($A113,Filtro!$A$4:$AY$532,5,FALSE),0) -> 422
A114: P1200160 | B114: 40 - 44 | C114: =IFERROR(VLOOKUP($A114,Filtro!$A$4:$AY$532,2,FALSE),0) -> 2 | D114: =IFERROR(VLOOKUP($A114,Filtro!$A$4:$AY$532,3,FALSE),0) -> 2 | E114: =IFERROR(VLOOKUP($A114,Filtro!$A$4:$AY$532,4,FALSE),0) -> 151 | F114: =IFERROR(VLOOKUP($A114,Filtro!$A$4:$AY$532,5,FALSE),0) -> 112
A115: P1200170 | B115: 45 - 49 | C115: =IFERROR(VLOOKUP($A115,Filtro!$A$4:$AY$532,2,FALSE),0) -> 0 | D115: =IFERROR(VLOOKUP($A115,Filtro!$A$4:$AY$532,3,FALSE),0) -> 0 | E115: =IFERROR(VLOOKUP($A115,Filtro!$A$4:$AY$532,4,FALSE),0) -> 9 | F115: =IFERROR(VLOOKUP($A115,Filtro!$A$4:$AY$532,5,FALSE),0) -> 6
A116: P1200180 | B116: 50 - 54 | C116: =IFERROR(VLOOKUP($A116,Filtro!$A$4:$AY$532,2,FALSE),0) -> 0 | D116: =IFERROR(VLOOKUP($A116,Filtro!$A$4:$AY$532,3,FALSE),0) -> 0 | E116: =IFERROR(VLOOKUP($A116,Filtro!$A$4:$AY$532,4,FALSE),0) -> 0 | F116: =IFERROR(VLOOKUP($A116,Filtro!$A$4:$AY$532,5,FALSE),0) -> 0
B117: TOTAL | C117: =SUM(C108:C116) -> 34 | D117: =SUM(D108:D116) -> 15 | E117: =SUM(E108:E116) -> 5270 | F117: =SUM(F108:F116) -> 3972
B118: NIVEL SECUNDARIO
B119: SECCIÓN I: POBLACIÓN EN CONTROL POR PATOLOGÍAS DE ALTO RIESGO OBSTÉTRICO
B120: PATOLOGÍA | C120: TOTAL
A121: P1030303 | B121: Preeclampsia (PE) | C121: =IFERROR(VLOOKUP($A121,Filtro!$A$4:$AY$532,2,FALSE),0) -> 21 | D121: =($CB121&$CC121&$CD121&$CE121&$CF121&$CG121&$CH121&$CI121&$CJ121&$CK121&$CM121&$CN121&$CO121&$CP121&$CQ121&$CR121&$CS121&$CT121&$CU121&$CV121&$CW121&$CX121&$CY121&$CZ121&$DA121) -> 
A122: P1060070 | B122: Sindrome Hipertensivo del Embarazo (SHE) | C122: =IFERROR(VLOOKUP($A122,Filtro!$A$4:$AY$532,2,FALSE),0) -> 159
A123: P1030304 | B123: Factores de riesgo y condicionantes de Parto Prematuro | C123: =IFERROR(VLOOKUP($A123,Filtro!$A$4:$AY$532,2,FALSE),0) -> 207
A124: P1030401 | B124: Retardo Crecimiento Intrauterino (RCIU ) | C124: =IFERROR(VLOOKUP($A124,Filtro!$A$4:$AY$532,2,FALSE),0) -> 96
A125: P1040506 | B125: SÍFILIS | C125: =IFERROR(VLOOKUP($A125,Filtro!$A$4:$AY$532,2,FALSE),0) -> 29
A126: P1040507 | B126: VIH | C126: =IFERROR(VLOOKUP($A126,Filtro!$A$4:$AY$532,2,FALSE),0) -> 17
A127: P1060115 | B127: Diabetes Pre Gestacional | C127: =IFERROR(VLOOKUP($A127,Filtro!$A$4:$AY$532,2,FALSE),0) -> 108
A128: P1060116 | B128: Diabetes Gestacional | C128: =IFERROR(VLOOKUP($A128,Filtro!$A$4:$AY$532,2,FALSE),0) -> 386
A129: P1030403 | B129: Cesárea anterior | C129: =IFERROR(VLOOKUP($A129,Filtro!$A$4:$AY$532,2,FALSE),0) -> 833
A130: P1060080 | B130: Malformación Congénita | C130: =IFERROR(VLOOKUP($A130,Filtro!$A$4:$AY$532,2,FALSE),0) -> 84
A131: P1060117 | B131: Anemia | C131: =IFERROR(VLOOKUP($A131,Filtro!$A$4:$AY$532,2,FALSE),0) -> 67
A132: P1060118 | B132: Cardiopatías | C132: =IFERROR(VLOOKUP($A132,Filtro!$A$4:$AY$532,2,FALSE),0) -> 29
A133: P1060119 | B133: Pielonefritis | C133: =IFERROR(VLOOKUP($A133,Filtro!$A$4:$AY$532,2,FALSE),0) -> 62
A134: P1060120 | B134: Rh(-) sensibilizada | C134: =IFERROR(VLOOKUP($A134,Filtro!$A$4:$AY$532,2,FALSE),0) -> 21
A135: P1060121 | B135: Placenta previa | C135: =IFERROR(VLOOKUP($A135,Filtro!$A$4:$AY$532,2,FALSE),0) -> 13
A136: P1060122 | B136: Chagas | C136: =IFERROR(VLOOKUP($A136,Filtro!$A$4:$AY$532,2,FALSE),0) -> 39
A137: P1060123 | B137: Colestasia Intrahépatica de Embarazo | C137: =IFERROR(VLOOKUP($A137,Filtro!$A$4:$AY$532,2,FALSE),0) -> 70
A138: P1030404 | B138: Otras patologías del embarazo | C138: =IFERROR(VLOOKUP($A138,Filtro!$A$4:$AY$532,2,FALSE),0) -> 1887
B139: TOTAL | C139: =SUM(C121:C138) -> 4128
B151: =SUM(D11:Q33,C37:G46,C50:D54,D58:M67,C70:C74,C77:C81,D86:K92,C95:F104,C108:F117,C121:C139) -> 773176 | C151: datos
B152: =SUM(DB$10:EA150) -> 10 | C152: errores

Sheet P2
B6: REM-P2. POBLACIÓN EN CONTROL PROGRAMA DE SALUD DEL NIÑO
B7: SECCION A: POBLACIÓN EN CONTROL, SEGÚN ESTADO NUTRICIONAL PARA NIÑOS MENOR DE UN MES-59 MESES
B8: INDICADOR NUTRICIONAL Y PARÁMETROS DE MEDICIÓN | D8: TOTAL | G8: GRUPOS DE EDAD (en meses - años) Y SEXO | AI8: Pueblos Originarios | AK8: Población Migrantes
G9: Menor de 1 mes | I9: 1 mes | K9: 2 meses | M9: 3 meses | O9: 4 meses | Q9: 5 meses | S9: 6 meses | U9: 7 a 11 meses | W9: 12 a 17 meses | Y9: 18 a 23 meses | AA9: 24 a 35 meses | AC9: 36 a 41 meses | AE9: 42 a 47 meses | AG9: 48 a 59 meses
D10: Ambos sexos | E10: Hombres | F10: Mujeres | G10: Hombres | H10: Mujeres | I10: Hombres | J10: Mujeres | K10: Hombres | L10: Mujeres | M10: Hombres | N10: Mujeres | O10: Hombres | P10: Mujeres | Q10: Hombres | R10: Mujeres | S10: Hombres | T10: Mujeres | U10: Hombres | V10: Mujeres | W10: Hombres | X10: Mujeres | Y10: Hombres | Z10: Mujeres | AA10: Hombres | AB10: Mujeres | AC10: Hombres | AD10: Mujeres | AE10: Hombres | AF10: Mujeres | AG10: Hombres | AH10: Mujeres | AI10: Hombres | AJ10: Mujeres | AK10: Hombres | AL10: Mujeres
A11: P2060000 | B11: TOTAL DE NIÑOS EN CONTROL | D11: =IFERROR(VLOOKUP($A11,Filtro!$A$4:$AY$532,2,FALSE),0) -> 72938 | E11: =IFERROR(VLOOKUP($A11,Filtro!$A$4:$AY$532,3,FALSE),0) -> 37369 | F11: =IFERROR(VLOOKUP($A11,Filtro!$A$4:$AY$532,4,FALSE),0) -> 35569 | G11: =IFERROR(VLOOKUP($A11,Filtro!$A$4:$AY$532,5,FALSE),0) -> 347 | H11: =IFERROR(VLOOKUP($A11,Filtro!$A$4:$AY$532,6,FALSE),0) -> 320 | I11: =IFERROR(VLOOKUP($A11,Filtro!$A$4:$AY$532,7,FALSE),0) -> 510 | J11: =IFERROR(VLOOKUP($A11,Filtro!$A$4:$AY$532,8,FALSE),0) -> 517 | K11: =IFERROR(VLOOKUP($A11,Filtro!$A$4:$AY$532,9,FALSE),0) -> 662 | L11: =IFERROR(VLOOKUP($A11,Filtro!$A$4:$AY$532,10,FALSE),0) -> 598 | M11: =IFERROR(VLOOKUP($A11,Filtro!$A$4:$AY$532,11,FALSE),0) -> 601 | N11: =IFERROR(VLOOKUP($A11,Filtro!$A$4:$AY$532,12,FALSE),0) -> 552 | O11: =IFERROR(VLOOKUP($A11,Filtro!$A$4:$AY$532,13,FALSE),0) -> 657 | P11: =IFERROR(VLOOKUP($A11,Filtro!$A$4:$AY$532,14,FALSE),0) -> 662 | Q11: =IFERROR(VLOOKUP($A11,Filtro!$A$4:$AY$532,15,FALSE),0) -> 622 | R11: =IFERROR(VLOOKUP($A11,Filtro!$A$4:$AY$532,16,FALSE),0) -> 605 | S11: =IFERROR(VLOOKUP($A11,Filtro!$A$4:$AY$532,17,FALSE),0) -> 867 | T11: =IFERROR(VLOOKUP($A11,Filtro!$A$4:$AY$532,18,FALSE),0) -> 854 | U11: =IFERROR(VLOOKUP($A11,Filtro!$A$4:$AY$532,19,FALSE),0) -> 2925 | V11: =IFERROR(VLOOKUP($A11,Filtro!$A$4:$AY$532,20,FALSE),0) -> 2767 | W11: =IFERROR(VLOOKUP($A11,Filtro!$A$4:$AY$532,21,FALSE),0) -> 3718 | X11: =IFERROR(VLOOKUP($A11,Filtro!$A$4:$AY$532,22,FALSE),0) -> 3604 | Y11: =IFERROR(VLOOKUP($A11,Filtro!$A$4:$AY$532,23,FALSE),0) -> 3592 | Z11: =IFERROR(VLOOKUP($A11,Filtro!$A$4:$AY$532,24,FALSE),0) -> 3496 | AA11: =IFERROR(VLOOKUP($A11,Filtro!$A$4:$AY$532,25,FALSE),0) -> 7240 | AB11: =IFERROR(VLOOKUP($A11,Filtro!$A$4:$AY$532,26,FALSE),0) -> 7018 | AC11: =IFERROR(VLOOKUP($A11,Filtro!$A$4:$AY$532,27,FALSE),0) -> 4491 | AD11: =IFERROR(VLOOKUP($A11,Filtro!$A$4:$AY$532,28,FALSE),0) -> 4164 | AE11: =IFERROR(VLOOKUP($A11,Filtro!$A$4:$AY$532,29,FALSE),0) -> 3389 | AF11: =IFERROR(VLOOKUP($A11,Filtro!$A$4:$AY$532,30,FALSE),0) -> 3264 | AG11: =IFERROR(VLOOKUP($A11,Filtro!$A$4:$AY$532,31,FALSE),0) -> 7748 | AH11: =IFERROR(VLOOKUP($A11,Filtro!$A$4:$AY$532,32,FALSE),0) -> 7148 | AI11: =IFERROR(VLOOKUP($A11,Filtro!$A$4:$AY$532,33,FALSE),0) -> 221 | AJ11: =IFERROR(VLOOKUP($A11,Filtro!$A$4:$AY$532,34,FALSE),0) -> 195 | AK11: =IFERROR(VLOOKUP($A11,Filtro!$A$4:$AY$532,35,FALSE),0) -> 400 | AL11: =IFERROR(VLOOKUP($A11,Filtro!$A$4:$AY$532,36,FALSE),0) -> 396 | AY11: =IF($I$11+$J$11<>$I$39+$J$39,"* El Total de niños (as) en Control de 1 mes debe ser igual al Total de niños(as) según Diagnóstico Nutricional Integrado. ","") ->  | AZ11: =IF($K$11+$L$11<>$K$39+$L$39,"* El Total de niños (as) en Control de 2 meses debe ser igual al Total de niños(as) según Diagnóstico Nutricional Integrado. ","") ->  | BA11: =IF($M$11+$N$11<>$M$39+$N$39,"* El Total de niños (as) en Control de 3 meses debe ser igual al Total de niños(as) según Diagnóstico Nutricional Integrado. ","") ->  | BB11: =IF($O$11+$P$11<>$O$39+$P$39,"* El Total de niños (as) en Control de 4 meses debe ser igual al Total de niños(as) según Diagnóstico Nutricional Integrado. ","") -> * El Total de niños (as) en Control de 4 meses debe ser igual al Total de niños(as) según Diagnóstico Nutricional Integrado. | BC11: =IF($Q$11+$R$11<>$Q$39+$R$39,"* El Total de niños (as) en Control de 5 meses debe ser igual al Total de niños(as) según Diagnóstico Nutricional Integrado. ","") ->  | BD11: =IF($S$11+$T$11<>$S$39+$T$39,"* El Total de niños (as) en Control de 6 meses debe ser igual al Total de niños(as) según Diagnóstico Nutricional Integrado. ","") -> * El Total de niños (as) en Control de 6 meses debe ser igual al Total de niños(as) según Diagnóstico Nutricional Integrado. | BE11: =IF($U$11+$V$11<>$U$39+$V$39,"* El Total de niños (as) en Control de 7 a 11 meses debe ser igual al Total de niños(as) según Diagnóstico Nutricional Integrado. ","") ->  | BF11: =IF($W$11+$X$11<>$W$39+$X$39,"* El Total de niños (as) en Control de 12 a 17 meses debe ser igual al Total de niños(as) según Diagnóstico Nutricional Integrado. ","") ->  | BI11: =IF($I$11+$J$11<>$I$39+$J$39,1,0) -> 0 | BJ11: =IF($K$11+$L$11<>$K$39+$L$39,1,0) -> 0 | BK11: =IF($M$11+$N$11<>$M$39+$N$39,1,0) -> 0 | BL11: =IF($O$11+$P$11<>$O$39+$P$39,1,0) -> 1 | BM11: =IF($Q$11+$R$11<>$Q$39+$R$39,1,0) -> 0 | BN11: =IF($S$11+$T$11<>$S$39+$T$39,1,0) -> 1 | BO11: =IF($U$11+$V$11<>$U$39+$V$39,1,0) -> 0 | BP11: =IF($W$11+$X$11<>$W$39+$X$39,1,0) -> 0
A12: P2400100 | B12: INDICADOR PESO/EDAD | C12: + 2 D.S. (>= +2.0) | D12: =IFERROR(VLOOKUP($A12,Filtro!$A$4:$AY$532,2,FALSE),0) -> 4863 | E12: =IFERROR(VLOOKUP($A12,Filtro!$A$4:$AY$532,3,FALSE),0) -> 2676 | F12: =IFERROR(VLOOKUP($A12,Filtro!$A$4:$AY$532,4,FALSE),0) -> 2187 | G12: =IFERROR(VLOOKUP($A12,Filtro!$A$4:$AY$532,5,FALSE),0) -> 0 | H12: =IFERROR(VLOOKUP($A12,Filtro!$A$4:$AY$532,6,FALSE),0) -> 0 | I12: =IFERROR(VLOOKUP($A12,Filtro!$A$4:$AY$532,7,FALSE),0) -> 9 | J12: =IFERROR(VLOOKUP($A12,Filtro!$A$4:$AY$532,8,FALSE),0) -> 7 | K12: =IFERROR(VLOOKUP($A12,Filtro!$A$4:$AY$532,9,FALSE),0) -> 18 | L12: =IFERROR(VLOOKUP($A12,Filtro!$A$4:$AY$532,10,FALSE),0) -> 8 | M12: =IFERROR(VLOOKUP($A12,Filtro!$A$4:$AY$532,11,FALSE),0) -> 21 | N12: =IFERROR(VLOOKUP($A12,Filtro!$A$4:$AY$532,12,FALSE),0) -> 22 | O12: =IFERROR(VLOOKUP($A12,Filtro!$A$4:$AY$532,13,FALSE),0) -> 38 | P12: =IFERROR(VLOOKUP($A12,Filtro!$A$4:$AY$532,14,FALSE),0) -> 20 | Q12: =IFERROR(VLOOKUP($A12,Filtro!$A$4:$AY$532,15,FALSE),0) -> 42 | R12: =IFERROR(VLOOKUP($A12,Filtro!$A$4:$AY$532,16,FALSE),0) -> 31 | S12: =IFERROR(VLOOKUP($A12,Filtro!$A$4:$AY$532,17,FALSE),0) -> 63 | T12: =IFERROR(VLOOKUP($A12,Filtro!$A$4:$AY$532,18,FALSE),0) -> 37 | U12: =IFERROR(VLOOKUP($A12,Filtro!$A$4:$AY$532,19,FALSE),0) -> 191 | V12: =IFERROR(VLOOKUP($A12,Filtro!$A$4:$AY$532,20,FALSE),0) -> 156 | W12: =IFERROR(VLOOKUP($A12,Filtro!$A$4:$AY$532,21,FALSE),0) -> 285 | X12: =IFERROR(VLOOKUP($A12,Filtro!$A$4:$AY$532,22,FALSE),0) -> 217 | Y12: =IFERROR(VLOOKUP($A12,Filtro!$A$4:$AY$532,23,FALSE),0) -> 253 | Z12: =IFERROR(VLOOKUP($A12,Filtro!$A$4:$AY$532,24,FALSE),0) -> 208 | AA12: =IFERROR(VLOOKUP($A12,Filtro!$A$4:$AY$532,25,FALSE),0) -> 452 | AB12: =IFERROR(VLOOKUP($A12,Filtro!$A$4:$AY$532,26,FALSE),0) -> 438 | AC12: =IFERROR(VLOOKUP($A12,Filtro!$A$4:$AY$532,27,FALSE),0) -> 353 | AD12: =IFERROR(VLOOKUP($A12,Filtro!$A$4:$AY$532,28,FALSE),0) -> 285 | AE12: =IFERROR(VLOOKUP($A12,Filtro!$A$4:$AY$532,29,FALSE),0) -> 280 | AF12: =IFERROR(VLOOKUP($A12,Filtro!$A$4:$AY$532,30,FALSE),0) -> 216 | AG12: =IFERROR(VLOOKUP($A12,Filtro!$A$4:$AY$532,31,FALSE),0) -> 671 | AH12: =IFERROR(VLOOKUP($A12,Filtro!$A$4:$AY$532,32,FALSE),0) -> 542 | AI12: =IFERROR(VLOOKUP($A12,Filtro!$A$4:$AY$532,33,FALSE),0) -> 25 | AJ12: =IFERROR(VLOOKUP($A12,Filtro!$A$4:$AY$532,34,FALSE),0) -> 20 | AK12: =IFERROR(VLOOKUP($A12,Filtro!$A$4:$AY$532,35,FALSE),0) -> 14 | AL12: =IFERROR(VLOOKUP($A12,Filtro!$A$4:$AY$532,36,FALSE),0) -> 6 | AY12: =IF($Y$11+$Z$11<>$Y$39+$Z$39,"* El Total de niños (as) en Control de 18 a 23 meses debe ser igual al Total de niños(as) según Diagnóstico Nutricional Integrado. ","") ->  | AZ12: =IF($AA$11+$AB$11<>$AA$39+$AB$39,"* El Total de niños (as) en Control de 24 a 35 meses debe ser igual al Total de niños(as) según Diagnóstico Nutricional Integrado. ","") ->  | BA12: =IF($AC$11+$AD$11<>$AC$39+$AD$39,"* El Total de niños (as) en Control de 36 a 41 meses debe ser igual al Total de niños(as) según Diagnóstico Nutricional Integrado. ","") ->  | BB12: =IF($AE$11+$AF$11<>$AE$39+$AF$39,"* El Total de niños (as) en Control de 42 a 47 meses debe ser igual al Total de niños(as) según Diagnóstico Nutricional Integrado. ","") ->  | BC12: =IF($AG$11+$AH$11<>$AG$39+$AH$39,"* El Total de niños (as) en Control de 48 a 59 meses debe ser igual al Total de niños(as) según Diagnóstico Nutricional Integrado. ","") ->  | BD12: =IF($D11>=$AI11+$AJ11,"","* El Total de Pueblos Originarios no debe ser mayor al total de niños en control. ") ->  | BE12: =IF($D11>=$AK11+$AL11,"","* El Total de Población Migrantes no debe ser mayor al total de niños en control. ") ->  | BF12: =IF($AI$11+$AJ$11<>$AI$39+$AJ$39,"* El Total de niños (as) en Control de Pueblos Originarios debe ser igual al Total de niños(as) según Diagnóstico Nutricional Integrado. ","") -> * El Total de niños (as) en Control de Pueblos Originarios debe ser igual al Total de niños(as) según Diagnóstico Nutricional Integrado. | BG12: =IF($AK$11+$AL$11<>$AK$39+$AL$39,"* El Total de niños (as) en Control de Población Migrantes debe ser igual al Total de niños(as) según Diagnóstico Nutricional Integrado. ","") ->  | BI12: =IF($Y$11+$Z$11<>$Y$39+$Z$39,1,0) -> 0 | BJ12: =IF($AA$11+$AB$11<>$AA$39+$AB$39,1,0) -> 0 | BK12: =IF($AC$11+$AD$11<>$AC$39+$AD$39,1,0) -> 0 | BL12: =IF($AE$11+$AF$11<>$AE$39+$AF$39,1,0) -> 0 | BM12: =IF($AG$11+$AH$11<>$AG$39+$AH$39,1,0) -> 0 | BN12: =IF($D11>=$AI11+$AJ11,0,1) -> 0 | BO12: =IF($D11>=$AK11+$AL11,0,1) -> 0 | BP12: =IF($AI$11+$AJ$11<>$AI$39+$AJ$39,1,0) -> 1 | BQ12: =IF($AK$11+$AL$11<>$AK$39+$AL$39,1,0) -> 0
A13: P2400110 | C13: + 1 D.S. (+1.0 a +1.9) | D13: =IFERROR(VLOOKUP($A13,Filtro!$A$4:$AY$532,2,FALSE),0) -> 13701 | E13: =IFERROR(VLOOKUP($A13,Filtro!$A$4:$AY$532,3,FALSE),0) -> 6833 | F13: =IFERROR(VLOOKUP($A13,Filtro!$A$4:$AY$532,4,FALSE),0) -> 6868 | G13: =IFERROR(VLOOKUP($A13,Filtro!$A$4:$AY$532,5,FALSE),0) -> 0 | H13: =IFERROR(VLOOKUP($A13,Filtro!$A$4:$AY$532,6,FALSE),0) -> 0 | I13: =IFERROR(VLOOKUP($A13,Filtro!$A$4:$AY$532,7,FALSE),0) -> 41 | J13: =IFERROR(VLOOKUP($A13,Filtro!$A$4:$AY$532,8,FALSE),0) -> 32 | K13: =IFERROR(VLOOKUP($A13,Filtro!$A$4:$AY$532,9,FALSE),0) -> 104 | L13: =IFERROR(VLOOKUP($A13,Filtro!$A$4:$AY$532,10,FALSE),0) -> 78 | M13: =IFERROR(VLOOKUP($A13,Filtro!$A$4:$AY$532,11,FALSE),0) -> 108 | N13: =IFERROR(VLOOKUP($A13,Filtro!$A$4:$AY$532,12,FALSE),0) -> 64 | O13: =IFERROR(VLOOKUP($A13,Filtro!$A$4:$AY$532,13,FALSE),0) -> 122 | P13: =IFERROR(VLOOKUP($A13,Filtro!$A$4:$AY$532,14,FALSE),0) -> 101 | Q13: =IFERROR(VLOOKUP($A13,Filtro!$A$4:$AY$532,15,FALSE),0) -> 127 | R13: =IFERROR(VLOOKUP($A13,Filtro!$A$4:$AY$532,16,FALSE),0) -> 99 | S13: =IFERROR(VLOOKUP($A13,Filtro!$A$4:$AY$532,17,FALSE),0) -> 168 | T13: =IFERROR(VLOOKUP($A13,Filtro!$A$4:$AY$532,18,FALSE),0) -> 171 | U13: =IFERROR(VLOOKUP($A13,Filtro!$A$4:$AY$532,19,FALSE),0) -> 582 | V13: =IFERROR(VLOOKUP($A13,Filtro!$A$4:$AY$532,20,FALSE),0) -> 581 | W13: =IFERROR(VLOOKUP($A13,Filtro!$A$4:$AY$532,21,FALSE),0) -> 725 | X13: =IFERROR(VLOOKUP($A13,Filtro!$A$4:$AY$532,22,FALSE),0) -> 785 | Y13: =IFERROR(VLOOKUP($A13,Filtro!$A$4:$AY$532,23,FALSE),0) -> 695 | Z13: =IFERROR(VLOOKUP($A13,Filtro!$A$4:$AY$532,24,FALSE),0) -> 729 | AA13: =IFERROR(VLOOKUP($A13,Filtro!$A$4:$AY$532,25,FALSE),0) -> 1278 | AB13: =IFERROR(VLOOKUP($A13,Filtro!$A$4:$AY$532,26,FALSE),0) -> 1349 | AC13: =IFERROR(VLOOKUP($A13,Filtro!$A$4:$AY$532,27,FALSE),0) -> 800 | AD13: =IFERROR(VLOOKUP($A13,Filtro!$A$4:$AY$532,28,FALSE),0) -> 844 | AE13: =IFERROR(VLOOKUP($A13,Filtro!$A$4:$AY$532,29,FALSE),0) -> 612 | AF13: =IFERROR(VLOOKUP($A13,Filtro!$A$4:$AY$532,30,FALSE),0) -> 651 | AG13: =IFERROR(VLOOKUP($A13,Filtro!$A$4:$AY$532,31,FALSE),0) -> 1471 | AH13: =IFERROR(VLOOKUP($A13,Filtro!$A$4:$AY$532,32,FALSE),0) -> 1384 | AI13: =IFERROR(VLOOKUP($A13,Filtro!$A$4:$AY$532,33,FALSE),0) -> 54 | AJ13: =IFERROR(VLOOKUP($A13,Filtro!$A$4:$AY$532,34,FALSE),0) -> 51 | AK13: =IFERROR(VLOOKUP($A13,Filtro!$A$4:$AY$532,35,FALSE),0) -> 42 | AL13: =IFERROR(VLOOKUP($A13,Filtro!$A$4:$AY$532,36,FALSE),0) -> 42 | BF13: =IF(AND(E11<>0,AI11=""), "* No olvide escribir en la celda de Pueblos Originarios (Digite CERO si no tiene). ",IF(AND(F11<>0,AJ11=""), "* No olvide escribir en la celda de Pueblos Originarios (Digite CERO si no tiene). ","")) ->  | BG13: =IF(AND(E11<>0,AK11=""), "* No olvide escribir en la celda de Población Migrantes (Digite CERO si no tiene). ",IF(AND(F11<>0,AL11=""), "* No olvide escribir en la celda de Población Migrantes (Digite CERO si no tiene). ","")) ->  | BP13: =IF(AND(E11<>0,AI11=""), 1,IF(AND(F11<>0,AJ11=""), 1,0)) -> 0 | BQ13: =IF(AND(E11<>0,AK11=""), 1,IF(AND(F11<>0,AL11=""), 1,0)) -> 0
C14: TOTAL | D14: =SUM(E14:F14) -> 18564 | E14: =+I14+K14+M14+O14+Q14+S14+U14+W14+Y14+AA14+AC14+AE14+AG14 -> 9509 | F14: 9055 | I14: =+SUM(I12:I13) -> 50 | J14: =+SUM(J12:J13) -> 39 | K14: 122 | L14: 86 | M14: 129 | N14: 86 | O14: 160 | P14: 121 | Q14: 169 | R14: 130 | S14: 231 | T14: 208 | U14: 773 | V14: =+SUM(V12:V13) -> 737 | W14: =SUM(W12:W13) -> 1010 | X14: =SUM(X12:X13) -> 1002 | Y14: =SUM(Y12:Y13) -> 948 | Z14: 937 | AA14: 1730 | AB14: 1787 | AC14: 1153 | AD14: 1129 | AE14: 892 | AF14: 867 | AG14: 2142 | AH14: 1926 | AI14: =+SUM(AI12:AI13) -> 79 | AJ14: =+SUM(AJ12:AJ13) -> 71 | AK14: =+SUM(AK12:AK13) -> 56 | AL14: =+SUM(AL12:AL13) -> 48 | AM14: ="" & AY14 & AZ14 ->  | AY14: =IF($D14>=$AI14+$AJ14,"","* El Total de Pueblos Originarios no debe ser mayor al Total Indicador peso/edad") ->  | AZ14: =IF($D14>=$AK14+$AL14,"","* El Total de Población Migrante no debe ser mayor al Total Indicador peso/edad") ->  | BB14: =IF(AND(E12<>0,AI12=""), "* No olvide escribir en la celda de Pueblos Originarios (Digite CERO si no tiene). ",IF(AND(F12<>0,AJ12=""), "* No olvide escribir en la celda de Pueblos Originarios (Digite CERO si no tiene). ","")) ->  | BC14: =IF(AND(E12<>0,AK12=""), "* No olvide escribir en la celda de Población Migrantes (Digite CERO si no tiene). ",IF(AND(F12<>0,AL12=""), "* No olvide escribir en la celda de Población Migrantes (Digite CERO si no tiene). ","")) ->  | BD14: =IF(AND(E13<>0,AI13=""), "* No olvide escribir en la celda de Pueblos Originarios (Digite CERO si no tiene). ",IF(AND(F13<>0,AJ13=""), "* No olvide escribir en la celda de Pueblos Originarios (Digite CERO si no tiene). ","")) ->  | BE14: =IF(AND(E13<>0,AK13=""), "* No olvide escribir en la celda de Población Migrantes (Digite CERO si no tiene). ",IF(AND(F13<>0,AL13=""), "* No olvide escribir en la celda de Población Migrantes (Digite CERO si no tiene). ","")) ->  | BI14: =IF($D14>=$AI14+$AJ14,0,1) -> 0 | BJ14: =IF($D14>=$AK14+$AL14,0,1) -> 0 | BM14: =IF(AND(E12<>0,AI12=""), 1,IF(AND(F12<>0,AJ12=""), 1,0)) -> 0 | BN14: =IF(AND(E12<>0,AK12=""), 1,IF(AND(F12<>0,AL12=""), 1,0)) -> 0 | BO14: =IF(AND(E13<>0,AK13=""), 1,IF(AND(F13<>0,AL13=""), 1,0)) -> 0 | BP14: =IF(AND(E13<>0,AK13=""), 1,IF(AND(F13<>0,AL13=""), 1,0)) -> 0
A15: P2070101 | C15: - 1 D.S. (-1.0 a -1.9) | D15: =IFERROR(VLOOKUP($A15,Filtro!$A$4:$AY$532,2,FALSE),0) -> 3734 | E15: =IFERROR(VLOOKUP($A15,Filtro!$A$4:$AY$532,3,FALSE),0) -> 2012 | F15: =IFERROR(VLOOKUP($A15,Filtro!$A$4:$AY$532,4,FALSE),0) -> 1722 | G15: =IFERROR(VLOOKUP($A15,Filtro!$A$4:$AY$532,5,FALSE),0) -> 0 | H15: =IFERROR(VLOOKUP($A15,Filtro!$A$4:$AY$532,6,FALSE),0) -> 0 | I15: =IFERROR(VLOOKUP($A15,Filtro!$A$4:$AY$532,7,FALSE),0) -> 31 | J15: =IFERROR(VLOOKUP($A15,Filtro!$A$4:$AY$532,8,FALSE),0) -> 29 | K15: =IFERROR(VLOOKUP($A15,Filtro!$A$4:$AY$532,9,FALSE),0) -> 41 | L15: =IFERROR(VLOOKUP($A15,Filtro!$A$4:$AY$532,10,FALSE),0) -> 51 | M15: =IFERROR(VLOOKUP($A15,Filtro!$A$4:$AY$532,11,FALSE),0) -> 41 | N15: =IFERROR(VLOOKUP($A15,Filtro!$A$4:$AY$532,12,FALSE),0) -> 35 | O15: =IFERROR(VLOOKUP($A15,Filtro!$A$4:$AY$532,13,FALSE),0) -> 40 | P15: =IFERROR(VLOOKUP($A15,Filtro!$A$4:$AY$532,14,FALSE),0) -> 49 | Q15: =IFERROR(VLOOKUP($A15,Filtro!$A$4:$AY$532,15,FALSE),0) -> 32 | R15: =IFERROR(VLOOKUP($A15,Filtro!$A$4:$AY$532,16,FALSE),0) -> 37 | S15: =IFERROR(VLOOKUP($A15,Filtro!$A$4:$AY$532,17,FALSE),0) -> 54 | T15: =IFERROR(VLOOKUP($A15,Filtro!$A$4:$AY$532,18,FALSE),0) -> 38 | U15: =IFERROR(VLOOKUP($A15,Filtro!$A$4:$AY$532,19,FALSE),0) -> 164 | V15: =IFERROR(VLOOKUP($A15,Filtro!$A$4:$AY$532,20,FALSE),0) -> 113 | W15: =IFERROR(VLOOKUP($A15,Filtro!$A$4:$AY$532,21,FALSE),0) -> 197 | X15: =IFERROR(VLOOKUP($A15,Filtro!$A$4:$AY$532,22,FALSE),0) -> 151 | Y15: =IFERROR(VLOOKUP($A15,Filtro!$A$4:$AY$532,23,FALSE),0) -> 178 | Z15: =IFERROR(VLOOKUP($A15,Filtro!$A$4:$AY$532,24,FALSE),0) -> 170 | AA15: =IFERROR(VLOOKUP($A15,Filtro!$A$4:$AY$532,25,FALSE),0) -> 422 | AB15: =IFERROR(VLOOKUP($A15,Filtro!$A$4:$AY$532,26,FALSE),0) -> 313 | AC15: =IFERROR(VLOOKUP($A15,Filtro!$A$4:$AY$532,27,FALSE),0) -> 242 | AD15: =IFERROR(VLOOKUP($A15,Filtro!$A$4:$AY$532,28,FALSE),0) -> 180 | AE15: =IFERROR(VLOOKUP($A15,Filtro!$A$4:$AY$532,29,FALSE),0) -> 175 | AF15: =IFERROR(VLOOKUP($A15,Filtro!$A$4:$AY$532,30,FALSE),0) -> 170 | AG15: =IFERROR(VLOOKUP($A15,Filtro!$A$4:$AY$532,31,FALSE),0) -> 395 | AH15: =IFERROR(VLOOKUP($A15,Filtro!$A$4:$AY$532,32,FALSE),0) -> 386 | AI15: =IFERROR(VLOOKUP($A15,Filtro!$A$4:$AY$532,33,FALSE),0) -> 22 | AJ15: =IFERROR(VLOOKUP($A15,Filtro!$A$4:$AY$532,34,FALSE),0) -> 21 | AK15: =IFERROR(VLOOKUP($A15,Filtro!$A$4:$AY$532,35,FALSE),0) -> 27 | AL15: =IFERROR(VLOOKUP($A15,Filtro!$A$4:$AY$532,36,FALSE),0) -> 21 | AY15: =IF($D17>=$AI17+$AJ17,"","* El Total de Pueblos Originarios no debe ser mayor al Total Indicador peso/edad") ->  | AZ15: =IF($D17>=$AK17+$AL17,"","* El Total de Población Migrante no debe ser mayor al Total Indicador peso/edad") ->  | BF15: =IF(AND(E15<>0,AI15=""), "* No olvide escribir en la celda de Pueblos Originarios (Digite CERO si no tiene). ",IF(AND(F15<>0,AJ15=""), "* No olvide escribir en la celda de Pueblos Originarios (Digite CERO si no tiene). ","")) ->  | BG15: =IF(AND(E15<>0,AK15=""), "* No olvide escribir en la celda de Población Migrantes (Digite CERO si no tiene). ",IF(AND(F15<>0,AL15=""), "* No olvide escribir en la celda de Población Migrantes (Digite CERO si no tiene). ","")) ->  | BI15: =IF($D17>=$AI17+$AJ17,0,1) -> 0 | BJ15: =IF($D17>=$AK17+$AL17,0,1) -> 0 | BP15: =IF(AND(E15<>0,AI15=""), 1,IF(AND(F15<>0,AJ15=""), 1,0)) -> 0 | BQ15: =IF(AND(E15<>0,AK15=""), 1,IF(AND(F15<>0,AL15=""), 1,0)) -> 0
A16: P2070102 | C16: - 2 D.S. (<= -2.0) | D16: =IFERROR(VLOOKUP($A16,Filtro!$A$4:$AY$532,2,FALSE),0) -> 457 | E16: =IFERROR(VLOOKUP($A16,Filtro!$A$4:$AY$532,3,FALSE),0) -> 257 | F16: =IFERROR(VLOOKUP($A16,Filtro!$A$4:$AY$532,4,FALSE),0) -> 200 | G16: =IFERROR(VLOOKUP($A16,Filtro!$A$4:$AY$532,5,FALSE),0) -> 0 | H16: =IFERROR(VLOOKUP($A16,Filtro!$A$4:$AY$532,6,FALSE),0) -> 0 | I16: =IFERROR(VLOOKUP($A16,Filtro!$A$4:$AY$532,7,FALSE),0) -> 4 | J16: =IFERROR(VLOOKUP($A16,Filtro!$A$4:$AY$532,8,FALSE),0) -> 6 | K16: =IFERROR(VLOOKUP($A16,Filtro!$A$4:$AY$532,9,FALSE),0) -> 5 | L16: =IFERROR(VLOOKUP($A16,Filtro!$A$4:$AY$532,10,FALSE),0) -> 3 | M16: =IFERROR(VLOOKUP($A16,Filtro!$A$4:$AY$532,11,FALSE),0) -> 8 | N16: =IFERROR(VLOOKUP($A16,Filtro!$A$4:$AY$532,12,FALSE),0) -> 3 | O16: =IFERROR(VLOOKUP($A16,Filtro!$A$4:$AY$532,13,FALSE),0) -> 8 | P16: =IFERROR(VLOOKUP($A16,Filtro!$A$4:$AY$532,14,FALSE),0) -> 3 | Q16: =IFERROR(VLOOKUP($A16,Filtro!$A$4:$AY$532,15,FALSE),0) -> 2 | R16: =IFERROR(VLOOKUP($A16,Filtro!$A$4:$AY$532,16,FALSE),0) -> 2 | S16: =IFERROR(VLOOKUP($A16,Filtro!$A$4:$AY$532,17,FALSE),0) -> 6 | T16: =IFERROR(VLOOKUP($A16,Filtro!$A$4:$AY$532,18,FALSE),0) -> 5 | U16: =IFERROR(VLOOKUP($A16,Filtro!$A$4:$AY$532,19,FALSE),0) -> 19 | V16: =IFERROR(VLOOKUP($A16,Filtro!$A$4:$AY$532,20,FALSE),0) -> 13 | W16: =IFERROR(VLOOKUP($A16,Filtro!$A$4:$AY$532,21,FALSE),0) -> 36 | X16: =IFERROR(VLOOKUP($A16,Filtro!$A$4:$AY$532,22,FALSE),0) -> 24 | Y16: =IFERROR(VLOOKUP($A16,Filtro!$A$4:$AY$532,23,FALSE),0) -> 28 | Z16: =IFERROR(VLOOKUP($A16,Filtro!$A$4:$AY$532,24,FALSE),0) -> 18 | AA16: =IFERROR(VLOOKUP($A16,Filtro!$A$4:$AY$532,25,FALSE),0) -> 55 | AB16: =IFERROR(VLOOKUP($A16,Filtro!$A$4:$AY$532,26,FALSE),0) -> 39 | AC16: =IFERROR(VLOOKUP($A16,Filtro!$A$4:$AY$532,27,FALSE),0) -> 27 | AD16: =IFERROR(VLOOKUP($A16,Filtro!$A$4:$AY$532,28,FALSE),0) -> 22 | AE16: =IFERROR(VLOOKUP($A16,Filtro!$A$4:$AY$532,29,FALSE),0) -> 18 | AF16: =IFERROR(VLOOKUP($A16,Filtro!$A$4:$AY$532,30,FALSE),0) -> 24 | AG16: =IFERROR(VLOOKUP($A16,Filtro!$A$4:$AY$532,31,FALSE),0) -> 41 | AH16: =IFERROR(VLOOKUP($A16,Filtro!$A$4:$AY$532,32,FALSE),0) -> 38 | AI16: =IFERROR(VLOOKUP($A16,Filtro!$A$4:$AY$532,33,FALSE),0) -> 7 | AJ16: =IFERROR(VLOOKUP($A16,Filtro!$A$4:$AY$532,34,FALSE),0) -> 6 | AK16: =IFERROR(VLOOKUP($A16,Filtro!$A$4:$AY$532,35,FALSE),0) -> 6 | AL16: =IFERROR(VLOOKUP($A16,Filtro!$A$4:$AY$532,36,FALSE),0) -> 6 | BF16: =IF(AND(E16<>0,AI16=""), "* No olvide escribir en la celda de Pueblos Originarios (Digite CERO si no tiene). ",IF(AND(F16<>0,AJ16=""), "* No olvide escribir en la celda de Pueblos Originarios (Digite CERO si no tiene). ","")) ->  | BG16: =IF(AND(E16<>0,AK16=""), "* No olvide escribir en la celda de Población Migrantes (Digite CERO si no tiene). ",IF(AND(F16<>0,AL16=""), "* No olvide escribir en la celda de Población Migrantes (Digite CERO si no tiene). ","")) ->  | BP16: =IF(AND(E16<>0,AI16=""), 1,IF(AND(F16<>0,AJ16=""), 1,0)) -> 0 | BQ16: =IF(AND(E16<>0,AK16=""), 1,IF(AND(F16<>0,AL16=""), 1,0)) -> 0
C17: TOTAL | D17: 4191 | E17: 2269 | F17: 1922 | I17: =SUM(I15:I16) -> 35 | J17: =SUM(J15:J16) -> 35 | K17: 46 | L17: 54 | M17: 49 | N17: 38 | O17: 48 | P17: 52 | Q17: 34 | R17: 39 | S17: 60 | T17: 43 | U17: 183 | V17: 126 | W17: =SUM(W15:W16) -> 233 | X17: =SUM(X15:X16) -> 175 | Y17: 206 | Z17: 188 | AA17: 477 | AB17: 352 | AC17: 269 | AD17: 202 | AE17: 193 | AF17: 194 | AG17: =SUM(AG15:AG16) -> 436 | AH17: 424 | AI17: =SUM(AI15:AI16) -> 29 | AJ17: =SUM(AJ15:AJ16) -> 27 | AK17: =SUM(AK15:AK16) -> 33 | AL17: =SUM(AL15:AL16) -> 27 | AM17: ="" & AY15 & AZ15 -> 
A18: P2070201 | B18: INDICADOR PESO/TALLA | C18: + 2 D.S. (>= +2.0) | D18: =IFERROR(VLOOKUP($A18,Filtro!$A$4:$AY$532,2,FALSE),0) -> 8021 | E18: =IFERROR(VLOOKUP($A18,Filtro!$A$4:$AY$532,3,FALSE),0) -> 4176 | F18: =IFERROR(VLOOKUP($A18,Filtro!$A$4:$AY$532,4,FALSE),0) -> 3845 | G18: =IFERROR(VLOOKUP($A18,Filtro!$A$4:$AY$532,5,FALSE),0) -> 0 | H18: =IFERROR(VLOOKUP($A18,Filtro!$A$4:$AY$532,6,FALSE),0) -> 0 | I18: =IFERROR(VLOOKUP($A18,Filtro!$A$4:$AY$532,7,FALSE),0) -> 12 | J18: =IFERROR(VLOOKUP($A18,Filtro!$A$4:$AY$532,8,FALSE),0) -> 12 | K18: =IFERROR(VLOOKUP($A18,Filtro!$A$4:$AY$532,9,FALSE),0) -> 47 | L18: =IFERROR(VLOOKUP($A18,Filtro!$A$4:$AY$532,10,FALSE),0) -> 32 | M18: =IFERROR(VLOOKUP($A18,Filtro!$A$4:$AY$532,11,FALSE),0) -> 48 | N18: =IFERROR(VLOOKUP($A18,Filtro!$A$4:$AY$532,12,FALSE),0) -> 39 | O18: =IFERROR(VLOOKUP($A18,Filtro!$A$4:$AY$532,13,FALSE),0) -> 65 | P18: =IFERROR(VLOOKUP($A18,Filtro!$A$4:$AY$532,14,FALSE),0) -> 47 | Q18: =IFERROR(VLOOKUP($A18,Filtro!$A$4:$AY$532,15,FALSE),0) -> 71 | R18: =IFERROR(VLOOKUP($A18,Filtro!$A$4:$AY$532,16,FALSE),0) -> 55 | S18: =IFERROR(VLOOKUP($A18,Filtro!$A$4:$AY$532,17,FALSE),0) -> 102 | T18: =IFERROR(VLOOKUP($A18,Filtro!$A$4:$AY$532,18,FALSE),0) -> 77 | U18: =IFERROR(VLOOKUP($A18,Filtro!$A$4:$AY$532,19,FALSE),0) -> 339 | V18: =IFERROR(VLOOKUP($A18,Filtro!$A$4:$AY$532,20,FALSE),0) -> 296 | W18: =IFERROR(VLOOKUP($A18,Filtro!$A$4:$AY$532,21,FALSE),0) -> 416 | X18: =IFERROR(VLOOKUP($A18,Filtro!$A$4:$AY$532,22,FALSE),0) -> 393 | Y18: =IFERROR(VLOOKUP($A18,Filtro!$A$4:$AY$532,23,FALSE),0) -> 388 | Z18: =IFERROR(VLOOKUP($A18,Filtro!$A$4:$AY$532,24,FALSE),0) -> 351 | AA18: =IFERROR(VLOOKUP($A18,Filtro!$A$4:$AY$532,25,FALSE),0) -> 650 | AB18: =IFERROR(VLOOKUP($A18,Filtro!$A$4:$AY$532,26,FALSE),0) -> 620 | AC18: =IFERROR(VLOOKUP($A18,Filtro!$A$4:$AY$532,27,FALSE),0) -> 534 | AD18: =IFERROR(VLOOKUP($A18,Filtro!$A$4:$AY$532,28,FALSE),0) -> 457 | AE18: =IFERROR(VLOOKUP($A18,Filtro!$A$4:$AY$532,29,FALSE),0) -> 454 | AF18: =IFERROR(VLOOKUP($A18,Filtro!$A$4:$AY$532,30,FALSE),0) -> 391 | AG18: =IFERROR(VLOOKUP($A18,Filtro!$A$4:$AY$532,31,FALSE),0) -> 1050 | AH18: =IFERROR(VLOOKUP($A18,Filtro!$A$4:$AY$532,32,FALSE),0) -> 1075 | AI18: =IFERROR(VLOOKUP($A18,Filtro!$A$4:$AY$532,33,FALSE),0) -> 37 | AJ18: =IFERROR(VLOOKUP($A18,Filtro!$A$4:$AY$532,34,FALSE),0) -> 30 | AK18: =IFERROR(VLOOKUP($A18,Filtro!$A$4:$AY$532,35,FALSE),0) -> 18 | AL18: =IFERROR(VLOOKUP($A18,Filtro!$A$4:$AY$532,36,FALSE),0) -> 15 | BF18: =IF(AND(E18<>0,AI18=""), "* No olvide escribir en la celda de Pueblos Originarios (Digite CERO si no tiene). ",IF(AND(F18<>0,AJ18=""), "* No olvide escribir en la celda de Pueblos Originarios (Digite CERO si no tiene). ","")) ->  | BG18: =IF(AND(E18<>0,AK18=""), "* No olvide escribir en la celda de Población Migrantes (Digite CERO si no tiene). ",IF(AND(F18<>0,AL18=""), "* No olvide escribir en la celda de Población Migrantes (Digite CERO si no tiene). ","")) ->  | BP18: =IF(AND(E18<>0,AI18=""), 1,IF(AND(F18<>0,AJ18=""), 1,0)) -> 0 | BQ18: =IF(AND(E18<>0,AK18=""), 1,IF(AND(F18<>0,AL18=""), 1,0)) -> 0
A19: P2070202 | C19: + 1 D.S. (+1.0 a +1.9) | D19: =IFERROR(VLOOKUP($A19,Filtro!$A$4:$AY$532,2,FALSE),0) -> 16875 | E19: =IFERROR(VLOOKUP($A19,Filtro!$A$4:$AY$532,3,FALSE),0) -> 8543 | F19: =IFERROR(VLOOKUP($A19,Filtro!$A$4:$AY$532,4,FALSE),0) -> 8332 | G19: =IFERROR(VLOOKUP($A19,Filtro!$A$4:$AY$532,5,FALSE),0) -> 0 | H19: =IFERROR(VLOOKUP($A19,Filtro!$A$4:$AY$532,6,FALSE),0) -> 0 | I19: =IFERROR(VLOOKUP($A19,Filtro!$A$4:$AY$532,7,FALSE),0) -> 57 | J19: =IFERROR(VLOOKUP($A19,Filtro!$A$4:$AY$532,8,FALSE),0) -> 51 | K19: =IFERROR(VLOOKUP($A19,Filtro!$A$4:$AY$532,9,FALSE),0) -> 141 | L19: =IFERROR(VLOOKUP($A19,Filtro!$A$4:$AY$532,10,FALSE),0) -> 128 | M19: =IFERROR(VLOOKUP($A19,Filtro!$A$4:$AY$532,11,FALSE),0) -> 108 | N19: =IFERROR(VLOOKUP($A19,Filtro!$A$4:$AY$532,12,FALSE),0) -> 111 | O19: =IFERROR(VLOOKUP($A19,Filtro!$A$4:$AY$532,13,FALSE),0) -> 149 | P19: =IFERROR(VLOOKUP($A19,Filtro!$A$4:$AY$532,14,FALSE),0) -> 136 | Q19: =IFERROR(VLOOKUP($A19,Filtro!$A$4:$AY$532,15,FALSE),0) -> 137 | R19: =IFERROR(VLOOKUP($A19,Filtro!$A$4:$AY$532,16,FALSE),0) -> 131 | S19: =IFERROR(VLOOKUP($A19,Filtro!$A$4:$AY$532,17,FALSE),0) -> 195 | T19: =IFERROR(VLOOKUP($A19,Filtro!$A$4:$AY$532,18,FALSE),0) -> 216 | U19: =IFERROR(VLOOKUP($A19,Filtro!$A$4:$AY$532,19,FALSE),0) -> 723 | V19: =IFERROR(VLOOKUP($A19,Filtro!$A$4:$AY$532,20,FALSE),0) -> 745 | W19: =IFERROR(VLOOKUP($A19,Filtro!$A$4:$AY$532,21,FALSE),0) -> 996 | X19: =IFERROR(VLOOKUP($A19,Filtro!$A$4:$AY$532,22,FALSE),0) -> 938 | Y19: =IFERROR(VLOOKUP($A19,Filtro!$A$4:$AY$532,23,FALSE),0) -> 938 | Z19: =IFERROR(VLOOKUP($A19,Filtro!$A$4:$AY$532,24,FALSE),0) -> 866 | AA19: =IFERROR(VLOOKUP($A19,Filtro!$A$4:$AY$532,25,FALSE),0) -> 1586 | AB19: =IFERROR(VLOOKUP($A19,Filtro!$A$4:$AY$532,26,FALSE),0) -> 1561 | AC19: =IFERROR(VLOOKUP($A19,Filtro!$A$4:$AY$532,27,FALSE),0) -> 977 | AD19: =IFERROR(VLOOKUP($A19,Filtro!$A$4:$AY$532,28,FALSE),0) -> 950 | AE19: =IFERROR(VLOOKUP($A19,Filtro!$A$4:$AY$532,29,FALSE),0) -> 778 | AF19: =IFERROR(VLOOKUP($A19,Filtro!$A$4:$AY$532,30,FALSE),0) -> 779 | AG19: =IFERROR(VLOOKUP($A19,Filtro!$A$4:$AY$532,31,FALSE),0) -> 1758 | AH19: =IFERROR(VLOOKUP($A19,Filtro!$A$4:$AY$532,32,FALSE),0) -> 1720 | AI19: =IFERROR(VLOOKUP($A19,Filtro!$A$4:$AY$532,33,FALSE),0) -> 71 | AJ19: =IFERROR(VLOOKUP($A19,Filtro!$A$4:$AY$532,34,FALSE),0) -> 59 | AK19: =IFERROR(VLOOKUP($A19,Filtro!$A$4:$AY$532,35,FALSE),0) -> 78 | AL19: =IFERROR(VLOOKUP($A19,Filtro!$A$4:$AY$532,36,FALSE),0) -> 59 | BF19: =IF(AND(E19<>0,AI19=""), "* No olvide escribir en la celda de Pueblos Originarios (Digite CERO si no tiene). ",IF(AND(F19<>0,AJ19=""), "* No olvide escribir en la celda de Pueblos Originarios (Digite CERO si no tiene). ","")) ->  | BG19: =IF(AND(E19<>0,AK19=""), "* No olvide escribir en la celda de Población Migrantes (Digite CERO si no tiene). ",IF(AND(F19<>0,AL19=""), "* No olvide escribir en la celda de Población Migrantes (Digite CERO si no tiene). ","")) ->  | BP19: 0 | BQ19: 0
C20: TOTAL | D20: 24896 | E20: 12719 | F20: 12177 | I20: =+SUM(I18:I19) -> 69 | J20: =+SUM(J18:J19) -> 63 | K20: =+SUM(K18:K19) -> 188 | L20: 160 | M20: 156 | N20: 150 | O20: 214 | P20: 183 | Q20: 208 | R20: 186 | S20: 297 | T20: 293 | U20: 1062 | V20: 1041 | W20: 1412 | X20: 1331 | Y20: 1326 | Z20: 1217 | AA20: 2236 | AB20: 2181 | AC20: 1511 | AD20: 1407 | AE20: 1232 | AF20: 1170 | AG20: 2808 | AH20: 2795 | AI20: 108 | AJ20: 89 | AK20: 96 | AL20: 74 | AM20: ="" & AY20 & AZ20 ->  | AY20: =IF($D20>=$AI20+$AJ20,"","* El Total de Pueblos Originarios no debe ser mayor al Total Indicador peso/talla") ->  | AZ20: =IF($D20>=$AK20+$AL20,"","* El Total de Población Migrante no debe ser mayor al Total Indicador peso/talla") ->  | BI20: =IF($D20>=$AI20+$AJ20,0,1) -> 0 | BJ20: =IF($D20>=$AK20+$AL20,0,1) -> 0
A21: P2070301 | C21: - 1 D.S. (-1.0 a -1.9) | D21: =IFERROR(VLOOKUP($A21,Filtro!$A$4:$AY$532,2,FALSE),0) -> 1827 | E21: =IFERROR(VLOOKUP($A21,Filtro!$A$4:$AY$532,3,FALSE),0) -> 1038 | F21: =IFERROR(VLOOKUP($A21,Filtro!$A$4:$AY$532,4,FALSE),0) -> 789 | G21: =IFERROR(VLOOKUP($A21,Filtro!$A$4:$AY$532,5,FALSE),0) -> 0 | H21: =IFERROR(VLOOKUP($A21,Filtro!$A$4:$AY$532,6,FALSE),0) -> 0 | I21: =IFERROR(VLOOKUP($A21,Filtro!$A$4:$AY$532,7,FALSE),0) -> 30 | J21: =IFERROR(VLOOKUP($A21,Filtro!$A$4:$AY$532,8,FALSE),0) -> 16 | K21: =IFERROR(VLOOKUP($A21,Filtro!$A$4:$AY$532,9,FALSE),0) -> 20 | L21: =IFERROR(VLOOKUP($A21,Filtro!$A$4:$AY$532,10,FALSE),0) -> 19 | M21: =IFERROR(VLOOKUP($A21,Filtro!$A$4:$AY$532,11,FALSE),0) -> 25 | N21: =IFERROR(VLOOKUP($A21,Filtro!$A$4:$AY$532,12,FALSE),0) -> 16 | O21: =IFERROR(VLOOKUP($A21,Filtro!$A$4:$AY$532,13,FALSE),0) -> 17 | P21: =IFERROR(VLOOKUP($A21,Filtro!$A$4:$AY$532,14,FALSE),0) -> 23 | Q21: =IFERROR(VLOOKUP($A21,Filtro!$A$4:$AY$532,15,FALSE),0) -> 21 | R21: =IFERROR(VLOOKUP($A21,Filtro!$A$4:$AY$532,16,FALSE),0) -> 19 | S21: =IFERROR(VLOOKUP($A21,Filtro!$A$4:$AY$532,17,FALSE),0) -> 33 | T21: =IFERROR(VLOOKUP($A21,Filtro!$A$4:$AY$532,18,FALSE),0) -> 22 | U21: =IFERROR(VLOOKUP($A21,Filtro!$A$4:$AY$532,19,FALSE),0) -> 97 | V21: =IFERROR(VLOOKUP($A21,Filtro!$A$4:$AY$532,20,FALSE),0) -> 73 | W21: =IFERROR(VLOOKUP($A21,Filtro!$A$4:$AY$532,21,FALSE),0) -> 104 | X21: =IFERROR(VLOOKUP($A21,Filtro!$A$4:$AY$532,22,FALSE),0) -> 82 | Y21: =IFERROR(VLOOKUP($A21,Filtro!$A$4:$AY$532,23,FALSE),0) -> 75 | Z21: =IFERROR(VLOOKUP($A21,Filtro!$A$4:$AY$532,24,FALSE),0) -> 76 | AA21: =IFERROR(VLOOKUP($A21,Filtro!$A$4:$AY$532,25,FALSE),0) -> 198 | AB21: =IFERROR(VLOOKUP($A21,Filtro!$A$4:$AY$532,26,FALSE),0) -> 145 | AC21: =IFERROR(VLOOKUP($A21,Filtro!$A$4:$AY$532,27,FALSE),0) -> 133 | AD21: =IFERROR(VLOOKUP($A21,Filtro!$A$4:$AY$532,28,FALSE),0) -> 90 | AE21: =IFERROR(VLOOKUP($A21,Filtro!$A$4:$AY$532,29,FALSE),0) -> 88 | AF21: =IFERROR(VLOOKUP($A21,Filtro!$A$4:$AY$532,30,FALSE),0) -> 61 | AG21: =IFERROR(VLOOKUP($A21,Filtro!$A$4:$AY$532,31,FALSE),0) -> 197 | AH21: =IFERROR(VLOOKUP($A21,Filtro!$A$4:$AY$532,32,FALSE),0) -> 147 | AI21: =IFERROR(VLOOKUP($A21,Filtro!$A$4:$AY$532,33,FALSE),0) -> 8 | AJ21: =IFERROR(VLOOKUP($A21,Filtro!$A$4:$AY$532,34,FALSE),0) -> 5 | AK21: =IFERROR(VLOOKUP($A21,Filtro!$A$4:$AY$532,35,FALSE),0) -> 9 | AL21: =IFERROR(VLOOKUP($A21,Filtro!$A$4:$AY$532,36,FALSE),0) -> 6 | BF21: =IF(AND(E21<>0,AI21=""), "* No olvide escribir en la celda de Pueblos Originarios (Digite CERO si no tiene). ",IF(AND(F21<>0,AJ21=""), "* No olvide escribir en la celda de Pueblos Originarios (Digite CERO si no tiene). ","")) ->  | BG21: =IF(AND(E21<>0,AK21=""), "* No olvide escribir en la celda de Población Migrantes (Digite CERO si no tiene). ",IF(AND(F21<>0,AL21=""), "* No olvide escribir en la celda de Población Migrantes (Digite CERO si no tiene). ","")) ->  | BP21: =IF(AND(E21<>0,AI21=""), 1,IF(AND(F21<>0,AJ21=""), 1,0)) -> 0 | BQ21: =IF(AND(E21<>0,AK21=""), 1,IF(AND(F21<>0,AL21=""), 1,0)) -> 0
A22: P2070302 | C22: - 2 D.S. (<= -2.0) | D22: =IFERROR(VLOOKUP($A22,Filtro!$A$4:$AY$532,2,FALSE),0) -> 219 | E22: =IFERROR(VLOOKUP($A22,Filtro!$A$4:$AY$532,3,FALSE),0) -> 127 | F22: =IFERROR(VLOOKUP($A22,Filtro!$A$4:$AY$532,4,FALSE),0) -> 92 | G22: =IFERROR(VLOOKUP($A22,Filtro!$A$4:$AY$532,5,FALSE),0) -> 0 | H22: =IFERROR(VLOOKUP($A22,Filtro!$A$4:$AY$532,6,FALSE),0) -> 0 | I22: =IFERROR(VLOOKUP($A22,Filtro!$A$4:$AY$532,7,FALSE),0) -> 4 | J22: =IFERROR(VLOOKUP($A22,Filtro!$A$4:$AY$532,8,FALSE),0) -> 4 | K22: =IFERROR(VLOOKUP($A22,Filtro!$A$4:$AY$532,9,FALSE),0) -> 2 | L22: =IFERROR(VLOOKUP($A22,Filtro!$A$4:$AY$532,10,FALSE),0) -> 1 | M22: =IFERROR(VLOOKUP($A22,Filtro!$A$4:$AY$532,11,FALSE),0) -> 8 | N22: =IFERROR(VLOOKUP($A22,Filtro!$A$4:$AY$532,12,FALSE),0) -> 5 | O22: =IFERROR(VLOOKUP($A22,Filtro!$A$4:$AY$532,13,FALSE),0) -> 1 | P22: =IFERROR(VLOOKUP($A22,Filtro!$A$4:$AY$532,14,FALSE),0) -> 0 | Q22: =IFERROR(VLOOKUP($A22,Filtro!$A$4:$AY$532,15,FALSE),0) -> 1 | R22: =IFERROR(VLOOKUP($A22,Filtro!$A$4:$AY$532,16,FALSE),0) -> 5 | S22: =IFERROR(VLOOKUP($A22,Filtro!$A$4:$AY$532,17,FALSE),0) -> 6 | T22: =IFERROR(VLOOKUP($A22,Filtro!$A$4:$AY$532,18,FALSE),0) -> 3 | U22: =IFERROR(VLOOKUP($A22,Filtro!$A$4:$AY$532,19,FALSE),0) -> 16 | V22: =IFERROR(VLOOKUP($A22,Filtro!$A$4:$AY$532,20,FALSE),0) -> 10 | W22: =IFERROR(VLOOKUP($A22,Filtro!$A$4:$AY$532,21,FALSE),0) -> 13 | X22: =IFERROR(VLOOKUP($A22,Filtro!$A$4:$AY$532,22,FALSE),0) -> 8 | Y22: =IFERROR(VLOOKUP($A22,Filtro!$A$4:$AY$532,23,FALSE),0) -> 10 | Z22: =IFERROR(VLOOKUP($A22,Filtro!$A$4:$AY$532,24,FALSE),0) -> 6 | AA22: =IFERROR(VLOOKUP($A22,Filtro!$A$4:$AY$532,25,FALSE),0) -> 27 | AB22: =IFERROR(VLOOKUP($A22,Filtro!$A$4:$AY$532,26,FALSE),0) -> 24 | AC22: =IFERROR(VLOOKUP($A22,Filtro!$A$4:$AY$532,27,FALSE),0) -> 10 | AD22: =IFERROR(VLOOKUP($A22,Filtro!$A$4:$AY$532,28,FALSE),0) -> 3 | AE22: =IFERROR(VLOOKUP($A22,Filtro!$A$4:$AY$532,29,FALSE),0) -> 5 | AF22: =IFERROR(VLOOKUP($A22,Filtro!$A$4:$AY$532,30,FALSE),0) -> 5 | AG22: =IFERROR(VLOOKUP($A22,Filtro!$A$4:$AY$532,31,FALSE),0) -> 24 | AH22: =IFERROR(VLOOKUP($A22,Filtro!$A$4:$AY$532,32,FALSE),0) -> 18 | AI22: =IFERROR(VLOOKUP($A22,Filtro!$A$4:$AY$532,33,FALSE),0) -> 6 | AJ22: =IFERROR(VLOOKUP($A22,Filtro!$A$4:$AY$532,34,FALSE),0) -> 5 | AK22: =IFERROR(VLOOKUP($A22,Filtro!$A$4:$AY$532,35,FALSE),0) -> 2 | AL22: =IFERROR(VLOOKUP($A22,Filtro!$A$4:$AY$532,36,FALSE),0) -> 5 | BF22: =IF(AND(E22<>0,AI22=""), "* No olvide escribir en la celda de Pueblos Originarios (Digite CERO si no tiene). ",IF(AND(F22<>0,AJ22=""), "* No olvide escribir en la celda de Pueblos Originarios (Digite CERO si no tiene). ","")) ->  | BG22: =IF(AND(E22<>0,AK22=""), "* No olvide escribir en la celda de Población Migrantes (Digite CERO si no tiene). ",IF(AND(F22<>0,AL22=""), "* No olvide escribir en la celda de Población Migrantes (Digite CERO si no tiene). ","")) ->  | BP22: 0 | BQ22: 0
C23: TOTAL | D23: 2046 | E23: 1165 | F23: 881 | I23: =SUM(I21:I22) -> 34 | J23: =SUM(J21:J22) -> 20 | K23: =SUM(K21:K22) -> 22 | L23: 20 | M23: 33 | N23: 21 | O23: 18 | P23: 23 | Q23: 22 | R23: 24 | S23: 39 | T23: 25 | U23: 113 | V23: 83 | W23: 117 | X23: 90 | Y23: 85 | Z23: 82 | AA23: 225 | AB23: 169 | AC23: 143 | AD23: 93 | AE23: 93 | AF23: 66 | AG23: 221 | AH23: 165 | AI23: 14 | AJ23: 10 | AK23: 11 | AL23: 11 | AM23: ="" & AY23 & AZ23 ->  | AY23: =IF($D23>=$AI23+$AJ23,"","* El Total de Pueblos Originarios no debe ser mayor al Total Indicador peso/talla. ") ->  | AZ23: =IF($D23>=$AK23+$AL23,"","* El Total de Población Migrantes no debe ser mayor al Total Indicador peso/talla. ") ->  | BI23: =IF($D23>=$AI23+$AJ23,0,1) -> 0 | BJ23: =IF($D23>=$AK23+$AL23,0,1) -> 0
A24: P2400120 | B24: INDICADOR TALLA/EDAD | C24: + 2 D.S. (>= +2.0) | D24: =IFERROR(VLOOKUP($A24,Filtro!$A$4:$AY$532,2,FALSE),0) -> 1279 | E24: =IFERROR(VLOOKUP($A24,Filtro!$A$4:$AY$532,3,FALSE),0) -> 724 | F24: =IFERROR(VLOOKUP($A24,Filtro!$A$4:$AY$532,4,FALSE),0) -> 555 | G24: =IFERROR(VLOOKUP($A24,Filtro!$A$4:$AY$532,5,FALSE),0) -> 0 | H24: =IFERROR(VLOOKUP($A24,Filtro!$A$4:$AY$532,6,FALSE),0) -> 0 | I24: =IFERROR(VLOOKUP($A24,Filtro!$A$4:$AY$532,7,FALSE),0) -> 9 | J24: =IFERROR(VLOOKUP($A24,Filtro!$A$4:$AY$532,8,FALSE),0) -> 5 | K24: =IFERROR(VLOOKUP($A24,Filtro!$A$4:$AY$532,9,FALSE),0) -> 8 | L24: =IFERROR(VLOOKUP($A24,Filtro!$A$4:$AY$532,10,FALSE),0) -> 7 | M24: =IFERROR(VLOOKUP($A24,Filtro!$A$4:$AY$532,11,FALSE),0) -> 8 | N24: =IFERROR(VLOOKUP($A24,Filtro!$A$4:$AY$532,12,FALSE),0) -> 6 | O24: =IFERROR(VLOOKUP($A24,Filtro!$A$4:$AY$532,13,FALSE),0) -> 6 | P24: =IFERROR(VLOOKUP($A24,Filtro!$A$4:$AY$532,14,FALSE),0) -> 10 | Q24: =IFERROR(VLOOKUP($A24,Filtro!$A$4:$AY$532,15,FALSE),0) -> 6 | R24: =IFERROR(VLOOKUP($A24,Filtro!$A$4:$AY$532,16,FALSE),0) -> 6 | S24: =IFERROR(VLOOKUP($A24,Filtro!$A$4:$AY$532,17,FALSE),0) -> 23 | T24: =IFERROR(VLOOKUP($A24,Filtro!$A$4:$AY$532,18,FALSE),0) -> 9 | U24: =IFERROR(VLOOKUP($A24,Filtro!$A$4:$AY$532,19,FALSE),0) -> 51 | V24: =IFERROR(VLOOKUP($A24,Filtro!$A$4:$AY$532,20,FALSE),0) -> 34 | W24: =IFERROR(VLOOKUP($A24,Filtro!$A$4:$AY$532,21,FALSE),0) -> 59 | X24: =IFERROR(VLOOKUP($A24,Filtro!$A$4:$AY$532,22,FALSE),0) -> 52 | Y24: =IFERROR(VLOOKUP($A24,Filtro!$A$4:$AY$532,23,FALSE),0) -> 65 | Z24: =IFERROR(VLOOKUP($A24,Filtro!$A$4:$AY$532,24,FALSE),0) -> 46 | AA24: =IFERROR(VLOOKUP($A24,Filtro!$A$4:$AY$532,25,FALSE),0) -> 177 | AB24: =IFERROR(VLOOKUP($A24,Filtro!$A$4:$AY$532,26,FALSE),0) -> 138 | AC24: =IFERROR(VLOOKUP($A24,Filtro!$A$4:$AY$532,27,FALSE),0) -> 92 | AD24: =IFERROR(VLOOKUP($A24,Filtro!$A$4:$AY$532,28,FALSE),0) -> 68 | AE24: =IFERROR(VLOOKUP($A24,Filtro!$A$4:$AY$532,29,FALSE),0) -> 63 | AF24: =IFERROR(VLOOKUP($A24,Filtro!$A$4:$AY$532,30,FALSE),0) -> 54 | AG24: =IFERROR(VLOOKUP($A24,Filtro!$A$4:$AY$532,31,FALSE),0) -> 157 | AH24: =IFERROR(VLOOKUP($A24,Filtro!$A$4:$AY$532,32,FALSE),0) -> 120 | AI24: =IFERROR(VLOOKUP($A24,Filtro!$A$4:$AY$532,33,FALSE),0) -> 3 | AJ24: =IFERROR(VLOOKUP($A24,Filtro!$A$4:$AY$532,34,FALSE),0) -> 1 | AK24: =IFERROR(VLOOKUP($A24,Filtro!$A$4:$AY$532,35,FALSE),0) -> 6 | AL24: =IFERROR(VLOOKUP($A24,Filtro!$A$4:$AY$532,36,FALSE),0) -> 6 | BF24: =IF(AND(E24<>0,AI24=""), "* No olvide escribir en la celda de Pueblos Originarios (Digite CERO si no tiene). ",IF(AND(F24<>0,AJ24=""), "* No olvide escribir en la celda de Pueblos Originarios (Digite CERO si no tiene). ","")) ->  | BG24: =IF(AND(E24<>0,AK24=""), "* No olvide escribir en la celda de Población Migrantes (Digite CERO si no tiene). ",IF(AND(F24<>0,AL24=""), "* No olvide escribir en la celda de Población Migrantes (Digite CERO si no tiene). ","")) ->  | BP24: =IF(AND(E24<>0,AI24=""), 1,IF(AND(F24<>0,AJ24=""), 1,0)) -> 0 | BQ24: =IF(AND(E24<>0,AK24=""), 1,IF(AND(F24<>0,AL24=""), 1,0)) -> 0
A25: P2400130 | C25: + 1 D.S. (+1.0 a +1.9) | D25: =IFERROR(VLOOKUP($A25,Filtro!$A$4:$AY$532,2,FALSE),0) -> 7070 | E25: =IFERROR(VLOOKUP($A25,Filtro!$A$4:$AY$532,3,FALSE),0) -> 3749 | F25: =IFERROR(VLOOKUP($A25,Filtro!$A$4:$AY$532,4,FALSE),0) -> 3321 | G25: =IFERROR(VLOOKUP($A25,Filtro!$A$4:$AY$532,5,FALSE),0) -> 0 | H25: =IFERROR(VLOOKUP($A25,Filtro!$A$4:$AY$532,6,FALSE),0) -> 0 | I25: =IFERROR(VLOOKUP($A25,Filtro!$A$4:$AY$532,7,FALSE),0) -> 37 | J25: =IFERROR(VLOOKUP($A25,Filtro!$A$4:$AY$532,8,FALSE),0) -> 22 | K25: =IFERROR(VLOOKUP($A25,Filtro!$A$4:$AY$532,9,FALSE),0) -> 53 | L25: =IFERROR(VLOOKUP($A25,Filtro!$A$4:$AY$532,10,FALSE),0) -> 41 | M25: =IFERROR(VLOOKUP($A25,Filtro!$A$4:$AY$532,11,FALSE),0) -> 63 | N25: =IFERROR(VLOOKUP($A25,Filtro!$A$4:$AY$532,12,FALSE),0) -> 38 | O25: =IFERROR(VLOOKUP($A25,Filtro!$A$4:$AY$532,13,FALSE),0) -> 77 | P25: =IFERROR(VLOOKUP($A25,Filtro!$A$4:$AY$532,14,FALSE),0) -> 53 | Q25: =IFERROR(VLOOKUP($A25,Filtro!$A$4:$AY$532,15,FALSE),0) -> 55 | R25: =IFERROR(VLOOKUP($A25,Filtro!$A$4:$AY$532,16,FALSE),0) -> 41 | S25: =IFERROR(VLOOKUP($A25,Filtro!$A$4:$AY$532,17,FALSE),0) -> 89 | T25: =IFERROR(VLOOKUP($A25,Filtro!$A$4:$AY$532,18,FALSE),0) -> 99 | U25: =IFERROR(VLOOKUP($A25,Filtro!$A$4:$AY$532,19,FALSE),0) -> 317 | V25: =IFERROR(VLOOKUP($A25,Filtro!$A$4:$AY$532,20,FALSE),0) -> 252 | W25: =IFERROR(VLOOKUP($A25,Filtro!$A$4:$AY$532,21,FALSE),0) -> 361 | X25: =IFERROR(VLOOKUP($A25,Filtro!$A$4:$AY$532,22,FALSE),0) -> 310 | Y25: =IFERROR(VLOOKUP($A25,Filtro!$A$4:$AY$532,23,FALSE),0) -> 348 | Z25: =IFERROR(VLOOKUP($A25,Filtro!$A$4:$AY$532,24,FALSE),0) -> 323 | AA25: =IFERROR(VLOOKUP($A25,Filtro!$A$4:$AY$532,25,FALSE),0) -> 723 | AB25: =IFERROR(VLOOKUP($A25,Filtro!$A$4:$AY$532,26,FALSE),0) -> 784 | AC25: =IFERROR(VLOOKUP($A25,Filtro!$A$4:$AY$532,27,FALSE),0) -> 477 | AD25: =IFERROR(VLOOKUP($A25,Filtro!$A$4:$AY$532,28,FALSE),0) -> 399 | AE25: =IFERROR(VLOOKUP($A25,Filtro!$A$4:$AY$532,29,FALSE),0) -> 359 | AF25: =IFERROR(VLOOKUP($A25,Filtro!$A$4:$AY$532,30,FALSE),0) -> 313 | AG25: =IFERROR(VLOOKUP($A25,Filtro!$A$4:$AY$532,31,FALSE),0) -> 790 | AH25: =IFERROR(VLOOKUP($A25,Filtro!$A$4:$AY$532,32,FALSE),0) -> 646 | AI25: =IFERROR(VLOOKUP($A25,Filtro!$A$4:$AY$532,33,FALSE),0) -> 33 | AJ25: =IFERROR(VLOOKUP($A25,Filtro!$A$4:$AY$532,34,FALSE),0) -> 30 | AK25: =IFERROR(VLOOKUP($A25,Filtro!$A$4:$AY$532,35,FALSE),0) -> 32 | AL25: =IFERROR(VLOOKUP($A25,Filtro!$A$4:$AY$532,36,FALSE),0) -> 19 | BF25: =IF(AND(E25<>0,AI25=""), "* No olvide escribir en la celda de Pueblos Originarios (Digite CERO si no tiene). ",IF(AND(F25<>0,AJ25=""), "* No olvide escribir en la celda de Pueblos Originarios (Digite CERO si no tiene). ","")) ->  | BG25: =IF(AND(E25<>0,AK25=""), "* No olvide escribir en la celda de Población Migrantes (Digite CERO si no tiene). ",IF(AND(F25<>0,AL25=""), "* No olvide escribir en la celda de Población Migrantes (Digite CERO si no tiene). ","")) ->  | BP25: 0 | BQ25: 0
C26: TOTAL | D26: 8349 | E26: 4473 | F26: 3876 | I26: =SUM(I24:I25) -> 46 | J26: =SUM(J24:J25) -> 27 | K26: 61 | L26: 48 | M26: 71 | N26: 44 | O26: 83 | P26: 63 | Q26: 61 | R26: 47 | S26: 112 | T26: 108 | U26: 368 | V26: 286 | W26: 420 | X26: 362 | Y26: 413 | Z26: 369 | AA26: 900 | AB26: 922 | AC26: 569 | AD26: 467 | AE26: 422 | AF26: 367 | AG26: 947 | AH26: 766 | AI26: 36 | AJ26: 31 | AK26: 38 | AL26: 25 | AM26: ="" & AY26 & AZ26 ->  | AY26: =IF($D26>=$AI26+$AJ26,"","* El Total de Pueblos Originarios no debe ser mayor al Total Indicador peso/talla. ") ->  | AZ26: =IF($D26>=$AK26+$AL26,"","* El Total de Población Migrantes no debe ser mayor al Total Indicador peso/talla. ") ->  | BI26: =IF($D26>=$AI26+$AJ26,0,1) -> 0 | BJ26: =IF($D26>=$AK26+$AL26,0,1) -> 0
A27: P2070401 | C27: - 1 D.S. (-1.0 a -1.9) | D27: =IFERROR(VLOOKUP($A27,Filtro!$A$4:$AY$532,2,FALSE),0) -> 9527 | E27: =IFERROR(VLOOKUP($A27,Filtro!$A$4:$AY$532,3,FALSE),0) -> 4961 | F27: =IFERROR(VLOOKUP($A27,Filtro!$A$4:$AY$532,4,FALSE),0) -> 4566 | G27: =IFERROR(VLOOKUP($A27,Filtro!$A$4:$AY$532,5,FALSE),0) -> 0 | H27: =IFERROR(VLOOKUP($A27,Filtro!$A$4:$AY$532,6,FALSE),0) -> 0 | I27: =IFERROR(VLOOKUP($A27,Filtro!$A$4:$AY$532,7,FALSE),0) -> 45 | J27: =IFERROR(VLOOKUP($A27,Filtro!$A$4:$AY$532,8,FALSE),0) -> 53 | K27: =IFERROR(VLOOKUP($A27,Filtro!$A$4:$AY$532,9,FALSE),0) -> 85 | L27: =IFERROR(VLOOKUP($A27,Filtro!$A$4:$AY$532,10,FALSE),0) -> 89 | M27: =IFERROR(VLOOKUP($A27,Filtro!$A$4:$AY$532,11,FALSE),0) -> 66 | N27: =IFERROR(VLOOKUP($A27,Filtro!$A$4:$AY$532,12,FALSE),0) -> 73 | O27: =IFERROR(VLOOKUP($A27,Filtro!$A$4:$AY$532,13,FALSE),0) -> 89 | P27: =IFERROR(VLOOKUP($A27,Filtro!$A$4:$AY$532,14,FALSE),0) -> 79 | Q27: =IFERROR(VLOOKUP($A27,Filtro!$A$4:$AY$532,15,FALSE),0) -> 79 | R27: =IFERROR(VLOOKUP($A27,Filtro!$A$4:$AY$532,16,FALSE),0) -> 66 | S27: =IFERROR(VLOOKUP($A27,Filtro!$A$4:$AY$532,17,FALSE),0) -> 120 | T27: =IFERROR(VLOOKUP($A27,Filtro!$A$4:$AY$532,18,FALSE),0) -> 95 | U27: =IFERROR(VLOOKUP($A27,Filtro!$A$4:$AY$532,19,FALSE),0) -> 462 | V27: =IFERROR(VLOOKUP($A27,Filtro!$A$4:$AY$532,20,FALSE),0) -> 370 | W27: =IFERROR(VLOOKUP($A27,Filtro!$A$4:$AY$532,21,FALSE),0) -> 613 | X27: =IFERROR(VLOOKUP($A27,Filtro!$A$4:$AY$532,22,FALSE),0) -> 513 | Y27: =IFERROR(VLOOKUP($A27,Filtro!$A$4:$AY$532,23,FALSE),0) -> 572 | Z27: =IFERROR(VLOOKUP($A27,Filtro!$A$4:$AY$532,24,FALSE),0) -> 540 | AA27: =IFERROR(VLOOKUP($A27,Filtro!$A$4:$AY$532,25,FALSE),0) -> 1010 | AB27: =IFERROR(VLOOKUP($A27,Filtro!$A$4:$AY$532,26,FALSE),0) -> 814 | AC27: =IFERROR(VLOOKUP($A27,Filtro!$A$4:$AY$532,27,FALSE),0) -> 552 | AD27: =IFERROR(VLOOKUP($A27,Filtro!$A$4:$AY$532,28,FALSE),0) -> 503 | AE27: =IFERROR(VLOOKUP($A27,Filtro!$A$4:$AY$532,29,FALSE),0) -> 391 | AF27: =IFERROR(VLOOKUP($A27,Filtro!$A$4:$AY$532,30,FALSE),0) -> 469 | AG27: =IFERROR(VLOOKUP($A27,Filtro!$A$4:$AY$532,31,FALSE),0) -> 877 | AH27: =IFERROR(VLOOKUP($A27,Filtro!$A$4:$AY$532,32,FALSE),0) -> 902 | AI27: =IFERROR(VLOOKUP($A27,Filtro!$A$4:$AY$532,33,FALSE),0) -> 27 | AJ27: =IFERROR(VLOOKUP($A27,Filtro!$A$4:$AY$532,34,FALSE),0) -> 23 | AK27: =IFERROR(VLOOKUP($A27,Filtro!$A$4:$AY$532,35,FALSE),0) -> 47 | AL27: =IFERROR(VLOOKUP($A27,Filtro!$A$4:$AY$532,36,FALSE),0) -> 38 | BF27: =IF(AND(E27<>0,AI27=""), "* No olvide escribir en la celda de Pueblos Originarios (Digite CERO si no tiene). ",IF(AND(F27<>0,AJ27=""), "* No olvide escribir en la celda de Pueblos Originarios (Digite CERO si no tiene). ","")) ->  | BG27: =IF(AND(E27<>0,AK27=""), "* No olvide escribir en la celda de Población Migrantes (Digite CERO si no tiene). ",IF(AND(F27<>0,AL27=""), "* No olvide escribir en la celda de Población Migrantes (Digite CERO si no tiene). ","")) ->  | BP27: =IF(AND(E27<>0,AI27=""), 1,IF(AND(F27<>0,AJ27=""), 1,0)) -> 0 | BQ27: =IF(AND(E27<>0,AK27=""), 1,IF(AND(F27<>0,AL27=""), 1,0)) -> 0
A28: P2070402 | C28: - 2 D.S. (<= -2.0) | D28: =IFERROR(VLOOKUP($A28,Filtro!$A$4:$AY$532,2,FALSE),0) -> 1554 | E28: =IFERROR(VLOOKUP($A28,Filtro!$A$4:$AY$532,3,FALSE),0) -> 813 | F28: =IFERROR(VLOOKUP($A28,Filtro!$A$4:$AY$532,4,FALSE),0) -> 741 | G28: =IFERROR(VLOOKUP($A28,Filtro!$A$4:$AY$532,5,FALSE),0) -> 0 | H28: =IFERROR(VLOOKUP($A28,Filtro!$A$4:$AY$532,6,FALSE),0) -> 0 | I28: =IFERROR(VLOOKUP($A28,Filtro!$A$4:$AY$532,7,FALSE),0) -> 8 | J28: =IFERROR(VLOOKUP($A28,Filtro!$A$4:$AY$532,8,FALSE),0) -> 10 | K28: =IFERROR(VLOOKUP($A28,Filtro!$A$4:$AY$532,9,FALSE),0) -> 16 | L28: =IFERROR(VLOOKUP($A28,Filtro!$A$4:$AY$532,10,FALSE),0) -> 19 | M28: =IFERROR(VLOOKUP($A28,Filtro!$A$4:$AY$532,11,FALSE),0) -> 18 | N28: =IFERROR(VLOOKUP($A28,Filtro!$A$4:$AY$532,12,FALSE),0) -> 14 | O28: =IFERROR(VLOOKUP($A28,Filtro!$A$4:$AY$532,13,FALSE),0) -> 17 | P28: =IFERROR(VLOOKUP($A28,Filtro!$A$4:$AY$532,14,FALSE),0) -> 18 | Q28: =IFERROR(VLOOKUP($A28,Filtro!$A$4:$AY$532,15,FALSE),0) -> 12 | R28: =IFERROR(VLOOKUP($A28,Filtro!$A$4:$AY$532,16,FALSE),0) -> 5 | S28: =IFERROR(VLOOKUP($A28,Filtro!$A$4:$AY$532,17,FALSE),0) -> 22 | T28: =IFERROR(VLOOKUP($A28,Filtro!$A$4:$AY$532,18,FALSE),0) -> 14 | U28: =IFERROR(VLOOKUP($A28,Filtro!$A$4:$AY$532,19,FALSE),0) -> 74 | V28: =IFERROR(VLOOKUP($A28,Filtro!$A$4:$AY$532,20,FALSE),0) -> 50 | W28: =IFERROR(VLOOKUP($A28,Filtro!$A$4:$AY$532,21,FALSE),0) -> 126 | X28: =IFERROR(VLOOKUP($A28,Filtro!$A$4:$AY$532,22,FALSE),0) -> 107 | Y28: =IFERROR(VLOOKUP($A28,Filtro!$A$4:$AY$532,23,FALSE),0) -> 105 | Z28: =IFERROR(VLOOKUP($A28,Filtro!$A$4:$AY$532,24,FALSE),0) -> 77 | AA28: =IFERROR(VLOOKUP($A28,Filtro!$A$4:$AY$532,25,FALSE),0) -> 179 | AB28: =IFERROR(VLOOKUP($A28,Filtro!$A$4:$AY$532,26,FALSE),0) -> 158 | AC28: =IFERROR(VLOOKUP($A28,Filtro!$A$4:$AY$532,27,FALSE),0) -> 85 | AD28: =IFERROR(VLOOKUP($A28,Filtro!$A$4:$AY$532,28,FALSE),0) -> 70 | AE28: =IFERROR(VLOOKUP($A28,Filtro!$A$4:$AY$532,29,FALSE),0) -> 49 | AF28: =IFERROR(VLOOKUP($A28,Filtro!$A$4:$AY$532,30,FALSE),0) -> 55 | AG28: =IFERROR(VLOOKUP($A28,Filtro!$A$4:$AY$532,31,FALSE),0) -> 102 | AH28: =IFERROR(VLOOKUP($A28,Filtro!$A$4:$AY$532,32,FALSE),0) -> 144 | AI28: =IFERROR(VLOOKUP($A28,Filtro!$A$4:$AY$532,33,FALSE),0) -> 10 | AJ28: =IFERROR(VLOOKUP($A28,Filtro!$A$4:$AY$532,34,FALSE),0) -> 9 | AK28: =IFERROR(VLOOKUP($A28,Filtro!$A$4:$AY$532,35,FALSE),0) -> 9 | AL28: =IFERROR(VLOOKUP($A28,Filtro!$A$4:$AY$532,36,FALSE),0) -> 7 | BF28: =IF(AND(E28<>0,AI28=""), "* No olvide escribir en la celda de Pueblos Originarios (Digite CERO si no tiene). ",IF(AND(F28<>0,AJ28=""), "* No olvide escribir en la celda de Pueblos Originarios (Digite CERO si no tiene). ","")) ->  | BG28: =IF(AND(E28<>0,AK28=""), "* No olvide escribir en la celda de Población Migrantes (Digite CERO si no tiene). ",IF(AND(F28<>0,AL28=""), "* No olvide escribir en la celda de Población Migrantes (Digite CERO si no tiene). ","")) ->  | BP28: 0 | BQ28: 0
C29: TOTAL | D29: 11081 | E29: 5774 | F29: 5307 | I29: =SUM(I27:I28) -> 53 | J29: =SUM(J27:J28) -> 63 | K29: 101 | L29: 108 | M29: 84 | N29: 87 | O29: 106 | P29: 97 | Q29: 91 | R29: 71 | S29: 142 | T29: 109 | U29: 536 | V29: 420 | W29: 739 | X29: 620 | Y29: 677 | Z29: 617 | AA29: 1189 | AB29: 972 | AC29: 637 | AD29: 573 | AE29: 440 | AF29: 524 | AG29: 979 | AH29: 1046 | AI29: 37 | AJ29: 32 | AK29: 56 | AL29: 45 | AM29: ="" & AY29 & AZ29 ->  | AY29: =IF($D29>=$AI29+$AJ29,"","* El Total de Pueblos Originarios no debe ser mayor al Total Indicador peso/talla. ") ->  | AZ29: =IF($D29>=$AK29+$AL29,"","* El Total de Población Migrantes no debe ser mayor al Total Indicador peso/talla. ") ->  | BI29: =IF($D29>=$AI29+$AJ29,0,1) -> 0 | BJ29: =IF($D29>=$AK29+$AL29,0,1) -> 0
A30: P2400140 | C30: PROMEDIO (-0,9 A + 0,9) | D30: =IFERROR(VLOOKUP($A30,Filtro!$A$4:$AY$532,2,FALSE),0) -> 36593 | E30: =IFERROR(VLOOKUP($A30,Filtro!$A$4:$AY$532,3,FALSE),0) -> 18515 | F30: =IFERROR(VLOOKUP($A30,Filtro!$A$4:$AY$532,4,FALSE),0) -> 18078 | G30: =IFERROR(VLOOKUP($A30,Filtro!$A$4:$AY$532,5,FALSE),0) -> 0 | H30: =IFERROR(VLOOKUP($A30,Filtro!$A$4:$AY$532,6,FALSE),0) -> 0 | I30: =IFERROR(VLOOKUP($A30,Filtro!$A$4:$AY$532,7,FALSE),0) -> 265 | J30: =IFERROR(VLOOKUP($A30,Filtro!$A$4:$AY$532,8,FALSE),0) -> 265 | K30: =IFERROR(VLOOKUP($A30,Filtro!$A$4:$AY$532,9,FALSE),0) -> 335 | L30: =IFERROR(VLOOKUP($A30,Filtro!$A$4:$AY$532,10,FALSE),0) -> 301 | M30: =IFERROR(VLOOKUP($A30,Filtro!$A$4:$AY$532,11,FALSE),0) -> 318 | N30: =IFERROR(VLOOKUP($A30,Filtro!$A$4:$AY$532,12,FALSE),0) -> 306 | O30: =IFERROR(VLOOKUP($A30,Filtro!$A$4:$AY$532,13,FALSE),0) -> 310 | P30: =IFERROR(VLOOKUP($A30,Filtro!$A$4:$AY$532,14,FALSE),0) -> 364 | Q30: =IFERROR(VLOOKUP($A30,Filtro!$A$4:$AY$532,15,FALSE),0) -> 300 | R30: =IFERROR(VLOOKUP($A30,Filtro!$A$4:$AY$532,16,FALSE),0) -> 351 | S30: =IFERROR(VLOOKUP($A30,Filtro!$A$4:$AY$532,17,FALSE),0) -> 388 | T30: =IFERROR(VLOOKUP($A30,Filtro!$A$4:$AY$532,18,FALSE),0) -> 407 | U30: =IFERROR(VLOOKUP($A30,Filtro!$A$4:$AY$532,19,FALSE),0) -> 1359 | V30: =IFERROR(VLOOKUP($A30,Filtro!$A$4:$AY$532,20,FALSE),0) -> 1461 | W30: =IFERROR(VLOOKUP($A30,Filtro!$A$4:$AY$532,21,FALSE),0) -> 1768 | X30: =IFERROR(VLOOKUP($A30,Filtro!$A$4:$AY$532,22,FALSE),0) -> 1789 | Y30: =IFERROR(VLOOKUP($A30,Filtro!$A$4:$AY$532,23,FALSE),0) -> 1683 | Z30: =IFERROR(VLOOKUP($A30,Filtro!$A$4:$AY$532,24,FALSE),0) -> 1708 | AA30: =IFERROR(VLOOKUP($A30,Filtro!$A$4:$AY$532,25,FALSE),0) -> 3617 | AB30: =IFERROR(VLOOKUP($A30,Filtro!$A$4:$AY$532,26,FALSE),0) -> 3501 | AC30: =IFERROR(VLOOKUP($A30,Filtro!$A$4:$AY$532,27,FALSE),0) -> 2322 | AD30: =IFERROR(VLOOKUP($A30,Filtro!$A$4:$AY$532,28,FALSE),0) -> 2191 | AE30: =IFERROR(VLOOKUP($A30,Filtro!$A$4:$AY$532,29,FALSE),0) -> 1779 | AF30: =IFERROR(VLOOKUP($A30,Filtro!$A$4:$AY$532,30,FALSE),0) -> 1695 | AG30: =IFERROR(VLOOKUP($A30,Filtro!$A$4:$AY$532,31,FALSE),0) -> 4071 | AH30: =IFERROR(VLOOKUP($A30,Filtro!$A$4:$AY$532,32,FALSE),0) -> 3739 | AI30: =IFERROR(VLOOKUP($A30,Filtro!$A$4:$AY$532,33,FALSE),0) -> 73 | AJ30: =IFERROR(VLOOKUP($A30,Filtro!$A$4:$AY$532,34,FALSE),0) -> 59 | AK30: =IFERROR(VLOOKUP($A30,Filtro!$A$4:$AY$532,35,FALSE),0) -> 157 | AL30: =IFERROR(VLOOKUP($A30,Filtro!$A$4:$AY$532,36,FALSE),0) -> 160 | BF30: =IF(AND(E30<>0,AI30=""), "* No olvide escribir en la celda de Pueblos Originarios (Digite CERO si no tiene). ",IF(AND(F30<>0,AJ30=""), "* No olvide escribir en la celda de Pueblos Originarios (Digite CERO si no tiene). ","")) ->  | BG30: =IF(AND(E30<>0,AK30=""), "* No olvide escribir en la celda de Población Migrantes (Digite CERO si no tiene). ",IF(AND(F30<>0,AL30=""), "* No olvide escribir en la celda de Población Migrantes (Digite CERO si no tiene). ","")) ->  | BP30: =IF(AND(E30<>0,AI30=""), 1,IF(AND(F30<>0,AJ30=""), 1,0)) -> 0 | BQ30: =IF(AND(E30<>0,AK30=""), 1,IF(AND(F30<>0,AL30=""), 1,0)) -> 0
A31: P2070501 | B31: DIAGNOSTICO NUTRICIONAL INTEGRADO | C31: RIESGO DE DESNUTRIR/ DEFICIT PONDERAL* | D31: =IFERROR(VLOOKUP($A31,Filtro!$A$4:$AY$532,2,FALSE),0) -> 1765 | E31: =IFERROR(VLOOKUP($A31,Filtro!$A$4:$AY$532,3,FALSE),0) -> 1015 | F31: =IFERROR(VLOOKUP($A31,Filtro!$A$4:$AY$532,4,FALSE),0) -> 750 | G31: =IFERROR(VLOOKUP($A31,Filtro!$A$4:$AY$532,5,FALSE),0) -> 0 | H31: =IFERROR(VLOOKUP($A31,Filtro!$A$4:$AY$532,6,FALSE),0) -> 0 | I31: =IFERROR(VLOOKUP($A31,Filtro!$A$4:$AY$532,7,FALSE),0) -> 21 | J31: =IFERROR(VLOOKUP($A31,Filtro!$A$4:$AY$532,8,FALSE),0) -> 21 | K31: =IFERROR(VLOOKUP($A31,Filtro!$A$4:$AY$532,9,FALSE),0) -> 24 | L31: =IFERROR(VLOOKUP($A31,Filtro!$A$4:$AY$532,10,FALSE),0) -> 37 | M31: =IFERROR(VLOOKUP($A31,Filtro!$A$4:$AY$532,11,FALSE),0) -> 33 | N31: =IFERROR(VLOOKUP($A31,Filtro!$A$4:$AY$532,12,FALSE),0) -> 21 | O31: =IFERROR(VLOOKUP($A31,Filtro!$A$4:$AY$532,13,FALSE),0) -> 27 | P31: =IFERROR(VLOOKUP($A31,Filtro!$A$4:$AY$532,14,FALSE),0) -> 26 | Q31: =IFERROR(VLOOKUP($A31,Filtro!$A$4:$AY$532,15,FALSE),0) -> 25 | R31: =IFERROR(VLOOKUP($A31,Filtro!$A$4:$AY$532,16,FALSE),0) -> 20 | S31: =IFERROR(VLOOKUP($A31,Filtro!$A$4:$AY$532,17,FALSE),0) -> 40 | T31: =IFERROR(VLOOKUP($A31,Filtro!$A$4:$AY$532,18,FALSE),0) -> 25 | U31: =IFERROR(VLOOKUP($A31,Filtro!$A$4:$AY$532,19,FALSE),0) -> 132 | V31: =IFERROR(VLOOKUP($A31,Filtro!$A$4:$AY$532,20,FALSE),0) -> 80 | W31: =IFERROR(VLOOKUP($A31,Filtro!$A$4:$AY$532,21,FALSE),0) -> 101 | X31: =IFERROR(VLOOKUP($A31,Filtro!$A$4:$AY$532,22,FALSE),0) -> 79 | Y31: =IFERROR(VLOOKUP($A31,Filtro!$A$4:$AY$532,23,FALSE),0) -> 70 | Z31: =IFERROR(VLOOKUP($A31,Filtro!$A$4:$AY$532,24,FALSE),0) -> 65 | AA31: =IFERROR(VLOOKUP($A31,Filtro!$A$4:$AY$532,25,FALSE),0) -> 178 | AB31: =IFERROR(VLOOKUP($A31,Filtro!$A$4:$AY$532,26,FALSE),0) -> 123 | AC31: =IFERROR(VLOOKUP($A31,Filtro!$A$4:$AY$532,27,FALSE),0) -> 119 | AD31: =IFERROR(VLOOKUP($A31,Filtro!$A$4:$AY$532,28,FALSE),0) -> 79 | AE31: =IFERROR(VLOOKUP($A31,Filtro!$A$4:$AY$532,29,FALSE),0) -> 81 | AF31: =IFERROR(VLOOKUP($A31,Filtro!$A$4:$AY$532,30,FALSE),0) -> 53 | AG31: =IFERROR(VLOOKUP($A31,Filtro!$A$4:$AY$532,31,FALSE),0) -> 164 | AH31: =IFERROR(VLOOKUP($A31,Filtro!$A$4:$AY$532,32,FALSE),0) -> 121 | AI31: =IFERROR(VLOOKUP($A31,Filtro!$A$4:$AY$532,33,FALSE),0) -> 10 | AJ31: =IFERROR(VLOOKUP($A31,Filtro!$A$4:$AY$532,34,FALSE),0) -> 7 | AK31: =IFERROR(VLOOKUP($A31,Filtro!$A$4:$AY$532,35,FALSE),0) -> 9 | AL31: =IFERROR(VLOOKUP($A31,Filtro!$A$4:$AY$532,36,FALSE),0) -> 10 | BF31: =IF(AND(E31<>0,AI31=""), "* No olvide escribir en la celda de Pueblos Originarios (Digite CERO si no tiene). ",IF(AND(F31<>0,AJ31=""), "* No olvide escribir en la celda de Pueblos Originarios (Digite CERO si no tiene). ","")) ->  | BG31: =IF(AND(E31<>0,AK31=""), "* No olvide escribir en la celda de Población Migrantes (Digite CERO si no tiene). ",IF(AND(F31<>0,AL31=""), "* No olvide escribir en la celda de Población Migrantes (Digite CERO si no tiene). ","")) ->  | BP31: 0 | BQ31: 0
A32: P2070502 | C32: DESNUTRIDO | D32: =IFERROR(VLOOKUP($A32,Filtro!$A$4:$AY$532,2,FALSE),0) -> 165 | E32: =IFERROR(VLOOKUP($A32,Filtro!$A$4:$AY$532,3,FALSE),0) -> 93 | F32: =IFERROR(VLOOKUP($A32,Filtro!$A$4:$AY$532,4,FALSE),0) -> 72 | G32: =IFERROR(VLOOKUP($A32,Filtro!$A$4:$AY$532,5,FALSE),0) -> 0 | H32: =IFERROR(VLOOKUP($A32,Filtro!$A$4:$AY$532,6,FALSE),0) -> 0 | I32: =IFERROR(VLOOKUP($A32,Filtro!$A$4:$AY$532,7,FALSE),0) -> 4 | J32: =IFERROR(VLOOKUP($A32,Filtro!$A$4:$AY$532,8,FALSE),0) -> 1 | K32: =IFERROR(VLOOKUP($A32,Filtro!$A$4:$AY$532,9,FALSE),0) -> 1 | L32: =IFERROR(VLOOKUP($A32,Filtro!$A$4:$AY$532,10,FALSE),0) -> 1 | M32: =IFERROR(VLOOKUP($A32,Filtro!$A$4:$AY$532,11,FALSE),0) -> 4 | N32: =IFERROR(VLOOKUP($A32,Filtro!$A$4:$AY$532,12,FALSE),0) -> 4 | O32: =IFERROR(VLOOKUP($A32,Filtro!$A$4:$AY$532,13,FALSE),0) -> 3 | P32: =IFERROR(VLOOKUP($A32,Filtro!$A$4:$AY$532,14,FALSE),0) -> 5 | Q32: =IFERROR(VLOOKUP($A32,Filtro!$A$4:$AY$532,15,FALSE),0) -> 0 | R32: =IFERROR(VLOOKUP($A32,Filtro!$A$4:$AY$532,16,FALSE),0) -> 2 | S32: =IFERROR(VLOOKUP($A32,Filtro!$A$4:$AY$532,17,FALSE),0) -> 2 | T32: =IFERROR(VLOOKUP($A32,Filtro!$A$4:$AY$532,18,FALSE),0) -> 5 | U32: =IFERROR(VLOOKUP($A32,Filtro!$A$4:$AY$532,19,FALSE),0) -> 12 | V32: =IFERROR(VLOOKUP($A32,Filtro!$A$4:$AY$532,20,FALSE),0) -> 7 | W32: =IFERROR(VLOOKUP($A32,Filtro!$A$4:$AY$532,21,FALSE),0) -> 10 | X32: =IFERROR(VLOOKUP($A32,Filtro!$A$4:$AY$532,22,FALSE),0) -> 8 | Y32: =IFERROR(VLOOKUP($A32,Filtro!$A$4:$AY$532,23,FALSE),0) -> 4 | Z32: =IFERROR(VLOOKUP($A32,Filtro!$A$4:$AY$532,24,FALSE),0) -> 5 | AA32: =IFERROR(VLOOKUP($A32,Filtro!$A$4:$AY$532,25,FALSE),0) -> 17 | AB32: =IFERROR(VLOOKUP($A32,Filtro!$A$4:$AY$532,26,FALSE),0) -> 17 | AC32: =IFERROR(VLOOKUP($A32,Filtro!$A$4:$AY$532,27,FALSE),0) -> 8 | AD32: =IFERROR(VLOOKUP($A32,Filtro!$A$4:$AY$532,28,FALSE),0) -> 2 | AE32: =IFERROR(VLOOKUP($A32,Filtro!$A$4:$AY$532,29,FALSE),0) -> 4 | AF32: =IFERROR(VLOOKUP($A32,Filtro!$A$4:$AY$532,30,FALSE),0) -> 3 | AG32: =IFERROR(VLOOKUP($A32,Filtro!$A$4:$AY$532,31,FALSE),0) -> 24 | AH32: =IFERROR(VLOOKUP($A32,Filtro!$A$4:$AY$532,32,FALSE),0) -> 12 | AI32: =IFERROR(VLOOKUP($A32,Filtro!$A$4:$AY$532,33,FALSE),0) -> 0 | AJ32: =IFERROR(VLOOKUP($A32,Filtro!$A$4:$AY$532,34,FALSE),0) -> 1 | AK32: =IFERROR(VLOOKUP($A32,Filtro!$A$4:$AY$532,35,FALSE),0) -> 4 | AL32: =IFERROR(VLOOKUP($A32,Filtro!$A$4:$AY$532,36,FALSE),0) -> 5 | BF32: =IF(AND(E32<>0,AI32=""), "* No olvide escribir en la celda de Pueblos Originarios (Digite CERO si no tiene). ",IF(AND(F32<>0,AJ32=""), "* No olvide escribir en la celda de Pueblos Originarios (Digite CERO si no tiene). ","")) ->  | BG32: =IF(AND(E32<>0,AK32=""), "* No olvide escribir en la celda de Población Migrantes (Digite CERO si no tiene). ",IF(AND(F32<>0,AL32=""), "* No olvide escribir en la celda de Población Migrantes (Digite CERO si no tiene). ","")) ->  | BP32: 0 | BQ32: 0
A33: P2070503 | C33: SOBREPESO / RIESGO OBESIDAD | D33: =IFERROR(VLOOKUP($A33,Filtro!$A$4:$AY$532,2,FALSE),0) -> 17008 | E33: =IFERROR(VLOOKUP($A33,Filtro!$A$4:$AY$532,3,FALSE),0) -> 8636 | F33: =IFERROR(VLOOKUP($A33,Filtro!$A$4:$AY$532,4,FALSE),0) -> 8372 | G33: =IFERROR(VLOOKUP($A33,Filtro!$A$4:$AY$532,5,FALSE),0) -> 0 | H33: =IFERROR(VLOOKUP($A33,Filtro!$A$4:$AY$532,6,FALSE),0) -> 0 | I33: =IFERROR(VLOOKUP($A33,Filtro!$A$4:$AY$532,7,FALSE),0) -> 58 | J33: =IFERROR(VLOOKUP($A33,Filtro!$A$4:$AY$532,8,FALSE),0) -> 51 | K33: =IFERROR(VLOOKUP($A33,Filtro!$A$4:$AY$532,9,FALSE),0) -> 147 | L33: =IFERROR(VLOOKUP($A33,Filtro!$A$4:$AY$532,10,FALSE),0) -> 129 | M33: =IFERROR(VLOOKUP($A33,Filtro!$A$4:$AY$532,11,FALSE),0) -> 105 | N33: =IFERROR(VLOOKUP($A33,Filtro!$A$4:$AY$532,12,FALSE),0) -> 109 | O33: =IFERROR(VLOOKUP($A33,Filtro!$A$4:$AY$532,13,FALSE),0) -> 158 | P33: =IFERROR(VLOOKUP($A33,Filtro!$A$4:$AY$532,14,FALSE),0) -> 140 | Q33: =IFERROR(VLOOKUP($A33,Filtro!$A$4:$AY$532,15,FALSE),0) -> 141 | R33: =IFERROR(VLOOKUP($A33,Filtro!$A$4:$AY$532,16,FALSE),0) -> 138 | S33: =IFERROR(VLOOKUP($A33,Filtro!$A$4:$AY$532,17,FALSE),0) -> 207 | T33: =IFERROR(VLOOKUP($A33,Filtro!$A$4:$AY$532,18,FALSE),0) -> 216 | U33: =IFERROR(VLOOKUP($A33,Filtro!$A$4:$AY$532,19,FALSE),0) -> 739 | V33: =IFERROR(VLOOKUP($A33,Filtro!$A$4:$AY$532,20,FALSE),0) -> 757 | W33: =IFERROR(VLOOKUP($A33,Filtro!$A$4:$AY$532,21,FALSE),0) -> 1005 | X33: =IFERROR(VLOOKUP($A33,Filtro!$A$4:$AY$532,22,FALSE),0) -> 942 | Y33: =IFERROR(VLOOKUP($A33,Filtro!$A$4:$AY$532,23,FALSE),0) -> 948 | Z33: =IFERROR(VLOOKUP($A33,Filtro!$A$4:$AY$532,24,FALSE),0) -> 874 | AA33: =IFERROR(VLOOKUP($A33,Filtro!$A$4:$AY$532,25,FALSE),0) -> 1600 | AB33: =IFERROR(VLOOKUP($A33,Filtro!$A$4:$AY$532,26,FALSE),0) -> 1567 | AC33: =IFERROR(VLOOKUP($A33,Filtro!$A$4:$AY$532,27,FALSE),0) -> 982 | AD33: =IFERROR(VLOOKUP($A33,Filtro!$A$4:$AY$532,28,FALSE),0) -> 948 | AE33: =IFERROR(VLOOKUP($A33,Filtro!$A$4:$AY$532,29,FALSE),0) -> 790 | AF33: =IFERROR(VLOOKUP($A33,Filtro!$A$4:$AY$532,30,FALSE),0) -> 779 | AG33: =IFERROR(VLOOKUP($A33,Filtro!$A$4:$AY$532,31,FALSE),0) -> 1756 | AH33: =IFERROR(VLOOKUP($A33,Filtro!$A$4:$AY$532,32,FALSE),0) -> 1722 | AI33: =IFERROR(VLOOKUP($A33,Filtro!$A$4:$AY$532,33,FALSE),0) -> 64 | AJ33: =IFERROR(VLOOKUP($A33,Filtro!$A$4:$AY$532,34,FALSE),0) -> 53 | AK33: =IFERROR(VLOOKUP($A33,Filtro!$A$4:$AY$532,35,FALSE),0) -> 74 | AL33: =IFERROR(VLOOKUP($A33,Filtro!$A$4:$AY$532,36,FALSE),0) -> 48 | BF33: =IF(AND(E33<>0,AI33=""), "* No olvide escribir en la celda de Pueblos Originarios (Digite CERO si no tiene). ",IF(AND(F33<>0,AJ33=""), "* No olvide escribir en la celda de Pueblos Originarios (Digite CERO si no tiene). ","")) ->  | BG33: =IF(AND(E33<>0,AK33=""), "* No olvide escribir en la celda de Población Migrantes (Digite CERO si no tiene). ",IF(AND(F33<>0,AL33=""), "* No olvide escribir en la celda de Población Migrantes (Digite CERO si no tiene). ","")) ->  | BP33: 0 | BQ33: 0
A34: P2070504 | C34: OBESO | D34: =IFERROR(VLOOKUP($A34,Filtro!$A$4:$AY$532,2,FALSE),0) -> 7881 | E34: =IFERROR(VLOOKUP($A34,Filtro!$A$4:$AY$532,3,FALSE),0) -> 4156 | F34: =IFERROR(VLOOKUP($A34,Filtro!$A$4:$AY$532,4,FALSE),0) -> 3725 | G34: =IFERROR(VLOOKUP($A34,Filtro!$A$4:$AY$532,5,FALSE),0) -> 0 | H34: =IFERROR(VLOOKUP($A34,Filtro!$A$4:$AY$532,6,FALSE),0) -> 0 | I34: =IFERROR(VLOOKUP($A34,Filtro!$A$4:$AY$532,7,FALSE),0) -> 12 | J34: =IFERROR(VLOOKUP($A34,Filtro!$A$4:$AY$532,8,FALSE),0) -> 10 | K34: =IFERROR(VLOOKUP($A34,Filtro!$A$4:$AY$532,9,FALSE),0) -> 43 | L34: =IFERROR(VLOOKUP($A34,Filtro!$A$4:$AY$532,10,FALSE),0) -> 29 | M34: =IFERROR(VLOOKUP($A34,Filtro!$A$4:$AY$532,11,FALSE),0) -> 47 | N34: =IFERROR(VLOOKUP($A34,Filtro!$A$4:$AY$532,12,FALSE),0) -> 38 | O34: =IFERROR(VLOOKUP($A34,Filtro!$A$4:$AY$532,13,FALSE),0) -> 64 | P34: =IFERROR(VLOOKUP($A34,Filtro!$A$4:$AY$532,14,FALSE),0) -> 43 | Q34: =IFERROR(VLOOKUP($A34,Filtro!$A$4:$AY$532,15,FALSE),0) -> 71 | R34: =IFERROR(VLOOKUP($A34,Filtro!$A$4:$AY$532,16,FALSE),0) -> 53 | S34: =IFERROR(VLOOKUP($A34,Filtro!$A$4:$AY$532,17,FALSE),0) -> 102 | T34: =IFERROR(VLOOKUP($A34,Filtro!$A$4:$AY$532,18,FALSE),0) -> 80 | U34: =IFERROR(VLOOKUP($A34,Filtro!$A$4:$AY$532,19,FALSE),0) -> 338 | V34: =IFERROR(VLOOKUP($A34,Filtro!$A$4:$AY$532,20,FALSE),0) -> 287 | W34: =IFERROR(VLOOKUP($A34,Filtro!$A$4:$AY$532,21,FALSE),0) -> 419 | X34: =IFERROR(VLOOKUP($A34,Filtro!$A$4:$AY$532,22,FALSE),0) -> 393 | Y34: =IFERROR(VLOOKUP($A34,Filtro!$A$4:$AY$532,23,FALSE),0) -> 380 | Z34: =IFERROR(VLOOKUP($A34,Filtro!$A$4:$AY$532,24,FALSE),0) -> 352 | AA34: =IFERROR(VLOOKUP($A34,Filtro!$A$4:$AY$532,25,FALSE),0) -> 646 | AB34: =IFERROR(VLOOKUP($A34,Filtro!$A$4:$AY$532,26,FALSE),0) -> 612 | AC34: =IFERROR(VLOOKUP($A34,Filtro!$A$4:$AY$532,27,FALSE),0) -> 540 | AD34: =IFERROR(VLOOKUP($A34,Filtro!$A$4:$AY$532,28,FALSE),0) -> 454 | AE34: =IFERROR(VLOOKUP($A34,Filtro!$A$4:$AY$532,29,FALSE),0) -> 450 | AF34: =IFERROR(VLOOKUP($A34,Filtro!$A$4:$AY$532,30,FALSE),0) -> 398 | AG34: =IFERROR(VLOOKUP($A34,Filtro!$A$4:$AY$532,31,FALSE),0) -> 1044 | AH34: =IFERROR(VLOOKUP($A34,Filtro!$A$4:$AY$532,32,FALSE),0) -> 976 | AI34: =IFERROR(VLOOKUP($A34,Filtro!$A$4:$AY$532,33,FALSE),0) -> 43 | AJ34: =IFERROR(VLOOKUP($A34,Filtro!$A$4:$AY$532,34,FALSE),0) -> 34 | AK34: =IFERROR(VLOOKUP($A34,Filtro!$A$4:$AY$532,35,FALSE),0) -> 18 | AL34: =IFERROR(VLOOKUP($A34,Filtro!$A$4:$AY$532,36,FALSE),0) -> 15 | BF34: =IF(AND(E34<>0,AI34=""), "* No olvide escribir en la celda de Pueblos Originarios (Digite CERO si no tiene). ",IF(AND(F34<>0,AJ34=""), "* No olvide escribir en la celda de Pueblos Originarios (Digite CERO si no tiene). ","")) ->  | BG34: =IF(AND(E34<>0,AK34=""), "* No olvide escribir en la celda de Población Migrantes (Digite CERO si no tiene). ",IF(AND(F34<>0,AL34=""), "* No olvide escribir en la celda de Población Migrantes (Digite CERO si no tiene). ","")) ->  | BP34: 0 | BQ34: 0
C35: OBESO SEVERO
A36: P2070505 | C36: NORMAL | D36: =IFERROR(VLOOKUP($A36,Filtro!$A$4:$AY$532,2,FALSE),0) -> 45381 | E36: =IFERROR(VLOOKUP($A36,Filtro!$A$4:$AY$532,3,FALSE),0) -> 23070 | F36: =IFERROR(VLOOKUP($A36,Filtro!$A$4:$AY$532,4,FALSE),0) -> 22311 | G36: =IFERROR(VLOOKUP($A36,Filtro!$A$4:$AY$532,5,FALSE),0) -> 0 | H36: =IFERROR(VLOOKUP($A36,Filtro!$A$4:$AY$532,6,FALSE),0) -> 0 | I36: =IFERROR(VLOOKUP($A36,Filtro!$A$4:$AY$532,7,FALSE),0) -> 415 | J36: =IFERROR(VLOOKUP($A36,Filtro!$A$4:$AY$532,8,FALSE),0) -> 433 | K36: =IFERROR(VLOOKUP($A36,Filtro!$A$4:$AY$532,9,FALSE),0) -> 446 | L36: =IFERROR(VLOOKUP($A36,Filtro!$A$4:$AY$532,10,FALSE),0) -> 402 | M36: =IFERROR(VLOOKUP($A36,Filtro!$A$4:$AY$532,11,FALSE),0) -> 409 | N36: =IFERROR(VLOOKUP($A36,Filtro!$A$4:$AY$532,12,FALSE),0) -> 382 | O36: =IFERROR(VLOOKUP($A36,Filtro!$A$4:$AY$532,13,FALSE),0) -> 403 | P36: =IFERROR(VLOOKUP($A36,Filtro!$A$4:$AY$532,14,FALSE),0) -> 448 | Q36: =IFERROR(VLOOKUP($A36,Filtro!$A$4:$AY$532,15,FALSE),0) -> 385 | R36: =IFERROR(VLOOKUP($A36,Filtro!$A$4:$AY$532,16,FALSE),0) -> 390 | S36: =IFERROR(VLOOKUP($A36,Filtro!$A$4:$AY$532,17,FALSE),0) -> 513 | T36: =IFERROR(VLOOKUP($A36,Filtro!$A$4:$AY$532,18,FALSE),0) -> 529 | U36: =IFERROR(VLOOKUP($A36,Filtro!$A$4:$AY$532,19,FALSE),0) -> 1698 | V36: =IFERROR(VLOOKUP($A36,Filtro!$A$4:$AY$532,20,FALSE),0) -> 1631 | W36: =IFERROR(VLOOKUP($A36,Filtro!$A$4:$AY$532,21,FALSE),0) -> 2179 | X36: =IFERROR(VLOOKUP($A36,Filtro!$A$4:$AY$532,22,FALSE),0) -> 2178 | Y36: =IFERROR(VLOOKUP($A36,Filtro!$A$4:$AY$532,23,FALSE),0) -> 2183 | Z36: =IFERROR(VLOOKUP($A36,Filtro!$A$4:$AY$532,24,FALSE),0) -> 2199 | AA36: =IFERROR(VLOOKUP($A36,Filtro!$A$4:$AY$532,25,FALSE),0) -> 4790 | AB36: =IFERROR(VLOOKUP($A36,Filtro!$A$4:$AY$532,26,FALSE),0) -> 4695 | AC36: =IFERROR(VLOOKUP($A36,Filtro!$A$4:$AY$532,27,FALSE),0) -> 2835 | AD36: =IFERROR(VLOOKUP($A36,Filtro!$A$4:$AY$532,28,FALSE),0) -> 2679 | AE36: =IFERROR(VLOOKUP($A36,Filtro!$A$4:$AY$532,29,FALSE),0) -> 2064 | AF36: =IFERROR(VLOOKUP($A36,Filtro!$A$4:$AY$532,30,FALSE),0) -> 2029 | AG36: =IFERROR(VLOOKUP($A36,Filtro!$A$4:$AY$532,31,FALSE),0) -> 4750 | AH36: =IFERROR(VLOOKUP($A36,Filtro!$A$4:$AY$532,32,FALSE),0) -> 4316 | AI36: =IFERROR(VLOOKUP($A36,Filtro!$A$4:$AY$532,33,FALSE),0) -> 103 | AJ36: =IFERROR(VLOOKUP($A36,Filtro!$A$4:$AY$532,34,FALSE),0) -> 100 | AK36: =IFERROR(VLOOKUP($A36,Filtro!$A$4:$AY$532,35,FALSE),0) -> 295 | AL36: =IFERROR(VLOOKUP($A36,Filtro!$A$4:$AY$532,36,FALSE),0) -> 317 | BF36: =IF(AND(E36<>0,AI36=""), "* No olvide escribir en la celda de Pueblos Originarios (Digite CERO si no tiene). ",IF(AND(F36<>0,AJ36=""), "* No olvide escribir en la celda de Pueblos Originarios (Digite CERO si no tiene). ","")) ->  | BG36: =IF(AND(E36<>0,AK36=""), "* No olvide escribir en la celda de Población Migrantes (Digite CERO si no tiene). ",IF(AND(F36<>0,AL36=""), "* No olvide escribir en la celda de Población Migrantes (Digite CERO si no tiene). ","")) ->  | BP36: =IF(AND(E36<>0,AI36=""), 1,IF(AND(F36<>0,AJ36=""), 1,0)) -> 0 | BQ36: =IF(AND(E36<>0,AK36=""), 1,IF(AND(F36<>0,AL36=""), 1,0)) -> 0
C37: SUBTOTAL | D37: =SUM(E37:F37) -> 72200 | E37: =+I37+K37+M37+O37+Q37+S37+U37+W37+Y37+AA37+AC37+AE37+AG37 -> 36970 | F37: 35230 | I37: =SUM(I31:I36) -> 510 | J37: =SUM(J31:J36) -> 516 | K37: 661 | L37: 598 | M37: 598 | N37: 554 | O37: 655 | P37: 662 | Q37: 622 | R37: 603 | S37: 864 | T37: 855 | U37: 2919 | V37: 2762 | W37: 3714 | X37: 3600 | Y37: 3585 | Z37: 3495 | AA37: 7231 | AB37: 7014 | AC37: 4484 | AD37: 4162 | AE37: 3389 | AF37: 3262 | AG37: 7738 | AH37: 7147 | AI37: =SUM(AI31:AI36) -> 220 | AJ37: 195 | AK37: 400 | AL37: 395 | AM37: ="" & AY37 & AZ37 ->  | AY37: =IF($D37>=$AI37+$AJ37,"","* El Total de Pueblos Originarios no debe ser mayor al Total Indicador peso/talla. ") ->  | AZ37: =IF($D37>=$AK37+$AL37,"","* El Total de Población Migrantes no debe ser mayor al Total Indicador peso/talla. ") ->  | BI37: =IF($D37>=$AI37+$AJ37,0,1) -> 0 | BJ37: =IF($D37>=$AK37+$AL37,0,1) -> 0
A38: P2070506 | C38: DESNUTRICIÓN SECUNDARIA | D38: =IFERROR(VLOOKUP($A38,Filtro!$A$4:$AY$532,2,FALSE),0) -> 69 | E38: =IFERROR(VLOOKUP($A38,Filtro!$A$4:$AY$532,3,FALSE),0) -> 45 | F38: =IFERROR(VLOOKUP($A38,Filtro!$A$4:$AY$532,4,FALSE),0) -> 24 | G38: =IFERROR(VLOOKUP($A38,Filtro!$A$4:$AY$532,5,FALSE),0) -> 0 | H38: =IFERROR(VLOOKUP($A38,Filtro!$A$4:$AY$532,6,FALSE),0) -> 0 | I38: =IFERROR(VLOOKUP($A38,Filtro!$A$4:$AY$532,7,FALSE),0) -> 0 | J38: =IFERROR(VLOOKUP($A38,Filtro!$A$4:$AY$532,8,FALSE),0) -> 1 | K38: =IFERROR(VLOOKUP($A38,Filtro!$A$4:$AY$532,9,FALSE),0) -> 1 | L38: =IFERROR(VLOOKUP($A38,Filtro!$A$4:$AY$532,10,FALSE),0) -> 0 | M38: =IFERROR(VLOOKUP($A38,Filtro!$A$4:$AY$532,11,FALSE),0) -> 1 | N38: =IFERROR(VLOOKUP($A38,Filtro!$A$4:$AY$532,12,FALSE),0) -> 0 | O38: =IFERROR(VLOOKUP($A38,Filtro!$A$4:$AY$532,13,FALSE),0) -> 1 | P38: =IFERROR(VLOOKUP($A38,Filtro!$A$4:$AY$532,14,FALSE),0) -> 0 | Q38: =IFERROR(VLOOKUP($A38,Filtro!$A$4:$AY$532,15,FALSE),0) -> 0 | R38: =IFERROR(VLOOKUP($A38,Filtro!$A$4:$AY$532,16,FALSE),0) -> 2 | S38: =IFERROR(VLOOKUP($A38,Filtro!$A$4:$AY$532,17,FALSE),0) -> 1 | T38: =IFERROR(VLOOKUP($A38,Filtro!$A$4:$AY$532,18,FALSE),0) -> 0 | U38: =IFERROR(VLOOKUP($A38,Filtro!$A$4:$AY$532,19,FALSE),0) -> 6 | V38: =IFERROR(VLOOKUP($A38,Filtro!$A$4:$AY$532,20,FALSE),0) -> 5 | W38: =IFERROR(VLOOKUP($A38,Filtro!$A$4:$AY$532,21,FALSE),0) -> 5 | X38: =IFERROR(VLOOKUP($A38,Filtro!$A$4:$AY$532,22,FALSE),0) -> 3 | Y38: =IFERROR(VLOOKUP($A38,Filtro!$A$4:$AY$532,23,FALSE),0) -> 7 | Z38: =IFERROR(VLOOKUP($A38,Filtro!$A$4:$AY$532,24,FALSE),0) -> 1 | AA38: =IFERROR(VLOOKUP($A38,Filtro!$A$4:$AY$532,25,FALSE),0) -> 11 | AB38: =IFERROR(VLOOKUP($A38,Filtro!$A$4:$AY$532,26,FALSE),0) -> 2 | AC38: =IFERROR(VLOOKUP($A38,Filtro!$A$4:$AY$532,27,FALSE),0) -> 5 | AD38: =IFERROR(VLOOKUP($A38,Filtro!$A$4:$AY$532,28,FALSE),0) -> 4 | AE38: =IFERROR(VLOOKUP($A38,Filtro!$A$4:$AY$532,29,FALSE),0) -> 1 | AF38: =IFERROR(VLOOKUP($A38,Filtro!$A$4:$AY$532,30,FALSE),0) -> 1 | AG38: =IFERROR(VLOOKUP($A38,Filtro!$A$4:$AY$532,31,FALSE),0) -> 6 | AH38: =IFERROR(VLOOKUP($A38,Filtro!$A$4:$AY$532,32,FALSE),0) -> 5 | AI38: =IFERROR(VLOOKUP($A38,Filtro!$A$4:$AY$532,33,FALSE),0) -> 0 | AJ38: =IFERROR(VLOOKUP($A38,Filtro!$A$4:$AY$532,34,FALSE),0) -> 0 | AK38: =IFERROR(VLOOKUP($A38,Filtro!$A$4:$AY$532,35,FALSE),0) -> 0 | AL38: =IFERROR(VLOOKUP($A38,Filtro!$A$4:$AY$532,36,FALSE),0) -> 1 | BF38: =IF(AND(E38<>0,AI38=""), "* No olvide escribir en la celda de Pueblos Originarios (Digite CERO si no tiene). ",IF(AND(F38<>0,AJ38=""), "* No olvide escribir en la celda de Pueblos Originarios (Digite CERO si no tiene). ","")) ->  | BG38: =IF(AND(E38<>0,AK38=""), "* No olvide escribir en la celda de Población Migrantes (Digite CERO si no tiene). ",IF(AND(F38<>0,AL38=""), "* No olvide escribir en la celda de Población Migrantes (Digite CERO si no tiene). ","")) ->  | BP38: =IF(AND(E38<>0,AI38=""), 1,IF(AND(F38<>0,AJ38=""), 1,0)) -> 0 | BQ38: =IF(AND(E38<>0,AK38=""), 1,IF(AND(F38<>0,AL38=""), 1,0)) -> 0
C39: T O T A L | D39: =SUM(E39:F39) -> 72269 | E39: 37015 | F39: 35254 | I39: =SUM(I31:I36)+I38 -> 510 | J39: =SUM(J31:J36)+J38 -> 517 | K39: 662 | L39: 598 | M39: 599 | N39: 554 | O39: 656 | P39: 662 | Q39: 622 | R39: 605 | S39: 865 | T39: 855 | U39: 2925 | V39: 2767 | W39: 3719 | X39: 3603 | Y39: 3592 | Z39: 3496 | AA39: 7242 | AB39: 7016 | AC39: 4489 | AD39: 4166 | AE39: 3390 | AF39: 3263 | AG39: 7744 | AH39: 7152 | AI39: 220 | AJ39: 195 | AK39: 400 | AL39: 396 | AM39: ="" & AY39 & AZ39 ->  | AY39: =IF($D39>=$AI39+$AJ39,"","* El Total de Pueblos Originarios no debe ser mayor al Total Indicador peso/talla. ") ->  | AZ39: =IF($D39>=$AK39+$AL39,"","* El Total de Población Migrantes no debe ser mayor al Total Indicador peso/talla. ") ->  | BI39: =IF($D39>=$AI39+$AJ39,0,1) -> 0 | BJ39: =IF($D39>=$AK39+$AL39,0,1) -> 0
B40: SECCION A.1: POBLACIÓN EN CONTROL, SEGÚN ESTADO NUTRICIONAL PARA NIÑOS DE 60 MESES-9 AÑOS 11 MESES
B41: INDICADOR NUTRICIONAL Y PARÁMETROS DE MEDICIÓN | D41: TOTAL | G41: GRUPOS DE EDAD (en meses - años) Y SEXO
G42: 60 a 71 meses | I42: 6 a 9 años 11 meses | K42: Pueblos Originarios | M42: Población Migrantes
D43: Ambos sexos | E43: Hombres | F43: Mujeres | G43: Hombres | H43: Mujeres | I43: Hombres | J43: Mujeres | K43: Hombres | L43: Mujeres | M43: Hombres | N43: Mujeres
A44: P2400150 | B44: TOTAL DE NIÑOS EN CONTROL | D44: =IFERROR(VLOOKUP($A44,Filtro!$A$4:$AY$532,2,FALSE),0) -> 44348 | E44: =IFERROR(VLOOKUP($A44,Filtro!$A$4:$AY$532,3,FALSE),0) -> 22823 | F44: =IFERROR(VLOOKUP($A44,Filtro!$A$4:$AY$532,4,FALSE),0) -> 21525 | G44: =IFERROR(VLOOKUP($A44,Filtro!$A$4:$AY$532,5,FALSE),0) -> 7579 | H44: =IFERROR(VLOOKUP($A44,Filtro!$A$4:$AY$532,6,FALSE),0) -> 7010 | I44: =IFERROR(VLOOKUP($A44,Filtro!$A$4:$AY$532,7,FALSE),0) -> 15244 | J44: =IFERROR(VLOOKUP($A44,Filtro!$A$4:$AY$532,8,FALSE),0) -> 14515 | K44: =IFERROR(VLOOKUP($A44,Filtro!$A$4:$AY$532,9,FALSE),0) -> 72 | L44: =IFERROR(VLOOKUP($A44,Filtro!$A$4:$AY$532,10,FALSE),0) -> 80 | M44: =IFERROR(VLOOKUP($A44,Filtro!$A$4:$AY$532,11,FALSE),0) -> 215 | N44: =IFERROR(VLOOKUP($A44,Filtro!$A$4:$AY$532,12,FALSE),0) -> 170 | AY44: =IF(G44<>G72,"* El Total de niños en control no debe ser distinto al total del Diagnóstico Nutricional Integrado. ","") -> * El Total de niños en control no debe ser distinto al total del Diagnóstico Nutricional Integrado. | AZ44: =IF(H44<>H72,"* El Total de niñas en control no debe ser distinto al total del Diagnóstico Nutricional Integrado. ","") -> * El Total de niñas en control no debe ser distinto al total del Diagnóstico Nutricional Integrado. | BA44: =IF(I44<>I72,"* El Total de niños en control no debe ser distinto al total del Diagnóstico Nutricional Integrado. ","") -> * El Total de niños en control no debe ser distinto al total del Diagnóstico Nutricional Integrado. | BB44: =IF(J44<>J72,"* El Total de niñas en control no debe ser distinto al total del Diagnóstico Nutricional Integrado. ","") ->  | BC44: =IF($D44>=$K44+$L44,"","* El Total de Pueblos Originarios no debe ser mayor al total de niños en control. ") ->  | BD44: =IF($D44>=$M44+$N44,"","* El Total de Pueblación Migrantes no debe ser mayor al total de niños en control. ") ->  | BF44: =IF(AND(E44<>0,K44=""), "* No olvide escribir en la celda de Pueblos Originarios (Digite CERO si no tiene). ",IF(AND(F44<>0,L44=""), "* No olvide escribir en la celda de Pueblos Originarios (Digite CERO si no tiene). ","")) ->  | BG44: =IF(AND(E44<>0,M44=""), "* No olvide escribir en la celda de Población Migrantes (Digite CERO si no tiene). ",IF(AND(F44<>0,N44=""), "* No olvide escribir en la celda de Población Migrantes (Digite CERO si no tiene). ","")) ->  | BI44: =IF(G44<>G72,1,0) -> 1 | BJ44: =IF(H44<>H72,1,0) -> 1 | BK44: =IF(I44<>I72,1,0) -> 1 | BL44: =IF(J44<>J72,1,0) -> 0 | BM44: =IF($D44>=$K44+$L44,0,1) -> 0 | BN44: =IF($D44>=$M44+$N44,0,1) -> 0 | BP44: =IF(AND(E44<>0,K44=""), 1,IF(AND(F44<>0,L44=""), 1,0)) -> 0 | BQ44: =IF(AND(E44<>0,M44=""), 1,IF(AND(F44<>0,N44=""), 1,0)) -> 0
A45: P2400160 | B45: INDICADOR IMC / EDAD | C45: + 3 D.S. (>= 3 ) | D45: =IFERROR(VLOOKUP($A45,Filtro!$A$4:$AY$532,2,FALSE),0) -> 1803 | E45: =IFERROR(VLOOKUP($A45,Filtro!$A$4:$AY$532,3,FALSE),0) -> 1139 | F45: =IFERROR(VLOOKUP($A45,Filtro!$A$4:$AY$532,4,FALSE),0) -> 664 | G45: =IFERROR(VLOOKUP($A45,Filtro!$A$4:$AY$532,5,FALSE),0) -> 226 | H45: =IFERROR(VLOOKUP($A45,Filtro!$A$4:$AY$532,6,FALSE),0) -> 157 | I45: =IFERROR(VLOOKUP($A45,Filtro!$A$4:$AY$532,7,FALSE),0) -> 913 | J45: =IFERROR(VLOOKUP($A45,Filtro!$A$4:$AY$532,8,FALSE),0) -> 507 | K45: =IFERROR(VLOOKUP($A45,Filtro!$A$4:$AY$532,9,FALSE),0) -> 11 | L45: =IFERROR(VLOOKUP($A45,Filtro!$A$4:$AY$532,10,FALSE),0) -> 3 | M45: =IFERROR(VLOOKUP($A45,Filtro!$A$4:$AY$532,11,FALSE),0) -> 3 | N45: =IFERROR(VLOOKUP($A45,Filtro!$A$4:$AY$532,12,FALSE),0) -> 1 | O45: =BF45 & BG45 ->  | BF45: =IF(AND(E45<>0,K45=""), "* No olvide escribir en la celda de Pueblos Originarios (Digite CERO si no tiene). ",IF(AND(F45<>0,L45=""), "* No olvide escribir en la celda de Pueblos Originarios (Digite CERO si no tiene). ","")) ->  | BG45: =IF(AND(E45<>0,M45=""), "* No olvide escribir en la celda de Población Migrantes (Digite CERO si no tiene). ",IF(AND(F45<>0,N45=""), "* No olvide escribir en la celda de Población Migrantes (Digite CERO si no tiene). ","")) ->  | BP45: =IF(AND(E45<>0,K45=""), 1,IF(AND(F45<>0,L45=""), 1,0)) -> 0 | BQ45: =IF(AND(E45<>0,M45=""), 1,IF(AND(F45<>0,N45=""), 1,0)) -> 0
A46: P2400170 | C46: + 2 D.S. (>= +2.0 a +2.9) | D46: =IFERROR(VLOOKUP($A46,Filtro!$A$4:$AY$532,2,FALSE),0) -> 6964 | E46: =IFERROR(VLOOKUP($A46,Filtro!$A$4:$AY$532,3,FALSE),0) -> 3620 | F46: =IFERROR(VLOOKUP($A46,Filtro!$A$4:$AY$532,4,FALSE),0) -> 3344 | G46: =IFERROR(VLOOKUP($A46,Filtro!$A$4:$AY$532,5,FALSE),0) -> 1014 | H46: =IFERROR(VLOOKUP($A46,Filtro!$A$4:$AY$532,6,FALSE),0) -> 909 | I46: =IFERROR(VLOOKUP($A46,Filtro!$A$4:$AY$532,7,FALSE),0) -> 2606 | J46: =IFERROR(VLOOKUP($A46,Filtro!$A$4:$AY$532,8,FALSE),0) -> 2435 | K46: =IFERROR(VLOOKUP($A46,Filtro!$A$4:$AY$532,9,FALSE),0) -> 14 | L46: =IFERROR(VLOOKUP($A46,Filtro!$A$4:$AY$532,10,FALSE),0) -> 16 | M46: =IFERROR(VLOOKUP($A46,Filtro!$A$4:$AY$532,11,FALSE),0) -> 2 | N46: =IFERROR(VLOOKUP($A46,Filtro!$A$4:$AY$532,12,FALSE),0) -> 12 | O46: =BF46 & BG46 ->  | BF46: =IF(AND(E46<>0,K46=""), "* No olvide escribir en la celda de Pueblos Originarios (Digite CERO si no tiene). ",IF(AND(F46<>0,L46=""), "* No olvide escribir en la celda de Pueblos Originarios (Digite CERO si no tiene). ","")) ->  | BG46: =IF(AND(E46<>0,M46=""), "* No olvide escribir en la celda de Población Migrantes (Digite CERO si no tiene). ",IF(AND(F46<>0,N46=""), "* No olvide escribir en la celda de Población Migrantes (Digite CERO si no tiene). ","")) ->  | BP46: 0 | BQ46: 0
A47: P2400180 | C47: + 1 D.S. (>= +1.0 a +1.9) | D47: =IFERROR(VLOOKUP($A47,Filtro!$A$4:$AY$532,2,FALSE),0) -> 9570 | E47: =IFERROR(VLOOKUP($A47,Filtro!$A$4:$AY$532,3,FALSE),0) -> 4662 | F47: =IFERROR(VLOOKUP($A47,Filtro!$A$4:$AY$532,4,FALSE),0) -> 4908 | G47: =IFERROR(VLOOKUP($A47,Filtro!$A$4:$AY$532,5,FALSE),0) -> 1645 | H47: =IFERROR(VLOOKUP($A47,Filtro!$A$4:$AY$532,6,FALSE),0) -> 1519 | I47: =IFERROR(VLOOKUP($A47,Filtro!$A$4:$AY$532,7,FALSE),0) -> 3017 | J47: =IFERROR(VLOOKUP($A47,Filtro!$A$4:$AY$532,8,FALSE),0) -> 3389 | K47: =IFERROR(VLOOKUP($A47,Filtro!$A$4:$AY$532,9,FALSE),0) -> 13 | L47: =IFERROR(VLOOKUP($A47,Filtro!$A$4:$AY$532,10,FALSE),0) -> 16 | M47: =IFERROR(VLOOKUP($A47,Filtro!$A$4:$AY$532,11,FALSE),0) -> 25 | N47: =IFERROR(VLOOKUP($A47,Filtro!$A$4:$AY$532,12,FALSE),0) -> 20 | O47: =BF47 & BG47 ->  | BF47: =IF(AND(E47<>0,K47=""), "* No olvide escribir en la celda de Pueblos Originarios (Digite CERO si no tiene). ",IF(AND(F47<>0,L47=""), "* No olvide escribir en la celda de Pueblos Originarios (Digite CERO si no tiene). ","")) ->  | BG47: =IF(AND(E47<>0,M47=""), "* No olvide escribir en la celda de Población Migrantes (Digite CERO si no tiene). ",IF(AND(F47<>0,N47=""), "* No olvide escribir en la celda de Población Migrantes (Digite CERO si no tiene). ","")) ->  | BP47: 0 | BQ47: 0
C48: TOTAL | D48: =+E48+F48 -> 18337 | E48: =+G48+I48 -> 9421 | F48: =+H48+J48 -> 8916 | G48: =SUM(G45:G47) -> 2885 | H48: =SUM(H45:H47) -> 2585 | I48: 6536 | J48: 6331 | K48: 38 | L48: 35 | M48: 30 | N48: 33 | O48: =BC48 & BD48 ->  | BC48: =IF($D48>=$K48+$L48,"","* El Total de Pueblos Originarios no debe ser mayor al total de niños en control. ") ->  | BD48: =IF($D48>=$M48+$N48,"","* El Total de Pueblación Migrantes no debe ser mayor al total de niños en control. ") ->  | BM48: =IF($D48>=$K48+$L48,0,1) -> 0 | BN48: =IF($D48>=$M48+$N48,0,1) -> 0
A49: P2400190 | C49: - 1 D.S. (<= -1.0 a -1.9) | D49: =IFERROR(VLOOKUP($A49,Filtro!$A$4:$AY$532,2,FALSE),0) -> 1161 | E49: =IFERROR(VLOOKUP($A49,Filtro!$A$4:$AY$532,3,FALSE),0) -> 645 | F49: =IFERROR(VLOOKUP($A49,Filtro!$A$4:$AY$532,4,FALSE),0) -> 516 | G49: =IFERROR(VLOOKUP($A49,Filtro!$A$4:$AY$532,5,FALSE),0) -> 205 | H49: =IFERROR(VLOOKUP($A49,Filtro!$A$4:$AY$532,6,FALSE),0) -> 159 | I49: =IFERROR(VLOOKUP($A49,Filtro!$A$4:$AY$532,7,FALSE),0) -> 440 | J49: =IFERROR(VLOOKUP($A49,Filtro!$A$4:$AY$532,8,FALSE),0) -> 357 | K49: =IFERROR(VLOOKUP($A49,Filtro!$A$4:$AY$532,9,FALSE),0) -> 3 | L49: =IFERROR(VLOOKUP($A49,Filtro!$A$4:$AY$532,10,FALSE),0) -> 0 | M49: =IFERROR(VLOOKUP($A49,Filtro!$A$4:$AY$532,11,FALSE),0) -> 9 | N49: =IFERROR(VLOOKUP($A49,Filtro!$A$4:$AY$532,12,FALSE),0) -> 4 | O49: =BF49 & BG49 ->  | BF49: =IF(AND(E49<>0,K49=""), "* No olvide escribir en la celda de Pueblos Originarios (Digite CERO si no tiene). ",IF(AND(F49<>0,L49=""), "* No olvide escribir en la celda de Pueblos Originarios (Digite CERO si no tiene). ","")) ->  | BG49: =IF(AND(E49<>0,M49=""), "* No olvide escribir en la celda de Población Migrantes (Digite CERO si no tiene). ",IF(AND(F49<>0,N49=""), "* No olvide escribir en la celda de Población Migrantes (Digite CERO si no tiene). ","")) ->  | BP49: =IF(AND(E49<>0,K49=""), 1,IF(AND(F49<>0,L49=""), 1,0)) -> 0 | BQ49: =IF(AND(E49<>0,M49=""), 1,IF(AND(F49<>0,N49=""), 1,0)) -> 0
A50: P2400200 | C50: - 2 D.S. (<= -2.0) | D50: =IFERROR(VLOOKUP($A50,Filtro!$A$4:$AY$532,2,FALSE),0) -> 113 | E50: =IFERROR(VLOOKUP($A50,Filtro!$A$4:$AY$532,3,FALSE),0) -> 59 | F50: =IFERROR(VLOOKUP($A50,Filtro!$A$4:$AY$532,4,FALSE),0) -> 54 | G50: =IFERROR(VLOOKUP($A50,Filtro!$A$4:$AY$532,5,FALSE),0) -> 16 | H50: =IFERROR(VLOOKUP($A50,Filtro!$A$4:$AY$532,6,FALSE),0) -> 21 | I50: =IFERROR(VLOOKUP($A50,Filtro!$A$4:$AY$532,7,FALSE),0) -> 43 | J50: =IFERROR(VLOOKUP($A50,Filtro!$A$4:$AY$532,8,FALSE),0) -> 33 | K50: =IFERROR(VLOOKUP($A50,Filtro!$A$4:$AY$532,9,FALSE),0) -> 1 | L50: =IFERROR(VLOOKUP($A50,Filtro!$A$4:$AY$532,10,FALSE),0) -> 0 | M50: =IFERROR(VLOOKUP($A50,Filtro!$A$4:$AY$532,11,FALSE),0) -> 2 | N50: =IFERROR(VLOOKUP($A50,Filtro!$A$4:$AY$532,12,FALSE),0) -> 0 | O50: =BF50 & BG50 ->  | BF50: =IF(AND(E50<>0,K50=""), "* No olvide escribir en la celda de Pueblos Originarios (Digite CERO si no tiene). ",IF(AND(F50<>0,L50=""), "* No olvide escribir en la celda de Pueblos Originarios (Digite CERO si no tiene). ","")) ->  | BG50: =IF(AND(E50<>0,M50=""), "* No olvide escribir en la celda de Población Migrantes (Digite CERO si no tiene). ",IF(AND(F50<>0,N50=""), "* No olvide escribir en la celda de Población Migrantes (Digite CERO si no tiene). ","")) ->  | BP50: 0 | BQ50: 0
C51: TOTAL | D51: 1274 | E51: 704 | F51: 570 | G51: =SUM(G49:G50) -> 221 | H51: =SUM(H49:H50) -> 180 | I51: 483 | J51: 390 | K51: 4 | L51: 0 | M51: 11 | N51: 4 | O51: =BC51 & BD51 ->  | BC51: =IF($D51>=$K51+$L51,"","* El Total de Pueblos Originarios no debe ser mayor al total de niños en control. ") ->  | BD51: =IF($D51>=$M51+$N51,"","* El Total de Pueblación Migrantes no debe ser mayor al total de niños en control. ") ->  | BM51: =IF($D51>=$K51+$L51,0,1) -> 0 | BN51: =IF($D51>=$M51+$N51,0,1) -> 0
A52: P2400210 | C52: PROMEDIO (-0,9 A + 0,9) | D52: =IFERROR(VLOOKUP($A52,Filtro!$A$4:$AY$532,2,FALSE),0) -> 18010 | E52: =IFERROR(VLOOKUP($A52,Filtro!$A$4:$AY$532,3,FALSE),0) -> 9362 | F52: =IFERROR(VLOOKUP($A52,Filtro!$A$4:$AY$532,4,FALSE),0) -> 8648 | G52: =IFERROR(VLOOKUP($A52,Filtro!$A$4:$AY$532,5,FALSE),0) -> 3228 | H52: =IFERROR(VLOOKUP($A52,Filtro!$A$4:$AY$532,6,FALSE),0) -> 3002 | I52: =IFERROR(VLOOKUP($A52,Filtro!$A$4:$AY$532,7,FALSE),0) -> 6134 | J52: =IFERROR(VLOOKUP($A52,Filtro!$A$4:$AY$532,8,FALSE),0) -> 5646 | K52: =IFERROR(VLOOKUP($A52,Filtro!$A$4:$AY$532,9,FALSE),0) -> 18 | L52: =IFERROR(VLOOKUP($A52,Filtro!$A$4:$AY$532,10,FALSE),0) -> 26 | M52: =IFERROR(VLOOKUP($A52,Filtro!$A$4:$AY$532,11,FALSE),0) -> 63 | N52: =IFERROR(VLOOKUP($A52,Filtro!$A$4:$AY$532,12,FALSE),0) -> 55 | O52: =BF52 & BG52 ->  | BF52: =IF(AND(E52<>0,K52=""), "* No olvide escribir en la celda de Pueblos Originarios (Digite CERO si no tiene). ",IF(AND(F52<>0,L52=""), "* No olvide escribir en la celda de Pueblos Originarios (Digite CERO si no tiene). ","")) ->  | BG52: =IF(AND(E52<>0,M52=""), "* No olvide escribir en la celda de Población Migrantes (Digite CERO si no tiene). ",IF(AND(F52<>0,N52=""), "* No olvide escribir en la celda de Población Migrantes (Digite CERO si no tiene). ","")) ->  | BP52: =IF(AND(E52<>0,K52=""), 1,IF(AND(F52<>0,L52=""), 1,0)) -> 0 | BQ52: =IF(AND(E52<>0,M52=""), 1,IF(AND(F52<>0,N52=""), 1,0)) -> 0
A53: P2400220 | B53: INDICADOR TALLA/EDAD | C53: + 2 D.S. (>= +2.0) | D53: =IFERROR(VLOOKUP($A53,Filtro!$A$4:$AY$532,2,FALSE),0) -> 1173 | E53: =IFERROR(VLOOKUP($A53,Filtro!$A$4:$AY$532,3,FALSE),0) -> 624 | F53: =IFERROR(VLOOKUP($A53,Filtro!$A$4:$AY$532,4,FALSE),0) -> 549 | G53: =IFERROR(VLOOKUP($A53,Filtro!$A$4:$AY$532,5,FALSE),0) -> 167 | H53: =IFERROR(VLOOKUP($A53,Filtro!$A$4:$AY$532,6,FALSE),0) -> 156 | I53: =IFERROR(VLOOKUP($A53,Filtro!$A$4:$AY$532,7,FALSE),0) -> 457 | J53: =IFERROR(VLOOKUP($A53,Filtro!$A$4:$AY$532,8,FALSE),0) -> 393 | K53: =IFERROR(VLOOKUP($A53,Filtro!$A$4:$AY$532,9,FALSE),0) -> 2 | L53: =IFERROR(VLOOKUP($A53,Filtro!$A$4:$AY$532,10,FALSE),0) -> 4 | M53: =IFERROR(VLOOKUP($A53,Filtro!$A$4:$AY$532,11,FALSE),0) -> 1 | N53: =IFERROR(VLOOKUP($A53,Filtro!$A$4:$AY$532,12,FALSE),0) -> 0 | O53: =BF53 & BG53 ->  | BF53: =IF(AND(E53<>0,K53=""), "* No olvide escribir en la celda de Pueblos Originarios (Digite CERO si no tiene). ",IF(AND(F53<>0,L53=""), "* No olvide escribir en la celda de Pueblos Originarios (Digite CERO si no tiene). ","")) ->  | BG53: =IF(AND(E53<>0,M53=""), "* No olvide escribir en la celda de Población Migrantes (Digite CERO si no tiene). ",IF(AND(F53<>0,N53=""), "* No olvide escribir en la celda de Población Migrantes (Digite CERO si no tiene). ","")) ->  | BP53: 0 | BQ53: 0
A54: P2400230 | C54: + 1 D.S. (+1.0 a +1.9) | D54: =IFERROR(VLOOKUP($A54,Filtro!$A$4:$AY$532,2,FALSE),0) -> 5204 | E54: =IFERROR(VLOOKUP($A54,Filtro!$A$4:$AY$532,3,FALSE),0) -> 2580 | F54: =IFERROR(VLOOKUP($A54,Filtro!$A$4:$AY$532,4,FALSE),0) -> 2624 | G54: =IFERROR(VLOOKUP($A54,Filtro!$A$4:$AY$532,5,FALSE),0) -> 816 | H54: =IFERROR(VLOOKUP($A54,Filtro!$A$4:$AY$532,6,FALSE),0) -> 729 | I54: =IFERROR(VLOOKUP($A54,Filtro!$A$4:$AY$532,7,FALSE),0) -> 1764 | J54: =IFERROR(VLOOKUP($A54,Filtro!$A$4:$AY$532,8,FALSE),0) -> 1895 | K54: =IFERROR(VLOOKUP($A54,Filtro!$A$4:$AY$532,9,FALSE),0) -> 14 | L54: =IFERROR(VLOOKUP($A54,Filtro!$A$4:$AY$532,10,FALSE),0) -> 6 | M54: =IFERROR(VLOOKUP($A54,Filtro!$A$4:$AY$532,11,FALSE),0) -> 9 | N54: =IFERROR(VLOOKUP($A54,Filtro!$A$4:$AY$532,12,FALSE),0) -> 12 | O54: =BF54 & BG54 ->  | BF54: =IF(AND(E54<>0,K54=""), "* No olvide escribir en la celda de Pueblos Originarios (Digite CERO si no tiene). ",IF(AND(F54<>0,L54=""), "* No olvide escribir en la celda de Pueblos Originarios (Digite CERO si no tiene). ","")) ->  | BG54: =IF(AND(E54<>0,M54=""), "* No olvide escribir en la celda de Población Migrantes (Digite CERO si no tiene). ",IF(AND(F54<>0,N54=""), "* No olvide escribir en la celda de Población Migrantes (Digite CERO si no tiene). ","")) ->  | BP54: 0 | BQ54: 0
C55: TOTAL | D55: 6377 | E55: 3204 | F55: 3173 | G55: =SUM(G53:G54) -> 983 | H55: =SUM(H53:H54) -> 885 | I55: 2221 | J55: 2288 | K55: 16 | L55: 10 | M55: 10 | N55: 12 | O55: =BC55 & BD55 ->  | BC55: =IF($D55>=$K55+$L55,"","* El Total de Pueblos Originarios no debe ser mayor al total de niños en control. ") ->  | BD55: =IF($D55>=$M55+$N55,"","* El Total de Pueblación Migrantes no debe ser mayor al total de niños en control. ") ->  | BM55: =IF($D55>=$K55+$L55,0,1) -> 0 | BN55: =IF($D55>=$M55+$N55,0,1) -> 0
A56: P2400240 | C56: - 1 D.S. (-1.0 a -1.9) | D56: =IFERROR(VLOOKUP($A56,Filtro!$A$4:$AY$532,2,FALSE),0) -> 4211 | E56: =IFERROR(VLOOKUP($A56,Filtro!$A$4:$AY$532,3,FALSE),0) -> 2169 | F56: =IFERROR(VLOOKUP($A56,Filtro!$A$4:$AY$532,4,FALSE),0) -> 2042 | G56: =IFERROR(VLOOKUP($A56,Filtro!$A$4:$AY$532,5,FALSE),0) -> 860 | H56: =IFERROR(VLOOKUP($A56,Filtro!$A$4:$AY$532,6,FALSE),0) -> 737 | I56: =IFERROR(VLOOKUP($A56,Filtro!$A$4:$AY$532,7,FALSE),0) -> 1309 | J56: =IFERROR(VLOOKUP($A56,Filtro!$A$4:$AY$532,8,FALSE),0) -> 1305 | K56: =IFERROR(VLOOKUP($A56,Filtro!$A$4:$AY$532,9,FALSE),0) -> 4 | L56: =IFERROR(VLOOKUP($A56,Filtro!$A$4:$AY$532,10,FALSE),0) -> 3 | M56: =IFERROR(VLOOKUP($A56,Filtro!$A$4:$AY$532,11,FALSE),0) -> 22 | N56: =IFERROR(VLOOKUP($A56,Filtro!$A$4:$AY$532,12,FALSE),0) -> 18 | O56: =BF56 & BG56 ->  | BF56: =IF(AND(E56<>0,K56=""), "* No olvide escribir en la celda de Pueblos Originarios (Digite CERO si no tiene). ",IF(AND(F56<>0,L56=""), "* No olvide escribir en la celda de Pueblos Originarios (Digite CERO si no tiene). ","")) ->  | BG56: =IF(AND(E56<>0,M56=""), "* No olvide escribir en la celda de Población Migrantes (Digite CERO si no tiene). ",IF(AND(F56<>0,N56=""), "* No olvide escribir en la celda de Población Migrantes (Digite CERO si no tiene). ","")) ->  | BP56: =IF(AND(E56<>0,K56=""), 1,IF(AND(F56<>0,L56=""), 1,0)) -> 0 | BQ56: =IF(AND(E56<>0,M56=""), 1,IF(AND(F56<>0,N56=""), 1,0)) -> 0
A57: P2400250 | C57: - 2 D.S. (<= -2.0) | D57: =IFERROR(VLOOKUP($A57,Filtro!$A$4:$AY$532,2,FALSE),0) -> 539 | E57: =IFERROR(VLOOKUP($A57,Filtro!$A$4:$AY$532,3,FALSE),0) -> 280 | F57: =IFERROR(VLOOKUP($A57,Filtro!$A$4:$AY$532,4,FALSE),0) -> 259 | G57: =IFERROR(VLOOKUP($A57,Filtro!$A$4:$AY$532,5,FALSE),0) -> 109 | H57: =IFERROR(VLOOKUP($A57,Filtro!$A$4:$AY$532,6,FALSE),0) -> 108 | I57: =IFERROR(VLOOKUP($A57,Filtro!$A$4:$AY$532,7,FALSE),0) -> 171 | J57: =IFERROR(VLOOKUP($A57,Filtro!$A$4:$AY$532,8,FALSE),0) -> 151 | K57: =IFERROR(VLOOKUP($A57,Filtro!$A$4:$AY$532,9,FALSE),0) -> 0 | L57: =IFERROR(VLOOKUP($A57,Filtro!$A$4:$AY$532,10,FALSE),0) -> 0 | M57: =IFERROR(VLOOKUP($A57,Filtro!$A$4:$AY$532,11,FALSE),0) -> 7 | N57: =IFERROR(VLOOKUP($A57,Filtro!$A$4:$AY$532,12,FALSE),0) -> 0 | O57: =BF57 & BG57 ->  | BF57: =IF(AND(E57<>0,K57=""), "* No olvide escribir en la celda de Pueblos Originarios (Digite CERO si no tiene). ",IF(AND(F57<>0,L57=""), "* No olvide escribir en la celda de Pueblos Originarios (Digite CERO si no tiene). ","")) ->  | BG57: =IF(AND(E57<>0,M57=""), "* No olvide escribir en la celda de Población Migrantes (Digite CERO si no tiene). ",IF(AND(F57<>0,N57=""), "* No olvide escribir en la celda de Población Migrantes (Digite CERO si no tiene). ","")) ->  | BP57: 0 | BQ57: 0
C58: TOTAL | D58: 4750 | E58: 2449 | F58: 2301 | G58: =SUM(G56:G57) -> 969 | H58: =SUM(H56:H57) -> 845 | I58: 1480 | J58: 1456 | K58: 4 | L58: 3 | M58: 29 | N58: 18 | O58: =BC58 & BD58 ->  | BC58: =IF($D58>=$K58+$L58,"","* El Total de Pueblos Originarios no debe ser mayor al total de niños en control. ") ->  | BD58: =IF($D58>=$M58+$N58,"","* El Total de Pueblación Migrantes no debe ser mayor al total de niños en control. ") ->  | BM58: =IF($D58>=$K58+$L58,0,1) -> 0 | BN58: =IF($D58>=$M58+$N58,0,1) -> 0
A59: P2400260 | C59: PROMEDIO (-0,9 A + 0,9) | D59: =IFERROR(VLOOKUP($A59,Filtro!$A$4:$AY$532,2,FALSE),0) -> 23576 | E59: =IFERROR(VLOOKUP($A59,Filtro!$A$4:$AY$532,3,FALSE),0) -> 12228 | F59: =IFERROR(VLOOKUP($A59,Filtro!$A$4:$AY$532,4,FALSE),0) -> 11348 | G59: =IFERROR(VLOOKUP($A59,Filtro!$A$4:$AY$532,5,FALSE),0) -> 3917 | H59: =IFERROR(VLOOKUP($A59,Filtro!$A$4:$AY$532,6,FALSE),0) -> 3605 | I59: =IFERROR(VLOOKUP($A59,Filtro!$A$4:$AY$532,7,FALSE),0) -> 8311 | J59: =IFERROR(VLOOKUP($A59,Filtro!$A$4:$AY$532,8,FALSE),0) -> 7743 | K59: =IFERROR(VLOOKUP($A59,Filtro!$A$4:$AY$532,9,FALSE),0) -> 19 | L59: =IFERROR(VLOOKUP($A59,Filtro!$A$4:$AY$532,10,FALSE),0) -> 29 | M59: =IFERROR(VLOOKUP($A59,Filtro!$A$4:$AY$532,11,FALSE),0) -> 82 | N59: =IFERROR(VLOOKUP($A59,Filtro!$A$4:$AY$532,12,FALSE),0) -> 65 | O59: =BF59 & BG59 ->  | BF59: =IF(AND(E59<>0,K59=""), "* No olvide escribir en la celda de Pueblos Originarios (Digite CERO si no tiene). ",IF(AND(F59<>0,L59=""), "* No olvide escribir en la celda de Pueblos Originarios (Digite CERO si no tiene). ","")) ->  | BG59: =IF(AND(E59<>0,M59=""), "* No olvide escribir en la celda de Población Migrantes (Digite CERO si no tiene). ",IF(AND(F59<>0,N59=""), "* No olvide escribir en la celda de Población Migrantes (Digite CERO si no tiene). ","")) ->  | BP59: =IF(AND(E59<>0,K59=""), 1,IF(AND(F59<>0,L59=""), 1,0)) -> 0 | BQ59: =IF(AND(E59<>0,M59=""), 1,IF(AND(F59<>0,N59=""), 1,0)) -> 0
A60: P2400270 | B60: INDICADOR PERIMETRO DE CINTURA / EDAD | C60: NORMAL (<p75) | D60: =IFERROR(VLOOKUP($A60,Filtro!$A$4:$AY$532,2,FALSE),0) -> 16961 | E60: =IFERROR(VLOOKUP($A60,Filtro!$A$4:$AY$532,3,FALSE),0) -> 8861 | F60: =IFERROR(VLOOKUP($A60,Filtro!$A$4:$AY$532,4,FALSE),0) -> 8100 | G60: =IFERROR(VLOOKUP($A60,Filtro!$A$4:$AY$532,5,FALSE),0) -> 3055 | H60: =IFERROR(VLOOKUP($A60,Filtro!$A$4:$AY$532,6,FALSE),0) -> 2805 | I60: =IFERROR(VLOOKUP($A60,Filtro!$A$4:$AY$532,7,FALSE),0) -> 5806 | J60: =IFERROR(VLOOKUP($A60,Filtro!$A$4:$AY$532,8,FALSE),0) -> 5295 | K60: =IFERROR(VLOOKUP($A60,Filtro!$A$4:$AY$532,9,FALSE),0) -> 17 | L60: =IFERROR(VLOOKUP($A60,Filtro!$A$4:$AY$532,10,FALSE),0) -> 24 | M60: =IFERROR(VLOOKUP($A60,Filtro!$A$4:$AY$532,11,FALSE),0) -> 39 | N60: =IFERROR(VLOOKUP($A60,Filtro!$A$4:$AY$532,12,FALSE),0) -> 32 | O60: =BF60 & BG60 ->  | BF60: =IF(AND(E60<>0,K60=""), "* No olvide escribir en la celda de Pueblos Originarios (Digite CERO si no tiene). ",IF(AND(F60<>0,L60=""), "* No olvide escribir en la celda de Pueblos Originarios (Digite CERO si no tiene). ","")) ->  | BG60: =IF(AND(E60<>0,M60=""), "* No olvide escribir en la celda de Población Migrantes (Digite CERO si no tiene). ",IF(AND(F60<>0,N60=""), "* No olvide escribir en la celda de Población Migrantes (Digite CERO si no tiene). ","")) ->  | BP60: 0 | BQ60: 0
A61: P2400280 | C61: RIESGO DE OBESIDAD ABDOMINAL (75<p<90) | D61: =IFERROR(VLOOKUP($A61,Filtro!$A$4:$AY$532,2,FALSE),0) -> 5240 | E61: =IFERROR(VLOOKUP($A61,Filtro!$A$4:$AY$532,3,FALSE),0) -> 2638 | F61: =IFERROR(VLOOKUP($A61,Filtro!$A$4:$AY$532,4,FALSE),0) -> 2602 | G61: =IFERROR(VLOOKUP($A61,Filtro!$A$4:$AY$532,5,FALSE),0) -> 826 | H61: =IFERROR(VLOOKUP($A61,Filtro!$A$4:$AY$532,6,FALSE),0) -> 747 | I61: =IFERROR(VLOOKUP($A61,Filtro!$A$4:$AY$532,7,FALSE),0) -> 1812 | J61: =IFERROR(VLOOKUP($A61,Filtro!$A$4:$AY$532,8,FALSE),0) -> 1855 | K61: =IFERROR(VLOOKUP($A61,Filtro!$A$4:$AY$532,9,FALSE),0) -> 11 | L61: =IFERROR(VLOOKUP($A61,Filtro!$A$4:$AY$532,10,FALSE),0) -> 13 | M61: =IFERROR(VLOOKUP($A61,Filtro!$A$4:$AY$532,11,FALSE),0) -> 7 | N61: =IFERROR(VLOOKUP($A61,Filtro!$A$4:$AY$532,12,FALSE),0) -> 8 | O61: =BF61 & BG61 ->  | BF61: =IF(AND(E61<>0,K61=""), "* No olvide escribir en la celda de Pueblos Originarios (Digite CERO si no tiene). ",IF(AND(F61<>0,L61=""), "* No olvide escribir en la celda de Pueblos Originarios (Digite CERO si no tiene). ","")) ->  | BG61: =IF(AND(E61<>0,M61=""), "* No olvide escribir en la celda de Población Migrantes (Digite CERO si no tiene). ",IF(AND(F61<>0,N61=""), "* No olvide escribir en la celda de Población Migrantes (Digite CERO si no tiene). ","")) ->  | BP61: 0 | BQ61: 0
A62: P2400290 | C62: OBESIDAD ABDOMINAL (>p90) | D62: =IFERROR(VLOOKUP($A62,Filtro!$A$4:$AY$532,2,FALSE),0) -> 4805 | E62: =IFERROR(VLOOKUP($A62,Filtro!$A$4:$AY$532,3,FALSE),0) -> 2405 | F62: =IFERROR(VLOOKUP($A62,Filtro!$A$4:$AY$532,4,FALSE),0) -> 2400 | G62: =IFERROR(VLOOKUP($A62,Filtro!$A$4:$AY$532,5,FALSE),0) -> 615 | H62: =IFERROR(VLOOKUP($A62,Filtro!$A$4:$AY$532,6,FALSE),0) -> 657 | I62: =IFERROR(VLOOKUP($A62,Filtro!$A$4:$AY$532,7,FALSE),0) -> 1790 | J62: =IFERROR(VLOOKUP($A62,Filtro!$A$4:$AY$532,8,FALSE),0) -> 1743 | K62: =IFERROR(VLOOKUP($A62,Filtro!$A$4:$AY$532,9,FALSE),0) -> 16 | L62: =IFERROR(VLOOKUP($A62,Filtro!$A$4:$AY$532,10,FALSE),0) -> 14 | M62: =IFERROR(VLOOKUP($A62,Filtro!$A$4:$AY$532,11,FALSE),0) -> 14 | N62: =IFERROR(VLOOKUP($A62,Filtro!$A$4:$AY$532,12,FALSE),0) -> 17 | O62: =BF62 & BG62 ->  | BF62: =IF(AND(E62<>0,K62=""), "* No olvide escribir en la celda de Pueblos Originarios (Digite CERO si no tiene). ",IF(AND(F62<>0,L62=""), "* No olvide escribir en la celda de Pueblos Originarios (Digite CERO si no tiene). ","")) ->  | BG62: =IF(AND(E62<>0,M62=""), "* No olvide escribir en la celda de Población Migrantes (Digite CERO si no tiene). ",IF(AND(F62<>0,N62=""), "* No olvide escribir en la celda de Población Migrantes (Digite CERO si no tiene). ","")) ->  | BP62: 0 | BQ62: 0
C63: TOTAL | D63: =+E63+F63 -> 27006 | E63: =+G63+I63 -> 13904 | F63: 13102 | G63: =SUM(G60:G62) -> 4496 | H63: =SUM(H60:H62) -> 4209 | I63: 9408 | J63: 8893 | K63: 44 | L63: 51 | M63: 60 | N63: 57 | O63: =BC63 & BD63 ->  | BC63: =IF($D63>=$K63+$L63,"","* El Total de Pueblos Originarios no debe ser mayor al total de niños en control. ") ->  | BD63: =IF($D63>=$M63+$N63,"","* El Total de Pueblación Migrantes no debe ser mayor al total de niños en control. ") ->  | BM63: =IF($D63>=$K63+$L63,0,1) -> 0 | BN63: =IF($D63>=$M63+$N63,0,1) -> 0
A64: P2400300 | B64: DIAGNOSTICO NUTRICIONAL INTEGRADO | C64: RIESGO DE DESNUTRIR/ DEFICIT PONDERAL* | D64: =IFERROR(VLOOKUP($A64,Filtro!$A$4:$AY$532,2,FALSE),0) -> 1031 | E64: =IFERROR(VLOOKUP($A64,Filtro!$A$4:$AY$532,3,FALSE),0) -> 570 | F64: =IFERROR(VLOOKUP($A64,Filtro!$A$4:$AY$532,4,FALSE),0) -> 461 | G64: =IFERROR(VLOOKUP($A64,Filtro!$A$4:$AY$532,5,FALSE),0) -> 172 | H64: =IFERROR(VLOOKUP($A64,Filtro!$A$4:$AY$532,6,FALSE),0) -> 136 | I64: =IFERROR(VLOOKUP($A64,Filtro!$A$4:$AY$532,7,FALSE),0) -> 398 | J64: =IFERROR(VLOOKUP($A64,Filtro!$A$4:$AY$532,8,FALSE),0) -> 325 | K64: =IFERROR(VLOOKUP($A64,Filtro!$A$4:$AY$532,9,FALSE),0) -> 3 | L64: =IFERROR(VLOOKUP($A64,Filtro!$A$4:$AY$532,10,FALSE),0) -> 0 | M64: =IFERROR(VLOOKUP($A64,Filtro!$A$4:$AY$532,11,FALSE),0) -> 2 | N64: =IFERROR(VLOOKUP($A64,Filtro!$A$4:$AY$532,12,FALSE),0) -> 3 | O64: =BF64 & BG64 ->  | BF64: =IF(AND(E64<>0,K64=""), "* No olvide escribir en la celda de Pueblos Originarios (Digite CERO si no tiene). ",IF(AND(F64<>0,L64=""), "* No olvide escribir en la celda de Pueblos Originarios (Digite CERO si no tiene). ","")) ->  | BG64: =IF(AND(E64<>0,M64=""), "* No olvide escribir en la celda de Población Migrantes (Digite CERO si no tiene). ",IF(AND(F64<>0,N64=""), "* No olvide escribir en la celda de Población Migrantes (Digite CERO si no tiene). ","")) ->  | BP64: =IF(AND(E64<>0,K64=""), 1,IF(AND(F64<>0,L64=""), 1,0)) -> 0 | BQ64: =IF(AND(E64<>0,M64=""), 1,IF(AND(F64<>0,N64=""), 1,0)) -> 0
A65: P2400310 | C65: DESNUTRIDO | D65: =IFERROR(VLOOKUP($A65,Filtro!$A$4:$AY$532,2,FALSE),0) -> 98 | E65: =IFERROR(VLOOKUP($A65,Filtro!$A$4:$AY$532,3,FALSE),0) -> 54 | F65: =IFERROR(VLOOKUP($A65,Filtro!$A$4:$AY$532,4,FALSE),0) -> 44 | G65: =IFERROR(VLOOKUP($A65,Filtro!$A$4:$AY$532,5,FALSE),0) -> 12 | H65: =IFERROR(VLOOKUP($A65,Filtro!$A$4:$AY$532,6,FALSE),0) -> 14 | I65: =IFERROR(VLOOKUP($A65,Filtro!$A$4:$AY$532,7,FALSE),0) -> 42 | J65: =IFERROR(VLOOKUP($A65,Filtro!$A$4:$AY$532,8,FALSE),0) -> 30 | K65: =IFERROR(VLOOKUP($A65,Filtro!$A$4:$AY$532,9,FALSE),0) -> 1 | L65: =IFERROR(VLOOKUP($A65,Filtro!$A$4:$AY$532,10,FALSE),0) -> 1 | M65: =IFERROR(VLOOKUP($A65,Filtro!$A$4:$AY$532,11,FALSE),0) -> 2 | N65: =IFERROR(VLOOKUP($A65,Filtro!$A$4:$AY$532,12,FALSE),0) -> 0 | BP65: 0 | BQ65: 0
A66: P2400320 | C66: SOBREPESO / RIESGO OBESIDAD | D66: =IFERROR(VLOOKUP($A66,Filtro!$A$4:$AY$532,2,FALSE),0) -> 9713 | E66: =IFERROR(VLOOKUP($A66,Filtro!$A$4:$AY$532,3,FALSE),0) -> 4733 | F66: =IFERROR(VLOOKUP($A66,Filtro!$A$4:$AY$532,4,FALSE),0) -> 4980 | G66: =IFERROR(VLOOKUP($A66,Filtro!$A$4:$AY$532,5,FALSE),0) -> 1664 | H66: =IFERROR(VLOOKUP($A66,Filtro!$A$4:$AY$532,6,FALSE),0) -> 1542 | I66: =IFERROR(VLOOKUP($A66,Filtro!$A$4:$AY$532,7,FALSE),0) -> 3069 | J66: =IFERROR(VLOOKUP($A66,Filtro!$A$4:$AY$532,8,FALSE),0) -> 3438 | K66: =IFERROR(VLOOKUP($A66,Filtro!$A$4:$AY$532,9,FALSE),0) -> 12 | L66: =IFERROR(VLOOKUP($A66,Filtro!$A$4:$AY$532,10,FALSE),0) -> 13 | M66: =IFERROR(VLOOKUP($A66,Filtro!$A$4:$AY$532,11,FALSE),0) -> 28 | N66: =IFERROR(VLOOKUP($A66,Filtro!$A$4:$AY$532,12,FALSE),0) -> 20 | BP66: 0 | BQ66: 0
A67: P2400330 | C67: OBESO | D67: =IFERROR(VLOOKUP($A67,Filtro!$A$4:$AY$532,2,FALSE),0) -> 6993 | E67: =IFERROR(VLOOKUP($A67,Filtro!$A$4:$AY$532,3,FALSE),0) -> 3632 | F67: =IFERROR(VLOOKUP($A67,Filtro!$A$4:$AY$532,4,FALSE),0) -> 3361 | G67: =IFERROR(VLOOKUP($A67,Filtro!$A$4:$AY$532,5,FALSE),0) -> 1016 | H67: =IFERROR(VLOOKUP($A67,Filtro!$A$4:$AY$532,6,FALSE),0) -> 916 | I67: =IFERROR(VLOOKUP($A67,Filtro!$A$4:$AY$532,7,FALSE),0) -> 2616 | J67: =IFERROR(VLOOKUP($A67,Filtro!$A$4:$AY$532,8,FALSE),0) -> 2445 | K67: =IFERROR(VLOOKUP($A67,Filtro!$A$4:$AY$532,9,FALSE),0) -> 13 | L67: =IFERROR(VLOOKUP($A67,Filtro!$A$4:$AY$532,10,FALSE),0) -> 17 | M67: =IFERROR(VLOOKUP($A67,Filtro!$A$4:$AY$532,11,FALSE),0) -> 3 | N67: =IFERROR(VLOOKUP($A67,Filtro!$A$4:$AY$532,12,FALSE),0) -> 12 | BP67: 0 | BQ67: 0
A68: P2400340 | C68: OBESO SEVERO | D68: =IFERROR(VLOOKUP($A68,Filtro!$A$4:$AY$532,2,FALSE),0) -> 1762 | E68: =IFERROR(VLOOKUP($A68,Filtro!$A$4:$AY$532,3,FALSE),0) -> 1111 | F68: =IFERROR(VLOOKUP($A68,Filtro!$A$4:$AY$532,4,FALSE),0) -> 651 | G68: =IFERROR(VLOOKUP($A68,Filtro!$A$4:$AY$532,5,FALSE),0) -> 214 | H68: =IFERROR(VLOOKUP($A68,Filtro!$A$4:$AY$532,6,FALSE),0) -> 150 | I68: =IFERROR(VLOOKUP($A68,Filtro!$A$4:$AY$532,7,FALSE),0) -> 897 | J68: =IFERROR(VLOOKUP($A68,Filtro!$A$4:$AY$532,8,FALSE),0) -> 501 | K68: =IFERROR(VLOOKUP($A68,Filtro!$A$4:$AY$532,9,FALSE),0) -> 11 | L68: =IFERROR(VLOOKUP($A68,Filtro!$A$4:$AY$532,10,FALSE),0) -> 2 | M68: =IFERROR(VLOOKUP($A68,Filtro!$A$4:$AY$532,11,FALSE),0) -> 4 | N68: =IFERROR(VLOOKUP($A68,Filtro!$A$4:$AY$532,12,FALSE),0) -> 1 | BP68: 0 | BQ68: 0
A69: P2400350 | C69: NORMAL | D69: =IFERROR(VLOOKUP($A69,Filtro!$A$4:$AY$532,2,FALSE),0) -> 24730 | E69: =IFERROR(VLOOKUP($A69,Filtro!$A$4:$AY$532,3,FALSE),0) -> 12716 | F69: =IFERROR(VLOOKUP($A69,Filtro!$A$4:$AY$532,4,FALSE),0) -> 12014 | G69: =IFERROR(VLOOKUP($A69,Filtro!$A$4:$AY$532,5,FALSE),0) -> 4500 | H69: =IFERROR(VLOOKUP($A69,Filtro!$A$4:$AY$532,6,FALSE),0) -> 4243 | I69: =IFERROR(VLOOKUP($A69,Filtro!$A$4:$AY$532,7,FALSE),0) -> 8216 | J69: =IFERROR(VLOOKUP($A69,Filtro!$A$4:$AY$532,8,FALSE),0) -> 7771 | K69: =IFERROR(VLOOKUP($A69,Filtro!$A$4:$AY$532,9,FALSE),0) -> 33 | L69: =IFERROR(VLOOKUP($A69,Filtro!$A$4:$AY$532,10,FALSE),0) -> 47 | M69: =IFERROR(VLOOKUP($A69,Filtro!$A$4:$AY$532,11,FALSE),0) -> 169 | N69: =IFERROR(VLOOKUP($A69,Filtro!$A$4:$AY$532,12,FALSE),0) -> 133 | BP69: 0 | BQ69: 0
C70: SUBTOTAL | D70: =+E70+F70 -> 44327 | E70: 22816 | F70: 21511 | G70: =SUM(G64:G69) -> 7578 | H70: =SUM(H64:H69) -> 7001 | I70: 15238 | J70: 14510 | K70: 73 | L70: 80 | M70: 208 | N70: 169 | O70: =BC70 & BD70 ->  | BC70: =IF($D70>=$K70+$L70,"","* El Total de Pueblos Originarios no debe ser mayor al total de niños en control. ") ->  | BD70: =IF($D70>=$M70+$N70,"","* El Total de Pueblación Migrantes no debe ser mayor al total de niños en control. ") ->  | BM70: =IF($D70>=$K70+$L70,0,1) -> 0 | BN70: =IF($D70>=$M70+$N70,0,1) -> 0
A71: P2400360 | C71: DESNUTRICIÓN SECUNDARIA | D71: =IFERROR(VLOOKUP($A71,Filtro!$A$4:$AY$532,2,FALSE),0) -> 20 | E71: =IFERROR(VLOOKUP($A71,Filtro!$A$4:$AY$532,3,FALSE),0) -> 7 | F71: =IFERROR(VLOOKUP($A71,Filtro!$A$4:$AY$532,4,FALSE),0) -> 13 | G71: =IFERROR(VLOOKUP($A71,Filtro!$A$4:$AY$532,5,FALSE),0) -> 2 | H71: =IFERROR(VLOOKUP($A71,Filtro!$A$4:$AY$532,6,FALSE),0) -> 8 | I71: =IFERROR(VLOOKUP($A71,Filtro!$A$4:$AY$532,7,FALSE),0) -> 5 | J71: =IFERROR(VLOOKUP($A71,Filtro!$A$4:$AY$532,8,FALSE),0) -> 5 | K71: =IFERROR(VLOOKUP($A71,Filtro!$A$4:$AY$532,9,FALSE),0) -> 0 | L71: =IFERROR(VLOOKUP($A71,Filtro!$A$4:$AY$532,10,FALSE),0) -> 0 | M71: =IFERROR(VLOOKUP($A71,Filtro!$A$4:$AY$532,11,FALSE),0) -> 0 | N71: =IFERROR(VLOOKUP($A71,Filtro!$A$4:$AY$532,12,FALSE),0) -> 0 | O71: =BF71 & BG71 ->  | BF71: =IF(AND(E71<>0,K71=""), "* No olvide escribir en la celda de Pueblos Originarios (Digite CERO si no tiene). ",IF(AND(F71<>0,L71=""), "* No olvide escribir en la celda de Pueblos Originarios (Digite CERO si no tiene). ","")) ->  | BG71: =IF(AND(E71<>0,M71=""), "* No olvide escribir en la celda de Población Migrantes (Digite CERO si no tiene). ",IF(AND(F71<>0,N71=""), "* No olvide escribir en la celda de Población Migrantes (Digite CERO si no tiene). ","")) ->  | BP71: =IF(AND(E71<>0,K71=""), 1,IF(AND(F71<>0,L71=""), 1,0)) -> 0 | BQ71: =IF(AND(E71<>0,M71=""), 1,IF(AND(F71<>0,N71=""), 1,0)) -> 0
C72: T O T A L | D72: =SUM(D64:D69)+D71 -> 44347 | E72: 22823 | F72: 21524 | G72: 7580 | H72: 7009 | I72: 15243 | J72: 14515 | K72: 73 | L72: 80 | M72: 208 | N72: 169 | O72: =BC72 & BD72 ->  | BC72: =IF($D72>=$K72+$L72,"","* El Total de Pueblos Originarios no debe ser mayor al total de niños en control. ") ->  | BD72: =IF($D72>=$M72+$N72,"","* El Total de Pueblación Migrantes no debe ser mayor al total de niños en control. ") ->  | BM72: =IF($D72>=$K72+$L72,0,1) -> 0 | BN72: =IF($D72>=$M72+$N72,0,1) -> 0
B73: NOTA(*): El Diagnóstico Nutricional Integrado de Déficit para los niños (as) 5 años y más denomina Déficit Ponderal al Riesgo de Desnutrir.
B74: SECCION B: POBLACION EN CONTROL SEGÚN RESULTADO DE EVALUACIÓN DEL DESARROLLO PSICOMOTOR
B75: RESULTADO Y GRUPOS DE EDAD | D75: TOTAL | E75: Hombres | F75: Mujeres
A76: P2100200 | B76: RIESGO | C76: Menor de 12 meses | D76: =IFERROR(VLOOKUP($A76,Filtro!$A$4:$AY$532,2,FALSE),0) -> 122 | E76: =IFERROR(VLOOKUP($A76,Filtro!$A$4:$AY$532,3,FALSE),0) -> 62 | F76: =IFERROR(VLOOKUP($A76,Filtro!$A$4:$AY$532,4,FALSE),0) -> 60 | G76: =BC76 & BD76 ->  | BC76: =IF($G11+$I11+$K11+$M11+$O11+$Q11+$S11+$U11<$E76+$E81,"* La suma de Población Masculina Menor de 12 meses según resultado de 'Riesgo y Retraso' no puede ser mayor que la Población Masculina bajo control de la sección A. ","") ->  | BD76: =IF($H11+$J11+$L11+$N11+$P11+$R11+$T11+$V11<$F76+$F81,"* La suma de Población Femenina de Menor de 12 meses según resultado de 'Riesgo y Retraso' no puede ser mayor que la Población Femenina bajo control de la sección A. ","") ->  | BM76: =IF($G11+$I11+$K11+$M11+$O11+$Q11+$S11+$U11<$E76+$E81,1,0) -> 0 | BN76: =IF($H11+$J11+$L11+$N11+$P11+$R11+$T11+$V11<$F76+$F81,1,0) -> 0
A77: P2300100 | C77: 12 a 17 meses | D77: =IFERROR(VLOOKUP($A77,Filtro!$A$4:$AY$532,2,FALSE),0) -> 29 | E77: =IFERROR(VLOOKUP($A77,Filtro!$A$4:$AY$532,3,FALSE),0) -> 17 | F77: =IFERROR(VLOOKUP($A77,Filtro!$A$4:$AY$532,4,FALSE),0) -> 12 | G77: =BC77 & BD77 ->  | BC77: =IF($W$11<$E$77+$E$82,"* La suma de Población Masculina de 12 a 17 meses según resultado de 'Riesgo y Retraso' no puede ser mayor que la Población Masculina bajo control de la sección A. ","") ->  | BD77: =IF($X$11<$F$77+$F$82,"* La suma de Población Femenina de 12 a 17 meses según resultado de 'Riesgo y Retraso' no puede ser mayor que la Población Femenina bajo control de la sección A. ","") ->  | BM77: =IF($W$11<$E$77+$E$82,1,0) -> 0 | BN77: =IF($X$11<$F$77+$F$82,1,0) -> 0
A78: P2300200 | C78: 18 a 23 meses | D78: =IFERROR(VLOOKUP($A78,Filtro!$A$4:$AY$532,2,FALSE),0) -> 379 | E78: =IFERROR(VLOOKUP($A78,Filtro!$A$4:$AY$532,3,FALSE),0) -> 230 | F78: =IFERROR(VLOOKUP($A78,Filtro!$A$4:$AY$532,4,FALSE),0) -> 149 | G78: =BC78 & BD78 ->  | BC78: =IF($Y$11<$E$78+$E$83,"* La suma de Población Masculina de 18 a 23 meses según resultado de 'Riesgo y Retraso' no puede ser mayor que la Población Masculina bajo control de la sección A. ","") ->  | BD78: =IF($Z$11<$F$78+$F$83,"* La suma de Población Femenina de 18 a 23 meses según resultado de 'Riesgo y Retraso' no puede ser mayor que la Población Femenina bajo control de la sección A. ","") ->  | BM78: =IF($Y$11<$E$78+$E$83,1,0) -> 0 | BN78: =IF($Z$11<$F$78+$F$83,1,0) -> 0
A79: P2100400 | C79: 24 a 47 meses | D79: =IFERROR(VLOOKUP($A79,Filtro!$A$4:$AY$532,2,FALSE),0) -> 317 | E79: =IFERROR(VLOOKUP($A79,Filtro!$A$4:$AY$532,3,FALSE),0) -> 223 | F79: =IFERROR(VLOOKUP($A79,Filtro!$A$4:$AY$532,4,FALSE),0) -> 94 | G79: =BC79 & BD79 ->  | BC79: =IF($AA11+$AE11+$AC11<$E79+$E84,"* La suma de Población Masculina de 24 a 47 meses según resultado de 'Riesgo y Retraso' no puede ser mayor que la Población Masculina bajo control de la sección A. ","") ->  | BD79: =IF($AB11+$AF11+$AD11<$F79+$F84,"* La suma de Población Femenina de 24 a 47 meses según resultado de 'Riesgo y Retraso' no puede ser mayor que la Población Femenina bajo control de la sección A. ","") ->  | BM79: =IF($AA11+$AE11+$AC11<$E79+$E84,1,0) -> 0 | BN79: =IF($AB11+$AF11+$AD11<$F79+$F84,1,0) -> 0
A80: P2100500 | C80: 48 a 59 meses | D80: =IFERROR(VLOOKUP($A80,Filtro!$A$4:$AY$532,2,FALSE),0) -> 7 | E80: =IFERROR(VLOOKUP($A80,Filtro!$A$4:$AY$532,3,FALSE),0) -> 6 | F80: =IFERROR(VLOOKUP($A80,Filtro!$A$4:$AY$532,4,FALSE),0) -> 1 | G80: =BC80 & BD80 ->  | BC80: =IF($AG$11<$E$80+$E$85,"* La suma de Población Masculina de 48 a 59 meses según resultado de 'Riesgo y Retraso' no puede ser mayor que la Población Masculina bajo control de la sección A. ","") ->  | BD80: =IF($AH$11<$F$80+$F$85,"* La suma de Población Femenina de 48 a 59 meses según resultado de 'Riesgo y Retraso' no puede ser mayor que la Población Femenina bajo control de la sección A. ","") ->  | BM80: =IF($AG$11<$E$80+$E$85,1,0) -> 0 | BN80: =IF($AH$11<$F$80+$F$85,1,0) -> 0
A81: P2100600 | B81: RETRASO | C81: Menor de 12 meses | D81: =IFERROR(VLOOKUP($A81,Filtro!$A$4:$AY$532,2,FALSE),0) -> 8 | E81: =IFERROR(VLOOKUP($A81,Filtro!$A$4:$AY$532,3,FALSE),0) -> 1 | F81: =IFERROR(VLOOKUP($A81,Filtro!$A$4:$AY$532,4,FALSE),0) -> 7
A82: P2300300 | C82: 12 a 17 meses | D82: =IFERROR(VLOOKUP($A82,Filtro!$A$4:$AY$532,2,FALSE),0) -> 11 | E82: =IFERROR(VLOOKUP($A82,Filtro!$A$4:$AY$532,3,FALSE),0) -> 7 | F82: =IFERROR(VLOOKUP($A82,Filtro!$A$4:$AY$532,4,FALSE),0) -> 4
A83: P2300400 | C83: 18 a 23 meses | D83: =IFERROR(VLOOKUP($A83,Filtro!$A$4:$AY$532,2,FALSE),0) -> 87 | E83: =IFERROR(VLOOKUP($A83,Filtro!$A$4:$AY$532,3,FALSE),0) -> 55 | F83: =IFERROR(VLOOKUP($A83,Filtro!$A$4:$AY$532,4,FALSE),0) -> 32
A84: P2200900 | C84: 24 a 47 meses | D84: =IFERROR(VLOOKUP($A84,Filtro!$A$4:$AY$532,2,FALSE),0) -> 108 | E84: =IFERROR(VLOOKUP($A84,Filtro!$A$4:$AY$532,3,FALSE),0) -> 81 | F84: =IFERROR(VLOOKUP($A84,Filtro!$A$4:$AY$532,4,FALSE),0) -> 27
A85: P2300000 | C85: 48 a 59 meses | D85: =IFERROR(VLOOKUP($A85,Filtro!$A$4:$AY$532,2,FALSE),0) -> 4 | E85: =IFERROR(VLOOKUP($A85,Filtro!$A$4:$AY$532,3,FALSE),0) -> 2 | F85: =IFERROR(VLOOKUP($A85,Filtro!$A$4:$AY$532,4,FALSE),0) -> 2
B86: SECCION C: POBLACIÓN MENOR DE 1 AÑO EN CONTROL, SEGÚN SCORE RIESGO EN IRA Y VISITA DOMICILIARIA INTEGRAL EN EL SEMESTRE
B87: RESULTADO | D87: TOTAL | E87: Diada, menor de 10 días | F87: 1 mes | G87: 2 meses | H87: 3 meses | I87: 4 meses | J87: 5 meses | K87: 6 meses | L87: Total de Niños y Niñas que han recibido VDI
A89: P2090300 | B89: SCORE DE RIESGO | C89: LEVE | D89: =IFERROR(VLOOKUP($A89,Filtro!$A$4:$AY$532,2,FALSE),0) -> 9724 | E89: =IFERROR(VLOOKUP($A89,Filtro!$A$4:$AY$532,3,FALSE),0) -> 1036 | F89: =IFERROR(VLOOKUP($A89,Filtro!$A$4:$AY$532,4,FALSE),0) -> 1381 | G89: =IFERROR(VLOOKUP($A89,Filtro!$A$4:$AY$532,5,FALSE),0) -> 1483 | H89: =IFERROR(VLOOKUP($A89,Filtro!$A$4:$AY$532,6,FALSE),0) -> 1229 | I89: =IFERROR(VLOOKUP($A89,Filtro!$A$4:$AY$532,7,FALSE),0) -> 1486 | J89: =IFERROR(VLOOKUP($A89,Filtro!$A$4:$AY$532,8,FALSE),0) -> 1256 | K89: =IFERROR(VLOOKUP($A89,Filtro!$A$4:$AY$532,9,FALSE),0) -> 1853 | L89: =IFERROR(VLOOKUP($A89,Filtro!$A$4:$AY$532,10,FALSE),0) -> 0
A90: P2090400 | C90: MODERADO | D90: =IFERROR(VLOOKUP($A90,Filtro!$A$4:$AY$532,2,FALSE),0) -> 1471 | E90: =IFERROR(VLOOKUP($A90,Filtro!$A$4:$AY$532,3,FALSE),0) -> 70 | F90: =IFERROR(VLOOKUP($A90,Filtro!$A$4:$AY$532,4,FALSE),0) -> 164 | G90: =IFERROR(VLOOKUP($A90,Filtro!$A$4:$AY$532,5,FALSE),0) -> 215 | H90: =IFERROR(VLOOKUP($A90,Filtro!$A$4:$AY$532,6,FALSE),0) -> 236 | I90: =IFERROR(VLOOKUP($A90,Filtro!$A$4:$AY$532,7,FALSE),0) -> 259 | J90: =IFERROR(VLOOKUP($A90,Filtro!$A$4:$AY$532,8,FALSE),0) -> 202 | K90: =IFERROR(VLOOKUP($A90,Filtro!$A$4:$AY$532,9,FALSE),0) -> 325 | L90: =IFERROR(VLOOKUP($A90,Filtro!$A$4:$AY$532,10,FALSE),0) -> 381 | M90: =BC90 ->  | BC90: =IF($D90<$L90, "* Niños visitados no puede ser mayor que el total Score Moderado. ","") ->  | BL90: =IF($D90<$L90, 1,0) -> 0
A91: P2100100 | C91: GRAVE | D91: =IFERROR(VLOOKUP($A91,Filtro!$A$4:$AY$532,2,FALSE),0) -> 630 | E91: =IFERROR(VLOOKUP($A91,Filtro!$A$4:$AY$532,3,FALSE),0) -> 18 | F91: =IFERROR(VLOOKUP($A91,Filtro!$A$4:$AY$532,4,FALSE),0) -> 67 | G91: =IFERROR(VLOOKUP($A91,Filtro!$A$4:$AY$532,5,FALSE),0) -> 104 | H91: =IFERROR(VLOOKUP($A91,Filtro!$A$4:$AY$532,6,FALSE),0) -> 102 | I91: =IFERROR(VLOOKUP($A91,Filtro!$A$4:$AY$532,7,FALSE),0) -> 107 | J91: =IFERROR(VLOOKUP($A91,Filtro!$A$4:$AY$532,8,FALSE),0) -> 84 | K91: =IFERROR(VLOOKUP($A91,Filtro!$A$4:$AY$532,9,FALSE),0) -> 148 | L91: =IFERROR(VLOOKUP($A91,Filtro!$A$4:$AY$532,10,FALSE),0) -> 253 | M91: =BC91 ->  | BC91: =IF($D91<$L91, "* Niños visitados no puede ser mayor que el total Score Grave. ","") ->  | BL91: =IF($D91<$L91,1,0) -> 0
C92: TOTAL | D92: =SUM(E92:K92) -> 11825 | E92: =SUM(E89:E91) -> 1124 | F92: =SUM(F89:F91) -> 1612 | G92: =SUM(G89:G91) -> 1802 | H92: 1567 | I92: 1852 | J92: 1542 | K92: 2326 | L92: =SUM(L90:L91) -> 634
B93: SECCION D: POBLACIÓN EN CONTROL EN EL SEMESTRE CON CONSULTA NUTRICIONAL, SEGÚN ESTRATEGIA
B94: NIÑO/A CON CONSULTA NUTRICIONAL EN | D94: TOTAL
A96: P2200700 | B96: Del 5to mes | D96: =IFERROR(VLOOKUP($A96,Filtro!$A$4:$AY$532,2,FALSE),0) -> 5694
A97: P2200800 | B97: De los 3 años y 6 meses | D97: =IFERROR(VLOOKUP($A97,Filtro!$A$4:$AY$532,2,FALSE),0) -> 4425
B98: SECCION E: POBLACIÓN INASISTENTE A CONTROL DEL NIÑO SANO (AL CORTE)
B99: EDAD | D99: TOTAL
A101: P2300410 | B101: Menor de 6 meses | D101: =IFERROR(VLOOKUP($A101,Filtro!$A$4:$AY$532,2,FALSE),0) -> 738
A102: P2300420 | B102: De 6 a 11 meses | D102: =IFERROR(VLOOKUP($A102,Filtro!$A$4:$AY$532,2,FALSE),0) -> 1153
A103: P2300460 | B103: 12 - 17 meses | D103: =IFERROR(VLOOKUP($A103,Filtro!$A$4:$AY$532,2,FALSE),0) -> 1066
A104: P2300470 | B104: 18 - 23 meses | D104: =IFERROR(VLOOKUP($A104,Filtro!$A$4:$AY$532,2,FALSE),0) -> 1042
A105: P2300480 | B105: 24 - 35 meses | D105: =IFERROR(VLOOKUP($A105,Filtro!$A$4:$AY$532,2,FALSE),0) -> 2559
A106: P2300490 | B106: 36 - 47 meses | D106: =IFERROR(VLOOKUP($A106,Filtro!$A$4:$AY$532,2,FALSE),0) -> 3443
A107: P2300500 | B107: 48 - 59 meses | D107: =IFERROR(VLOOKUP($A107,Filtro!$A$4:$AY$532,2,FALSE),0) -> 3366
A108: P2300510 | B108: 60 - 71 meses | D108: =IFERROR(VLOOKUP($A108,Filtro!$A$4:$AY$532,2,FALSE),0) -> 3743
A109: P2300520 | B109: De 6 a 9 años | D109: =IFERROR(VLOOKUP($A109,Filtro!$A$4:$AY$532,2,FALSE),0) -> 10472
B110: TOTAL | D110: =SUM(D101:D109) -> 27582
B111: SECCION F: POBLACIÓN INFANTIL SEGÚN DIAGNÓSTICO DE PRESIÓN ARTERIAL (Incluida en sección A y A1)
B112: CLASIFICACIÓN | D112: TOTAL | E112: GRUPOS DE EDAD (en meses)
E113: 36 a 47 meses | F113: 48 a 71 meses | G113: 6-9 años
A114: P2300530 | B114: NORMAL (PA menor al percentil 90) | D114: =IFERROR(VLOOKUP($A114,Filtro!$A$4:$AY$532,2,FALSE),0) -> 30697 | E114: =IFERROR(VLOOKUP($A114,Filtro!$A$4:$AY$532,3,FALSE),0) -> 3674 | F114: =IFERROR(VLOOKUP($A114,Filtro!$A$4:$AY$532,4,FALSE),0) -> 11083 | G114: =IFERROR(VLOOKUP($A114,Filtro!$A$4:$AY$532,5,FALSE),0) -> 15940 | H114: =BF114 & BG114 & BH114 ->  | BF114: =IF($E114<=SUM($AC$11:$AF$11),"","* Niños(as) de 36 a 47 ms clasificados debe ser menor o igual al Total de la población de niños bajo control de en sección A misma edad. ") ->  | BG114: =IF($F114<=SUM($AG$11:$AH$11,$G$44:$H$44),"","* Niños(as) de 48 a 71 meses clasificados debe ser menor o igual al Total de la población de niños bajo control de en sección A y A1 de la misma edad. ") ->  | BH114: =IF($G114<=SUM($I$44:$J$44),"","* Niños(as) de 6 a 9 años clasificados debe ser menor o igual al Total de la población de niños bajo control de en sección A1 misma edad ") ->  | BM114: =IF($E114<=SUM($AC$11:$AF$11),0,1) -> 0 | BN114: =IF($F114<=SUM($AG$11:$AH$11,$G$44:$H$44),0,1) -> 0 | BO114: =IF($G114<=SUM($I$44:$J$44),0,1) -> 0
A115: P2300540 | B115: PRE-HIPERTENSIÓN (PA entre percentil 90 al 95) | D115: =IFERROR(VLOOKUP($A115,Filtro!$A$4:$AY$532,2,FALSE),0) -> 1404 | E115: =IFERROR(VLOOKUP($A115,Filtro!$A$4:$AY$532,3,FALSE),0) -> 141 | F115: =IFERROR(VLOOKUP($A115,Filtro!$A$4:$AY$532,4,FALSE),0) -> 553 | G115: =IFERROR(VLOOKUP($A115,Filtro!$A$4:$AY$532,5,FALSE),0) -> 710 | H115: =BF115 & BG115 & BH115 ->  | BF115: =IF($E115<=SUM($AC$11:$AF$11),"","* Niños(as) de 36 a 47 ms clasificados debe ser menor o igual al Total de la población de niños bajo control de en sección A misma edad. ") ->  | BG115: =IF($F115<=SUM($AG$11:$AH$11,$G$44:$H$44),"","* Niños(as) de 48 a 71 meses clasificados debe ser menor o igual al Total de la población de niños bajo control de en sección A y A1 de la misma edad. ") ->  | BH115: =IF($G115<=SUM($I$44:$J$44),"","* Niños(as) de 6 a 9 años clasificados debe ser menor o igual al Total de la población de niños bajo control de en sección A1 misma edad ") ->  | BM115: 0 | BN115: 0 | BO115: 0
A116: P2300550 | B116: ETAPA 1 (PA entre percentil 95 al 99) | D116: =IFERROR(VLOOKUP($A116,Filtro!$A$4:$AY$532,2,FALSE),0) -> 428 | E116: =IFERROR(VLOOKUP($A116,Filtro!$A$4:$AY$532,3,FALSE),0) -> 42 | F116: =IFERROR(VLOOKUP($A116,Filtro!$A$4:$AY$532,4,FALSE),0) -> 148 | G116: =IFERROR(VLOOKUP($A116,Filtro!$A$4:$AY$532,5,FALSE),0) -> 238 | H116: =BF116 & BG116 & BH116 ->  | BF116: =IF($E116<=SUM($AC$11:$AF$11),"","* Niños(as) de 36 a 47 ms clasificados debe ser menor o igual al Total de la población de niños bajo control de en sección A misma edad. ") ->  | BG116: =IF($F116<=SUM($AG$11:$AH$11,$G$44:$H$44),"","* Niños(as) de 48 a 71 meses clasificados debe ser menor o igual al Total de la población de niños bajo control de en sección A y A1 de la misma edad. ") ->  | BH116: =IF($G116<=SUM($I$44:$J$44),"","* Niños(as) de 6 a 9 años clasificados debe ser menor o igual al Total de la población de niños bajo control de en sección A1 misma edad ") ->  | BM116: 0 | BN116: 0 | BO116: 0
A117: P2300560 | B117: ETAPA 2 (PA mayor al percentil 99) | D117: =IFERROR(VLOOKUP($A117,Filtro!$A$4:$AY$532,2,FALSE),0) -> 121 | E117: =IFERROR(VLOOKUP($A117,Filtro!$A$4:$AY$532,3,FALSE),0) -> 22 | F117: =IFERROR(VLOOKUP($A117,Filtro!$A$4:$AY$532,4,FALSE),0) -> 33 | G117: =IFERROR(VLOOKUP($A117,Filtro!$A$4:$AY$532,5,FALSE),0) -> 66 | H117: =BF117 & BG117 & BH117 ->  | BF117: =IF($E117<=SUM($AC$11:$AF$11),"","* Niños(as) de 36 a 47 ms clasificados debe ser menor o igual al Total de la población de niños bajo control de en sección A misma edad. ") ->  | BG117: =IF($F117<=SUM($AG$11:$AH$11,$G$44:$H$44),"","* Niños(as) de 48 a 71 meses clasificados debe ser menor o igual al Total de la población de niños bajo control de en sección A y A1 de la misma edad. ") ->  | BH117: =IF($G117<=SUM($I$44:$J$44),"","* Niños(as) de 6 a 9 años clasificados debe ser menor o igual al Total de la población de niños bajo control de en sección A1 misma edad ") ->  | BM117: 0 | BN117: 0 | BO117: 0
B118: TOTAL | D118: =SUM(E118:G118) -> 32650 | E118: =SUM(E114:E117) -> 3879 | F118: =SUM(F114:F117) -> 11817 | G118: =SUM(G114:G117) -> 16954 | H118: =BF118 & BG118 & BH118 ->  | BF118: =IF($E118<=SUM(AC11:AF11),"","* Niños(as) de 36 a 47 ms clasificados debe ser menor o igual al Total de la población de niños bajo control de en sección A misma edad. ") ->  | BG118: =IF($F118<=SUM($AG$11:$AH$11,$G$44:$H$44),"","* Niños(as) de 48 a 71 meses clasificados debe ser menor o igual al Total de la población de niños bajo control de en sección A y A1 de la misma edad. ") ->  | BH118: =IF($G118<=SUM($I$44:$J$44),"","* Niños(as) de 6 a 9 años clasificados debe ser menor o igual al Total de la población de niños bajo control de en sección A1 misma edad ") ->  | BM118: =IF($E118<=SUM($AC$11:$AF$11),0,1) -> 0 | BN118: =IF($F118<=SUM($AG$11:$AH$11,$G$44:$H$44),0,1) -> 0 | BO118: =IF($G118<=SUM($I$44:$J$44),0,1) -> 0
B119: SECCION G: POBLACIÓN INFANTIL EUTRÓFICA, SEGÚN RIESGO DE MALNUTRICIÓN POR EXCESO (Incluida en sección A y A1)
B120: RESULTADO | D120: TOTAL | E120: GRUPOS DE EDAD (en meses)
E121: 4 a 11 meses | F121: 12 a 23 meses | G121: 24 a 35 meses | H121: 36 a 47 meses | I121: 48 a 59 meses | J121: 60 a 71 meses
A122: P2300570 | B122: SIN RIESGO | D122: =IFERROR(VLOOKUP($A122,Filtro!$A$4:$AY$532,2,FALSE),0) -> 19253 | E122: =IFERROR(VLOOKUP($A122,Filtro!$A$4:$AY$532,3,FALSE),0) -> 2519 | F122: =IFERROR(VLOOKUP($A122,Filtro!$A$4:$AY$532,4,FALSE),0) -> 3867 | G122: =IFERROR(VLOOKUP($A122,Filtro!$A$4:$AY$532,5,FALSE),0) -> 3548 | H122: =IFERROR(VLOOKUP($A122,Filtro!$A$4:$AY$532,6,FALSE),0) -> 3385 | I122: =IFERROR(VLOOKUP($A122,Filtro!$A$4:$AY$532,7,FALSE),0) -> 3282 | J122: =IFERROR(VLOOKUP($A122,Filtro!$A$4:$AY$532,8,FALSE),0) -> 2652 | K122: =BC122 & BD122 & BE122 & BF122 & BG122 & BH122 ->  | BC122: =IF($E122<=SUM($O$36:$V$36),"","* Niños(as) de 4 a 11 ms clasificados debe ser menor o igual al Total niños diagnostidos en NORMAL sección A misma edad. ") ->  | BD122: =IF($F122<=SUM($W$36:$Z$36),"","* Niños(as) de 12 a 23 ms clasificados debe ser menor o igual al Total niños diagnosticados en NORMAL en sección A misma edad. ") ->  | BE122: =IF($G122<=SUM($AA$36:$AB$36),"","* Niños(as) de 24 a 35 ms clasificados debe ser menor o igual al Total niños diagnosticados en NORMAL en sección A misma edad. ") ->  | BF122: =IF($H122<=SUM($AC$36:$AF$36),"","* Niños(as) de 36 a 47 ms clasificados debe ser menor o igual al Total niños diagnosticos en NORMAL en sección A misma edad. ") ->  | BG122: =IF($I122<=SUM($AG$36:$AH$36),"","* Niños(as) de 48 a 59 ms clasificados debe ser menor o igual al Total niños diagnosticados en NORMAL en sección A misma edad. ") ->  | BH122: =IF($J122<=SUM($G$69:$H$69),"","* Niños(as) de 60 a 71 ms clasificados debe ser menor o igual al Total niños diagnosticados en NORMAL en sección A1 misma edad. ") ->  | BM122: =IF($E122<=SUM($O$36:$V$36),0,1) -> 0 | BN122: =IF($F122<=SUM($W$36:$Z$36),0,1) -> 0 | BO122: =IF($G122<=SUM($AA$36:$AB$36),0,1) -> 0 | BP122: =IF($H122<=SUM($AC$36:$AF$36),0,1) -> 0 | BQ122: =IF($I122<=SUM($AG$36:$AH$36),0,1) -> 0 | BR122: =IF($J122<=SUM($G$69:$H$69),0,1) -> 0
A123: P2300580 | B123: CON RIESGO | D123: =IFERROR(VLOOKUP($A123,Filtro!$A$4:$AY$532,2,FALSE),0) -> 8649 | E123: =IFERROR(VLOOKUP($A123,Filtro!$A$4:$AY$532,3,FALSE),0) -> 1153 | F123: =IFERROR(VLOOKUP($A123,Filtro!$A$4:$AY$532,4,FALSE),0) -> 1668 | G123: =IFERROR(VLOOKUP($A123,Filtro!$A$4:$AY$532,5,FALSE),0) -> 1686 | H123: =IFERROR(VLOOKUP($A123,Filtro!$A$4:$AY$532,6,FALSE),0) -> 1423 | I123: =IFERROR(VLOOKUP($A123,Filtro!$A$4:$AY$532,7,FALSE),0) -> 1539 | J123: =IFERROR(VLOOKUP($A123,Filtro!$A$4:$AY$532,8,FALSE),0) -> 1180 | K123: =BC123 & BD123 & BE123 & BF123 & BG123 & BH123 ->  | BC123: =IF($E123<=SUM($O$36:$V$36),"","* Niños(as) de 4 a 11 ms clasificados debe ser menor o igual al Total niños diagnostidos en NORMAL sección A misma edad. ") ->  | BD123: =IF($F123<=SUM($W$36:$Z$36),"","* Niños(as) de 12 a 23 ms clasificados debe ser menor o igual al Total niños diagnosticados en NORMAL en sección A misma edad. ") ->  | BE123: =IF($G123<=SUM($AA$36:$AB$36),"","* Niños(as) de 24 a 35 ms clasificados debe ser menor o igual al Total niños diagnosticados en NORMAL en sección A misma edad. ") ->  | BF123: =IF($H123<=SUM($AC$36:$AF$36),"","* Niños(as) de 36 a 47 ms clasificados debe ser menor o igual al Total niños diagnosticos en NORMAL en sección A misma edad. ") ->  | BG123: =IF($I123<=SUM($AG$36:$AH$36),"","* Niños(as) de 48 a 59 ms clasificados debe ser menor o igual al Total niños diagnosticados en NORMAL en sección A misma edad. ") ->  | BH123: =IF($J123<=SUM($G$69:$H$69),"","* Niños(as) de 60 a 71 ms clasificados debe ser menor o igual al Total niños diagnosticados en NORMAL en sección A1 misma edad. ") ->  | BM123: 0 | BN123: 0 | BO123: 0 | BP123: 0 | BQ123: 0 | BR123: 0
B124: TOTAL | D124: =SUM(E124:J124) -> 27902 | E124: =SUM(E122:E123) -> 3672 | F124: 5535 | G124: 5234 | H124: 4808 | I124: 4821 | J124: 3832 | K124: =BC124 & BD124 & BE124 & BF124 & BG124 & BH124 ->  | BC124: =IF($E124<=SUM($O$36:$V$36),"","* Niños(as) de 4 a 11 ms clasificados debe ser menor o igual al Total niños diagnostidos en NORMAL sección A misma edad. ") ->  | BD124: =IF($F124<=SUM($W$36:$Z$36),"","* Niños(as) de 12 a 23 ms clasificados debe ser menor o igual al Total niños diagnosticados en NORMAL en sección A misma edad. ") ->  | BE124: =IF($G124<=SUM($AA$36:$AB$36),"","* Niños(as) de 24 a 35 ms clasificados debe ser menor o igual al Total niños diagnosticados en NORMAL en sección A misma edad. ") ->  | BF124: =IF($H124<=SUM($AC$36:$AF$36),"","* Niños(as) de 36 a 47 ms clasificados debe ser menor o igual al Total niños diagnosticos en NORMAL en sección A misma edad. ") ->  | BG124: =IF($I124<=SUM($AG$36:$AH$36),"","* Niños(as) de 48 a 59 ms clasificados debe ser menor o igual al Total niños diagnosticados en NORMAL en sección A misma edad. ") ->  | BH124: =IF($J124<=SUM($G$69:$H$69),"","* Niños(as) de 60 a 71 ms clasificados debe ser menor o igual al Total niños diagnosticados en NORMAL en sección A1 misma edad. ") ->  | BM124: =IF($E124<=SUM($O$36:$V$36),0,1) -> 0 | BN124: =IF($F124<=SUM($W$36:$Z$36),0,1) -> 0 | BO124: =IF($G124<=SUM($AA$36:$AB$36),0,1) -> 0 | BP124: =IF($H124<=SUM($AC$36:$AF$36),0,1) -> 0 | BQ124: =IF($I124<=SUM($AG$36:$AH$36),0,1) -> 0 | BR124: =IF($J124<=SUM($G$69:$H$69),0,1) -> 0
B125: SECCION H: POBLACIÓN INFANTIL SEGÚN DIAGNÓSTICO DE NANEAS (incluidas en sección A y A.1)
B126: DISGNOSTICOS | D126: TOTAL | G126: GRUPOS DE EDAD (en meses - años) Y SEXO | AO126: Pueblos Originarios | AQ126: Población Migrantes
G127: Menor de 1 mes | I127: 1 mes | K127: 2 meses | M127: 3 meses | O127: 4 meses | Q127: 5 meses | S127: 6 meses | U127: 7 a 11 meses | W127: 12 a 17 meses | Y127: 18 a 23 meses | AA127: 24 a 35 meses | AC127: 36 a 41 meses | AE127: 42 a 47 meses | AG127: 48 a 59 meses | AI127: 60 a 71 meses | AK127: 6 a 7 años | AM127: 8 a 9 años
D128: Ambos sexos | E128: Hombres | F128: Mujeres | G128: Hombres | H128: Mujeres | I128: Hombres | J128: Mujeres | K128: Hombres | L128: Mujeres | M128: Hombres | N128: Mujeres | O128: Hombres | P128: Mujeres | Q128: Hombres | R128: Mujeres | S128: Hombres | T128: Mujeres | U128: Hombres | V128: Mujeres | W128: Hombres | X128: Mujeres | Y128: Hombres | Z128: Mujeres | AA128: Hombres | AB128: Mujeres | AC128: Hombres | AD128: Mujeres | AE128: Hombres | AF128: Mujeres | AG128: Hombres | AH128: Mujeres | AI128: Hombres | AJ128: Mujeres | AK128: Hombres | AL128: Mujeres | AM128: Hombres | AN128: Mujeres | AO128: Hombres | AP128: Mujeres | AQ128: Hombres | AR128: Mujeres
A129: P2500100 | B129: PRESIÓN ARTERIAL ELEVADA | D129: =IFERROR(VLOOKUP($A129,Filtro!$A$4:$AY$532,2,FALSE),0) -> 378 | E129: =IFERROR(VLOOKUP($A129,Filtro!$A$4:$AY$532,3,FALSE),0) -> 189 | F129: =IFERROR(VLOOKUP($A129,Filtro!$A$4:$AY$532,4,FALSE),0) -> 189 | G129: =IFERROR(VLOOKUP($A129,Filtro!$A$4:$AY$532,5,FALSE),0) -> 0 | H129: =IFERROR(VLOOKUP($A129,Filtro!$A$4:$AY$532,6,FALSE),0) -> 0 | I129: =IFERROR(VLOOKUP($A129,Filtro!$A$4:$AY$532,7,FALSE),0) -> 0 | J129: =IFERROR(VLOOKUP($A129,Filtro!$A$4:$AY$532,8,FALSE),0) -> 0 | K129: =IFERROR(VLOOKUP($A129,Filtro!$A$4:$AY$532,9,FALSE),0) -> 0 | L129: =IFERROR(VLOOKUP($A129,Filtro!$A$4:$AY$532,10,FALSE),0) -> 0 | M129: =IFERROR(VLOOKUP($A129,Filtro!$A$4:$AY$532,11,FALSE),0) -> 0 | N129: =IFERROR(VLOOKUP($A129,Filtro!$A$4:$AY$532,12,FALSE),0) -> 0 | O129: =IFERROR(VLOOKUP($A129,Filtro!$A$4:$AY$532,13,FALSE),0) -> 0 | P129: =IFERROR(VLOOKUP($A129,Filtro!$A$4:$AY$532,14,FALSE),0) -> 0 | Q129: =IFERROR(VLOOKUP($A129,Filtro!$A$4:$AY$532,15,FALSE),0) -> 0 | R129: =IFERROR(VLOOKUP($A129,Filtro!$A$4:$AY$532,16,FALSE),0) -> 0 | S129: =IFERROR(VLOOKUP($A129,Filtro!$A$4:$AY$532,17,FALSE),0) -> 1 | T129: =IFERROR(VLOOKUP($A129,Filtro!$A$4:$AY$532,18,FALSE),0) -> 0 | U129: =IFERROR(VLOOKUP($A129,Filtro!$A$4:$AY$532,19,FALSE),0) -> 0 | V129: =IFERROR(VLOOKUP($A129,Filtro!$A$4:$AY$532,20,FALSE),0) -> 0 | W129: =IFERROR(VLOOKUP($A129,Filtro!$A$4:$AY$532,21,FALSE),0) -> 0 | X129: =IFERROR(VLOOKUP($A129,Filtro!$A$4:$AY$532,22,FALSE),0) -> 0 | Y129: =IFERROR(VLOOKUP($A129,Filtro!$A$4:$AY$532,23,FALSE),0) -> 0 | Z129: =IFERROR(VLOOKUP($A129,Filtro!$A$4:$AY$532,24,FALSE),0) -> 0 | AA129: =IFERROR(VLOOKUP($A129,Filtro!$A$4:$AY$532,25,FALSE),0) -> 1 | AB129: =IFERROR(VLOOKUP($A129,Filtro!$A$4:$AY$532,26,FALSE),0) -> 2 | AC129: =IFERROR(VLOOKUP($A129,Filtro!$A$4:$AY$532,27,FALSE),0) -> 8 | AD129: =IFERROR(VLOOKUP($A129,Filtro!$A$4:$AY$532,28,FALSE),0) -> 8 | AE129: =IFERROR(VLOOKUP($A129,Filtro!$A$4:$AY$532,29,FALSE),0) -> 3 | AF129: =IFERROR(VLOOKUP($A129,Filtro!$A$4:$AY$532,30,FALSE),0) -> 2 | AG129: =IFERROR(VLOOKUP($A129,Filtro!$A$4:$AY$532,31,FALSE),0) -> 20 | AH129: =IFERROR(VLOOKUP($A129,Filtro!$A$4:$AY$532,32,FALSE),0) -> 13 | AI129: =IFERROR(VLOOKUP($A129,Filtro!$A$4:$AY$532,33,FALSE),0) -> 21 | AJ129: =IFERROR(VLOOKUP($A129,Filtro!$A$4:$AY$532,34,FALSE),0) -> 19 | AK129: =IFERROR(VLOOKUP($A129,Filtro!$A$4:$AY$532,35,FALSE),0) -> 64 | AL129: =IFERROR(VLOOKUP($A129,Filtro!$A$4:$AY$532,36,FALSE),0) -> 84 | AM129: =IFERROR(VLOOKUP($A129,Filtro!$A$4:$AY$532,37,FALSE),0) -> 71 | AN129: =IFERROR(VLOOKUP($A129,Filtro!$A$4:$AY$532,38,FALSE),0) -> 61 | AO129: =IFERROR(VLOOKUP($A129,Filtro!$A$4:$AY$532,39,FALSE),0) -> 0 | AP129: =IFERROR(VLOOKUP($A129,Filtro!$A$4:$AY$532,40,FALSE),0) -> 0 | AQ129: =IFERROR(VLOOKUP($A129,Filtro!$A$4:$AY$532,41,FALSE),0) -> 2 | AR129: =IFERROR(VLOOKUP($A129,Filtro!$A$4:$AY$532,42,FALSE),0) -> 0
A130: P2500200 | B130: DIABETES TIPO I | D130: =IFERROR(VLOOKUP($A130,Filtro!$A$4:$AY$532,2,FALSE),0) -> 13 | E130: =IFERROR(VLOOKUP($A130,Filtro!$A$4:$AY$532,3,FALSE),0) -> 7 | F130: =IFERROR(VLOOKUP($A130,Filtro!$A$4:$AY$532,4,FALSE),0) -> 6 | G130: =IFERROR(VLOOKUP($A130,Filtro!$A$4:$AY$532,5,FALSE),0) -> 0 | H130: =IFERROR(VLOOKUP($A130,Filtro!$A$4:$AY$532,6,FALSE),0) -> 0 | I130: =IFERROR(VLOOKUP($A130,Filtro!$A$4:$AY$532,7,FALSE),0) -> 0 | J130: =IFERROR(VLOOKUP($A130,Filtro!$A$4:$AY$532,8,FALSE),0) -> 0 | K130: =IFERROR(VLOOKUP($A130,Filtro!$A$4:$AY$532,9,FALSE),0) -> 0 | L130: =IFERROR(VLOOKUP($A130,Filtro!$A$4:$AY$532,10,FALSE),0) -> 0 | M130: =IFERROR(VLOOKUP($A130,Filtro!$A$4:$AY$532,11,FALSE),0) -> 0 | N130: =IFERROR(VLOOKUP($A130,Filtro!$A$4:$AY$532,12,FALSE),0) -> 0 | O130: =IFERROR(VLOOKUP($A130,Filtro!$A$4:$AY$532,13,FALSE),0) -> 0 | P130: =IFERROR(VLOOKUP($A130,Filtro!$A$4:$AY$532,14,FALSE),0) -> 0 | Q130: =IFERROR(VLOOKUP($A130,Filtro!$A$4:$AY$532,15,FALSE),0) -> 0 | R130: =IFERROR(VLOOKUP($A130,Filtro!$A$4:$AY$532,16,FALSE),0) -> 0 | S130: =IFERROR(VLOOKUP($A130,Filtro!$A$4:$AY$532,17,FALSE),0) -> 0 | T130: =IFERROR(VLOOKUP($A130,Filtro!$A$4:$AY$532,18,FALSE),0) -> 0 | U130: =IFERROR(VLOOKUP($A130,Filtro!$A$4:$AY$532,19,FALSE),0) -> 0 | V130: =IFERROR(VLOOKUP($A130,Filtro!$A$4:$AY$532,20,FALSE),0) -> 0 | W130: =IFERROR(VLOOKUP($A130,Filtro!$A$4:$AY$532,21,FALSE),0) -> 0 | X130: =IFERROR(VLOOKUP($A130,Filtro!$A$4:$AY$532,22,FALSE),0) -> 0 | Y130: =IFERROR(VLOOKUP($A130,Filtro!$A$4:$AY$532,23,FALSE),0) -> 0 | Z130: =IFERROR(VLOOKUP($A130,Filtro!$A$4:$AY$532,24,FALSE),0) -> 0 | AA130: =IFERROR(VLOOKUP($A130,Filtro!$A$4:$AY$532,25,FALSE),0) -> 0 | AB130: =IFERROR(VLOOKUP($A130,Filtro!$A$4:$AY$532,26,FALSE),0) -> 2 | AC130: =IFERROR(VLOOKUP($A130,Filtro!$A$4:$AY$532,27,FALSE),0) -> 0 | AD130: =IFERROR(VLOOKUP($A130,Filtro!$A$4:$AY$532,28,FALSE),0) -> 2 | AE130: =IFERROR(VLOOKUP($A130,Filtro!$A$4:$AY$532,29,FALSE),0) -> 0 | AF130: =IFERROR(VLOOKUP($A130,Filtro!$A$4:$AY$532,30,FALSE),0) -> 0 | AG130: =IFERROR(VLOOKUP($A130,Filtro!$A$4:$AY$532,31,FALSE),0) -> 1 | AH130: =IFERROR(VLOOKUP($A130,Filtro!$A$4:$AY$532,32,FALSE),0) -> 0 | AI130: =IFERROR(VLOOKUP($A130,Filtro!$A$4:$AY$532,33,FALSE),0) -> 1 | AJ130: =IFERROR(VLOOKUP($A130,Filtro!$A$4:$AY$532,34,FALSE),0) -> 0 | AK130: =IFERROR(VLOOKUP($A130,Filtro!$A$4:$AY$532,35,FALSE),0) -> 1 | AL130: =IFERROR(VLOOKUP($A130,Filtro!$A$4:$AY$532,36,FALSE),0) -> 1 | AM130: =IFERROR(VLOOKUP($A130,Filtro!$A$4:$AY$532,37,FALSE),0) -> 4 | AN130: =IFERROR(VLOOKUP($A130,Filtro!$A$4:$AY$532,38,FALSE),0) -> 1 | AO130: =IFERROR(VLOOKUP($A130,Filtro!$A$4:$AY$532,39,FALSE),0) -> 0 | AP130: =IFERROR(VLOOKUP($A130,Filtro!$A$4:$AY$532,40,FALSE),0) -> 0 | AQ130: =IFERROR(VLOOKUP($A130,Filtro!$A$4:$AY$532,41,FALSE),0) -> 0 | AR130: =IFERROR(VLOOKUP($A130,Filtro!$A$4:$AY$532,42,FALSE),0) -> 0
A131: P2500300 | B131: DIABETES TIPO II | D131: =IFERROR(VLOOKUP($A131,Filtro!$A$4:$AY$532,2,FALSE),0) -> 0 | E131: =IFERROR(VLOOKUP($A131,Filtro!$A$4:$AY$532,3,FALSE),0) -> 0 | F131: =IFERROR(VLOOKUP($A131,Filtro!$A$4:$AY$532,4,FALSE),0) -> 0 | G131: =IFERROR(VLOOKUP($A131,Filtro!$A$4:$AY$532,5,FALSE),0) -> 0 | H131: =IFERROR(VLOOKUP($A131,Filtro!$A$4:$AY$532,6,FALSE),0) -> 0 | I131: =IFERROR(VLOOKUP($A131,Filtro!$A$4:$AY$532,7,FALSE),0) -> 0 | J131: =IFERROR(VLOOKUP($A131,Filtro!$A$4:$AY$532,8,FALSE),0) -> 0 | K131: =IFERROR(VLOOKUP($A131,Filtro!$A$4:$AY$532,9,FALSE),0) -> 0 | L131: =IFERROR(VLOOKUP($A131,Filtro!$A$4:$AY$532,10,FALSE),0) -> 0 | M131: =IFERROR(VLOOKUP($A131,Filtro!$A$4:$AY$532,11,FALSE),0) -> 0 | N131: =IFERROR(VLOOKUP($A131,Filtro!$A$4:$AY$532,12,FALSE),0) -> 0 | O131: =IFERROR(VLOOKUP($A131,Filtro!$A$4:$AY$532,13,FALSE),0) -> 0 | P131: =IFERROR(VLOOKUP($A131,Filtro!$A$4:$AY$532,14,FALSE),0) -> 0 | Q131: =IFERROR(VLOOKUP($A131,Filtro!$A$4:$AY$532,15,FALSE),0) -> 0 | R131: =IFERROR(VLOOKUP($A131,Filtro!$A$4:$AY$532,16,FALSE),0) -> 0 | S131: =IFERROR(VLOOKUP($A131,Filtro!$A$4:$AY$532,17,FALSE),0) -> 0 | T131: =IFERROR(VLOOKUP($A131,Filtro!$A$4:$AY$532,18,FALSE),0) -> 0 | U131: =IFERROR(VLOOKUP($A131,Filtro!$A$4:$AY$532,19,FALSE),0) -> 0 | V131: =IFERROR(VLOOKUP($A131,Filtro!$A$4:$AY$532,20,FALSE),0) -> 0 | W131: =IFERROR(VLOOKUP($A131,Filtro!$A$4:$AY$532,21,FALSE),0) -> 0 | X131: =IFERROR(VLOOKUP($A131,Filtro!$A$4:$AY$532,22,FALSE),0) -> 0 | Y131: =IFERROR(VLOOKUP($A131,Filtro!$A$4:$AY$532,23,FALSE),0) -> 0 | Z131: =IFERROR(VLOOKUP($A131,Filtro!$A$4:$AY$532,24,FALSE),0) -> 0 | AA131: =IFERROR(VLOOKUP($A131,Filtro!$A$4:$AY$532,25,FALSE),0) -> 0 | AB131: =IFERROR(VLOOKUP($A131,Filtro!$A$4:$AY$532,26,FALSE),0) -> 0 | AC131: =IFERROR(VLOOKUP($A131,Filtro!$A$4:$AY$532,27,FALSE),0) -> 0 | AD131: =IFERROR(VLOOKUP($A131,Filtro!$A$4:$AY$532,28,FALSE),0) -> 0 | AE131: =IFERROR(VLOOKUP($A131,Filtro!$A$4:$AY$532,29,FALSE),0) -> 0 | AF131: =IFERROR(VLOOKUP($A131,Filtro!$A$4:$AY$532,30,FALSE),0) -> 0 | AG131: =IFERROR(VLOOKUP($A131,Filtro!$A$4:$AY$532,31,FALSE),0) -> 0 | AH131: =IFERROR(VLOOKUP($A131,Filtro!$A$4:$AY$532,32,FALSE),0) -> 0 | AI131: =IFERROR(VLOOKUP($A131,Filtro!$A$4:$AY$532,33,FALSE),0) -> 0 | AJ131: =IFERROR(VLOOKUP($A131,Filtro!$A$4:$AY$532,34,FALSE),0) -> 0 | AK131: =IFERROR(VLOOKUP($A131,Filtro!$A$4:$AY$532,35,FALSE),0) -> 0 | AL131: =IFERROR(VLOOKUP($A131,Filtro!$A$4:$AY$532,36,FALSE),0) -> 0 | AM131: =IFERROR(VLOOKUP($A131,Filtro!$A$4:$AY$532,37,FALSE),0) -> 0 | AN131: =IFERROR(VLOOKUP($A131,Filtro!$A$4:$AY$532,38,FALSE),0) -> 0 | AO131: =IFERROR(VLOOKUP($A131,Filtro!$A$4:$AY$532,39,FALSE),0) -> 0 | AP131: =IFERROR(VLOOKUP($A131,Filtro!$A$4:$AY$532,40,FALSE),0) -> 0 | AQ131: =IFERROR(VLOOKUP($A131,Filtro!$A$4:$AY$532,41,FALSE),0) -> 0 | AR131: =IFERROR(VLOOKUP($A131,Filtro!$A$4:$AY$532,42,FALSE),0) -> 0
A132: P2500400 | B132: SÍNDROME DE DOWN | D132: =IFERROR(VLOOKUP($A132,Filtro!$A$4:$AY$532,2,FALSE),0) -> 134 | E132: =IFERROR(VLOOKUP($A132,Filtro!$A$4:$AY$532,3,FALSE),0) -> 57 | F132: =IFERROR(VLOOKUP($A132,Filtro!$A$4:$AY$532,4,FALSE),0) -> 77 | G132: =IFERROR(VLOOKUP($A132,Filtro!$A$4:$AY$532,5,FALSE),0) -> 0 | H132: =IFERROR(VLOOKUP($A132,Filtro!$A$4:$AY$532,6,FALSE),0) -> 1 | I132: =IFERROR(VLOOKUP($A132,Filtro!$A$4:$AY$532,7,FALSE),0) -> 0 | J132: =IFERROR(VLOOKUP($A132,Filtro!$A$4:$AY$532,8,FALSE),0) -> 0 | K132: =IFERROR(VLOOKUP($A132,Filtro!$A$4:$AY$532,9,FALSE),0) -> 1 | L132: =IFERROR(VLOOKUP($A132,Filtro!$A$4:$AY$532,10,FALSE),0) -> 1 | M132: =IFERROR(VLOOKUP($A132,Filtro!$A$4:$AY$532,11,FALSE),0) -> 2 | N132: =IFERROR(VLOOKUP($A132,Filtro!$A$4:$AY$532,12,FALSE),0) -> 0 | O132: =IFERROR(VLOOKUP($A132,Filtro!$A$4:$AY$532,13,FALSE),0) -> 0 | P132: =IFERROR(VLOOKUP($A132,Filtro!$A$4:$AY$532,14,FALSE),0) -> 1 | Q132: =IFERROR(VLOOKUP($A132,Filtro!$A$4:$AY$532,15,FALSE),0) -> 0 | R132: =IFERROR(VLOOKUP($A132,Filtro!$A$4:$AY$532,16,FALSE),0) -> 0 | S132: =IFERROR(VLOOKUP($A132,Filtro!$A$4:$AY$532,17,FALSE),0) -> 0 | T132: =IFERROR(VLOOKUP($A132,Filtro!$A$4:$AY$532,18,FALSE),0) -> 3 | U132: =IFERROR(VLOOKUP($A132,Filtro!$A$4:$AY$532,19,FALSE),0) -> 5 | V132: =IFERROR(VLOOKUP($A132,Filtro!$A$4:$AY$532,20,FALSE),0) -> 4 | W132: =IFERROR(VLOOKUP($A132,Filtro!$A$4:$AY$532,21,FALSE),0) -> 6 | X132: =IFERROR(VLOOKUP($A132,Filtro!$A$4:$AY$532,22,FALSE),0) -> 4 | Y132: =IFERROR(VLOOKUP($A132,Filtro!$A$4:$AY$532,23,FALSE),0) -> 1 | Z132: =IFERROR(VLOOKUP($A132,Filtro!$A$4:$AY$532,24,FALSE),0) -> 6 | AA132: =IFERROR(VLOOKUP($A132,Filtro!$A$4:$AY$532,25,FALSE),0) -> 10 | AB132: =IFERROR(VLOOKUP($A132,Filtro!$A$4:$AY$532,26,FALSE),0) -> 17 | AC132: =IFERROR(VLOOKUP($A132,Filtro!$A$4:$AY$532,27,FALSE),0) -> 4 | AD132: =IFERROR(VLOOKUP($A132,Filtro!$A$4:$AY$532,28,FALSE),0) -> 6 | AE132: =IFERROR(VLOOKUP($A132,Filtro!$A$4:$AY$532,29,FALSE),0) -> 2 | AF132: =IFERROR(VLOOKUP($A132,Filtro!$A$4:$AY$532,30,FALSE),0) -> 8 | AG132: =IFERROR(VLOOKUP($A132,Filtro!$A$4:$AY$532,31,FALSE),0) -> 5 | AH132: =IFERROR(VLOOKUP($A132,Filtro!$A$4:$AY$532,32,FALSE),0) -> 8 | AI132: =IFERROR(VLOOKUP($A132,Filtro!$A$4:$AY$532,33,FALSE),0) -> 7 | AJ132: =IFERROR(VLOOKUP($A132,Filtro!$A$4:$AY$532,34,FALSE),0) -> 5 | AK132: =IFERROR(VLOOKUP($A132,Filtro!$A$4:$AY$532,35,FALSE),0) -> 10 | AL132: =IFERROR(VLOOKUP($A132,Filtro!$A$4:$AY$532,36,FALSE),0) -> 8 | AM132: =IFERROR(VLOOKUP($A132,Filtro!$A$4:$AY$532,37,FALSE),0) -> 4 | AN132: =IFERROR(VLOOKUP($A132,Filtro!$A$4:$AY$532,38,FALSE),0) -> 5 | AO132: =IFERROR(VLOOKUP($A132,Filtro!$A$4:$AY$532,39,FALSE),0) -> 0 | AP132: =IFERROR(VLOOKUP($A132,Filtro!$A$4:$AY$532,40,FALSE),0) -> 0 | AQ132: =IFERROR(VLOOKUP($A132,Filtro!$A$4:$AY$532,41,FALSE),0) -> 0 | AR132: =IFERROR(VLOOKUP($A132,Filtro!$A$4:$AY$532,42,FALSE),0) -> 0
A133: P2500500 | B133: TRASTORNO DE ESPECTRO AUTISTA | D133: =IFERROR(VLOOKUP($A133,Filtro!$A$4:$AY$532,2,FALSE),0) -> 299 | E133: =IFERROR(VLOOKUP($A133,Filtro!$A$4:$AY$532,3,FALSE),0) -> 239 | F133: =IFERROR(VLOOKUP($A133,Filtro!$A$4:$AY$532,4,FALSE),0) -> 60 | G133: =IFERROR(VLOOKUP($A133,Filtro!$A$4:$AY$532,5,FALSE),0) -> 0 | H133: =IFERROR(VLOOKUP($A133,Filtro!$A$4:$AY$532,6,FALSE),0) -> 0 | I133: =IFERROR(VLOOKUP($A133,Filtro!$A$4:$AY$532,7,FALSE),0) -> 0 | J133: =IFERROR(VLOOKUP($A133,Filtro!$A$4:$AY$532,8,FALSE),0) -> 0 | K133: =IFERROR(VLOOKUP($A133,Filtro!$A$4:$AY$532,9,FALSE),0) -> 0 | L133: =IFERROR(VLOOKUP($A133,Filtro!$A$4:$AY$532,10,FALSE),0) -> 0 | M133: =IFERROR(VLOOKUP($A133,Filtro!$A$4:$AY$532,11,FALSE),0) -> 0 | N133: =IFERROR(VLOOKUP($A133,Filtro!$A$4:$AY$532,12,FALSE),0) -> 0 | O133: =IFERROR(VLOOKUP($A133,Filtro!$A$4:$AY$532,13,FALSE),0) -> 0 | P133: =IFERROR(VLOOKUP($A133,Filtro!$A$4:$AY$532,14,FALSE),0) -> 0 | Q133: =IFERROR(VLOOKUP($A133,Filtro!$A$4:$AY$532,15,FALSE),0) -> 0 | R133: =IFERROR(VLOOKUP($A133,Filtro!$A$4:$AY$532,16,FALSE),0) -> 0 | S133: =IFERROR(VLOOKUP($A133,Filtro!$A$4:$AY$532,17,FALSE),0) -> 0 | T133: =IFERROR(VLOOKUP($A133,Filtro!$A$4:$AY$532,18,FALSE),0) -> 0 | U133: =IFERROR(VLOOKUP($A133,Filtro!$A$4:$AY$532,19,FALSE),0) -> 1 | V133: =IFERROR(VLOOKUP($A133,Filtro!$A$4:$AY$532,20,FALSE),0) -> 0 | W133: =IFERROR(VLOOKUP($A133,Filtro!$A$4:$AY$532,21,FALSE),0) -> 1 | X133: =IFERROR(VLOOKUP($A133,Filtro!$A$4:$AY$532,22,FALSE),0) -> 0 | Y133: =IFERROR(VLOOKUP($A133,Filtro!$A$4:$AY$532,23,FALSE),0) -> 8 | Z133: =IFERROR(VLOOKUP($A133,Filtro!$A$4:$AY$532,24,FALSE),0) -> 3 | AA133: =IFERROR(VLOOKUP($A133,Filtro!$A$4:$AY$532,25,FALSE),0) -> 21 | AB133: =IFERROR(VLOOKUP($A133,Filtro!$A$4:$AY$532,26,FALSE),0) -> 16 | AC133: =IFERROR(VLOOKUP($A133,Filtro!$A$4:$AY$532,27,FALSE),0) -> 33 | AD133: =IFERROR(VLOOKUP($A133,Filtro!$A$4:$AY$532,28,FALSE),0) -> 11 | AE133: =IFERROR(VLOOKUP($A133,Filtro!$A$4:$AY$532,29,FALSE),0) -> 24 | AF133: =IFERROR(VLOOKUP($A133,Filtro!$A$4:$AY$532,30,FALSE),0) -> 3 | AG133: =IFERROR(VLOOKUP($A133,Filtro!$A$4:$AY$532,31,FALSE),0) -> 36 | AH133: =IFERROR(VLOOKUP($A133,Filtro!$A$4:$AY$532,32,FALSE),0) -> 9 | AI133: =IFERROR(VLOOKUP($A133,Filtro!$A$4:$AY$532,33,FALSE),0) -> 33 | AJ133: =IFERROR(VLOOKUP($A133,Filtro!$A$4:$AY$532,34,FALSE),0) -> 5 | AK133: =IFERROR(VLOOKUP($A133,Filtro!$A$4:$AY$532,35,FALSE),0) -> 59 | AL133: =IFERROR(VLOOKUP($A133,Filtro!$A$4:$AY$532,36,FALSE),0) -> 5 | AM133: =IFERROR(VLOOKUP($A133,Filtro!$A$4:$AY$532,37,FALSE),0) -> 23 | AN133: =IFERROR(VLOOKUP($A133,Filtro!$A$4:$AY$532,38,FALSE),0) -> 8 | AO133: =IFERROR(VLOOKUP($A133,Filtro!$A$4:$AY$532,39,FALSE),0) -> 0 | AP133: =IFERROR(VLOOKUP($A133,Filtro!$A$4:$AY$532,40,FALSE),0) -> 0 | AQ133: =IFERROR(VLOOKUP($A133,Filtro!$A$4:$AY$532,41,FALSE),0) -> 0 | AR133: =IFERROR(VLOOKUP($A133,Filtro!$A$4:$AY$532,42,FALSE),0) -> 0
A134: P2500600 | B134: FIBROSIS QUÍSTICA | D134: =IFERROR(VLOOKUP($A134,Filtro!$A$4:$AY$532,2,FALSE),0) -> 17 | E134: =IFERROR(VLOOKUP($A134,Filtro!$A$4:$AY$532,3,FALSE),0) -> 8 | F134: =IFERROR(VLOOKUP($A134,Filtro!$A$4:$AY$532,4,FALSE),0) -> 9 | G134: =IFERROR(VLOOKUP($A134,Filtro!$A$4:$AY$532,5,FALSE),0) -> 0 | H134: =IFERROR(VLOOKUP($A134,Filtro!$A$4:$AY$532,6,FALSE),0) -> 0 | I134: =IFERROR(VLOOKUP($A134,Filtro!$A$4:$AY$532,7,FALSE),0) -> 0 | J134: =IFERROR(VLOOKUP($A134,Filtro!$A$4:$AY$532,8,FALSE),0) -> 0 | K134: =IFERROR(VLOOKUP($A134,Filtro!$A$4:$AY$532,9,FALSE),0) -> 0 | L134: =IFERROR(VLOOKUP($A134,Filtro!$A$4:$AY$532,10,FALSE),0) -> 0 | M134: =IFERROR(VLOOKUP($A134,Filtro!$A$4:$AY$532,11,FALSE),0) -> 0 | N134: =IFERROR(VLOOKUP($A134,Filtro!$A$4:$AY$532,12,FALSE),0) -> 0 | O134: =IFERROR(VLOOKUP($A134,Filtro!$A$4:$AY$532,13,FALSE),0) -> 0 | P134: =IFERROR(VLOOKUP($A134,Filtro!$A$4:$AY$532,14,FALSE),0) -> 0 | Q134: =IFERROR(VLOOKUP($A134,Filtro!$A$4:$AY$532,15,FALSE),0) -> 0 | R134: =IFERROR(VLOOKUP($A134,Filtro!$A$4:$AY$532,16,FALSE),0) -> 0 | S134: =IFERROR(VLOOKUP($A134,Filtro!$A$4:$AY$532,17,FALSE),0) -> 0 | T134: =IFERROR(VLOOKUP($A134,Filtro!$A$4:$AY$532,18,FALSE),0) -> 0 | U134: =IFERROR(VLOOKUP($A134,Filtro!$A$4:$AY$532,19,FALSE),0) -> 2 | V134: =IFERROR(VLOOKUP($A134,Filtro!$A$4:$AY$532,20,FALSE),0) -> 0 | W134: =IFERROR(VLOOKUP($A134,Filtro!$A$4:$AY$532,21,FALSE),0) -> 1 | X134: =IFERROR(VLOOKUP($A134,Filtro!$A$4:$AY$532,22,FALSE),0) -> 0 | Y134: =IFERROR(VLOOKUP($A134,Filtro!$A$4:$AY$532,23,FALSE),0) -> 1 | Z134: =IFERROR(VLOOKUP($A134,Filtro!$A$4:$AY$532,24,FALSE),0) -> 3 | AA134: =IFERROR(VLOOKUP($A134,Filtro!$A$4:$AY$532,25,FALSE),0) -> 1 | AB134: =IFERROR(VLOOKUP($A134,Filtro!$A$4:$AY$532,26,FALSE),0) -> 1 | AC134: =IFERROR(VLOOKUP($A134,Filtro!$A$4:$AY$532,27,FALSE),0) -> 1 | AD134: =IFERROR(VLOOKUP($A134,Filtro!$A$4:$AY$532,28,FALSE),0) -> 1 | AE134: =IFERROR(VLOOKUP($A134,Filtro!$A$4:$AY$532,29,FALSE),0) -> 1 | AF134: =IFERROR(VLOOKUP($A134,Filtro!$A$4:$AY$532,30,FALSE),0) -> 0 | AG134: =IFERROR(VLOOKUP($A134,Filtro!$A$4:$AY$532,31,FALSE),0) -> 0 | AH134: =IFERROR(VLOOKUP($A134,Filtro!$A$4:$AY$532,32,FALSE),0) -> 0 | AI134: =IFERROR(VLOOKUP($A134,Filtro!$A$4:$AY$532,33,FALSE),0) -> 0 | AJ134: =IFERROR(VLOOKUP($A134,Filtro!$A$4:$AY$532,34,FALSE),0) -> 1 | AK134: =IFERROR(VLOOKUP($A134,Filtro!$A$4:$AY$532,35,FALSE),0) -> 0 | AL134: =IFERROR(VLOOKUP($A134,Filtro!$A$4:$AY$532,36,FALSE),0) -> 1 | AM134: =IFERROR(VLOOKUP($A134,Filtro!$A$4:$AY$532,37,FALSE),0) -> 1 | AN134: =IFERROR(VLOOKUP($A134,Filtro!$A$4:$AY$532,38,FALSE),0) -> 2 | AO134: =IFERROR(VLOOKUP($A134,Filtro!$A$4:$AY$532,39,FALSE),0) -> 0 | AP134: =IFERROR(VLOOKUP($A134,Filtro!$A$4:$AY$532,40,FALSE),0) -> 0 | AQ134: =IFERROR(VLOOKUP($A134,Filtro!$A$4:$AY$532,41,FALSE),0) -> 0 | AR134: =IFERROR(VLOOKUP($A134,Filtro!$A$4:$AY$532,42,FALSE),0) -> 0
A135: P2500700 | B135: PARÁLISIS CEREBRAL | D135: =IFERROR(VLOOKUP($A135,Filtro!$A$4:$AY$532,2,FALSE),0) -> 69 | E135: =IFERROR(VLOOKUP($A135,Filtro!$A$4:$AY$532,3,FALSE),0) -> 45 | F135: =IFERROR(VLOOKUP($A135,Filtro!$A$4:$AY$532,4,FALSE),0) -> 24 | G135: =IFERROR(VLOOKUP($A135,Filtro!$A$4:$AY$532,5,FALSE),0) -> 0 | H135: =IFERROR(VLOOKUP($A135,Filtro!$A$4:$AY$532,6,FALSE),0) -> 0 | I135: =IFERROR(VLOOKUP($A135,Filtro!$A$4:$AY$532,7,FALSE),0) -> 0 | J135: =IFERROR(VLOOKUP($A135,Filtro!$A$4:$AY$532,8,FALSE),0) -> 0 | K135: =IFERROR(VLOOKUP($A135,Filtro!$A$4:$AY$532,9,FALSE),0) -> 0 | L135: =IFERROR(VLOOKUP($A135,Filtro!$A$4:$AY$532,10,FALSE),0) -> 0 | M135: =IFERROR(VLOOKUP($A135,Filtro!$A$4:$AY$532,11,FALSE),0) -> 0 | N135: =IFERROR(VLOOKUP($A135,Filtro!$A$4:$AY$532,12,FALSE),0) -> 0 | O135: =IFERROR(VLOOKUP($A135,Filtro!$A$4:$AY$532,13,FALSE),0) -> 0 | P135: =IFERROR(VLOOKUP($A135,Filtro!$A$4:$AY$532,14,FALSE),0) -> 0 | Q135: =IFERROR(VLOOKUP($A135,Filtro!$A$4:$AY$532,15,FALSE),0) -> 0 | R135: =IFERROR(VLOOKUP($A135,Filtro!$A$4:$AY$532,16,FALSE),0) -> 1 | S135: =IFERROR(VLOOKUP($A135,Filtro!$A$4:$AY$532,17,FALSE),0) -> 0 | T135: =IFERROR(VLOOKUP($A135,Filtro!$A$4:$AY$532,18,FALSE),0) -> 0 | U135: =IFERROR(VLOOKUP($A135,Filtro!$A$4:$AY$532,19,FALSE),0) -> 0 | V135: =IFERROR(VLOOKUP($A135,Filtro!$A$4:$AY$532,20,FALSE),0) -> 0 | W135: =IFERROR(VLOOKUP($A135,Filtro!$A$4:$AY$532,21,FALSE),0) -> 1 | X135: =IFERROR(VLOOKUP($A135,Filtro!$A$4:$AY$532,22,FALSE),0) -> 2 | Y135: =IFERROR(VLOOKUP($A135,Filtro!$A$4:$AY$532,23,FALSE),0) -> 5 | Z135: =IFERROR(VLOOKUP($A135,Filtro!$A$4:$AY$532,24,FALSE),0) -> 1 | AA135: =IFERROR(VLOOKUP($A135,Filtro!$A$4:$AY$532,25,FALSE),0) -> 7 | AB135: =IFERROR(VLOOKUP($A135,Filtro!$A$4:$AY$532,26,FALSE),0) -> 2 | AC135: =IFERROR(VLOOKUP($A135,Filtro!$A$4:$AY$532,27,FALSE),0) -> 4 | AD135: =IFERROR(VLOOKUP($A135,Filtro!$A$4:$AY$532,28,FALSE),0) -> 2 | AE135: =IFERROR(VLOOKUP($A135,Filtro!$A$4:$AY$532,29,FALSE),0) -> 1 | AF135: =IFERROR(VLOOKUP($A135,Filtro!$A$4:$AY$532,30,FALSE),0) -> 0 | AG135: =IFERROR(VLOOKUP($A135,Filtro!$A$4:$AY$532,31,FALSE),0) -> 6 | AH135: =IFERROR(VLOOKUP($A135,Filtro!$A$4:$AY$532,32,FALSE),0) -> 4 | AI135: =IFERROR(VLOOKUP($A135,Filtro!$A$4:$AY$532,33,FALSE),0) -> 4 | AJ135: =IFERROR(VLOOKUP($A135,Filtro!$A$4:$AY$532,34,FALSE),0) -> 2 | AK135: =IFERROR(VLOOKUP($A135,Filtro!$A$4:$AY$532,35,FALSE),0) -> 10 | AL135: =IFERROR(VLOOKUP($A135,Filtro!$A$4:$AY$532,36,FALSE),0) -> 5 | AM135: =IFERROR(VLOOKUP($A135,Filtro!$A$4:$AY$532,37,FALSE),0) -> 7 | AN135: =IFERROR(VLOOKUP($A135,Filtro!$A$4:$AY$532,38,FALSE),0) -> 5 | AO135: =IFERROR(VLOOKUP($A135,Filtro!$A$4:$AY$532,39,FALSE),0) -> 0 | AP135: =IFERROR(VLOOKUP($A135,Filtro!$A$4:$AY$532,40,FALSE),0) -> 0 | AQ135: =IFERROR(VLOOKUP($A135,Filtro!$A$4:$AY$532,41,FALSE),0) -> 2 | AR135: =IFERROR(VLOOKUP($A135,Filtro!$A$4:$AY$532,42,FALSE),0) -> 0
A136: P2500800 | B136: ENFERMEDADES RENALES CRÓNICAS | D136: =IFERROR(VLOOKUP($A136,Filtro!$A$4:$AY$532,2,FALSE),0) -> 20 | E136: =IFERROR(VLOOKUP($A136,Filtro!$A$4:$AY$532,3,FALSE),0) -> 12 | F136: =IFERROR(VLOOKUP($A136,Filtro!$A$4:$AY$532,4,FALSE),0) -> 8 | G136: =IFERROR(VLOOKUP($A136,Filtro!$A$4:$AY$532,5,FALSE),0) -> 0 | H136: =IFERROR(VLOOKUP($A136,Filtro!$A$4:$AY$532,6,FALSE),0) -> 0 | I136: =IFERROR(VLOOKUP($A136,Filtro!$A$4:$AY$532,7,FALSE),0) -> 0 | J136: =IFERROR(VLOOKUP($A136,Filtro!$A$4:$AY$532,8,FALSE),0) -> 0 | K136: =IFERROR(VLOOKUP($A136,Filtro!$A$4:$AY$532,9,FALSE),0) -> 0 | L136: =IFERROR(VLOOKUP($A136,Filtro!$A$4:$AY$532,10,FALSE),0) -> 0 | M136: =IFERROR(VLOOKUP($A136,Filtro!$A$4:$AY$532,11,FALSE),0) -> 1 | N136: =IFERROR(VLOOKUP($A136,Filtro!$A$4:$AY$532,12,FALSE),0) -> 0 | O136: =IFERROR(VLOOKUP($A136,Filtro!$A$4:$AY$532,13,FALSE),0) -> 0 | P136: =IFERROR(VLOOKUP($A136,Filtro!$A$4:$AY$532,14,FALSE),0) -> 0 | Q136: =IFERROR(VLOOKUP($A136,Filtro!$A$4:$AY$532,15,FALSE),0) -> 0 | R136: =IFERROR(VLOOKUP($A136,Filtro!$A$4:$AY$532,16,FALSE),0) -> 0 | S136: =IFERROR(VLOOKUP($A136,Filtro!$A$4:$AY$532,17,FALSE),0) -> 0 | T136: =IFERROR(VLOOKUP($A136,Filtro!$A$4:$AY$532,18,FALSE),0) -> 0 | U136: =IFERROR(VLOOKUP($A136,Filtro!$A$4:$AY$532,19,FALSE),0) -> 1 | V136: =IFERROR(VLOOKUP($A136,Filtro!$A$4:$AY$532,20,FALSE),0) -> 0 | W136: =IFERROR(VLOOKUP($A136,Filtro!$A$4:$AY$532,21,FALSE),0) -> 1 | X136: =IFERROR(VLOOKUP($A136,Filtro!$A$4:$AY$532,22,FALSE),0) -> 0 | Y136: =IFERROR(VLOOKUP($A136,Filtro!$A$4:$AY$532,23,FALSE),0) -> 2 | Z136: =IFERROR(VLOOKUP($A136,Filtro!$A$4:$AY$532,24,FALSE),0) -> 0 | AA136: =IFERROR(VLOOKUP($A136,Filtro!$A$4:$AY$532,25,FALSE),0) -> 5 | AB136: =IFERROR(VLOOKUP($A136,Filtro!$A$4:$AY$532,26,FALSE),0) -> 4 | AC136: =IFERROR(VLOOKUP($A136,Filtro!$A$4:$AY$532,27,FALSE),0) -> 2 | AD136: =IFERROR(VLOOKUP($A136,Filtro!$A$4:$AY$532,28,FALSE),0) -> 0 | AE136: =IFERROR(VLOOKUP($A136,Filtro!$A$4:$AY$532,29,FALSE),0) -> 0 | AF136: =IFERROR(VLOOKUP($A136,Filtro!$A$4:$AY$532,30,FALSE),0) -> 1 | AG136: =IFERROR(VLOOKUP($A136,Filtro!$A$4:$AY$532,31,FALSE),0) -> 0 | AH136: =IFERROR(VLOOKUP($A136,Filtro!$A$4:$AY$532,32,FALSE),0) -> 1 | AI136: =IFERROR(VLOOKUP($A136,Filtro!$A$4:$AY$532,33,FALSE),0) -> 0 | AJ136: =IFERROR(VLOOKUP($A136,Filtro!$A$4:$AY$532,34,FALSE),0) -> 0 | AK136: =IFERROR(VLOOKUP($A136,Filtro!$A$4:$AY$532,35,FALSE),0) -> 0 | AL136: =IFERROR(VLOOKUP($A136,Filtro!$A$4:$AY$532,36,FALSE),0) -> 1 | AM136: =IFERROR(VLOOKUP($A136,Filtro!$A$4:$AY$532,37,FALSE),0) -> 0 | AN136: =IFERROR(VLOOKUP($A136,Filtro!$A$4:$AY$532,38,FALSE),0) -> 1 | AO136: =IFERROR(VLOOKUP($A136,Filtro!$A$4:$AY$532,39,FALSE),0) -> 0 | AP136: =IFERROR(VLOOKUP($A136,Filtro!$A$4:$AY$532,40,FALSE),0) -> 0 | AQ136: =IFERROR(VLOOKUP($A136,Filtro!$A$4:$AY$532,41,FALSE),0) -> 0 | AR136: =IFERROR(VLOOKUP($A136,Filtro!$A$4:$AY$532,42,FALSE),0) -> 0
A137: P2500900 | B137: ENFERMEDADES CARDIACAS CRÓNICAS | D137: =IFERROR(VLOOKUP($A137,Filtro!$A$4:$AY$532,2,FALSE),0) -> 42 | E137: =IFERROR(VLOOKUP($A137,Filtro!$A$4:$AY$532,3,FALSE),0) -> 25 | F137: =IFERROR(VLOOKUP($A137,Filtro!$A$4:$AY$532,4,FALSE),0) -> 17 | G137: =IFERROR(VLOOKUP($A137,Filtro!$A$4:$AY$532,5,FALSE),0) -> 0 | H137: =IFERROR(VLOOKUP($A137,Filtro!$A$4:$AY$532,6,FALSE),0) -> 2 | I137: =IFERROR(VLOOKUP($A137,Filtro!$A$4:$AY$532,7,FALSE),0) -> 0 | J137: =IFERROR(VLOOKUP($A137,Filtro!$A$4:$AY$532,8,FALSE),0) -> 0 | K137: =IFERROR(VLOOKUP($A137,Filtro!$A$4:$AY$532,9,FALSE),0) -> 0 | L137: =IFERROR(VLOOKUP($A137,Filtro!$A$4:$AY$532,10,FALSE),0) -> 0 | M137: =IFERROR(VLOOKUP($A137,Filtro!$A$4:$AY$532,11,FALSE),0) -> 0 | N137: =IFERROR(VLOOKUP($A137,Filtro!$A$4:$AY$532,12,FALSE),0) -> 1 | O137: =IFERROR(VLOOKUP($A137,Filtro!$A$4:$AY$532,13,FALSE),0) -> 0 | P137: =IFERROR(VLOOKUP($A137,Filtro!$A$4:$AY$532,14,FALSE),0) -> 3 | Q137: =IFERROR(VLOOKUP($A137,Filtro!$A$4:$AY$532,15,FALSE),0) -> 0 | R137: =IFERROR(VLOOKUP($A137,Filtro!$A$4:$AY$532,16,FALSE),0) -> 0 | S137: =IFERROR(VLOOKUP($A137,Filtro!$A$4:$AY$532,17,FALSE),0) -> 0 | T137: =IFERROR(VLOOKUP($A137,Filtro!$A$4:$AY$532,18,FALSE),0) -> 0 | U137: =IFERROR(VLOOKUP($A137,Filtro!$A$4:$AY$532,19,FALSE),0) -> 0 | V137: =IFERROR(VLOOKUP($A137,Filtro!$A$4:$AY$532,20,FALSE),0) -> 1 | W137: =IFERROR(VLOOKUP($A137,Filtro!$A$4:$AY$532,21,FALSE),0) -> 8 | X137: =IFERROR(VLOOKUP($A137,Filtro!$A$4:$AY$532,22,FALSE),0) -> 3 | Y137: =IFERROR(VLOOKUP($A137,Filtro!$A$4:$AY$532,23,FALSE),0) -> 3 | Z137: =IFERROR(VLOOKUP($A137,Filtro!$A$4:$AY$532,24,FALSE),0) -> 0 | AA137: =IFERROR(VLOOKUP($A137,Filtro!$A$4:$AY$532,25,FALSE),0) -> 4 | AB137: =IFERROR(VLOOKUP($A137,Filtro!$A$4:$AY$532,26,FALSE),0) -> 2 | AC137: =IFERROR(VLOOKUP($A137,Filtro!$A$4:$AY$532,27,FALSE),0) -> 1 | AD137: =IFERROR(VLOOKUP($A137,Filtro!$A$4:$AY$532,28,FALSE),0) -> 1 | AE137: =IFERROR(VLOOKUP($A137,Filtro!$A$4:$AY$532,29,FALSE),0) -> 2 | AF137: =IFERROR(VLOOKUP($A137,Filtro!$A$4:$AY$532,30,FALSE),0) -> 0 | AG137: =IFERROR(VLOOKUP($A137,Filtro!$A$4:$AY$532,31,FALSE),0) -> 2 | AH137: =IFERROR(VLOOKUP($A137,Filtro!$A$4:$AY$532,32,FALSE),0) -> 1 | AI137: =IFERROR(VLOOKUP($A137,Filtro!$A$4:$AY$532,33,FALSE),0) -> 1 | AJ137: =IFERROR(VLOOKUP($A137,Filtro!$A$4:$AY$532,34,FALSE),0) -> 0 | AK137: =IFERROR(VLOOKUP($A137,Filtro!$A$4:$AY$532,35,FALSE),0) -> 3 | AL137: =IFERROR(VLOOKUP($A137,Filtro!$A$4:$AY$532,36,FALSE),0) -> 3 | AM137: =IFERROR(VLOOKUP($A137,Filtro!$A$4:$AY$532,37,FALSE),0) -> 1 | AN137: =IFERROR(VLOOKUP($A137,Filtro!$A$4:$AY$532,38,FALSE),0) -> 0 | AO137: =IFERROR(VLOOKUP($A137,Filtro!$A$4:$AY$532,39,FALSE),0) -> 0 | AP137: =IFERROR(VLOOKUP($A137,Filtro!$A$4:$AY$532,40,FALSE),0) -> 0 | AQ137: =IFERROR(VLOOKUP($A137,Filtro!$A$4:$AY$532,41,FALSE),0) -> 0 | AR137: =IFERROR(VLOOKUP($A137,Filtro!$A$4:$AY$532,42,FALSE),0) -> 0
A138: P2501000 | B138: ENFERMEDADES GÁSTRICAS CRÓNICAS | D138: =IFERROR(VLOOKUP($A138,Filtro!$A$4:$AY$532,2,FALSE),0) -> 57 | E138: =IFERROR(VLOOKUP($A138,Filtro!$A$4:$AY$532,3,FALSE),0) -> 33 | F138: =IFERROR(VLOOKUP($A138,Filtro!$A$4:$AY$532,4,FALSE),0) -> 24 | G138: =IFERROR(VLOOKUP($A138,Filtro!$A$4:$AY$532,5,FALSE),0) -> 0 | H138: =IFERROR(VLOOKUP($A138,Filtro!$A$4:$AY$532,6,FALSE),0) -> 0 | I138: =IFERROR(VLOOKUP($A138,Filtro!$A$4:$AY$532,7,FALSE),0) -> 0 | J138: =IFERROR(VLOOKUP($A138,Filtro!$A$4:$AY$532,8,FALSE),0) -> 0 | K138: =IFERROR(VLOOKUP($A138,Filtro!$A$4:$AY$532,9,FALSE),0) -> 0 | L138: =IFERROR(VLOOKUP($A138,Filtro!$A$4:$AY$532,10,FALSE),0) -> 0 | M138: =IFERROR(VLOOKUP($A138,Filtro!$A$4:$AY$532,11,FALSE),0) -> 0 | N138: =IFERROR(VLOOKUP($A138,Filtro!$A$4:$AY$532,12,FALSE),0) -> 0 | O138: =IFERROR(VLOOKUP($A138,Filtro!$A$4:$AY$532,13,FALSE),0) -> 0 | P138: =IFERROR(VLOOKUP($A138,Filtro!$A$4:$AY$532,14,FALSE),0) -> 0 | Q138: =IFERROR(VLOOKUP($A138,Filtro!$A$4:$AY$532,15,FALSE),0) -> 0 | R138: =IFERROR(VLOOKUP($A138,Filtro!$A$4:$AY$532,16,FALSE),0) -> 1 | S138: =IFERROR(VLOOKUP($A138,Filtro!$A$4:$AY$532,17,FALSE),0) -> 1 | T138: =IFERROR(VLOOKUP($A138,Filtro!$A$4:$AY$532,18,FALSE),0) -> 0 | U138: =IFERROR(VLOOKUP($A138,Filtro!$A$4:$AY$532,19,FALSE),0) -> 7 | V138: =IFERROR(VLOOKUP($A138,Filtro!$A$4:$AY$532,20,FALSE),0) -> 8 | W138: =IFERROR(VLOOKUP($A138,Filtro!$A$4:$AY$532,21,FALSE),0) -> 12 | X138: =IFERROR(VLOOKUP($A138,Filtro!$A$4:$AY$532,22,FALSE),0) -> 6 | Y138: =IFERROR(VLOOKUP($A138,Filtro!$A$4:$AY$532,23,FALSE),0) -> 7 | Z138: =IFERROR(VLOOKUP($A138,Filtro!$A$4:$AY$532,24,FALSE),0) -> 7 | AA138: =IFERROR(VLOOKUP($A138,Filtro!$A$4:$AY$532,25,FALSE),0) -> 3 | AB138: =IFERROR(VLOOKUP($A138,Filtro!$A$4:$AY$532,26,FALSE),0) -> 0 | AC138: =IFERROR(VLOOKUP($A138,Filtro!$A$4:$AY$532,27,FALSE),0) -> 2 | AD138: =IFERROR(VLOOKUP($A138,Filtro!$A$4:$AY$532,28,FALSE),0) -> 1 | AE138: =IFERROR(VLOOKUP($A138,Filtro!$A$4:$AY$532,29,FALSE),0) -> 0 | AF138: =IFERROR(VLOOKUP($A138,Filtro!$A$4:$AY$532,30,FALSE),0) -> 0 | AG138: =IFERROR(VLOOKUP($A138,Filtro!$A$4:$AY$532,31,FALSE),0) -> 1 | AH138: =IFERROR(VLOOKUP($A138,Filtro!$A$4:$AY$532,32,FALSE),0) -> 1 | AI138: =IFERROR(VLOOKUP($A138,Filtro!$A$4:$AY$532,33,FALSE),0) -> 0 | AJ138: =IFERROR(VLOOKUP($A138,Filtro!$A$4:$AY$532,34,FALSE),0) -> 0 | AK138: =IFERROR(VLOOKUP($A138,Filtro!$A$4:$AY$532,35,FALSE),0) -> 0 | AL138: =IFERROR(VLOOKUP($A138,Filtro!$A$4:$AY$532,36,FALSE),0) -> 0 | AM138: =IFERROR(VLOOKUP($A138,Filtro!$A$4:$AY$532,37,FALSE),0) -> 0 | AN138: =IFERROR(VLOOKUP($A138,Filtro!$A$4:$AY$532,38,FALSE),0) -> 0 | AO138: =IFERROR(VLOOKUP($A138,Filtro!$A$4:$AY$532,39,FALSE),0) -> 0 | AP138: =IFERROR(VLOOKUP($A138,Filtro!$A$4:$AY$532,40,FALSE),0) -> 0 | AQ138: =IFERROR(VLOOKUP($A138,Filtro!$A$4:$AY$532,41,FALSE),0) -> 0 | AR138: =IFERROR(VLOOKUP($A138,Filtro!$A$4:$AY$532,42,FALSE),0) -> 0
A139: P2501100 | B139: ENFERMEDADES DEL OJO | D139: =IFERROR(VLOOKUP($A139,Filtro!$A$4:$AY$532,2,FALSE),0) -> 35 | E139: =IFERROR(VLOOKUP($A139,Filtro!$A$4:$AY$532,3,FALSE),0) -> 28 | F139: =IFERROR(VLOOKUP($A139,Filtro!$A$4:$AY$532,4,FALSE),0) -> 7 | G139: =IFERROR(VLOOKUP($A139,Filtro!$A$4:$AY$532,5,FALSE),0) -> 0 | H139: =IFERROR(VLOOKUP($A139,Filtro!$A$4:$AY$532,6,FALSE),0) -> 0 | I139: =IFERROR(VLOOKUP($A139,Filtro!$A$4:$AY$532,7,FALSE),0) -> 0 | J139: =IFERROR(VLOOKUP($A139,Filtro!$A$4:$AY$532,8,FALSE),0) -> 0 | K139: =IFERROR(VLOOKUP($A139,Filtro!$A$4:$AY$532,9,FALSE),0) -> 0 | L139: =IFERROR(VLOOKUP($A139,Filtro!$A$4:$AY$532,10,FALSE),0) -> 0 | M139: =IFERROR(VLOOKUP($A139,Filtro!$A$4:$AY$532,11,FALSE),0) -> 0 | N139: =IFERROR(VLOOKUP($A139,Filtro!$A$4:$AY$532,12,FALSE),0) -> 0 | O139: =IFERROR(VLOOKUP($A139,Filtro!$A$4:$AY$532,13,FALSE),0) -> 0 | P139: =IFERROR(VLOOKUP($A139,Filtro!$A$4:$AY$532,14,FALSE),0) -> 0 | Q139: =IFERROR(VLOOKUP($A139,Filtro!$A$4:$AY$532,15,FALSE),0) -> 0 | R139: =IFERROR(VLOOKUP($A139,Filtro!$A$4:$AY$532,16,FALSE),0) -> 0 | S139: =IFERROR(VLOOKUP($A139,Filtro!$A$4:$AY$532,17,FALSE),0) -> 0 | T139: =IFERROR(VLOOKUP($A139,Filtro!$A$4:$AY$532,18,FALSE),0) -> 0 | U139: =IFERROR(VLOOKUP($A139,Filtro!$A$4:$AY$532,19,FALSE),0) -> 2 | V139: =IFERROR(VLOOKUP($A139,Filtro!$A$4:$AY$532,20,FALSE),0) -> 2 | W139: =IFERROR(VLOOKUP($A139,Filtro!$A$4:$AY$532,21,FALSE),0) -> 4 | X139: =IFERROR(VLOOKUP($A139,Filtro!$A$4:$AY$532,22,FALSE),0) -> 0 | Y139: =IFERROR(VLOOKUP($A139,Filtro!$A$4:$AY$532,23,FALSE),0) -> 3 | Z139: =IFERROR(VLOOKUP($A139,Filtro!$A$4:$AY$532,24,FALSE),0) -> 3 | AA139: =IFERROR(VLOOKUP($A139,Filtro!$A$4:$AY$532,25,FALSE),0) -> 1 | AB139: =IFERROR(VLOOKUP($A139,Filtro!$A$4:$AY$532,26,FALSE),0) -> 1 | AC139: =IFERROR(VLOOKUP($A139,Filtro!$A$4:$AY$532,27,FALSE),0) -> 3 | AD139: =IFERROR(VLOOKUP($A139,Filtro!$A$4:$AY$532,28,FALSE),0) -> 0 | AE139: =IFERROR(VLOOKUP($A139,Filtro!$A$4:$AY$532,29,FALSE),0) -> 2 | AF139: =IFERROR(VLOOKUP($A139,Filtro!$A$4:$AY$532,30,FALSE),0) -> 0 | AG139: =IFERROR(VLOOKUP($A139,Filtro!$A$4:$AY$532,31,FALSE),0) -> 2 | AH139: =IFERROR(VLOOKUP($A139,Filtro!$A$4:$AY$532,32,FALSE),0) -> 0 | AI139: =IFERROR(VLOOKUP($A139,Filtro!$A$4:$AY$532,33,FALSE),0) -> 0 | AJ139: =IFERROR(VLOOKUP($A139,Filtro!$A$4:$AY$532,34,FALSE),0) -> 0 | AK139: =IFERROR(VLOOKUP($A139,Filtro!$A$4:$AY$532,35,FALSE),0) -> 6 | AL139: =IFERROR(VLOOKUP($A139,Filtro!$A$4:$AY$532,36,FALSE),0) -> 1 | AM139: =IFERROR(VLOOKUP($A139,Filtro!$A$4:$AY$532,37,FALSE),0) -> 5 | AN139: =IFERROR(VLOOKUP($A139,Filtro!$A$4:$AY$532,38,FALSE),0) -> 0 | AO139: =IFERROR(VLOOKUP($A139,Filtro!$A$4:$AY$532,39,FALSE),0) -> 0 | AP139: =IFERROR(VLOOKUP($A139,Filtro!$A$4:$AY$532,40,FALSE),0) -> 0 | AQ139: =IFERROR(VLOOKUP($A139,Filtro!$A$4:$AY$532,41,FALSE),0) -> 0 | AR139: =IFERROR(VLOOKUP($A139,Filtro!$A$4:$AY$532,42,FALSE),0) -> 0
A140: P2501200 | B140: ENFERMEDADES DEL OÍDO | D140: =IFERROR(VLOOKUP($A140,Filtro!$A$4:$AY$532,2,FALSE),0) -> 35 | E140: =IFERROR(VLOOKUP($A140,Filtro!$A$4:$AY$532,3,FALSE),0) -> 30 | F140: =IFERROR(VLOOKUP($A140,Filtro!$A$4:$AY$532,4,FALSE),0) -> 5 | G140: =IFERROR(VLOOKUP($A140,Filtro!$A$4:$AY$532,5,FALSE),0) -> 1 | H140: =IFERROR(VLOOKUP($A140,Filtro!$A$4:$AY$532,6,FALSE),0) -> 0 | I140: =IFERROR(VLOOKUP($A140,Filtro!$A$4:$AY$532,7,FALSE),0) -> 0 | J140: =IFERROR(VLOOKUP($A140,Filtro!$A$4:$AY$532,8,FALSE),0) -> 0 | K140: =IFERROR(VLOOKUP($A140,Filtro!$A$4:$AY$532,9,FALSE),0) -> 0 | L140: =IFERROR(VLOOKUP($A140,Filtro!$A$4:$AY$532,10,FALSE),0) -> 0 | M140: =IFERROR(VLOOKUP($A140,Filtro!$A$4:$AY$532,11,FALSE),0) -> 0 | N140: =IFERROR(VLOOKUP($A140,Filtro!$A$4:$AY$532,12,FALSE),0) -> 0 | O140: =IFERROR(VLOOKUP($A140,Filtro!$A$4:$AY$532,13,FALSE),0) -> 0 | P140: =IFERROR(VLOOKUP($A140,Filtro!$A$4:$AY$532,14,FALSE),0) -> 0 | Q140: =IFERROR(VLOOKUP($A140,Filtro!$A$4:$AY$532,15,FALSE),0) -> 0 | R140: =IFERROR(VLOOKUP($A140,Filtro!$A$4:$AY$532,16,FALSE),0) -> 0 | S140: =IFERROR(VLOOKUP($A140,Filtro!$A$4:$AY$532,17,FALSE),0) -> 0 | T140: =IFERROR(VLOOKUP($A140,Filtro!$A$4:$AY$532,18,FALSE),0) -> 0 | U140: =IFERROR(VLOOKUP($A140,Filtro!$A$4:$AY$532,19,FALSE),0) -> 0 | V140: =IFERROR(VLOOKUP($A140,Filtro!$A$4:$AY$532,20,FALSE),0) -> 0 | W140: =IFERROR(VLOOKUP($A140,Filtro!$A$4:$AY$532,21,FALSE),0) -> 2 | X140: =IFERROR(VLOOKUP($A140,Filtro!$A$4:$AY$532,22,FALSE),0) -> 0 | Y140: =IFERROR(VLOOKUP($A140,Filtro!$A$4:$AY$532,23,FALSE),0) -> 3 | Z140: =IFERROR(VLOOKUP($A140,Filtro!$A$4:$AY$532,24,FALSE),0) -> 0 | AA140: =IFERROR(VLOOKUP($A140,Filtro!$A$4:$AY$532,25,FALSE),0) -> 2 | AB140: =IFERROR(VLOOKUP($A140,Filtro!$A$4:$AY$532,26,FALSE),0) -> 0 | AC140: =IFERROR(VLOOKUP($A140,Filtro!$A$4:$AY$532,27,FALSE),0) -> 1 | AD140: =IFERROR(VLOOKUP($A140,Filtro!$A$4:$AY$532,28,FALSE),0) -> 0 | AE140: =IFERROR(VLOOKUP($A140,Filtro!$A$4:$AY$532,29,FALSE),0) -> 0 | AF140: =IFERROR(VLOOKUP($A140,Filtro!$A$4:$AY$532,30,FALSE),0) -> 4 | AG140: =IFERROR(VLOOKUP($A140,Filtro!$A$4:$AY$532,31,FALSE),0) -> 0 | AH140: =IFERROR(VLOOKUP($A140,Filtro!$A$4:$AY$532,32,FALSE),0) -> 0 | AI140: =IFERROR(VLOOKUP($A140,Filtro!$A$4:$AY$532,33,FALSE),0) -> 7 | AJ140: =IFERROR(VLOOKUP($A140,Filtro!$A$4:$AY$532,34,FALSE),0) -> 1 | AK140: =IFERROR(VLOOKUP($A140,Filtro!$A$4:$AY$532,35,FALSE),0) -> 8 | AL140: =IFERROR(VLOOKUP($A140,Filtro!$A$4:$AY$532,36,FALSE),0) -> 0 | AM140: =IFERROR(VLOOKUP($A140,Filtro!$A$4:$AY$532,37,FALSE),0) -> 6 | AN140: =IFERROR(VLOOKUP($A140,Filtro!$A$4:$AY$532,38,FALSE),0) -> 0 | AO140: =IFERROR(VLOOKUP($A140,Filtro!$A$4:$AY$532,39,FALSE),0) -> 0 | AP140: =IFERROR(VLOOKUP($A140,Filtro!$A$4:$AY$532,40,FALSE),0) -> 0 | AQ140: =IFERROR(VLOOKUP($A140,Filtro!$A$4:$AY$532,41,FALSE),0) -> 0 | AR140: =IFERROR(VLOOKUP($A140,Filtro!$A$4:$AY$532,42,FALSE),0) -> 0
A141: P2501300 | B141: ENFERMEDADES DE LA PIEL | D141: =IFERROR(VLOOKUP($A141,Filtro!$A$4:$AY$532,2,FALSE),0) -> 106 | E141: =IFERROR(VLOOKUP($A141,Filtro!$A$4:$AY$532,3,FALSE),0) -> 62 | F141: =IFERROR(VLOOKUP($A141,Filtro!$A$4:$AY$532,4,FALSE),0) -> 44 | G141: =IFERROR(VLOOKUP($A141,Filtro!$A$4:$AY$532,5,FALSE),0) -> 0 | H141: =IFERROR(VLOOKUP($A141,Filtro!$A$4:$AY$532,6,FALSE),0) -> 0 | I141: =IFERROR(VLOOKUP($A141,Filtro!$A$4:$AY$532,7,FALSE),0) -> 2 | J141: =IFERROR(VLOOKUP($A141,Filtro!$A$4:$AY$532,8,FALSE),0) -> 0 | K141: =IFERROR(VLOOKUP($A141,Filtro!$A$4:$AY$532,9,FALSE),0) -> 2 | L141: =IFERROR(VLOOKUP($A141,Filtro!$A$4:$AY$532,10,FALSE),0) -> 2 | M141: =IFERROR(VLOOKUP($A141,Filtro!$A$4:$AY$532,11,FALSE),0) -> 2 | N141: =IFERROR(VLOOKUP($A141,Filtro!$A$4:$AY$532,12,FALSE),0) -> 4 | O141: =IFERROR(VLOOKUP($A141,Filtro!$A$4:$AY$532,13,FALSE),0) -> 0 | P141: =IFERROR(VLOOKUP($A141,Filtro!$A$4:$AY$532,14,FALSE),0) -> 0 | Q141: =IFERROR(VLOOKUP($A141,Filtro!$A$4:$AY$532,15,FALSE),0) -> 5 | R141: =IFERROR(VLOOKUP($A141,Filtro!$A$4:$AY$532,16,FALSE),0) -> 2 | S141: =IFERROR(VLOOKUP($A141,Filtro!$A$4:$AY$532,17,FALSE),0) -> 0 | T141: =IFERROR(VLOOKUP($A141,Filtro!$A$4:$AY$532,18,FALSE),0) -> 0 | U141: =IFERROR(VLOOKUP($A141,Filtro!$A$4:$AY$532,19,FALSE),0) -> 11 | V141: =IFERROR(VLOOKUP($A141,Filtro!$A$4:$AY$532,20,FALSE),0) -> 6 | W141: =IFERROR(VLOOKUP($A141,Filtro!$A$4:$AY$532,21,FALSE),0) -> 4 | X141: =IFERROR(VLOOKUP($A141,Filtro!$A$4:$AY$532,22,FALSE),0) -> 2 | Y141: =IFERROR(VLOOKUP($A141,Filtro!$A$4:$AY$532,23,FALSE),0) -> 6 | Z141: =IFERROR(VLOOKUP($A141,Filtro!$A$4:$AY$532,24,FALSE),0) -> 2 | AA141: =IFERROR(VLOOKUP($A141,Filtro!$A$4:$AY$532,25,FALSE),0) -> 6 | AB141: =IFERROR(VLOOKUP($A141,Filtro!$A$4:$AY$532,26,FALSE),0) -> 8 | AC141: =IFERROR(VLOOKUP($A141,Filtro!$A$4:$AY$532,27,FALSE),0) -> 2 | AD141: =IFERROR(VLOOKUP($A141,Filtro!$A$4:$AY$532,28,FALSE),0) -> 0 | AE141: =IFERROR(VLOOKUP($A141,Filtro!$A$4:$AY$532,29,FALSE),0) -> 2 | AF141: =IFERROR(VLOOKUP($A141,Filtro!$A$4:$AY$532,30,FALSE),0) -> 0 | AG141: =IFERROR(VLOOKUP($A141,Filtro!$A$4:$AY$532,31,FALSE),0) -> 6 | AH141: =IFERROR(VLOOKUP($A141,Filtro!$A$4:$AY$532,32,FALSE),0) -> 8 | AI141: =IFERROR(VLOOKUP($A141,Filtro!$A$4:$AY$532,33,FALSE),0) -> 6 | AJ141: =IFERROR(VLOOKUP($A141,Filtro!$A$4:$AY$532,34,FALSE),0) -> 8 | AK141: =IFERROR(VLOOKUP($A141,Filtro!$A$4:$AY$532,35,FALSE),0) -> 6 | AL141: =IFERROR(VLOOKUP($A141,Filtro!$A$4:$AY$532,36,FALSE),0) -> 0 | AM141: =IFERROR(VLOOKUP($A141,Filtro!$A$4:$AY$532,37,FALSE),0) -> 2 | AN141: =IFERROR(VLOOKUP($A141,Filtro!$A$4:$AY$532,38,FALSE),0) -> 2 | AO141: =IFERROR(VLOOKUP($A141,Filtro!$A$4:$AY$532,39,FALSE),0) -> 0 | AP141: =IFERROR(VLOOKUP($A141,Filtro!$A$4:$AY$532,40,FALSE),0) -> 0 | AQ141: =IFERROR(VLOOKUP($A141,Filtro!$A$4:$AY$532,41,FALSE),0) -> 0 | AR141: =IFERROR(VLOOKUP($A141,Filtro!$A$4:$AY$532,42,FALSE),0) -> 0
A142: P2501400 | B142: NEOPLASIAS | D142: =IFERROR(VLOOKUP($A142,Filtro!$A$4:$AY$532,2,FALSE),0) -> 7 | E142: =IFERROR(VLOOKUP($A142,Filtro!$A$4:$AY$532,3,FALSE),0) -> 2 | F142: =IFERROR(VLOOKUP($A142,Filtro!$A$4:$AY$532,4,FALSE),0) -> 5 | G142: =IFERROR(VLOOKUP($A142,Filtro!$A$4:$AY$532,5,FALSE),0) -> 0 | H142: =IFERROR(VLOOKUP($A142,Filtro!$A$4:$AY$532,6,FALSE),0) -> 0 | I142: =IFERROR(VLOOKUP($A142,Filtro!$A$4:$AY$532,7,FALSE),0) -> 0 | J142: =IFERROR(VLOOKUP($A142,Filtro!$A$4:$AY$532,8,FALSE),0) -> 0 | K142: =IFERROR(VLOOKUP($A142,Filtro!$A$4:$AY$532,9,FALSE),0) -> 0 | L142: =IFERROR(VLOOKUP($A142,Filtro!$A$4:$AY$532,10,FALSE),0) -> 0 | M142: =IFERROR(VLOOKUP($A142,Filtro!$A$4:$AY$532,11,FALSE),0) -> 0 | N142: =IFERROR(VLOOKUP($A142,Filtro!$A$4:$AY$532,12,FALSE),0) -> 0 | O142: =IFERROR(VLOOKUP($A142,Filtro!$A$4:$AY$532,13,FALSE),0) -> 0 | P142: =IFERROR(VLOOKUP($A142,Filtro!$A$4:$AY$532,14,FALSE),0) -> 0 | Q142: =IFERROR(VLOOKUP($A142,Filtro!$A$4:$AY$532,15,FALSE),0) -> 0 | R142: =IFERROR(VLOOKUP($A142,Filtro!$A$4:$AY$532,16,FALSE),0) -> 0 | S142: =IFERROR(VLOOKUP($A142,Filtro!$A$4:$AY$532,17,FALSE),0) -> 0 | T142: =IFERROR(VLOOKUP($A142,Filtro!$A$4:$AY$532,18,FALSE),0) -> 0 | U142: =IFERROR(VLOOKUP($A142,Filtro!$A$4:$AY$532,19,FALSE),0) -> 0 | V142: =IFERROR(VLOOKUP($A142,Filtro!$A$4:$AY$532,20,FALSE),0) -> 0 | W142: =IFERROR(VLOOKUP($A142,Filtro!$A$4:$AY$532,21,FALSE),0) -> 0 | X142: =IFERROR(VLOOKUP($A142,Filtro!$A$4:$AY$532,22,FALSE),0) -> 0 | Y142: =IFERROR(VLOOKUP($A142,Filtro!$A$4:$AY$532,23,FALSE),0) -> 0 | Z142: =IFERROR(VLOOKUP($A142,Filtro!$A$4:$AY$532,24,FALSE),0) -> 0 | AA142: =IFERROR(VLOOKUP($A142,Filtro!$A$4:$AY$532,25,FALSE),0) -> 0 | AB142: =IFERROR(VLOOKUP($A142,Filtro!$A$4:$AY$532,26,FALSE),0) -> 0 | AC142: =IFERROR(VLOOKUP($A142,Filtro!$A$4:$AY$532,27,FALSE),0) -> 1 | AD142: =IFERROR(VLOOKUP($A142,Filtro!$A$4:$AY$532,28,FALSE),0) -> 0 | AE142: =IFERROR(VLOOKUP($A142,Filtro!$A$4:$AY$532,29,FALSE),0) -> 0 | AF142: =IFERROR(VLOOKUP($A142,Filtro!$A$4:$AY$532,30,FALSE),0) -> 0 | AG142: =IFERROR(VLOOKUP($A142,Filtro!$A$4:$AY$532,31,FALSE),0) -> 0 | AH142: =IFERROR(VLOOKUP($A142,Filtro!$A$4:$AY$532,32,FALSE),0) -> 5 | AI142: =IFERROR(VLOOKUP($A142,Filtro!$A$4:$AY$532,33,FALSE),0) -> 0 | AJ142: =IFERROR(VLOOKUP($A142,Filtro!$A$4:$AY$532,34,FALSE),0) -> 0 | AK142: =IFERROR(VLOOKUP($A142,Filtro!$A$4:$AY$532,35,FALSE),0) -> 1 | AL142: =IFERROR(VLOOKUP($A142,Filtro!$A$4:$AY$532,36,FALSE),0) -> 0 | AM142: =IFERROR(VLOOKUP($A142,Filtro!$A$4:$AY$532,37,FALSE),0) -> 0 | AN142: =IFERROR(VLOOKUP($A142,Filtro!$A$4:$AY$532,38,FALSE),0) -> 0 | AO142: =IFERROR(VLOOKUP($A142,Filtro!$A$4:$AY$532,39,FALSE),0) -> 0 | AP142: =IFERROR(VLOOKUP($A142,Filtro!$A$4:$AY$532,40,FALSE),0) -> 0 | AQ142: =IFERROR(VLOOKUP($A142,Filtro!$A$4:$AY$532,41,FALSE),0) -> 0 | AR142: =IFERROR(VLOOKUP($A142,Filtro!$A$4:$AY$532,42,FALSE),0) -> 0
A143: P2501500 | B143: MALFORMACIONES CONGÉNITAS, DEFORMIDADES Y ANOMALÍAS CROMOSÓMICAS | D143: =IFERROR(VLOOKUP($A143,Filtro!$A$4:$AY$532,2,FALSE),0) -> 193 | E143: =IFERROR(VLOOKUP($A143,Filtro!$A$4:$AY$532,3,FALSE),0) -> 115 | F143: =IFERROR(VLOOKUP($A143,Filtro!$A$4:$AY$532,4,FALSE),0) -> 78 | G143: =IFERROR(VLOOKUP($A143,Filtro!$A$4:$AY$532,5,FALSE),0) -> 2 | H143: =IFERROR(VLOOKUP($A143,Filtro!$A$4:$AY$532,6,FALSE),0) -> 1 | I143: =IFERROR(VLOOKUP($A143,Filtro!$A$4:$AY$532,7,FALSE),0) -> 0 | J143: =IFERROR(VLOOKUP($A143,Filtro!$A$4:$AY$532,8,FALSE),0) -> 2 | K143: =IFERROR(VLOOKUP($A143,Filtro!$A$4:$AY$532,9,FALSE),0) -> 0 | L143: =IFERROR(VLOOKUP($A143,Filtro!$A$4:$AY$532,10,FALSE),0) -> 0 | M143: =IFERROR(VLOOKUP($A143,Filtro!$A$4:$AY$532,11,FALSE),0) -> 1 | N143: =IFERROR(VLOOKUP($A143,Filtro!$A$4:$AY$532,12,FALSE),0) -> 0 | O143: =IFERROR(VLOOKUP($A143,Filtro!$A$4:$AY$532,13,FALSE),0) -> 0 | P143: =IFERROR(VLOOKUP($A143,Filtro!$A$4:$AY$532,14,FALSE),0) -> 0 | Q143: =IFERROR(VLOOKUP($A143,Filtro!$A$4:$AY$532,15,FALSE),0) -> 0 | R143: =IFERROR(VLOOKUP($A143,Filtro!$A$4:$AY$532,16,FALSE),0) -> 0 | S143: =IFERROR(VLOOKUP($A143,Filtro!$A$4:$AY$532,17,FALSE),0) -> 2 | T143: =IFERROR(VLOOKUP($A143,Filtro!$A$4:$AY$532,18,FALSE),0) -> 3 | U143: =IFERROR(VLOOKUP($A143,Filtro!$A$4:$AY$532,19,FALSE),0) -> 3 | V143: =IFERROR(VLOOKUP($A143,Filtro!$A$4:$AY$532,20,FALSE),0) -> 7 | W143: =IFERROR(VLOOKUP($A143,Filtro!$A$4:$AY$532,21,FALSE),0) -> 12 | X143: =IFERROR(VLOOKUP($A143,Filtro!$A$4:$AY$532,22,FALSE),0) -> 13 | Y143: =IFERROR(VLOOKUP($A143,Filtro!$A$4:$AY$532,23,FALSE),0) -> 14 | Z143: =IFERROR(VLOOKUP($A143,Filtro!$A$4:$AY$532,24,FALSE),0) -> 8 | AA143: =IFERROR(VLOOKUP($A143,Filtro!$A$4:$AY$532,25,FALSE),0) -> 7 | AB143: =IFERROR(VLOOKUP($A143,Filtro!$A$4:$AY$532,26,FALSE),0) -> 14 | AC143: =IFERROR(VLOOKUP($A143,Filtro!$A$4:$AY$532,27,FALSE),0) -> 16 | AD143: =IFERROR(VLOOKUP($A143,Filtro!$A$4:$AY$532,28,FALSE),0) -> 3 | AE143: =IFERROR(VLOOKUP($A143,Filtro!$A$4:$AY$532,29,FALSE),0) -> 5 | AF143: =IFERROR(VLOOKUP($A143,Filtro!$A$4:$AY$532,30,FALSE),0) -> 5 | AG143: =IFERROR(VLOOKUP($A143,Filtro!$A$4:$AY$532,31,FALSE),0) -> 14 | AH143: =IFERROR(VLOOKUP($A143,Filtro!$A$4:$AY$532,32,FALSE),0) -> 9 | AI143: =IFERROR(VLOOKUP($A143,Filtro!$A$4:$AY$532,33,FALSE),0) -> 13 | AJ143: =IFERROR(VLOOKUP($A143,Filtro!$A$4:$AY$532,34,FALSE),0) -> 4 | AK143: =IFERROR(VLOOKUP($A143,Filtro!$A$4:$AY$532,35,FALSE),0) -> 13 | AL143: =IFERROR(VLOOKUP($A143,Filtro!$A$4:$AY$532,36,FALSE),0) -> 5 | AM143: =IFERROR(VLOOKUP($A143,Filtro!$A$4:$AY$532,37,FALSE),0) -> 13 | AN143: =IFERROR(VLOOKUP($A143,Filtro!$A$4:$AY$532,38,FALSE),0) -> 4 | AO143: =IFERROR(VLOOKUP($A143,Filtro!$A$4:$AY$532,39,FALSE),0) -> 0 | AP143: =IFERROR(VLOOKUP($A143,Filtro!$A$4:$AY$532,40,FALSE),0) -> 0 | AQ143: =IFERROR(VLOOKUP($A143,Filtro!$A$4:$AY$532,41,FALSE),0) -> 1 | AR143: =IFERROR(VLOOKUP($A143,Filtro!$A$4:$AY$532,42,FALSE),0) -> 0
A144: P2501600 | B144: PREMATUROS | D144: =IFERROR(VLOOKUP($A144,Filtro!$A$4:$AY$532,2,FALSE),0) -> 2433 | E144: =IFERROR(VLOOKUP($A144,Filtro!$A$4:$AY$532,3,FALSE),0) -> 1357 | F144: =IFERROR(VLOOKUP($A144,Filtro!$A$4:$AY$532,4,FALSE),0) -> 1076 | G144: =IFERROR(VLOOKUP($A144,Filtro!$A$4:$AY$532,5,FALSE),0) -> 7 | H144: =IFERROR(VLOOKUP($A144,Filtro!$A$4:$AY$532,6,FALSE),0) -> 3 | I144: =IFERROR(VLOOKUP($A144,Filtro!$A$4:$AY$532,7,FALSE),0) -> 8 | J144: =IFERROR(VLOOKUP($A144,Filtro!$A$4:$AY$532,8,FALSE),0) -> 10 | K144: =IFERROR(VLOOKUP($A144,Filtro!$A$4:$AY$532,9,FALSE),0) -> 30 | L144: =IFERROR(VLOOKUP($A144,Filtro!$A$4:$AY$532,10,FALSE),0) -> 19 | M144: =IFERROR(VLOOKUP($A144,Filtro!$A$4:$AY$532,11,FALSE),0) -> 9 | N144: =IFERROR(VLOOKUP($A144,Filtro!$A$4:$AY$532,12,FALSE),0) -> 13 | O144: =IFERROR(VLOOKUP($A144,Filtro!$A$4:$AY$532,13,FALSE),0) -> 20 | P144: =IFERROR(VLOOKUP($A144,Filtro!$A$4:$AY$532,14,FALSE),0) -> 20 | Q144: =IFERROR(VLOOKUP($A144,Filtro!$A$4:$AY$532,15,FALSE),0) -> 20 | R144: =IFERROR(VLOOKUP($A144,Filtro!$A$4:$AY$532,16,FALSE),0) -> 20 | S144: =IFERROR(VLOOKUP($A144,Filtro!$A$4:$AY$532,17,FALSE),0) -> 22 | T144: =IFERROR(VLOOKUP($A144,Filtro!$A$4:$AY$532,18,FALSE),0) -> 16 | U144: =IFERROR(VLOOKUP($A144,Filtro!$A$4:$AY$532,19,FALSE),0) -> 133 | V144: =IFERROR(VLOOKUP($A144,Filtro!$A$4:$AY$532,20,FALSE),0) -> 107 | W144: =IFERROR(VLOOKUP($A144,Filtro!$A$4:$AY$532,21,FALSE),0) -> 140 | X144: =IFERROR(VLOOKUP($A144,Filtro!$A$4:$AY$532,22,FALSE),0) -> 117 | Y144: =IFERROR(VLOOKUP($A144,Filtro!$A$4:$AY$532,23,FALSE),0) -> 85 | Z144: =IFERROR(VLOOKUP($A144,Filtro!$A$4:$AY$532,24,FALSE),0) -> 85 | AA144: =IFERROR(VLOOKUP($A144,Filtro!$A$4:$AY$532,25,FALSE),0) -> 183 | AB144: =IFERROR(VLOOKUP($A144,Filtro!$A$4:$AY$532,26,FALSE),0) -> 160 | AC144: =IFERROR(VLOOKUP($A144,Filtro!$A$4:$AY$532,27,FALSE),0) -> 119 | AD144: =IFERROR(VLOOKUP($A144,Filtro!$A$4:$AY$532,28,FALSE),0) -> 79 | AE144: =IFERROR(VLOOKUP($A144,Filtro!$A$4:$AY$532,29,FALSE),0) -> 86 | AF144: =IFERROR(VLOOKUP($A144,Filtro!$A$4:$AY$532,30,FALSE),0) -> 63 | AG144: =IFERROR(VLOOKUP($A144,Filtro!$A$4:$AY$532,31,FALSE),0) -> 146 | AH144: =IFERROR(VLOOKUP($A144,Filtro!$A$4:$AY$532,32,FALSE),0) -> 119 | AI144: =IFERROR(VLOOKUP($A144,Filtro!$A$4:$AY$532,33,FALSE),0) -> 131 | AJ144: =IFERROR(VLOOKUP($A144,Filtro!$A$4:$AY$532,34,FALSE),0) -> 81 | AK144: =IFERROR(VLOOKUP($A144,Filtro!$A$4:$AY$532,35,FALSE),0) -> 153 | AL144: =IFERROR(VLOOKUP($A144,Filtro!$A$4:$AY$532,36,FALSE),0) -> 110 | AM144: =IFERROR(VLOOKUP($A144,Filtro!$A$4:$AY$532,37,FALSE),0) -> 65 | AN144: =IFERROR(VLOOKUP($A144,Filtro!$A$4:$AY$532,38,FALSE),0) -> 54 | AO144: =IFERROR(VLOOKUP($A144,Filtro!$A$4:$AY$532,39,FALSE),0) -> 1 | AP144: =IFERROR(VLOOKUP($A144,Filtro!$A$4:$AY$532,40,FALSE),0) -> 1 | AQ144: =IFERROR(VLOOKUP($A144,Filtro!$A$4:$AY$532,41,FALSE),0) -> 4 | AR144: =IFERROR(VLOOKUP($A144,Filtro!$A$4:$AY$532,42,FALSE),0) -> 0
A145: P2501700 | B145: HOSPITALIZACIÓN DOMICILIARIA | D145: =IFERROR(VLOOKUP($A145,Filtro!$A$4:$AY$532,2,FALSE),0) -> 9 | E145: =IFERROR(VLOOKUP($A145,Filtro!$A$4:$AY$532,3,FALSE),0) -> 5 | F145: =IFERROR(VLOOKUP($A145,Filtro!$A$4:$AY$532,4,FALSE),0) -> 4 | G145: =IFERROR(VLOOKUP($A145,Filtro!$A$4:$AY$532,5,FALSE),0) -> 0 | H145: =IFERROR(VLOOKUP($A145,Filtro!$A$4:$AY$532,6,FALSE),0) -> 0 | I145: =IFERROR(VLOOKUP($A145,Filtro!$A$4:$AY$532,7,FALSE),0) -> 0 | J145: =IFERROR(VLOOKUP($A145,Filtro!$A$4:$AY$532,8,FALSE),0) -> 0 | K145: =IFERROR(VLOOKUP($A145,Filtro!$A$4:$AY$532,9,FALSE),0) -> 0 | L145: =IFERROR(VLOOKUP($A145,Filtro!$A$4:$AY$532,10,FALSE),0) -> 0 | M145: =IFERROR(VLOOKUP($A145,Filtro!$A$4:$AY$532,11,FALSE),0) -> 0 | N145: =IFERROR(VLOOKUP($A145,Filtro!$A$4:$AY$532,12,FALSE),0) -> 0 | O145: =IFERROR(VLOOKUP($A145,Filtro!$A$4:$AY$532,13,FALSE),0) -> 0 | P145: =IFERROR(VLOOKUP($A145,Filtro!$A$4:$AY$532,14,FALSE),0) -> 0 | Q145: =IFERROR(VLOOKUP($A145,Filtro!$A$4:$AY$532,15,FALSE),0) -> 0 | R145: =IFERROR(VLOOKUP($A145,Filtro!$A$4:$AY$532,16,FALSE),0) -> 0 | S145: =IFERROR(VLOOKUP($A145,Filtro!$A$4:$AY$532,17,FALSE),0) -> 1 | T145: =IFERROR(VLOOKUP($A145,Filtro!$A$4:$AY$532,18,FALSE),0) -> 0 | U145: =IFERROR(VLOOKUP($A145,Filtro!$A$4:$AY$532,19,FALSE),0) -> 0 | V145: =IFERROR(VLOOKUP($A145,Filtro!$A$4:$AY$532,20,FALSE),0) -> 0 | W145: =IFERROR(VLOOKUP($A145,Filtro!$A$4:$AY$532,21,FALSE),0) -> 1 | X145: =IFERROR(VLOOKUP($A145,Filtro!$A$4:$AY$532,22,FALSE),0) -> 0 | Y145: =IFERROR(VLOOKUP($A145,Filtro!$A$4:$AY$532,23,FALSE),0) -> 0 | Z145: =IFERROR(VLOOKUP($A145,Filtro!$A$4:$AY$532,24,FALSE),0) -> 0 | AA145: =IFERROR(VLOOKUP($A145,Filtro!$A$4:$AY$532,25,FALSE),0) -> 0 | AB145: =IFERROR(VLOOKUP($A145,Filtro!$A$4:$AY$532,26,FALSE),0) -> 2 | AC145: =IFERROR(VLOOKUP($A145,Filtro!$A$4:$AY$532,27,FALSE),0) -> 0 | AD145: =IFERROR(VLOOKUP($A145,Filtro!$A$4:$AY$532,28,FALSE),0) -> 0 | AE145: =IFERROR(VLOOKUP($A145,Filtro!$A$4:$AY$532,29,FALSE),0) -> 0 | AF145: =IFERROR(VLOOKUP($A145,Filtro!$A$4:$AY$532,30,FALSE),0) -> 0 | AG145: =IFERROR(VLOOKUP($A145,Filtro!$A$4:$AY$532,31,FALSE),0) -> 1 | AH145: =IFERROR(VLOOKUP($A145,Filtro!$A$4:$AY$532,32,FALSE),0) -> 0 | AI145: =IFERROR(VLOOKUP($A145,Filtro!$A$4:$AY$532,33,FALSE),0) -> 0 | AJ145: =IFERROR(VLOOKUP($A145,Filtro!$A$4:$AY$532,34,FALSE),0) -> 1 | AK145: =IFERROR(VLOOKUP($A145,Filtro!$A$4:$AY$532,35,FALSE),0) -> 1 | AL145: =IFERROR(VLOOKUP($A145,Filtro!$A$4:$AY$532,36,FALSE),0) -> 0 | AM145: =IFERROR(VLOOKUP($A145,Filtro!$A$4:$AY$532,37,FALSE),0) -> 1 | AN145: =IFERROR(VLOOKUP($A145,Filtro!$A$4:$AY$532,38,FALSE),0) -> 1 | AO145: =IFERROR(VLOOKUP($A145,Filtro!$A$4:$AY$532,39,FALSE),0) -> 0 | AP145: =IFERROR(VLOOKUP($A145,Filtro!$A$4:$AY$532,40,FALSE),0) -> 0 | AQ145: =IFERROR(VLOOKUP($A145,Filtro!$A$4:$AY$532,41,FALSE),0) -> 0 | AR145: =IFERROR(VLOOKUP($A145,Filtro!$A$4:$AY$532,42,FALSE),0) -> 0
B146: TOTAL | D146: =SUM(E146:F146) -> 3847 | E146: =SUM(E129:E145) -> 2214 | F146: =SUM(F129:F145) -> 1633 | G146: =SUM(G129:G145) -> 10 | H146: =SUM(H129:H145) -> 7 | I146: 10 | J146: 12 | K146: 33 | L146: 22 | M146: 15 | N146: 18 | O146: 20 | P146: 24 | Q146: 25 | R146: 24 | S146: 27 | T146: 22 | U146: 165 | V146: 135 | W146: 193 | X146: 147 | Y146: 138 | Z146: 118 | AA146: 251 | AB146: 231 | AC146: 197 | AD146: 114 | AE146: 128 | AF146: 86 | AG146: 240 | AH146: 178 | AI146: 224 | AJ146: 127 | AK146: 335 | AL146: 224 | AM146: 203 | AN146: 144 | AO146: 1 | AP146: 1 | AQ146: 9 | AR146: 0
A150: CODIGOS NUEVOS
A152: P2500100
A153: P2500200
A154: P2500300
A155: P2500400
A156: P2500500
A157: P2500600
A158: P2500700
A159: P2500800
A160: P2500900
A161: P2501000
A162: P2501100
A163: P2501200
A164: P2501300
A165: P2501400
A166: P2501500
A167: P2501600
A168: P2501700

Sheet P3
B7: REM-P3. POBLACIÓN EN CONTROL OTROS PROGRAMAS
B8: SECCIÓN A: EXISTENCIA DE POBLACIÓN EN CONTROL
B9: PROGRAMAS | D9: TOTAL | G9: GRUPOS DE EDAD (en años) Y SEXO | AO9: Con espirometría vigente | AP9: Población Migrantes
G10: 0 a 4 años | I10: 5 a 9 años | K10: 10 a 14 años | M10: 15 a 19 años | O10: 20 a 24 años | Q10: 25 a 29 años | S10: 30 a 34 años | U10: 35 a 39 años | W10: 40 a 44 años | Y10: 45 a 49 años | AA10: 50 a 54 años | AC10: 55 a 59 años | AE10: 60 a 64 años | AG10: 65 a 69 años | AI10: 70 a 74 años | AK10: 75 a 79 años | AM10: 80 y más años
D11: Ambos sexos | E11: Hombres | F11: Mujeres | G11: Hombres | H11: Mujeres | I11: Hombres | J11: Mujeres | K11: Hombres | L11: Mujeres | M11: Hombres | N11: Mujeres | O11: Hombres | P11: Mujeres | Q11: Hombres | R11: Mujeres | S11: Hombres | T11: Mujeres | U11: Hombres | V11: Mujeres | W11: Hombres | X11: Mujeres | Y11: Hombres | Z11: Mujeres | AA11: Hombres | AB11: Mujeres | AC11: Hombres | AD11: Mujeres | AE11: Hombres | AF11: Mujeres | AG11: Hombres | AH11: Mujeres | AI11: Hombres | AJ11: Mujeres | AK11: Hombres | AL11: Mujeres | AM11: Hombres | AN11: Mujeres | AP11: Hombres | AQ11: Mujeres
A12: P3160950 | B12: SÍNDROME BRONQUIAL OBSTRUCTIVA RECURRENTE (SBOR) | C12: LEVE | D12: =IFERROR(VLOOKUP($A12,Filtro!$A$4:$AY$532,2,FALSE),0) -> 1908 | E12: =IFERROR(VLOOKUP($A12,Filtro!$A$4:$AY$532,3,FALSE),0) -> 1130 | F12: =IFERROR(VLOOKUP($A12,Filtro!$A$4:$AY$532,4,FALSE),0) -> 778 | G12: =IFERROR(VLOOKUP($A12,Filtro!$A$4:$AY$532,5,FALSE),0) -> 1130 | H12: =IFERROR(VLOOKUP($A12,Filtro!$A$4:$AY$532,6,FALSE),0) -> 778 | I12: =IFERROR(VLOOKUP($A12,Filtro!$A$4:$AY$532,7,FALSE),0) -> 0 | J12: =IFERROR(VLOOKUP($A12,Filtro!$A$4:$AY$532,8,FALSE),0) -> 0 | K12: =IFERROR(VLOOKUP($A12,Filtro!$A$4:$AY$532,9,FALSE),0) -> 0 | L12: =IFERROR(VLOOKUP($A12,Filtro!$A$4:$AY$532,10,FALSE),0) -> 0 | M12: =IFERROR(VLOOKUP($A12,Filtro!$A$4:$AY$532,11,FALSE),0) -> 0 | N12: =IFERROR(VLOOKUP($A12,Filtro!$A$4:$AY$532,12,FALSE),0) -> 0 | O12: =IFERROR(VLOOKUP($A12,Filtro!$A$4:$AY$532,13,FALSE),0) -> 0 | P12: =IFERROR(VLOOKUP($A12,Filtro!$A$4:$AY$532,14,FALSE),0) -> 0 | Q12: =IFERROR(VLOOKUP($A12,Filtro!$A$4:$AY$532,15,FALSE),0) -> 0 | R12: =IFERROR(VLOOKUP($A12,Filtro!$A$4:$AY$532,16,FALSE),0) -> 0 | S12: =IFERROR(VLOOKUP($A12,Filtro!$A$4:$AY$532,17,FALSE),0) -> 0 | T12: =IFERROR(VLOOKUP($A12,Filtro!$A$4:$AY$532,18,FALSE),0) -> 0 | U12: =IFERROR(VLOOKUP($A12,Filtro!$A$4:$AY$532,19,FALSE),0) -> 0 | V12: =IFERROR(VLOOKUP($A12,Filtro!$A$4:$AY$532,20,FALSE),0) -> 0 | W12: =IFERROR(VLOOKUP($A12,Filtro!$A$4:$AY$532,21,FALSE),0) -> 0 | X12: =IFERROR(VLOOKUP($A12,Filtro!$A$4:$AY$532,22,FALSE),0) -> 0 | Y12: =IFERROR(VLOOKUP($A12,Filtro!$A$4:$AY$532,23,FALSE),0) -> 0 | Z12: =IFERROR(VLOOKUP($A12,Filtro!$A$4:$AY$532,24,FALSE),0) -> 0 | AA12: =IFERROR(VLOOKUP($A12,Filtro!$A$4:$AY$532,25,FALSE),0) -> 0 | AB12: =IFERROR(VLOOKUP($A12,Filtro!$A$4:$AY$532,26,FALSE),0) -> 0 | AC12: =IFERROR(VLOOKUP($A12,Filtro!$A$4:$AY$532,27,FALSE),0) -> 0 | AD12: =IFERROR(VLOOKUP($A12,Filtro!$A$4:$AY$532,28,FALSE),0) -> 0 | AE12: =IFERROR(VLOOKUP($A12,Filtro!$A$4:$AY$532,29,FALSE),0) -> 0 | AF12: =IFERROR(VLOOKUP($A12,Filtro!$A$4:$AY$532,30,FALSE),0) -> 0 | AG12: =IFERROR(VLOOKUP($A12,Filtro!$A$4:$AY$532,31,FALSE),0) -> 0 | AH12: =IFERROR(VLOOKUP($A12,Filtro!$A$4:$AY$532,32,FALSE),0) -> 0 | AI12: =IFERROR(VLOOKUP($A12,Filtro!$A$4:$AY$532,33,FALSE),0) -> 0 | AJ12: =IFERROR(VLOOKUP($A12,Filtro!$A$4:$AY$532,34,FALSE),0) -> 0 | AK12: =IFERROR(VLOOKUP($A12,Filtro!$A$4:$AY$532,35,FALSE),0) -> 0 | AL12: =IFERROR(VLOOKUP($A12,Filtro!$A$4:$AY$532,36,FALSE),0) -> 0 | AM12: =IFERROR(VLOOKUP($A12,Filtro!$A$4:$AY$532,37,FALSE),0) -> 0 | AN12: =IFERROR(VLOOKUP($A12,Filtro!$A$4:$AY$532,38,FALSE),0) -> 0 | AO12: =IFERROR(VLOOKUP($A12,Filtro!$A$4:$AY$532,39,FALSE),0) -> 2 | AP12: =IFERROR(VLOOKUP($A12,Filtro!$A$4:$AY$532,40,FALSE),0) -> 38 | AQ12: =IFERROR(VLOOKUP($A12,Filtro!$A$4:$AY$532,41,FALSE),0) -> 10 | CC12: =IF($AO12<=$G12+$H12,"","* La Población bajo control con Espirometría Vigente no debe ser mayor al Total de Población en Control. ") ->  | CD12: =IF($D12>=$AP12+$AQ12,"","* La Población Migrantes no debe ser mayor al Total de Población en Control. ") ->  | CF12: =IF(AND(E12<>0,AP12=""),"* No olvide escribir en la celda de Población Migrantes (Digite CERO si no tiene). ",IF(AND(F12<>0,AQ12=""),"* No olvide escribir en la celda de Población Migrantes (Digite CERO si no tiene). ","")) ->  | CK12: =IF($AO12<=$G12+$H12,0,1) -> 0 | CL12: =IF($D12>=$AP12+$AQ12,0,1) -> 0 | CN12: =IF(AND(E12<>0,AP12=""),1,IF(AND(F12<>0,AQ12=""),1,0)) -> 0
A13: P3160960 | C13: MODERADO | D13: =IFERROR(VLOOKUP($A13,Filtro!$A$4:$AY$532,2,FALSE),0) -> 1571 | E13: =IFERROR(VLOOKUP($A13,Filtro!$A$4:$AY$532,3,FALSE),0) -> 885 | F13: =IFERROR(VLOOKUP($A13,Filtro!$A$4:$AY$532,4,FALSE),0) -> 686 | G13: =IFERROR(VLOOKUP($A13,Filtro!$A$4:$AY$532,5,FALSE),0) -> 885 | H13: =IFERROR(VLOOKUP($A13,Filtro!$A$4:$AY$532,6,FALSE),0) -> 686 | I13: =IFERROR(VLOOKUP($A13,Filtro!$A$4:$AY$532,7,FALSE),0) -> 0 | J13: =IFERROR(VLOOKUP($A13,Filtro!$A$4:$AY$532,8,FALSE),0) -> 0 | K13: =IFERROR(VLOOKUP($A13,Filtro!$A$4:$AY$532,9,FALSE),0) -> 0 | L13: =IFERROR(VLOOKUP($A13,Filtro!$A$4:$AY$532,10,FALSE),0) -> 0 | M13: =IFERROR(VLOOKUP($A13,Filtro!$A$4:$AY$532,11,FALSE),0) -> 0 | N13: =IFERROR(VLOOKUP($A13,Filtro!$A$4:$AY$532,12,FALSE),0) -> 0 | O13: =IFERROR(VLOOKUP($A13,Filtro!$A$4:$AY$532,13,FALSE),0) -> 0 | P13: =IFERROR(VLOOKUP($A13,Filtro!$A$4:$AY$532,14,FALSE),0) -> 0 | Q13: =IFERROR(VLOOKUP($A13,Filtro!$A$4:$AY$532,15,FALSE),0) -> 0 | R13: =IFERROR(VLOOKUP($A13,Filtro!$A$4:$AY$532,16,FALSE),0) -> 0 | S13: =IFERROR(VLOOKUP($A13,Filtro!$A$4:$AY$532,17,FALSE),0) -> 0 | T13: =IFERROR(VLOOKUP($A13,Filtro!$A$4:$AY$532,18,FALSE),0) -> 0 | U13: =IFERROR(VLOOKUP($A13,Filtro!$A$4:$AY$532,19,FALSE),0) -> 0 | V13: =IFERROR(VLOOKUP($A13,Filtro!$A$4:$AY$532,20,FALSE),0) -> 0 | W13: =IFERROR(VLOOKUP($A13,Filtro!$A$4:$AY$532,21,FALSE),0) -> 0 | X13: =IFERROR(VLOOKUP($A13,Filtro!$A$4:$AY$532,22,FALSE),0) -> 0 | Y13: =IFERROR(VLOOKUP($A13,Filtro!$A$4:$AY$532,23,FALSE),0) -> 0 | Z13: =IFERROR(VLOOKUP($A13,Filtro!$A$4:$AY$532,24,FALSE),0) -> 0 | AA13: =IFERROR(VLOOKUP($A13,Filtro!$A$4:$AY$532,25,FALSE),0) -> 0 | AB13: =IFERROR(VLOOKUP($A13,Filtro!$A$4:$AY$532,26,FALSE),0) -> 0 | AC13: =IFERROR(VLOOKUP($A13,Filtro!$A$4:$AY$532,27,FALSE),0) -> 0 | AD13: =IFERROR(VLOOKUP($A13,Filtro!$A$4:$AY$532,28,FALSE),0) -> 0 | AE13: =IFERROR(VLOOKUP($A13,Filtro!$A$4:$AY$532,29,FALSE),0) -> 0 | AF13: =IFERROR(VLOOKUP($A13,Filtro!$A$4:$AY$532,30,FALSE),0) -> 0 | AG13: =IFERROR(VLOOKUP($A13,Filtro!$A$4:$AY$532,31,FALSE),0) -> 0 | AH13: =IFERROR(VLOOKUP($A13,Filtro!$A$4:$AY$532,32,FALSE),0) -> 0 | AI13: =IFERROR(VLOOKUP($A13,Filtro!$A$4:$AY$532,33,FALSE),0) -> 0 | AJ13: =IFERROR(VLOOKUP($A13,Filtro!$A$4:$AY$532,34,FALSE),0) -> 0 | AK13: =IFERROR(VLOOKUP($A13,Filtro!$A$4:$AY$532,35,FALSE),0) -> 0 | AL13: =IFERROR(VLOOKUP($A13,Filtro!$A$4:$AY$532,36,FALSE),0) -> 0 | AM13: =IFERROR(VLOOKUP($A13,Filtro!$A$4:$AY$532,37,FALSE),0) -> 0 | AN13: =IFERROR(VLOOKUP($A13,Filtro!$A$4:$AY$532,38,FALSE),0) -> 0 | AO13: =IFERROR(VLOOKUP($A13,Filtro!$A$4:$AY$532,39,FALSE),0) -> 2 | AP13: =IFERROR(VLOOKUP($A13,Filtro!$A$4:$AY$532,40,FALSE),0) -> 10 | AQ13: =IFERROR(VLOOKUP($A13,Filtro!$A$4:$AY$532,41,FALSE),0) -> 4 | CC13: =IF($AO13<=$G13+$H13,"","* La Población bajo control con Espirometría Vigente no debe ser mayor al Total de Población en Control. ") ->  | CK13: =IF($AO13<=$G13+$H13,0,1) -> 0 | CL13: =IF($D13>=$AP13+$AQ13,0,1) -> 0 | CN13: 0
A14: P3160970 | C14: SEVERO | D14: =IFERROR(VLOOKUP($A14,Filtro!$A$4:$AY$532,2,FALSE),0) -> 36 | E14: =IFERROR(VLOOKUP($A14,Filtro!$A$4:$AY$532,3,FALSE),0) -> 19 | F14: =IFERROR(VLOOKUP($A14,Filtro!$A$4:$AY$532,4,FALSE),0) -> 17 | G14: =IFERROR(VLOOKUP($A14,Filtro!$A$4:$AY$532,5,FALSE),0) -> 19 | H14: =IFERROR(VLOOKUP($A14,Filtro!$A$4:$AY$532,6,FALSE),0) -> 17 | I14: =IFERROR(VLOOKUP($A14,Filtro!$A$4:$AY$532,7,FALSE),0) -> 0 | J14: =IFERROR(VLOOKUP($A14,Filtro!$A$4:$AY$532,8,FALSE),0) -> 0 | K14: =IFERROR(VLOOKUP($A14,Filtro!$A$4:$AY$532,9,FALSE),0) -> 0 | L14: =IFERROR(VLOOKUP($A14,Filtro!$A$4:$AY$532,10,FALSE),0) -> 0 | M14: =IFERROR(VLOOKUP($A14,Filtro!$A$4:$AY$532,11,FALSE),0) -> 0 | N14: =IFERROR(VLOOKUP($A14,Filtro!$A$4:$AY$532,12,FALSE),0) -> 0 | O14: =IFERROR(VLOOKUP($A14,Filtro!$A$4:$AY$532,13,FALSE),0) -> 0 | P14: =IFERROR(VLOOKUP($A14,Filtro!$A$4:$AY$532,14,FALSE),0) -> 0 | Q14: =IFERROR(VLOOKUP($A14,Filtro!$A$4:$AY$532,15,FALSE),0) -> 0 | R14: =IFERROR(VLOOKUP($A14,Filtro!$A$4:$AY$532,16,FALSE),0) -> 0 | S14: =IFERROR(VLOOKUP($A14,Filtro!$A$4:$AY$532,17,FALSE),0) -> 0 | T14: =IFERROR(VLOOKUP($A14,Filtro!$A$4:$AY$532,18,FALSE),0) -> 0 | U14: =IFERROR(VLOOKUP($A14,Filtro!$A$4:$AY$532,19,FALSE),0) -> 0 | V14: =IFERROR(VLOOKUP($A14,Filtro!$A$4:$AY$532,20,FALSE),0) -> 0 | W14: =IFERROR(VLOOKUP($A14,Filtro!$A$4:$AY$532,21,FALSE),0) -> 0 | X14: =IFERROR(VLOOKUP($A14,Filtro!$A$4:$AY$532,22,FALSE),0) -> 0 | Y14: =IFERROR(VLOOKUP($A14,Filtro!$A$4:$AY$532,23,FALSE),0) -> 0 | Z14: =IFERROR(VLOOKUP($A14,Filtro!$A$4:$AY$532,24,FALSE),0) -> 0 | AA14: =IFERROR(VLOOKUP($A14,Filtro!$A$4:$AY$532,25,FALSE),0) -> 0 | AB14: =IFERROR(VLOOKUP($A14,Filtro!$A$4:$AY$532,26,FALSE),0) -> 0 | AC14: =IFERROR(VLOOKUP($A14,Filtro!$A$4:$AY$532,27,FALSE),0) -> 0 | AD14: =IFERROR(VLOOKUP($A14,Filtro!$A$4:$AY$532,28,FALSE),0) -> 0 | AE14: =IFERROR(VLOOKUP($A14,Filtro!$A$4:$AY$532,29,FALSE),0) -> 0 | AF14: =IFERROR(VLOOKUP($A14,Filtro!$A$4:$AY$532,30,FALSE),0) -> 0 | AG14: =IFERROR(VLOOKUP($A14,Filtro!$A$4:$AY$532,31,FALSE),0) -> 0 | AH14: =IFERROR(VLOOKUP($A14,Filtro!$A$4:$AY$532,32,FALSE),0) -> 0 | AI14: =IFERROR(VLOOKUP($A14,Filtro!$A$4:$AY$532,33,FALSE),0) -> 0 | AJ14: =IFERROR(VLOOKUP($A14,Filtro!$A$4:$AY$532,34,FALSE),0) -> 0 | AK14: =IFERROR(VLOOKUP($A14,Filtro!$A$4:$AY$532,35,FALSE),0) -> 0 | AL14: =IFERROR(VLOOKUP($A14,Filtro!$A$4:$AY$532,36,FALSE),0) -> 0 | AM14: =IFERROR(VLOOKUP($A14,Filtro!$A$4:$AY$532,37,FALSE),0) -> 0 | AN14: =IFERROR(VLOOKUP($A14,Filtro!$A$4:$AY$532,38,FALSE),0) -> 0 | AO14: =IFERROR(VLOOKUP($A14,Filtro!$A$4:$AY$532,39,FALSE),0) -> 0 | AP14: =IFERROR(VLOOKUP($A14,Filtro!$A$4:$AY$532,40,FALSE),0) -> 0 | AQ14: =IFERROR(VLOOKUP($A14,Filtro!$A$4:$AY$532,41,FALSE),0) -> 0 | CC14: =IF($AO14<=$G14+$H14,"","* La Población bajo control con Espirometría Vigente no debe ser mayor al Total de Población en Control. ") ->  | CK14: =IF($AO14<=$G14+$H14,0,1) -> 0 | CL14: 0 | CN14: 0
A15: P3160980 | B15: ASMA BRONQUIAL | C15: LEVE | D15: =IFERROR(VLOOKUP($A15,Filtro!$A$4:$AY$532,2,FALSE),0) -> 15269 | E15: =IFERROR(VLOOKUP($A15,Filtro!$A$4:$AY$532,3,FALSE),0) -> 5710 | F15: =IFERROR(VLOOKUP($A15,Filtro!$A$4:$AY$532,4,FALSE),0) -> 9559 | G15: =IFERROR(VLOOKUP($A15,Filtro!$A$4:$AY$532,5,FALSE),0) -> 485 | H15: =IFERROR(VLOOKUP($A15,Filtro!$A$4:$AY$532,6,FALSE),0) -> 303 | I15: =IFERROR(VLOOKUP($A15,Filtro!$A$4:$AY$532,7,FALSE),0) -> 1673 | J15: =IFERROR(VLOOKUP($A15,Filtro!$A$4:$AY$532,8,FALSE),0) -> 1208 | K15: =IFERROR(VLOOKUP($A15,Filtro!$A$4:$AY$532,9,FALSE),0) -> 1036 | L15: =IFERROR(VLOOKUP($A15,Filtro!$A$4:$AY$532,10,FALSE),0) -> 844 | M15: =IFERROR(VLOOKUP($A15,Filtro!$A$4:$AY$532,11,FALSE),0) -> 635 | N15: =IFERROR(VLOOKUP($A15,Filtro!$A$4:$AY$532,12,FALSE),0) -> 658 | O15: =IFERROR(VLOOKUP($A15,Filtro!$A$4:$AY$532,13,FALSE),0) -> 289 | P15: =IFERROR(VLOOKUP($A15,Filtro!$A$4:$AY$532,14,FALSE),0) -> 416 | Q15: =IFERROR(VLOOKUP($A15,Filtro!$A$4:$AY$532,15,FALSE),0) -> 133 | R15: =IFERROR(VLOOKUP($A15,Filtro!$A$4:$AY$532,16,FALSE),0) -> 433 | S15: =IFERROR(VLOOKUP($A15,Filtro!$A$4:$AY$532,17,FALSE),0) -> 103 | T15: =IFERROR(VLOOKUP($A15,Filtro!$A$4:$AY$532,18,FALSE),0) -> 427 | U15: =IFERROR(VLOOKUP($A15,Filtro!$A$4:$AY$532,19,FALSE),0) -> 86 | V15: =IFERROR(VLOOKUP($A15,Filtro!$A$4:$AY$532,20,FALSE),0) -> 381 | W15: =IFERROR(VLOOKUP($A15,Filtro!$A$4:$AY$532,21,FALSE),0) -> 88 | X15: =IFERROR(VLOOKUP($A15,Filtro!$A$4:$AY$532,22,FALSE),0) -> 405 | Y15: =IFERROR(VLOOKUP($A15,Filtro!$A$4:$AY$532,23,FALSE),0) -> 97 | Z15: =IFERROR(VLOOKUP($A15,Filtro!$A$4:$AY$532,24,FALSE),0) -> 484 | AA15: =IFERROR(VLOOKUP($A15,Filtro!$A$4:$AY$532,25,FALSE),0) -> 129 | AB15: =IFERROR(VLOOKUP($A15,Filtro!$A$4:$AY$532,26,FALSE),0) -> 619 | AC15: =IFERROR(VLOOKUP($A15,Filtro!$A$4:$AY$532,27,FALSE),0) -> 139 | AD15: =IFERROR(VLOOKUP($A15,Filtro!$A$4:$AY$532,28,FALSE),0) -> 612 | AE15: =IFERROR(VLOOKUP($A15,Filtro!$A$4:$AY$532,29,FALSE),0) -> 157 | AF15: =IFERROR(VLOOKUP($A15,Filtro!$A$4:$AY$532,30,FALSE),0) -> 632 | AG15: =IFERROR(VLOOKUP($A15,Filtro!$A$4:$AY$532,31,FALSE),0) -> 184 | AH15: =IFERROR(VLOOKUP($A15,Filtro!$A$4:$AY$532,32,FALSE),0) -> 657 | AI15: =IFERROR(VLOOKUP($A15,Filtro!$A$4:$AY$532,33,FALSE),0) -> 188 | AJ15: =IFERROR(VLOOKUP($A15,Filtro!$A$4:$AY$532,34,FALSE),0) -> 572 | AK15: =IFERROR(VLOOKUP($A15,Filtro!$A$4:$AY$532,35,FALSE),0) -> 135 | AL15: =IFERROR(VLOOKUP($A15,Filtro!$A$4:$AY$532,36,FALSE),0) -> 450 | AM15: =IFERROR(VLOOKUP($A15,Filtro!$A$4:$AY$532,37,FALSE),0) -> 153 | AN15: =IFERROR(VLOOKUP($A15,Filtro!$A$4:$AY$532,38,FALSE),0) -> 458 | AO15: =IFERROR(VLOOKUP($A15,Filtro!$A$4:$AY$532,39,FALSE),0) -> 4602 | AP15: =IFERROR(VLOOKUP($A15,Filtro!$A$4:$AY$532,40,FALSE),0) -> 97 | AQ15: =IFERROR(VLOOKUP($A15,Filtro!$A$4:$AY$532,41,FALSE),0) -> 100 | CC15: =IF($AO15<=SUM($G15:$AN15),"","* La Población bajo control con Espirometría Vigente no debe ser mayor al Total de Población en Control. ") ->  | CK15: =IF($AO15<=SUM($G15:$AN15),0,1) -> 0 | CL15: 0 | CN15: 0
A16: P3160990 | C16: MODERADO | D16: =IFERROR(VLOOKUP($A16,Filtro!$A$4:$AY$532,2,FALSE),0) -> 9780 | E16: =IFERROR(VLOOKUP($A16,Filtro!$A$4:$AY$532,3,FALSE),0) -> 3772 | F16: =IFERROR(VLOOKUP($A16,Filtro!$A$4:$AY$532,4,FALSE),0) -> 6008 | G16: =IFERROR(VLOOKUP($A16,Filtro!$A$4:$AY$532,5,FALSE),0) -> 287 | H16: =IFERROR(VLOOKUP($A16,Filtro!$A$4:$AY$532,6,FALSE),0) -> 256 | I16: =IFERROR(VLOOKUP($A16,Filtro!$A$4:$AY$532,7,FALSE),0) -> 1260 | J16: =IFERROR(VLOOKUP($A16,Filtro!$A$4:$AY$532,8,FALSE),0) -> 949 | K16: =IFERROR(VLOOKUP($A16,Filtro!$A$4:$AY$532,9,FALSE),0) -> 727 | L16: =IFERROR(VLOOKUP($A16,Filtro!$A$4:$AY$532,10,FALSE),0) -> 618 | M16: =IFERROR(VLOOKUP($A16,Filtro!$A$4:$AY$532,11,FALSE),0) -> 457 | N16: =IFERROR(VLOOKUP($A16,Filtro!$A$4:$AY$532,12,FALSE),0) -> 476 | O16: =IFERROR(VLOOKUP($A16,Filtro!$A$4:$AY$532,13,FALSE),0) -> 105 | P16: =IFERROR(VLOOKUP($A16,Filtro!$A$4:$AY$532,14,FALSE),0) -> 214 | Q16: =IFERROR(VLOOKUP($A16,Filtro!$A$4:$AY$532,15,FALSE),0) -> 65 | R16: =IFERROR(VLOOKUP($A16,Filtro!$A$4:$AY$532,16,FALSE),0) -> 221 | S16: =IFERROR(VLOOKUP($A16,Filtro!$A$4:$AY$532,17,FALSE),0) -> 55 | T16: =IFERROR(VLOOKUP($A16,Filtro!$A$4:$AY$532,18,FALSE),0) -> 174 | U16: =IFERROR(VLOOKUP($A16,Filtro!$A$4:$AY$532,19,FALSE),0) -> 43 | V16: =IFERROR(VLOOKUP($A16,Filtro!$A$4:$AY$532,20,FALSE),0) -> 161 | W16: =IFERROR(VLOOKUP($A16,Filtro!$A$4:$AY$532,21,FALSE),0) -> 49 | X16: =IFERROR(VLOOKUP($A16,Filtro!$A$4:$AY$532,22,FALSE),0) -> 240 | Y16: =IFERROR(VLOOKUP($A16,Filtro!$A$4:$AY$532,23,FALSE),0) -> 58 | Z16: =IFERROR(VLOOKUP($A16,Filtro!$A$4:$AY$532,24,FALSE),0) -> 283 | AA16: =IFERROR(VLOOKUP($A16,Filtro!$A$4:$AY$532,25,FALSE),0) -> 80 | AB16: =IFERROR(VLOOKUP($A16,Filtro!$A$4:$AY$532,26,FALSE),0) -> 332 | AC16: =IFERROR(VLOOKUP($A16,Filtro!$A$4:$AY$532,27,FALSE),0) -> 78 | AD16: =IFERROR(VLOOKUP($A16,Filtro!$A$4:$AY$532,28,FALSE),0) -> 340 | AE16: =IFERROR(VLOOKUP($A16,Filtro!$A$4:$AY$532,29,FALSE),0) -> 96 | AF16: =IFERROR(VLOOKUP($A16,Filtro!$A$4:$AY$532,30,FALSE),0) -> 320 | AG16: =IFERROR(VLOOKUP($A16,Filtro!$A$4:$AY$532,31,FALSE),0) -> 97 | AH16: =IFERROR(VLOOKUP($A16,Filtro!$A$4:$AY$532,32,FALSE),0) -> 376 | AI16: =IFERROR(VLOOKUP($A16,Filtro!$A$4:$AY$532,33,FALSE),0) -> 91 | AJ16: =IFERROR(VLOOKUP($A16,Filtro!$A$4:$AY$532,34,FALSE),0) -> 381 | AK16: =IFERROR(VLOOKUP($A16,Filtro!$A$4:$AY$532,35,FALSE),0) -> 103 | AL16: =IFERROR(VLOOKUP($A16,Filtro!$A$4:$AY$532,36,FALSE),0) -> 311 | AM16: =IFERROR(VLOOKUP($A16,Filtro!$A$4:$AY$532,37,FALSE),0) -> 121 | AN16: =IFERROR(VLOOKUP($A16,Filtro!$A$4:$AY$532,38,FALSE),0) -> 356 | AO16: =IFERROR(VLOOKUP($A16,Filtro!$A$4:$AY$532,39,FALSE),0) -> 2257 | AP16: =IFERROR(VLOOKUP($A16,Filtro!$A$4:$AY$532,40,FALSE),0) -> 17 | AQ16: =IFERROR(VLOOKUP($A16,Filtro!$A$4:$AY$532,41,FALSE),0) -> 33 | CC16: =IF($AO16<=SUM($G16:$AN16),"","* La Población bajo control con Espirometría Vigente no debe ser mayor al Total de Población en Control. ") ->  | CK16: =IF($AO16<=SUM($G16:$AN16),0,1) -> 0 | CL16: 0 | CN16: 0
A17: P3161000 | C17: SEVERO | D17: =IFERROR(VLOOKUP($A17,Filtro!$A$4:$AY$532,2,FALSE),0) -> 1654 | E17: =IFERROR(VLOOKUP($A17,Filtro!$A$4:$AY$532,3,FALSE),0) -> 420 | F17: =IFERROR(VLOOKUP($A17,Filtro!$A$4:$AY$532,4,FALSE),0) -> 1234 | G17: =IFERROR(VLOOKUP($A17,Filtro!$A$4:$AY$532,5,FALSE),0) -> 5 | H17: =IFERROR(VLOOKUP($A17,Filtro!$A$4:$AY$532,6,FALSE),0) -> 5 | I17: =IFERROR(VLOOKUP($A17,Filtro!$A$4:$AY$532,7,FALSE),0) -> 38 | J17: =IFERROR(VLOOKUP($A17,Filtro!$A$4:$AY$532,8,FALSE),0) -> 23 | K17: =IFERROR(VLOOKUP($A17,Filtro!$A$4:$AY$532,9,FALSE),0) -> 22 | L17: =IFERROR(VLOOKUP($A17,Filtro!$A$4:$AY$532,10,FALSE),0) -> 19 | M17: =IFERROR(VLOOKUP($A17,Filtro!$A$4:$AY$532,11,FALSE),0) -> 21 | N17: =IFERROR(VLOOKUP($A17,Filtro!$A$4:$AY$532,12,FALSE),0) -> 25 | O17: =IFERROR(VLOOKUP($A17,Filtro!$A$4:$AY$532,13,FALSE),0) -> 13 | P17: =IFERROR(VLOOKUP($A17,Filtro!$A$4:$AY$532,14,FALSE),0) -> 27 | Q17: =IFERROR(VLOOKUP($A17,Filtro!$A$4:$AY$532,15,FALSE),0) -> 8 | R17: =IFERROR(VLOOKUP($A17,Filtro!$A$4:$AY$532,16,FALSE),0) -> 27 | S17: =IFERROR(VLOOKUP($A17,Filtro!$A$4:$AY$532,17,FALSE),0) -> 16 | T17: =IFERROR(VLOOKUP($A17,Filtro!$A$4:$AY$532,18,FALSE),0) -> 37 | U17: =IFERROR(VLOOKUP($A17,Filtro!$A$4:$AY$532,19,FALSE),0) -> 3 | V17: =IFERROR(VLOOKUP($A17,Filtro!$A$4:$AY$532,20,FALSE),0) -> 47 | W17: =IFERROR(VLOOKUP($A17,Filtro!$A$4:$AY$532,21,FALSE),0) -> 6 | X17: =IFERROR(VLOOKUP($A17,Filtro!$A$4:$AY$532,22,FALSE),0) -> 61 | Y17: =IFERROR(VLOOKUP($A17,Filtro!$A$4:$AY$532,23,FALSE),0) -> 23 | Z17: =IFERROR(VLOOKUP($A17,Filtro!$A$4:$AY$532,24,FALSE),0) -> 65 | AA17: =IFERROR(VLOOKUP($A17,Filtro!$A$4:$AY$532,25,FALSE),0) -> 22 | AB17: =IFERROR(VLOOKUP($A17,Filtro!$A$4:$AY$532,26,FALSE),0) -> 66 | AC17: =IFERROR(VLOOKUP($A17,Filtro!$A$4:$AY$532,27,FALSE),0) -> 28 | AD17: =IFERROR(VLOOKUP($A17,Filtro!$A$4:$AY$532,28,FALSE),0) -> 130 | AE17: =IFERROR(VLOOKUP($A17,Filtro!$A$4:$AY$532,29,FALSE),0) -> 33 | AF17: =IFERROR(VLOOKUP($A17,Filtro!$A$4:$AY$532,30,FALSE),0) -> 125 | AG17: =IFERROR(VLOOKUP($A17,Filtro!$A$4:$AY$532,31,FALSE),0) -> 37 | AH17: =IFERROR(VLOOKUP($A17,Filtro!$A$4:$AY$532,32,FALSE),0) -> 143 | AI17: =IFERROR(VLOOKUP($A17,Filtro!$A$4:$AY$532,33,FALSE),0) -> 62 | AJ17: =IFERROR(VLOOKUP($A17,Filtro!$A$4:$AY$532,34,FALSE),0) -> 139 | AK17: =IFERROR(VLOOKUP($A17,Filtro!$A$4:$AY$532,35,FALSE),0) -> 35 | AL17: =IFERROR(VLOOKUP($A17,Filtro!$A$4:$AY$532,36,FALSE),0) -> 127 | AM17: =IFERROR(VLOOKUP($A17,Filtro!$A$4:$AY$532,37,FALSE),0) -> 48 | AN17: =IFERROR(VLOOKUP($A17,Filtro!$A$4:$AY$532,38,FALSE),0) -> 168 | AO17: =IFERROR(VLOOKUP($A17,Filtro!$A$4:$AY$532,39,FALSE),0) -> 576 | AP17: =IFERROR(VLOOKUP($A17,Filtro!$A$4:$AY$532,40,FALSE),0) -> 0 | AQ17: =IFERROR(VLOOKUP($A17,Filtro!$A$4:$AY$532,41,FALSE),0) -> 6 | CC17: =IF($AO17<=SUM($G17:$AN17),"","* La Población bajo control con Espirometría Vigente no debe ser mayor al Total de Población en Control. ") ->  | CK17: =IF($AO17<=SUM($G17:$AN17),0,1) -> 0 | CL17: 0 | CN17: 0
A18: P3161010 | B18: ENFERMEDAD PULMONAR OBSTRUCTIVA CRÓNICA (EPOC) | C18: TIPO A | D18: =IFERROR(VLOOKUP($A18,Filtro!$A$4:$AY$532,2,FALSE),0) -> 6254 | E18: =IFERROR(VLOOKUP($A18,Filtro!$A$4:$AY$532,3,FALSE),0) -> 3057 | F18: =IFERROR(VLOOKUP($A18,Filtro!$A$4:$AY$532,4,FALSE),0) -> 3197 | G18: =IFERROR(VLOOKUP($A18,Filtro!$A$4:$AY$532,5,FALSE),0) -> 0 | H18: =IFERROR(VLOOKUP($A18,Filtro!$A$4:$AY$532,6,FALSE),0) -> 0 | I18: =IFERROR(VLOOKUP($A18,Filtro!$A$4:$AY$532,7,FALSE),0) -> 0 | J18: =IFERROR(VLOOKUP($A18,Filtro!$A$4:$AY$532,8,FALSE),0) -> 0 | K18: =IFERROR(VLOOKUP($A18,Filtro!$A$4:$AY$532,9,FALSE),0) -> 0 | L18: =IFERROR(VLOOKUP($A18,Filtro!$A$4:$AY$532,10,FALSE),0) -> 0 | M18: =IFERROR(VLOOKUP($A18,Filtro!$A$4:$AY$532,11,FALSE),0) -> 0 | N18: =IFERROR(VLOOKUP($A18,Filtro!$A$4:$AY$532,12,FALSE),0) -> 0 | O18: =IFERROR(VLOOKUP($A18,Filtro!$A$4:$AY$532,13,FALSE),0) -> 0 | P18: =IFERROR(VLOOKUP($A18,Filtro!$A$4:$AY$532,14,FALSE),0) -> 0 | Q18: =IFERROR(VLOOKUP($A18,Filtro!$A$4:$AY$532,15,FALSE),0) -> 0 | R18: =IFERROR(VLOOKUP($A18,Filtro!$A$4:$AY$532,16,FALSE),0) -> 0 | S18: =IFERROR(VLOOKUP($A18,Filtro!$A$4:$AY$532,17,FALSE),0) -> 0 | T18: =IFERROR(VLOOKUP($A18,Filtro!$A$4:$AY$532,18,FALSE),0) -> 0 | U18: =IFERROR(VLOOKUP($A18,Filtro!$A$4:$AY$532,19,FALSE),0) -> 0 | V18: =IFERROR(VLOOKUP($A18,Filtro!$A$4:$AY$532,20,FALSE),0) -> 0 | W18: =IFERROR(VLOOKUP($A18,Filtro!$A$4:$AY$532,21,FALSE),0) -> 19 | X18: =IFERROR(VLOOKUP($A18,Filtro!$A$4:$AY$532,22,FALSE),0) -> 16 | Y18: =IFERROR(VLOOKUP($A18,Filtro!$A$4:$AY$532,23,FALSE),0) -> 21 | Z18: =IFERROR(VLOOKUP($A18,Filtro!$A$4:$AY$532,24,FALSE),0) -> 35 | AA18: =IFERROR(VLOOKUP($A18,Filtro!$A$4:$AY$532,25,FALSE),0) -> 46 | AB18: =IFERROR(VLOOKUP($A18,Filtro!$A$4:$AY$532,26,FALSE),0) -> 80 | AC18: =IFERROR(VLOOKUP($A18,Filtro!$A$4:$AY$532,27,FALSE),0) -> 120 | AD18: =IFERROR(VLOOKUP($A18,Filtro!$A$4:$AY$532,28,FALSE),0) -> 196 | AE18: =IFERROR(VLOOKUP($A18,Filtro!$A$4:$AY$532,29,FALSE),0) -> 273 | AF18: =IFERROR(VLOOKUP($A18,Filtro!$A$4:$AY$532,30,FALSE),0) -> 350 | AG18: =IFERROR(VLOOKUP($A18,Filtro!$A$4:$AY$532,31,FALSE),0) -> 444 | AH18: =IFERROR(VLOOKUP($A18,Filtro!$A$4:$AY$532,32,FALSE),0) -> 468 | AI18: =IFERROR(VLOOKUP($A18,Filtro!$A$4:$AY$532,33,FALSE),0) -> 565 | AJ18: =IFERROR(VLOOKUP($A18,Filtro!$A$4:$AY$532,34,FALSE),0) -> 477 | AK18: =IFERROR(VLOOKUP($A18,Filtro!$A$4:$AY$532,35,FALSE),0) -> 595 | AL18: =IFERROR(VLOOKUP($A18,Filtro!$A$4:$AY$532,36,FALSE),0) -> 589 | AM18: =IFERROR(VLOOKUP($A18,Filtro!$A$4:$AY$532,37,FALSE),0) -> 974 | AN18: =IFERROR(VLOOKUP($A18,Filtro!$A$4:$AY$532,38,FALSE),0) -> 986 | AO18: =IFERROR(VLOOKUP($A18,Filtro!$A$4:$AY$532,39,FALSE),0) -> 2772 | AP18: =IFERROR(VLOOKUP($A18,Filtro!$A$4:$AY$532,40,FALSE),0) -> 43 | AQ18: =IFERROR(VLOOKUP($A18,Filtro!$A$4:$AY$532,41,FALSE),0) -> 49 | CC18: =IF($AO18<=SUM($W18:$AN18),"","* La Población bajo control con Espirometría Vigente no debe ser mayor al Total de Población en Control. ") ->  | CK18: =IF($AO18<=SUM($W18:$AN18),0,1) -> 0 | CL18: 0 | CN18: 0
A19: P3161020 | C19: TIPO B | D19: =IFERROR(VLOOKUP($A19,Filtro!$A$4:$AY$532,2,FALSE),0) -> 1189 | E19: =IFERROR(VLOOKUP($A19,Filtro!$A$4:$AY$532,3,FALSE),0) -> 643 | F19: =IFERROR(VLOOKUP($A19,Filtro!$A$4:$AY$532,4,FALSE),0) -> 546 | G19: =IFERROR(VLOOKUP($A19,Filtro!$A$4:$AY$532,5,FALSE),0) -> 0 | H19: =IFERROR(VLOOKUP($A19,Filtro!$A$4:$AY$532,6,FALSE),0) -> 0 | I19: =IFERROR(VLOOKUP($A19,Filtro!$A$4:$AY$532,7,FALSE),0) -> 0 | J19: =IFERROR(VLOOKUP($A19,Filtro!$A$4:$AY$532,8,FALSE),0) -> 0 | K19: =IFERROR(VLOOKUP($A19,Filtro!$A$4:$AY$532,9,FALSE),0) -> 0 | L19: =IFERROR(VLOOKUP($A19,Filtro!$A$4:$AY$532,10,FALSE),0) -> 0 | M19: =IFERROR(VLOOKUP($A19,Filtro!$A$4:$AY$532,11,FALSE),0) -> 0 | N19: =IFERROR(VLOOKUP($A19,Filtro!$A$4:$AY$532,12,FALSE),0) -> 0 | O19: =IFERROR(VLOOKUP($A19,Filtro!$A$4:$AY$532,13,FALSE),0) -> 0 | P19: =IFERROR(VLOOKUP($A19,Filtro!$A$4:$AY$532,14,FALSE),0) -> 0 | Q19: =IFERROR(VLOOKUP($A19,Filtro!$A$4:$AY$532,15,FALSE),0) -> 0 | R19: =IFERROR(VLOOKUP($A19,Filtro!$A$4:$AY$532,16,FALSE),0) -> 0 | S19: =IFERROR(VLOOKUP($A19,Filtro!$A$4:$AY$532,17,FALSE),0) -> 0 | T19: =IFERROR(VLOOKUP($A19,Filtro!$A$4:$AY$532,18,FALSE),0) -> 0 | U19: =IFERROR(VLOOKUP($A19,Filtro!$A$4:$AY$532,19,FALSE),0) -> 0 | V19: =IFERROR(VLOOKUP($A19,Filtro!$A$4:$AY$532,20,FALSE),0) -> 0 | W19: =IFERROR(VLOOKUP($A19,Filtro!$A$4:$AY$532,21,FALSE),0) -> 0 | X19: =IFERROR(VLOOKUP($A19,Filtro!$A$4:$AY$532,22,FALSE),0) -> 1 | Y19: =IFERROR(VLOOKUP($A19,Filtro!$A$4:$AY$532,23,FALSE),0) -> 0 | Z19: =IFERROR(VLOOKUP($A19,Filtro!$A$4:$AY$532,24,FALSE),0) -> 1 | AA19: =IFERROR(VLOOKUP($A19,Filtro!$A$4:$AY$532,25,FALSE),0) -> 7 | AB19: =IFERROR(VLOOKUP($A19,Filtro!$A$4:$AY$532,26,FALSE),0) -> 15 | AC19: =IFERROR(VLOOKUP($A19,Filtro!$A$4:$AY$532,27,FALSE),0) -> 14 | AD19: =IFERROR(VLOOKUP($A19,Filtro!$A$4:$AY$532,28,FALSE),0) -> 10 | AE19: =IFERROR(VLOOKUP($A19,Filtro!$A$4:$AY$532,29,FALSE),0) -> 43 | AF19: =IFERROR(VLOOKUP($A19,Filtro!$A$4:$AY$532,30,FALSE),0) -> 40 | AG19: =IFERROR(VLOOKUP($A19,Filtro!$A$4:$AY$532,31,FALSE),0) -> 60 | AH19: =IFERROR(VLOOKUP($A19,Filtro!$A$4:$AY$532,32,FALSE),0) -> 70 | AI19: =IFERROR(VLOOKUP($A19,Filtro!$A$4:$AY$532,33,FALSE),0) -> 110 | AJ19: =IFERROR(VLOOKUP($A19,Filtro!$A$4:$AY$532,34,FALSE),0) -> 77 | AK19: =IFERROR(VLOOKUP($A19,Filtro!$A$4:$AY$532,35,FALSE),0) -> 152 | AL19: =IFERROR(VLOOKUP($A19,Filtro!$A$4:$AY$532,36,FALSE),0) -> 92 | AM19: =IFERROR(VLOOKUP($A19,Filtro!$A$4:$AY$532,37,FALSE),0) -> 257 | AN19: =IFERROR(VLOOKUP($A19,Filtro!$A$4:$AY$532,38,FALSE),0) -> 240 | AO19: =IFERROR(VLOOKUP($A19,Filtro!$A$4:$AY$532,39,FALSE),0) -> 357 | AP19: =IFERROR(VLOOKUP($A19,Filtro!$A$4:$AY$532,40,FALSE),0) -> 8 | AQ19: =IFERROR(VLOOKUP($A19,Filtro!$A$4:$AY$532,41,FALSE),0) -> 8 | CC19: =IF($AO19<=SUM($W19:$AN19),"","* La Población bajo control con Espirometría Vigente no debe ser mayor al Total de Población en Control. ") ->  | CK19: =IF($AO19<=SUM($W19:$AN19),0,1) -> 0 | CL19: 0 | CN19: 0
A20: P3161030 | B20: OTRAS RESPIRATORIAS CRONICAS | D20: =IFERROR(VLOOKUP($A20,Filtro!$A$4:$AY$532,2,FALSE),0) -> 2467 | E20: =IFERROR(VLOOKUP($A20,Filtro!$A$4:$AY$532,3,FALSE),0) -> 1354 | F20: =IFERROR(VLOOKUP($A20,Filtro!$A$4:$AY$532,4,FALSE),0) -> 1113 | G20: =IFERROR(VLOOKUP($A20,Filtro!$A$4:$AY$532,5,FALSE),0) -> 45 | H20: =IFERROR(VLOOKUP($A20,Filtro!$A$4:$AY$532,6,FALSE),0) -> 33 | I20: =IFERROR(VLOOKUP($A20,Filtro!$A$4:$AY$532,7,FALSE),0) -> 115 | J20: =IFERROR(VLOOKUP($A20,Filtro!$A$4:$AY$532,8,FALSE),0) -> 89 | K20: =IFERROR(VLOOKUP($A20,Filtro!$A$4:$AY$532,9,FALSE),0) -> 14 | L20: =IFERROR(VLOOKUP($A20,Filtro!$A$4:$AY$532,10,FALSE),0) -> 12 | M20: =IFERROR(VLOOKUP($A20,Filtro!$A$4:$AY$532,11,FALSE),0) -> 7 | N20: =IFERROR(VLOOKUP($A20,Filtro!$A$4:$AY$532,12,FALSE),0) -> 8 | O20: =IFERROR(VLOOKUP($A20,Filtro!$A$4:$AY$532,13,FALSE),0) -> 0 | P20: =IFERROR(VLOOKUP($A20,Filtro!$A$4:$AY$532,14,FALSE),0) -> 14 | Q20: =IFERROR(VLOOKUP($A20,Filtro!$A$4:$AY$532,15,FALSE),0) -> 0 | R20: =IFERROR(VLOOKUP($A20,Filtro!$A$4:$AY$532,16,FALSE),0) -> 8 | S20: =IFERROR(VLOOKUP($A20,Filtro!$A$4:$AY$532,17,FALSE),0) -> 0 | T20: =IFERROR(VLOOKUP($A20,Filtro!$A$4:$AY$532,18,FALSE),0) -> 13 | U20: =IFERROR(VLOOKUP($A20,Filtro!$A$4:$AY$532,19,FALSE),0) -> 7 | V20: =IFERROR(VLOOKUP($A20,Filtro!$A$4:$AY$532,20,FALSE),0) -> 15 | W20: =IFERROR(VLOOKUP($A20,Filtro!$A$4:$AY$532,21,FALSE),0) -> 12 | X20: =IFERROR(VLOOKUP($A20,Filtro!$A$4:$AY$532,22,FALSE),0) -> 22 | Y20: =IFERROR(VLOOKUP($A20,Filtro!$A$4:$AY$532,23,FALSE),0) -> 19 | Z20: =IFERROR(VLOOKUP($A20,Filtro!$A$4:$AY$532,24,FALSE),0) -> 20 | AA20: =IFERROR(VLOOKUP($A20,Filtro!$A$4:$AY$532,25,FALSE),0) -> 31 | AB20: =IFERROR(VLOOKUP($A20,Filtro!$A$4:$AY$532,26,FALSE),0) -> 24 | AC20: =IFERROR(VLOOKUP($A20,Filtro!$A$4:$AY$532,27,FALSE),0) -> 77 | AD20: =IFERROR(VLOOKUP($A20,Filtro!$A$4:$AY$532,28,FALSE),0) -> 62 | AE20: =IFERROR(VLOOKUP($A20,Filtro!$A$4:$AY$532,29,FALSE),0) -> 93 | AF20: =IFERROR(VLOOKUP($A20,Filtro!$A$4:$AY$532,30,FALSE),0) -> 83 | AG20: =IFERROR(VLOOKUP($A20,Filtro!$A$4:$AY$532,31,FALSE),0) -> 163 | AH20: =IFERROR(VLOOKUP($A20,Filtro!$A$4:$AY$532,32,FALSE),0) -> 121 | AI20: =IFERROR(VLOOKUP($A20,Filtro!$A$4:$AY$532,33,FALSE),0) -> 214 | AJ20: =IFERROR(VLOOKUP($A20,Filtro!$A$4:$AY$532,34,FALSE),0) -> 140 | AK20: =IFERROR(VLOOKUP($A20,Filtro!$A$4:$AY$532,35,FALSE),0) -> 205 | AL20: =IFERROR(VLOOKUP($A20,Filtro!$A$4:$AY$532,36,FALSE),0) -> 189 | AM20: =IFERROR(VLOOKUP($A20,Filtro!$A$4:$AY$532,37,FALSE),0) -> 352 | AN20: =IFERROR(VLOOKUP($A20,Filtro!$A$4:$AY$532,38,FALSE),0) -> 260 | AO20: =IFERROR(VLOOKUP($A20,Filtro!$A$4:$AY$532,39,FALSE),0) -> 0 | AP20: =IFERROR(VLOOKUP($A20,Filtro!$A$4:$AY$532,40,FALSE),0) -> 18 | AQ20: =IFERROR(VLOOKUP($A20,Filtro!$A$4:$AY$532,41,FALSE),0) -> 31 | CL20: 0 | CN20: 0
